Workbook

Sheet README
A1: 相互相関による画像検出と位置判定用EXCELシート
A3: ●シートの説明（詳しくは弊社サイトhttp://digitalfilter.comの「お役立ちEXCEL for Filters」ご参照）
A4: charF | B4: "F"のテンプレート、対象画像９個と演算結果
A5: charL | B5: "L"のテンプレート、対象画像９個と演算結果
A6: charX | B6: "X"のテンプレート、対象画像９個と演算結果
A7: charO | B7: "O"のテンプレート、対象画像９個と演算結果
A8: charN | B8: "N"のテンプレート、対象画像９個と演算結果
A9: char10 | B9: 48×48の画面に10個のキャラクターをちりばめる
A10: shift40x40 | B10: char10シートから8×8画素を上下左右1画素ずらしてとる。8×8が40×40個
A11: mult40x40 | B11: shift40x40シートとテンプレートとの乗算。8×8が40×40個
A12: acc40x40 | B12: mult40x40シートの8×8画素を累積。相互相関値が40×40個
A14: ●相互相関関数
B21: 本シートでは N = 8, M = 40 とする
A23: 改訂履歴
A24: 2024/04/13 : version 0.9 | B24: 初版
A26: by Toshio Iwata at DIGITALFILTER.COM, all rights reserved
A28: 詳しい説明・使用法は弊社サイトhttp://digitalfilter.comの「お役立ちEXCEL for Filters」を参考にしてください
A29: 本EXCELシートの無断配布を禁じます（上記サイトからダウンロードして使用してください）
A30: 本EXCELシートはユーザー各自の責任において使用してください

Sheet charF
A1: x [ i ][ j ] テンプレート "F" | J1: y [ i ][ j ] 対象画像 "Y" | S1: 各要素同士を乗算 | AB1: 全要素を加算
A2: -1 | B2: 2.765 | C2: 2.765 | D2: 2.765 | E2: 2.765 | F2: 2.765 | G2: 2.765 | H2: -1 | J2: 40 | K2: 15 | L2: 5 | M2: 5 | N2: 5 | O2: 15 | P2: 40 | Q2: 5 | S2: =A2*J2 -> -40 | T2: =B2*K2 -> 41.475 | U2: 13.825 | V2: 13.825 | W2: 13.825 | X2: 41.475 | Y2: 110.6 | Z2: -5 | AB2: 相互相関値
A3: -1 | B3: 2.765 | C3: -1 | D3: -1 | E3: -1 | F3: -1 | G3: -1 | H3: -1 | J3: 15 | K3: 40 | L3: 15 | M3: 5 | N3: 15 | O3: 40 | P3: 15 | Q3: 5 | S3: =A3*J3 -> -15 | T3: 110.6 | U3: -15 | V3: -5 | W3: -15 | X3: -40 | Y3: -15 | Z3: -5 | AB3: "Y"
A4: -1 | B4: 2.765 | C4: -1 | D4: -1 | E4: -1 | F4: -1 | G4: -1 | H4: -1 | J4: 5 | K4: 15 | L4: 40 | M4: 20 | N4: 40 | O4: 15 | P4: 5 | Q4: 5 | S4: -5 | T4: 41.475 | U4: -40 | V4: -20 | W4: -40 | X4: -15 | Y4: -5 | Z4: -5 | AB4: =SUM(S2:Z9) -> 3.6
A5: -1 | B5: 2.765 | C5: -1 | D5: -1 | E5: -1 | F5: -1 | G5: -1 | H5: -1 | J5: 5 | K5: 5 | L5: 15 | M5: 40 | N5: 15 | O5: 5 | P5: 5 | Q5: 5 | S5: -5 | T5: 13.825 | U5: -15 | V5: -40 | W5: -15 | X5: -5 | Y5: -5 | Z5: -5
A6: -1 | B6: 2.765 | C6: 2.765 | D6: 2.765 | E6: 2.765 | F6: 2.765 | G6: -1 | H6: -1 | J6: 5 | K6: 5 | L6: 15 | M6: 40 | N6: 15 | O6: 5 | P6: 5 | Q6: 5 | S6: -5 | T6: 13.825 | U6: 41.475 | V6: 110.6 | W6: 41.475 | X6: 13.825 | Y6: -5 | Z6: -5
A7: -1 | B7: 2.765 | C7: -1 | D7: -1 | E7: -1 | F7: -1 | G7: -1 | H7: -1 | J7: 5 | K7: 5 | L7: 15 | M7: 40 | N7: 15 | O7: 5 | P7: 5 | Q7: 5 | S7: -5 | T7: 13.825 | U7: -15 | V7: -40 | W7: -15 | X7: -5 | Y7: -5 | Z7: -5
A8: -1 | B8: 2.765 | C8: -1 | D8: -1 | E8: -1 | F8: -1 | G8: -1 | H8: -1 | J8: 5 | K8: 5 | L8: 15 | M8: 40 | N8: 15 | O8: 5 | P8: 5 | Q8: 5 | S8: -5 | T8: 13.825 | U8: -15 | V8: -40 | W8: -15 | X8: -5 | Y8: -5 | Z8: -5
A9: -1 | B9: 2.765 | C9: -1 | D9: -1 | E9: -1 | F9: -1 | G9: -1 | H9: -1 | J9: 5 | K9: 5 | L9: 15 | M9: 40 | N9: 15 | O9: 5 | P9: 5 | Q9: 5 | S9: -5 | T9: 13.825 | U9: -15 | V9: -40 | W9: -15 | X9: -5 | Y9: -5 | Z9: -5
A11: x [ i ][ j ] テンプレート "F" | J11: y [ i ][ j ] 対象画像 "Z" | S11: 各要素同士を乗算 | AB11: 全要素を加算
A12: -1 | B12: 2.765 | C12: 2.765 | D12: 2.765 | E12: 2.765 | F12: 2.765 | G12: 2.765 | H12: -1 | J12: 40 | K12: 40 | L12: 40 | M12: 40 | N12: 40 | O12: 40 | P12: 40 | Q12: 5 | S12: =A12*J12 -> -40 | T12: =B12*K12 -> 110.6 | U12: 110.6 | V12: 110.6 | W12: 110.6 | X12: 110.6 | Y12: 110.6 | Z12: -5 | AB12: 相互相関値
A13: -1 | B13: 2.765 | C13: -1 | D13: -1 | E13: -1 | F13: -1 | G13: -1 | H13: -1 | J13: 15 | K13: 15 | L13: 15 | M13: 20 | N13: 20 | O13: 40 | P13: 20 | Q13: 5 | S13: =A13*J13 -> -15 | T13: 41.475 | U13: -15 | V13: -20 | W13: -20 | X13: -40 | Y13: -20 | Z13: -5 | AB13: "Z"
A14: -1 | B14: 2.765 | C14: -1 | D14: -1 | E14: -1 | F14: -1 | G14: -1 | H14: -1 | J14: 5 | K14: 5 | L14: 5 | M14: 20 | N14: 40 | O14: 20 | P14: 5 | Q14: 5 | S14: -5 | T14: 13.825 | U14: -5 | V14: -20 | W14: -40 | X14: -20 | Y14: -5 | Z14: -5 | AB14: =SUM(S12:Z19) -> 399.25
A15: -1 | B15: 2.765 | C15: -1 | D15: -1 | E15: -1 | F15: -1 | G15: -1 | H15: -1 | J15: 5 | K15: 5 | L15: 15 | M15: 40 | N15: 20 | O15: 5 | P15: 5 | Q15: 5 | S15: -5 | T15: 13.825 | U15: -15 | V15: -40 | W15: -20 | X15: -5 | Y15: -5 | Z15: -5
A16: -1 | B16: 2.765 | C16: 2.765 | D16: 2.765 | E16: 2.765 | F16: 2.765 | G16: -1 | H16: -1 | J16: 5 | K16: 15 | L16: 40 | M16: 20 | N16: 10 | O16: 5 | P16: 5 | Q16: 5 | S16: -5 | T16: 41.475 | U16: 110.6 | V16: 55.3 | W16: 27.65 | X16: 13.825 | Y16: -5 | Z16: -5
A17: -1 | B17: 2.765 | C17: -1 | D17: -1 | E17: -1 | F17: -1 | G17: -1 | H17: -1 | J17: 15 | K17: 40 | L17: 15 | M17: 20 | N17: 20 | O17: 20 | P17: 20 | Q17: 5 | S17: -15 | T17: 110.6 | U17: -15 | V17: -20 | W17: -20 | X17: -20 | Y17: -20 | Z17: -5
A18: -1 | B18: 2.765 | C18: -1 | D18: -1 | E18: -1 | F18: -1 | G18: -1 | H18: -1 | J18: 40 | K18: 40 | L18: 40 | M18: 40 | N18: 40 | O18: 40 | P18: 40 | Q18: 5 | S18: -40 | T18: 110.6 | U18: -40 | V18: -40 | W18: -40 | X18: -40 | Y18: -40 | Z18: -5
A19: -1 | B19: 2.765 | C19: -1 | D19: -1 | E19: -1 | F19: -1 | G19: -1 | H19: -1 | J19: 15 | K19: 15 | L19: 15 | M19: 15 | N19: 15 | O19: 15 | P19: 15 | Q19: 5 | S19: -15 | T19: 41.475 | U19: -15 | V19: -15 | W19: -15 | X19: -15 | Y19: -15 | Z19: -5
A21: x [ i ][ j ] テンプレート "F" | J21: y [ i ][ j ] 対象画像 "R" | S21: 各要素同士を乗算 | AB21: 全要素を加算
A22: -1 | B22: 2.765 | C22: 2.765 | D22: 2.765 | E22: 2.765 | F22: 2.765 | G22: 2.765 | H22: -1 | J22: 15 | K22: 40 | L22: 40 | M22: 40 | N22: 40 | O22: 40 | P22: 20 | Q22: 5 | S22: =A22*J22 -> -15 | T22: =B22*K22 -> 110.6 | U22: 110.6 | V22: 110.6 | W22: 110.6 | X22: 110.6 | Y22: 55.3 | Z22: -5 | AB22: 相互相関値
A23: -1 | B23: 2.765 | C23: -1 | D23: -1 | E23: -1 | F23: -1 | G23: -1 | H23: -1 | J23: 15 | K23: 40 | L23: 20 | M23: 20 | N23: 20 | O23: 20 | P23: 40 | Q23: 15 | S23: =A23*J23 -> -15 | T23: 110.6 | U23: -20 | V23: -20 | W23: -20 | X23: -20 | Y23: -40 | Z23: -15 | AB23: "R"
A24: -1 | B24: 2.765 | C24: -1 | D24: -1 | E24: -1 | F24: -1 | G24: -1 | H24: -1 | J24: 15 | K24: 40 | L24: 20 | M24: 5 | N24: 20 | O24: 20 | P24: 40 | Q24: 15 | S24: -15 | T24: 110.6 | U24: -20 | V24: -5 | W24: -20 | X24: -20 | Y24: -40 | Z24: -15 | AB24: =SUM(S22:Z29) -> 954.6
A25: -1 | B25: 2.765 | C25: -1 | D25: -1 | E25: -1 | F25: -1 | G25: -1 | H25: -1 | J25: 15 | K25: 40 | L25: 20 | M25: 20 | N25: 20 | O25: 40 | P25: 15 | Q25: 5 | S25: -15 | T25: 110.6 | U25: -20 | V25: -20 | W25: -20 | X25: -40 | Y25: -15 | Z25: -5
A26: -1 | B26: 2.765 | C26: 2.765 | D26: 2.765 | E26: 2.765 | F26: 2.765 | G26: -1 | H26: -1 | J26: 15 | K26: 40 | L26: 40 | M26: 40 | N26: 40 | O26: 20 | P26: 5 | Q26: 5 | S26: -15 | T26: 110.6 | U26: 110.6 | V26: 110.6 | W26: 110.6 | X26: 55.3 | Y26: -5 | Z26: -5
A27: -1 | B27: 2.765 | C27: -1 | D27: -1 | E27: -1 | F27: -1 | G27: -1 | H27: -1 | J27: 15 | K27: 40 | L27: 15 | M27: 15 | N27: 40 | O27: 40 | P27: 15 | Q27: 5 | S27: -15 | T27: 110.6 | U27: -15 | V27: -15 | W27: -40 | X27: -40 | Y27: -15 | Z27: -5
A28: -1 | B28: 2.765 | C28: -1 | D28: -1 | E28: -1 | F28: -1 | G28: -1 | H28: -1 | J28: 15 | K28: 40 | L28: 10 | M28: 5 | N28: 10 | O28: 40 | P28: 40 | Q28: 5 | S28: -15 | T28: 110.6 | U28: -10 | V28: -5 | W28: -10 | X28: -40 | Y28: -40 | Z28: -5
A29: -1 | B29: 2.765 | C29: -1 | D29: -1 | E29: -1 | F29: -1 | G29: -1 | H29: -1 | J29: 15 | K29: 40 | L29: 5 | M29: 5 | N29: 5 | O29: 5 | P29: 40 | Q29: 5 | S29: -15 | T29: 110.6 | U29: -5 | V29: -5 | W29: -5 | X29: -5 | Y29: -40 | Z29: -5
A31: x [ i ][ j ] テンプレート "F" | J31: y [ i ][ j ] 対象画像 "J" | S31: 各要素同士を乗算 | AB31: 全要素を加算
A32: -1 | B32: 2.765 | C32: 2.765 | D32: 2.765 | E32: 2.765 | F32: 2.765 | G32: 2.765 | H32: -1 | J32: 5 | K32: 5 | L32: 5 | M32: 5 | N32: 5 | O32: 20 | P32: 40 | Q32: 15 | S32: =A32*J32 -> -5 | T32: =B32*K32 -> 13.825 | U32: 13.825 | V32: 13.825 | W32: 13.825 | X32: 55.3 | Y32: 110.6 | Z32: -15 | AB32: 相互相関値
A33: -1 | B33: 2.765 | C33: -1 | D33: -1 | E33: -1 | F33: -1 | G33: -1 | H33: -1 | J33: 5 | K33: 5 | L33: 5 | M33: 5 | N33: 5 | O33: 20 | P33: 40 | Q33: 15 | S33: =A33*J33 -> -5 | T33: 13.825 | U33: -5 | V33: -5 | W33: -5 | X33: -20 | Y33: -40 | Z33: -15 | AB33: "J"
A34: -1 | B34: 2.765 | C34: -1 | D34: -1 | E34: -1 | F34: -1 | G34: -1 | H34: -1 | J34: 5 | K34: 5 | L34: 5 | M34: 5 | N34: 5 | O34: 20 | P34: 40 | Q34: 15 | S34: -5 | T34: 13.825 | U34: -5 | V34: -5 | W34: -5 | X34: -20 | Y34: -40 | Z34: -15 | AB34: =SUM(S32:Z39) -> -172
A35: -1 | B35: 2.765 | C35: -1 | D35: -1 | E35: -1 | F35: -1 | G35: -1 | H35: -1 | J35: 5 | K35: 5 | L35: 5 | M35: 5 | N35: 5 | O35: 20 | P35: 40 | Q35: 15 | S35: -5 | T35: 13.825 | U35: -5 | V35: -5 | W35: -5 | X35: -20 | Y35: -40 | Z35: -15
A36: -1 | B36: 2.765 | C36: 2.765 | D36: 2.765 | E36: 2.765 | F36: 2.765 | G36: -1 | H36: -1 | J36: 5 | K36: 5 | L36: 5 | M36: 5 | N36: 5 | O36: 20 | P36: 40 | Q36: 15 | S36: -5 | T36: 13.825 | U36: 13.825 | V36: 13.825 | W36: 13.825 | X36: 55.3 | Y36: -40 | Z36: -15
A37: -1 | B37: 2.765 | C37: -1 | D37: -1 | E37: -1 | F37: -1 | G37: -1 | H37: -1 | J37: 5 | K37: 5 | L37: 5 | M37: 5 | N37: 20 | O37: 40 | P37: 20 | Q37: 15 | S37: -5 | T37: 13.825 | U37: -5 | V37: -5 | W37: -20 | X37: -40 | Y37: -20 | Z37: -15
A38: -1 | B38: 2.765 | C38: -1 | D38: -1 | E38: -1 | F38: -1 | G38: -1 | H38: -1 | J38: 5 | K38: 20 | L38: 20 | M38: 20 | N38: 40 | O38: 20 | P38: 5 | Q38: 5 | S38: -5 | T38: 55.3 | U38: -20 | V38: -20 | W38: -40 | X38: -20 | Y38: -5 | Z38: -5
A39: -1 | B39: 2.765 | C39: -1 | D39: -1 | E39: -1 | F39: -1 | G39: -1 | H39: -1 | J39: 20 | K39: 40 | L39: 40 | M39: 40 | N39: 20 | O39: 5 | P39: 5 | Q39: 5 | S39: -20 | T39: 110.6 | U39: -40 | V39: -40 | W39: -20 | X39: -5 | Y39: -5 | Z39: -5
A41: x [ i ][ j ] テンプレート "F" | J41: y [ i ][ j ] 対象画像 "N" | S41: 各要素同士を乗算 | AB41: 全要素を加算
A42: -1 | B42: 2.765 | C42: 2.765 | D42: 2.765 | E42: 2.765 | F42: 2.765 | G42: 2.765 | H42: -1 | J42: 40 | K42: 20 | L42: 5 | M42: 5 | N42: 5 | O42: 5 | P42: 40 | Q42: 15 | S42: =A42*J42 -> -40 | T42: =B42*K42 -> 55.3 | U42: 13.825 | V42: 13.825 | W42: 13.825 | X42: 13.825 | Y42: 110.6 | Z42: -15 | AB42: 相互相関値
A43: -1 | B43: 2.765 | C43: -1 | D43: -1 | E43: -1 | F43: -1 | G43: -1 | H43: -1 | J43: 40 | K43: 40 | L43: 15 | M43: 5 | N43: 5 | O43: 5 | P43: 40 | Q43: 15 | S43: =A43*J43 -> -40 | T43: 110.6 | U43: -15 | V43: -5 | W43: -5 | X43: -5 | Y43: -40 | Z43: -15 | AB43: "N"
A44: -1 | B44: 2.765 | C44: -1 | D44: -1 | E44: -1 | F44: -1 | G44: -1 | H44: -1 | J44: 40 | K44: 25 | L44: 40 | M44: 15 | N44: 5 | O44: 5 | P44: 40 | Q44: 15 | S44: -40 | T44: 69.125 | U44: -40 | V44: -15 | W44: -5 | X44: -5 | Y44: -40 | Z44: -15 | AB44: =SUM(S42:Z49) -> -264.925
A45: -1 | B45: 2.765 | C45: -1 | D45: -1 | E45: -1 | F45: -1 | G45: -1 | H45: -1 | J45: 40 | K45: 5 | L45: 15 | M45: 40 | N45: 15 | O45: 5 | P45: 40 | Q45: 15 | S45: -40 | T45: 13.825 | U45: -15 | V45: -40 | W45: -15 | X45: -5 | Y45: -40 | Z45: -15
A46: -1 | B46: 2.765 | C46: 2.765 | D46: 2.765 | E46: 2.765 | F46: 2.765 | G46: -1 | H46: -1 | J46: 40 | K46: 5 | L46: 5 | M46: 15 | N46: 40 | O46: 25 | P46: 40 | Q46: 15 | S46: -40 | T46: 13.825 | U46: 13.825 | V46: 41.475 | W46: 110.6 | X46: 69.125 | Y46: -40 | Z46: -15
A47: -1 | B47: 2.765 | C47: -1 | D47: -1 | E47: -1 | F47: -1 | G47: -1 | H47: -1 | J47: 40 | K47: 5 | L47: 5 | M47: 5 | N47: 15 | O47: 40 | P47: 40 | Q47: 15 | S47: -40 | T47: 13.825 | U47: -5 | V47: -5 | W47: -15 | X47: -40 | Y47: -40 | Z47: -15
A48: -1 | B48: 2.765 | C48: -1 | D48: -1 | E48: -1 | F48: -1 | G48: -1 | H48: -1 | J48: 40 | K48: 5 | L48: 5 | M48: 5 | N48: 5 | O48: 20 | P48: 40 | Q48: 15 | S48: -40 | T48: 13.825 | U48: -5 | V48: -5 | W48: -5 | X48: -20 | Y48: -40 | Z48: -15
A49: -1 | B49: 2.765 | C49: -1 | D49: -1 | E49: -1 | F49: -1 | G49: -1 | H49: -1 | J49: 20 | K49: 5 | L49: 5 | M49: 5 | N49: 5 | O49: 5 | P49: 20 | Q49: 15 | S49: -20 | T49: 13.825 | U49: -5 | V49: -5 | W49: -5 | X49: -5 | Y49: -20 | Z49: -15
A51: x [ i ][ j ] テンプレート "F" | J51: y [ i ][ j ] 対象画像 "O" | S51: 各要素同士を乗算 | AB51: 全要素を加算
A52: -1 | B52: 2.765 | C52: 2.765 | D52: 2.765 | E52: 2.765 | F52: 2.765 | G52: 2.765 | H52: -1 | J52: 5 | K52: 15 | L52: 40 | M52: 40 | N52: 40 | O52: 15 | P52: 5 | Q52: 5 | S52: =A52*J52 -> -5 | T52: =B52*K52 -> 41.475 | U52: 110.6 | V52: 110.6 | W52: 110.6 | X52: 41.475 | Y52: 13.825 | Z52: -5 | AB52: 相互相関値
A53: -1 | B53: 2.765 | C53: -1 | D53: -1 | E53: -1 | F53: -1 | G53: -1 | H53: -1 | J53: 15 | K53: 40 | L53: 20 | M53: 20 | N53: 20 | O53: 40 | P53: 15 | Q53: 5 | S53: =A53*J53 -> -15 | T53: 110.6 | U53: -20 | V53: -20 | W53: -20 | X53: -40 | Y53: -15 | Z53: -5 | AB53: "O"
A54: -1 | B54: 2.765 | C54: -1 | D54: -1 | E54: -1 | F54: -1 | G54: -1 | H54: -1 | J54: 40 | K54: 20 | L54: 5 | M54: 5 | N54: 5 | O54: 20 | P54: 40 | Q54: 15 | S54: -40 | T54: 55.3 | U54: -5 | V54: -5 | W54: -5 | X54: -20 | Y54: -40 | Z54: -15 | AB54: =SUM(S52:Z59) -> 94.225
A55: -1 | B55: 2.765 | C55: -1 | D55: -1 | E55: -1 | F55: -1 | G55: -1 | H55: -1 | J55: 40 | K55: 20 | L55: 5 | M55: 5 | N55: 5 | O55: 20 | P55: 40 | Q55: 15 | S55: -40 | T55: 55.3 | U55: -5 | V55: -5 | W55: -5 | X55: -20 | Y55: -40 | Z55: -15
A56: -1 | B56: 2.765 | C56: 2.765 | D56: 2.765 | E56: 2.765 | F56: 2.765 | G56: -1 | H56: -1 | J56: 40 | K56: 20 | L56: 5 | M56: 5 | N56: 5 | O56: 20 | P56: 40 | Q56: 15 | S56: -40 | T56: 55.3 | U56: 13.825 | V56: 13.825 | W56: 13.825 | X56: 55.3 | Y56: -40 | Z56: -15
A57: -1 | B57: 2.765 | C57: -1 | D57: -1 | E57: -1 | F57: -1 | G57: -1 | H57: -1 | J57: 40 | K57: 20 | L57: 5 | M57: 5 | N57: 5 | O57: 20 | P57: 40 | Q57: 15 | S57: -40 | T57: 55.3 | U57: -5 | V57: -5 | W57: -5 | X57: -20 | Y57: -40 | Z57: -15
A58: -1 | B58: 2.765 | C58: -1 | D58: -1 | E58: -1 | F58: -1 | G58: -1 | H58: -1 | J58: 15 | K58: 40 | L58: 20 | M58: 20 | N58: 20 | O58: 40 | P58: 15 | Q58: 5 | S58: -15 | T58: 110.6 | U58: -20 | V58: -20 | W58: -20 | X58: -40 | Y58: -15 | Z58: -5
A59: -1 | B59: 2.765 | C59: -1 | D59: -1 | E59: -1 | F59: -1 | G59: -1 | H59: -1 | J59: 5 | K59: 15 | L59: 40 | M59: 40 | N59: 40 | O59: 15 | P59: 5 | Q59: 5 | S59: -5 | T59: 41.475 | U59: -40 | V59: -40 | W59: -40 | X59: -15 | Y59: -5 | Z59: -5
A61: x [ i ][ j ] テンプレート "F" | J61: y [ i ][ j ] 対象画像 "X" | S61: 各要素同士を乗算 | AB61: 全要素を加算
A62: -1 | B62: 2.765 | C62: 2.765 | D62: 2.765 | E62: 2.765 | F62: 2.765 | G62: 2.765 | H62: -1 | J62: 40 | K62: 15 | L62: 5 | M62: 5 | N62: 5 | O62: 5 | P62: 15 | Q62: 40 | S62: =A62*J62 -> -40 | T62: =B62*K62 -> 41.475 | U62: 13.825 | V62: 13.825 | W62: 13.825 | X62: 13.825 | Y62: 41.475 | Z62: -40 | AB62: 相互相関値
A63: -1 | B63: 2.765 | C63: -1 | D63: -1 | E63: -1 | F63: -1 | G63: -1 | H63: -1 | J63: 15 | K63: 40 | L63: 15 | M63: 5 | N63: 5 | O63: 15 | P63: 40 | Q63: 15 | S63: =A63*J63 -> -15 | T63: 110.6 | U63: -15 | V63: -5 | W63: -5 | X63: -15 | Y63: -40 | Z63: -15 | AB63: "X"
A64: -1 | B64: 2.765 | C64: -1 | D64: -1 | E64: -1 | F64: -1 | G64: -1 | H64: -1 | J64: 5 | K64: 15 | L64: 40 | M64: 15 | N64: 15 | O64: 40 | P64: 15 | Q64: 5 | S64: -5 | T64: 41.475 | U64: -40 | V64: -15 | W64: -15 | X64: -40 | Y64: -15 | Z64: -5 | AB64: =SUM(S62:Z69) -> -9.325
A65: -1 | B65: 2.765 | C65: -1 | D65: -1 | E65: -1 | F65: -1 | G65: -1 | H65: -1 | J65: 5 | K65: 5 | L65: 15 | M65: 40 | N65: 40 | O65: 15 | P65: 5 | Q65: 5 | S65: -5 | T65: 13.825 | U65: -15 | V65: -40 | W65: -40 | X65: -15 | Y65: -5 | Z65: -5
A66: -1 | B66: 2.765 | C66: 2.765 | D66: 2.765 | E66: 2.765 | F66: 2.765 | G66: -1 | H66: -1 | J66: 5 | K66: 5 | L66: 15 | M66: 40 | N66: 40 | O66: 15 | P66: 5 | Q66: 5 | S66: -5 | T66: 13.825 | U66: 41.475 | V66: 110.6 | W66: 110.6 | X66: 41.475 | Y66: -5 | Z66: -5
A67: -1 | B67: 2.765 | C67: -1 | D67: -1 | E67: -1 | F67: -1 | G67: -1 | H67: -1 | J67: 5 | K67: 15 | L67: 40 | M67: 15 | N67: 15 | O67: 40 | P67: 15 | Q67: 5 | S67: -5 | T67: 41.475 | U67: -40 | V67: -15 | W67: -15 | X67: -40 | Y67: -15 | Z67: -5
A68: -1 | B68: 2.765 | C68: -1 | D68: -1 | E68: -1 | F68: -1 | G68: -1 | H68: -1 | J68: 15 | K68: 40 | L68: 15 | M68: 5 | N68: 5 | O68: 15 | P68: 40 | Q68: 15 | S68: -15 | T68: 110.6 | U68: -15 | V68: -5 | W68: -5 | X68: -15 | Y68: -40 | Z68: -15
A69: -1 | B69: 2.765 | C69: -1 | D69: -1 | E69: -1 | F69: -1 | G69: -1 | H69: -1 | J69: 40 | K69: 15 | L69: 5 | M69: 5 | N69: 5 | O69: 5 | P69: 15 | Q69: 40 | S69: -40 | T69: 41.475 | U69: -5 | V69: -5 | W69: -5 | X69: -5 | Y69: -15 | Z69: -40
A71: x [ i ][ j ] テンプレート "F" | J71: y [ i ][ j ] 対象画像 "L" | S71: 各要素同士を乗算 | AB71: 全要素を加算
A72: -1 | B72: 2.765 | C72: 2.765 | D72: 2.765 | E72: 2.765 | F72: 2.765 | G72: 2.765 | H72: -1 | J72: 15 | K72: 40 | L72: 20 | M72: 10 | N72: 5 | O72: 5 | P72: 5 | Q72: 5 | S72: =A72*J72 -> -15 | T72: =B72*K72 -> 110.6 | U72: 55.3 | V72: 27.65 | W72: 13.825 | X72: 13.825 | Y72: 13.825 | Z72: -5 | AB72: 相互相関値
A73: -1 | B73: 2.765 | C73: -1 | D73: -1 | E73: -1 | F73: -1 | G73: -1 | H73: -1 | J73: 15 | K73: 40 | L73: 20 | M73: 10 | N73: 5 | O73: 5 | P73: 5 | Q73: 5 | S73: =A73*J73 -> -15 | T73: 110.6 | U73: -20 | V73: -10 | W73: -5 | X73: -5 | Y73: -5 | Z73: -5 | AB73: "L"
A74: -1 | B74: 2.765 | C74: -1 | D74: -1 | E74: -1 | F74: -1 | G74: -1 | H74: -1 | J74: 15 | K74: 40 | L74: 20 | M74: 10 | N74: 5 | O74: 5 | P74: 5 | Q74: 5 | S74: -15 | T74: 110.6 | U74: -20 | V74: -10 | W74: -5 | X74: -5 | Y74: -5 | Z74: -5 | AB74: =SUM(S72:Z79) -> 429.825
A75: -1 | B75: 2.765 | C75: -1 | D75: -1 | E75: -1 | F75: -1 | G75: -1 | H75: -1 | J75: 15 | K75: 40 | L75: 20 | M75: 10 | N75: 5 | O75: 5 | P75: 5 | Q75: 5 | S75: -15 | T75: 110.6 | U75: -20 | V75: -10 | W75: -5 | X75: -5 | Y75: -5 | Z75: -5
A76: -1 | B76: 2.765 | C76: 2.765 | D76: 2.765 | E76: 2.765 | F76: 2.765 | G76: -1 | H76: -1 | J76: 15 | K76: 40 | L76: 20 | M76: 10 | N76: 5 | O76: 5 | P76: 5 | Q76: 5 | S76: -15 | T76: 110.6 | U76: 55.3 | V76: 27.65 | W76: 13.825 | X76: 13.825 | Y76: -5 | Z76: -5
A77: -1 | B77: 2.765 | C77: -1 | D77: -1 | E77: -1 | F77: -1 | G77: -1 | H77: -1 | J77: 15 | K77: 40 | L77: 20 | M77: 10 | N77: 10 | O77: 10 | P77: 10 | Q77: 5 | S77: -15 | T77: 110.6 | U77: -20 | V77: -10 | W77: -10 | X77: -10 | Y77: -10 | Z77: -5
A78: -1 | B78: 2.765 | C78: -1 | D78: -1 | E78: -1 | F78: -1 | G78: -1 | H78: -1 | J78: 15 | K78: 40 | L78: 30 | M78: 20 | N78: 20 | O78: 20 | P78: 20 | Q78: 10 | S78: -15 | T78: 110.6 | U78: -30 | V78: -20 | W78: -20 | X78: -20 | Y78: -20 | Z78: -10
A79: -1 | B79: 2.765 | C79: -1 | D79: -1 | E79: -1 | F79: -1 | G79: -1 | H79: -1 | J79: 15 | K79: 40 | L79: 40 | M79: 40 | N79: 40 | O79: 40 | P79: 40 | Q79: 20 | S79: -15 | T79: 110.6 | U79: -40 | V79: -40 | W79: -40 | X79: -40 | Y79: -40 | Z79: -20
A81: x [ i ][ j ] テンプレート "F" | J81: y [ i ][ j ] 対象画像 "F" | S81: 各要素同士を乗算 | AB81: 全要素を加算
A82: -1 | B82: 2.765 | C82: 2.765 | D82: 2.765 | E82: 2.765 | F82: 2.765 | G82: 2.765 | H82: -1 | J82: 15 | K82: 40 | L82: 40 | M82: 40 | N82: 40 | O82: 40 | P82: 30 | Q82: 5 | S82: =A82*J82 -> -15 | T82: =B82*K82 -> 110.6 | U82: 110.6 | V82: 110.6 | W82: 110.6 | X82: 110.6 | Y82: 82.95 | Z82: -5 | AB82: 相互相関値
A83: -1 | B83: 2.765 | C83: -1 | D83: -1 | E83: -1 | F83: -1 | G83: -1 | H83: -1 | J83: 15 | K83: 40 | L83: 20 | M83: 20 | N83: 20 | O83: 20 | P83: 15 | Q83: 5 | S83: =A83*J83 -> -15 | T83: 110.6 | U83: -20 | V83: -20 | W83: -20 | X83: -20 | Y83: -15 | Z83: -5 | AB83: "F"
A84: -1 | B84: 2.765 | C84: -1 | D84: -1 | E84: -1 | F84: -1 | G84: -1 | H84: -1 | J84: 15 | K84: 40 | L84: 15 | M84: 5 | N84: 5 | O84: 5 | P84: 5 | Q84: 5 | S84: -15 | T84: 110.6 | U84: -15 | V84: -5 | W84: -5 | X84: -5 | Y84: -5 | Z84: -5 | AB84: =SUM(S82:Z89) -> 1269.9 | AC84: MAX
A85: -1 | B85: 2.765 | C85: -1 | D85: -1 | E85: -1 | F85: -1 | G85: -1 | H85: -1 | J85: 15 | K85: 40 | L85: 25 | M85: 25 | N85: 25 | O85: 15 | P85: 5 | Q85: 5 | S85: -15 | T85: 110.6 | U85: -25 | V85: -25 | W85: -25 | X85: -15 | Y85: -5 | Z85: -5
A86: -1 | B86: 2.765 | C86: 2.765 | D86: 2.765 | E86: 2.765 | F86: 2.765 | G86: -1 | H86: -1 | J86: 15 | K86: 40 | L86: 40 | M86: 40 | N86: 40 | O86: 30 | P86: 5 | Q86: 5 | S86: -15 | T86: 110.6 | U86: 110.6 | V86: 110.6 | W86: 110.6 | X86: 82.95 | Y86: -5 | Z86: -5
A87: -1 | B87: 2.765 | C87: -1 | D87: -1 | E87: -1 | F87: -1 | G87: -1 | H87: -1 | J87: 15 | K87: 40 | L87: 25 | M87: 25 | N87: 25 | O87: 15 | P87: 5 | Q87: 5 | S87: -15 | T87: 110.6 | U87: -25 | V87: -25 | W87: -25 | X87: -15 | Y87: -5 | Z87: -5
A88: -1 | B88: 2.765 | C88: -1 | D88: -1 | E88: -1 | F88: -1 | G88: -1 | H88: -1 | J88: 15 | K88: 40 | L88: 15 | M88: 5 | N88: 5 | O88: 5 | P88: 5 | Q88: 5 | S88: -15 | T88: 110.6 | U88: -15 | V88: -5 | W88: -5 | X88: -5 | Y88: -5 | Z88: -5
A89: -1 | B89: 2.765 | C89: -1 | D89: -1 | E89: -1 | F89: -1 | G89: -1 | H89: -1 | J89: 15 | K89: 40 | L89: 15 | M89: 5 | N89: 5 | O89: 5 | P89: 5 | Q89: 5 | S89: -15 | T89: 110.6 | U89: -15 | V89: -5 | W89: -5 | X89: -5 | Y89: -5 | Z89: -5
A92: =SUM(A82:H89) -> 0.005 | B92: =COUNTIF(A82:H89, "> 0") -> 17 | C92: =(64-B92)/B92 -> 2.764705882

Sheet charL
A1: x [ i ][ j ] テンプレート "L" | J1: y [ i ][ j ] 対象画像 "Y" | S1: 各要素同士を乗算 | AB1: 全要素を加算
A2: -1 | B2: 3.923 | C2: -1 | D2: -1 | E2: -1 | F2: -1 | G2: -1 | H2: -1 | J2: 40 | K2: 15 | L2: 5 | M2: 5 | N2: 5 | O2: 15 | P2: 40 | Q2: 5 | S2: =A2*J2 -> -40 | T2: =B2*K2 -> 58.845 | U2: -5 | V2: -5 | W2: -5 | X2: -15 | Y2: -40 | Z2: -5 | AB2: 相互相関値
A3: -1 | B3: 3.923 | C3: -1 | D3: -1 | E3: -1 | F3: -1 | G3: -1 | H3: -1 | J3: 15 | K3: 40 | L3: 15 | M3: 5 | N3: 15 | O3: 40 | P3: 15 | Q3: 5 | S3: =A3*J3 -> -15 | T3: 156.92 | U3: -15 | V3: -5 | W3: -15 | X3: -40 | Y3: -15 | Z3: -5 | AB3: "Y"
A4: -1 | B4: 3.923 | C4: -1 | D4: -1 | E4: -1 | F4: -1 | G4: -1 | H4: -1 | J4: 5 | K4: 15 | L4: 40 | M4: 20 | N4: 40 | O4: 15 | P4: 5 | Q4: 5 | S4: -5 | T4: 58.845 | U4: -40 | V4: -20 | W4: -40 | X4: -15 | Y4: -5 | Z4: -5 | AB4: =SUM(S2:Z9) -> -38.475
A5: -1 | B5: 3.923 | C5: -1 | D5: -1 | E5: -1 | F5: -1 | G5: -1 | H5: -1 | J5: 5 | K5: 5 | L5: 15 | M5: 40 | N5: 15 | O5: 5 | P5: 5 | Q5: 5 | S5: -5 | T5: 19.615 | U5: -15 | V5: -40 | W5: -15 | X5: -5 | Y5: -5 | Z5: -5
A6: -1 | B6: 3.923 | C6: -1 | D6: -1 | E6: -1 | F6: -1 | G6: -1 | H6: -1 | J6: 5 | K6: 5 | L6: 15 | M6: 40 | N6: 15 | O6: 5 | P6: 5 | Q6: 5 | S6: -5 | T6: 19.615 | U6: -15 | V6: -40 | W6: -15 | X6: -5 | Y6: -5 | Z6: -5
A7: -1 | B7: 3.923 | C7: -1 | D7: -1 | E7: -1 | F7: -1 | G7: -1 | H7: -1 | J7: 5 | K7: 5 | L7: 15 | M7: 40 | N7: 15 | O7: 5 | P7: 5 | Q7: 5 | S7: -5 | T7: 19.615 | U7: -15 | V7: -40 | W7: -15 | X7: -5 | Y7: -5 | Z7: -5
A8: -1 | B8: 3.923 | C8: -1 | D8: -1 | E8: -1 | F8: -1 | G8: -1 | H8: -1 | J8: 5 | K8: 5 | L8: 15 | M8: 40 | N8: 15 | O8: 5 | P8: 5 | Q8: 5 | S8: -5 | T8: 19.615 | U8: -15 | V8: -40 | W8: -15 | X8: -5 | Y8: -5 | Z8: -5
A9: -1 | B9: 3.923 | C9: 3.923 | D9: 3.923 | E9: 3.923 | F9: 3.923 | G9: 3.923 | H9: -1 | J9: 5 | K9: 5 | L9: 15 | M9: 40 | N9: 15 | O9: 5 | P9: 5 | Q9: 5 | S9: -5 | T9: 19.615 | U9: 58.845 | V9: 156.92 | W9: 58.845 | X9: 19.615 | Y9: 19.615 | Z9: -5
A11: x [ i ][ j ] テンプレート "L" | J11: y [ i ][ j ] 対象画像 "Z" | S11: 各要素同士を乗算 | AB11: 全要素を加算
A12: -1 | B12: 3.923 | C12: -1 | D12: -1 | E12: -1 | F12: -1 | G12: -1 | H12: -1 | J12: 40 | K12: 40 | L12: 40 | M12: 40 | N12: 40 | O12: 40 | P12: 40 | Q12: 5 | S12: =A12*J12 -> -40 | T12: =B12*K12 -> 156.92 | U12: -40 | V12: -40 | W12: -40 | X12: -40 | Y12: -40 | Z12: -5 | AB12: 相互相関値
A13: -1 | B13: 3.923 | C13: -1 | D13: -1 | E13: -1 | F13: -1 | G13: -1 | H13: -1 | J13: 15 | K13: 15 | L13: 15 | M13: 20 | N13: 20 | O13: 40 | P13: 20 | Q13: 5 | S13: =A13*J13 -> -15 | T13: 58.845 | U13: -15 | V13: -20 | W13: -20 | X13: -40 | Y13: -20 | Z13: -5 | AB13: "Z"
A14: -1 | B14: 3.923 | C14: -1 | D14: -1 | E14: -1 | F14: -1 | G14: -1 | H14: -1 | J14: 5 | K14: 5 | L14: 5 | M14: 20 | N14: 40 | O14: 20 | P14: 5 | Q14: 5 | S14: -5 | T14: 19.615 | U14: -5 | V14: -20 | W14: -40 | X14: -20 | Y14: -5 | Z14: -5 | AB14: =SUM(S12:Z19) -> -64.25
A15: -1 | B15: 3.923 | C15: -1 | D15: -1 | E15: -1 | F15: -1 | G15: -1 | H15: -1 | J15: 5 | K15: 5 | L15: 15 | M15: 40 | N15: 20 | O15: 5 | P15: 5 | Q15: 5 | S15: -5 | T15: 19.615 | U15: -15 | V15: -40 | W15: -20 | X15: -5 | Y15: -5 | Z15: -5
A16: -1 | B16: 3.923 | C16: -1 | D16: -1 | E16: -1 | F16: -1 | G16: -1 | H16: -1 | J16: 5 | K16: 15 | L16: 40 | M16: 20 | N16: 10 | O16: 5 | P16: 5 | Q16: 5 | S16: -5 | T16: 58.845 | U16: -40 | V16: -20 | W16: -10 | X16: -5 | Y16: -5 | Z16: -5
A17: -1 | B17: 3.923 | C17: -1 | D17: -1 | E17: -1 | F17: -1 | G17: -1 | H17: -1 | J17: 15 | K17: 40 | L17: 15 | M17: 20 | N17: 20 | O17: 20 | P17: 20 | Q17: 5 | S17: -15 | T17: 156.92 | U17: -15 | V17: -20 | W17: -20 | X17: -20 | Y17: -20 | Z17: -5
A18: -1 | B18: 3.923 | C18: -1 | D18: -1 | E18: -1 | F18: -1 | G18: -1 | H18: -1 | J18: 40 | K18: 40 | L18: 40 | M18: 40 | N18: 40 | O18: 40 | P18: 40 | Q18: 5 | S18: -40 | T18: 156.92 | U18: -40 | V18: -40 | W18: -40 | X18: -40 | Y18: -40 | Z18: -5
A19: -1 | B19: 3.923 | C19: 3.923 | D19: 3.923 | E19: 3.923 | F19: 3.923 | G19: 3.923 | H19: -1 | J19: 15 | K19: 15 | L19: 15 | M19: 15 | N19: 15 | O19: 15 | P19: 15 | Q19: 5 | S19: -15 | T19: 58.845 | U19: 58.845 | V19: 58.845 | W19: 58.845 | X19: 58.845 | Y19: 58.845 | Z19: -5
A21: x [ i ][ j ] テンプレート "L" | J21: y [ i ][ j ] 対象画像 "R" | S21: 各要素同士を乗算 | AB21: 全要素を加算
A22: -1 | B22: 3.923 | C22: -1 | D22: -1 | E22: -1 | F22: -1 | G22: -1 | H22: -1 | J22: 15 | K22: 40 | L22: 40 | M22: 40 | N22: 40 | O22: 40 | P22: 20 | Q22: 5 | S22: =A22*J22 -> -15 | T22: =B22*K22 -> 156.92 | U22: -40 | V22: -40 | W22: -40 | X22: -40 | Y22: -20 | Z22: -5 | AB22: 相互相関値
A23: -1 | B23: 3.923 | C23: -1 | D23: -1 | E23: -1 | F23: -1 | G23: -1 | H23: -1 | J23: 15 | K23: 40 | L23: 20 | M23: 20 | N23: 20 | O23: 20 | P23: 40 | Q23: 15 | S23: =A23*J23 -> -15 | T23: 156.92 | U23: -20 | V23: -20 | W23: -20 | X23: -20 | Y23: -40 | Z23: -15 | AB23: "R"
A24: -1 | B24: 3.923 | C24: -1 | D24: -1 | E24: -1 | F24: -1 | G24: -1 | H24: -1 | J24: 15 | K24: 40 | L24: 20 | M24: 5 | N24: 20 | O24: 20 | P24: 40 | Q24: 15 | S24: -15 | T24: 156.92 | U24: -20 | V24: -5 | W24: -20 | X24: -20 | Y24: -40 | Z24: -15 | AB24: =SUM(S22:Z29) -> 415.74
A25: -1 | B25: 3.923 | C25: -1 | D25: -1 | E25: -1 | F25: -1 | G25: -1 | H25: -1 | J25: 15 | K25: 40 | L25: 20 | M25: 20 | N25: 20 | O25: 40 | P25: 15 | Q25: 5 | S25: -15 | T25: 156.92 | U25: -20 | V25: -20 | W25: -20 | X25: -40 | Y25: -15 | Z25: -5
A26: -1 | B26: 3.923 | C26: -1 | D26: -1 | E26: -1 | F26: -1 | G26: -1 | H26: -1 | J26: 15 | K26: 40 | L26: 40 | M26: 40 | N26: 40 | O26: 20 | P26: 5 | Q26: 5 | S26: -15 | T26: 156.92 | U26: -40 | V26: -40 | W26: -40 | X26: -20 | Y26: -5 | Z26: -5
A27: -1 | B27: 3.923 | C27: -1 | D27: -1 | E27: -1 | F27: -1 | G27: -1 | H27: -1 | J27: 15 | K27: 40 | L27: 15 | M27: 15 | N27: 40 | O27: 40 | P27: 15 | Q27: 5 | S27: -15 | T27: 156.92 | U27: -15 | V27: -15 | W27: -40 | X27: -40 | Y27: -15 | Z27: -5
A28: -1 | B28: 3.923 | C28: -1 | D28: -1 | E28: -1 | F28: -1 | G28: -1 | H28: -1 | J28: 15 | K28: 40 | L28: 10 | M28: 5 | N28: 10 | O28: 40 | P28: 40 | Q28: 5 | S28: -15 | T28: 156.92 | U28: -10 | V28: -5 | W28: -10 | X28: -40 | Y28: -40 | Z28: -5
A29: -1 | B29: 3.923 | C29: 3.923 | D29: 3.923 | E29: 3.923 | F29: 3.923 | G29: 3.923 | H29: -1 | J29: 15 | K29: 40 | L29: 5 | M29: 5 | N29: 5 | O29: 5 | P29: 40 | Q29: 5 | S29: -15 | T29: 156.92 | U29: 19.615 | V29: 19.615 | W29: 19.615 | X29: 19.615 | Y29: 156.92 | Z29: -5
A31: x [ i ][ j ] テンプレート "L" | J31: y [ i ][ j ] 対象画像 "J" | S31: 各要素同士を乗算 | AB31: 全要素を加算
A32: -1 | B32: 3.923 | C32: -1 | D32: -1 | E32: -1 | F32: -1 | G32: -1 | H32: -1 | J32: 5 | K32: 5 | L32: 5 | M32: 5 | N32: 5 | O32: 20 | P32: 40 | Q32: 15 | S32: =A32*J32 -> -5 | T32: =B32*K32 -> 19.615 | U32: -5 | V32: -5 | W32: -5 | X32: -20 | Y32: -40 | Z32: -15 | AB32: 相互相関値
A33: -1 | B33: 3.923 | C33: -1 | D33: -1 | E33: -1 | F33: -1 | G33: -1 | H33: -1 | J33: 5 | K33: 5 | L33: 5 | M33: 5 | N33: 5 | O33: 20 | P33: 40 | Q33: 15 | S33: =A33*J33 -> -5 | T33: 19.615 | U33: -5 | V33: -5 | W33: -5 | X33: -20 | Y33: -40 | Z33: -15 | AB33: "J"
A34: -1 | B34: 3.923 | C34: -1 | D34: -1 | E34: -1 | F34: -1 | G34: -1 | H34: -1 | J34: 5 | K34: 5 | L34: 5 | M34: 5 | N34: 5 | O34: 20 | P34: 40 | Q34: 15 | S34: -5 | T34: 19.615 | U34: -5 | V34: -5 | W34: -5 | X34: -20 | Y34: -40 | Z34: -15 | AB34: =SUM(S32:Z39) -> 59.6
A35: -1 | B35: 3.923 | C35: -1 | D35: -1 | E35: -1 | F35: -1 | G35: -1 | H35: -1 | J35: 5 | K35: 5 | L35: 5 | M35: 5 | N35: 5 | O35: 20 | P35: 40 | Q35: 15 | S35: -5 | T35: 19.615 | U35: -5 | V35: -5 | W35: -5 | X35: -20 | Y35: -40 | Z35: -15
A36: -1 | B36: 3.923 | C36: -1 | D36: -1 | E36: -1 | F36: -1 | G36: -1 | H36: -1 | J36: 5 | K36: 5 | L36: 5 | M36: 5 | N36: 5 | O36: 20 | P36: 40 | Q36: 15 | S36: -5 | T36: 19.615 | U36: -5 | V36: -5 | W36: -5 | X36: -20 | Y36: -40 | Z36: -15
A37: -1 | B37: 3.923 | C37: -1 | D37: -1 | E37: -1 | F37: -1 | G37: -1 | H37: -1 | J37: 5 | K37: 5 | L37: 5 | M37: 5 | N37: 20 | O37: 40 | P37: 20 | Q37: 15 | S37: -5 | T37: 19.615 | U37: -5 | V37: -5 | W37: -20 | X37: -40 | Y37: -20 | Z37: -15
A38: -1 | B38: 3.923 | C38: -1 | D38: -1 | E38: -1 | F38: -1 | G38: -1 | H38: -1 | J38: 5 | K38: 20 | L38: 20 | M38: 20 | N38: 40 | O38: 20 | P38: 5 | Q38: 5 | S38: -5 | T38: 78.46 | U38: -20 | V38: -20 | W38: -40 | X38: -20 | Y38: -5 | Z38: -5
A39: -1 | B39: 3.923 | C39: 3.923 | D39: 3.923 | E39: 3.923 | F39: 3.923 | G39: 3.923 | H39: -1 | J39: 20 | K39: 40 | L39: 40 | M39: 40 | N39: 20 | O39: 5 | P39: 5 | Q39: 5 | S39: -20 | T39: 156.92 | U39: 156.92 | V39: 156.92 | W39: 78.46 | X39: 19.615 | Y39: 19.615 | Z39: -5
A41: x [ i ][ j ] テンプレート "L" | J41: y [ i ][ j ] 対象画像 "N" | S41: 各要素同士を乗算 | AB41: 全要素を加算
A42: -1 | B42: 3.923 | C42: -1 | D42: -1 | E42: -1 | F42: -1 | G42: -1 | H42: -1 | J42: 40 | K42: 20 | L42: 5 | M42: 5 | N42: 5 | O42: 5 | P42: 40 | Q42: 15 | S42: =A42*J42 -> -40 | T42: =B42*K42 -> 78.46 | U42: -5 | V42: -5 | W42: -5 | X42: -5 | Y42: -40 | Z42: -15 | AB42: 相互相関値
A43: -1 | B43: 3.923 | C43: -1 | D43: -1 | E43: -1 | F43: -1 | G43: -1 | H43: -1 | J43: 40 | K43: 40 | L43: 15 | M43: 5 | N43: 5 | O43: 5 | P43: 40 | Q43: 15 | S43: =A43*J43 -> -40 | T43: 156.92 | U43: -15 | V43: -5 | W43: -5 | X43: -5 | Y43: -40 | Z43: -15 | AB43: "N"
A44: -1 | B44: 3.923 | C44: -1 | D44: -1 | E44: -1 | F44: -1 | G44: -1 | H44: -1 | J44: 40 | K44: 25 | L44: 40 | M44: 15 | N44: 5 | O44: 5 | P44: 40 | Q44: 15 | S44: -40 | T44: 98.075 | U44: -40 | V44: -15 | W44: -5 | X44: -5 | Y44: -40 | Z44: -15 | AB44: =SUM(S42:Z49) -> -486.55
A45: -1 | B45: 3.923 | C45: -1 | D45: -1 | E45: -1 | F45: -1 | G45: -1 | H45: -1 | J45: 40 | K45: 5 | L45: 15 | M45: 40 | N45: 15 | O45: 5 | P45: 40 | Q45: 15 | S45: -40 | T45: 19.615 | U45: -15 | V45: -40 | W45: -15 | X45: -5 | Y45: -40 | Z45: -15
A46: -1 | B46: 3.923 | C46: -1 | D46: -1 | E46: -1 | F46: -1 | G46: -1 | H46: -1 | J46: 40 | K46: 5 | L46: 5 | M46: 15 | N46: 40 | O46: 25 | P46: 40 | Q46: 15 | S46: -40 | T46: 19.615 | U46: -5 | V46: -15 | W46: -40 | X46: -25 | Y46: -40 | Z46: -15
A47: -1 | B47: 3.923 | C47: -1 | D47: -1 | E47: -1 | F47: -1 | G47: -1 | H47: -1 | J47: 40 | K47: 5 | L47: 5 | M47: 5 | N47: 15 | O47: 40 | P47: 40 | Q47: 15 | S47: -40 | T47: 19.615 | U47: -5 | V47: -5 | W47: -15 | X47: -40 | Y47: -40 | Z47: -15
A48: -1 | B48: 3.923 | C48: -1 | D48: -1 | E48: -1 | F48: -1 | G48: -1 | H48: -1 | J48: 40 | K48: 5 | L48: 5 | M48: 5 | N48: 5 | O48: 20 | P48: 40 | Q48: 15 | S48: -40 | T48: 19.615 | U48: -5 | V48: -5 | W48: -5 | X48: -20 | Y48: -40 | Z48: -15
A49: -1 | B49: 3.923 | C49: 3.923 | D49: 3.923 | E49: 3.923 | F49: 3.923 | G49: 3.923 | H49: -1 | J49: 20 | K49: 5 | L49: 5 | M49: 5 | N49: 5 | O49: 5 | P49: 20 | Q49: 15 | S49: -20 | T49: 19.615 | U49: 19.615 | V49: 19.615 | W49: 19.615 | X49: 19.615 | Y49: 78.46 | Z49: -15
A51: x [ i ][ j ] テンプレート "L" | J51: y [ i ][ j ] 対象画像 "O" | S51: 各要素同士を乗算 | AB51: 全要素を加算
A52: -1 | B52: 3.923 | C52: -1 | D52: -1 | E52: -1 | F52: -1 | G52: -1 | H52: -1 | J52: 5 | K52: 15 | L52: 40 | M52: 40 | N52: 40 | O52: 15 | P52: 5 | Q52: 5 | S52: =A52*J52 -> -5 | T52: =B52*K52 -> 58.845 | U52: -40 | V52: -40 | W52: -40 | X52: -15 | Y52: -5 | Z52: -5 | AB52: 相互相関値
A53: -1 | B53: 3.923 | C53: -1 | D53: -1 | E53: -1 | F53: -1 | G53: -1 | H53: -1 | J53: 15 | K53: 40 | L53: 20 | M53: 20 | N53: 20 | O53: 40 | P53: 15 | Q53: 5 | S53: =A53*J53 -> -15 | T53: 156.92 | U53: -20 | V53: -20 | W53: -20 | X53: -40 | Y53: -15 | Z53: -5 | AB53: "O"
A54: -1 | B54: 3.923 | C54: -1 | D54: -1 | E54: -1 | F54: -1 | G54: -1 | H54: -1 | J54: 40 | K54: 20 | L54: 5 | M54: 5 | N54: 5 | O54: 20 | P54: 40 | Q54: 15 | S54: -40 | T54: 78.46 | U54: -5 | V54: -5 | W54: -5 | X54: -20 | Y54: -40 | Z54: -15 | AB54: =SUM(S52:Z59) -> 344.59
A55: -1 | B55: 3.923 | C55: -1 | D55: -1 | E55: -1 | F55: -1 | G55: -1 | H55: -1 | J55: 40 | K55: 20 | L55: 5 | M55: 5 | N55: 5 | O55: 20 | P55: 40 | Q55: 15 | S55: -40 | T55: 78.46 | U55: -5 | V55: -5 | W55: -5 | X55: -20 | Y55: -40 | Z55: -15
A56: -1 | B56: 3.923 | C56: -1 | D56: -1 | E56: -1 | F56: -1 | G56: -1 | H56: -1 | J56: 40 | K56: 20 | L56: 5 | M56: 5 | N56: 5 | O56: 20 | P56: 40 | Q56: 15 | S56: -40 | T56: 78.46 | U56: -5 | V56: -5 | W56: -5 | X56: -20 | Y56: -40 | Z56: -15
A57: -1 | B57: 3.923 | C57: -1 | D57: -1 | E57: -1 | F57: -1 | G57: -1 | H57: -1 | J57: 40 | K57: 20 | L57: 5 | M57: 5 | N57: 5 | O57: 20 | P57: 40 | Q57: 15 | S57: -40 | T57: 78.46 | U57: -5 | V57: -5 | W57: -5 | X57: -20 | Y57: -40 | Z57: -15
A58: -1 | B58: 3.923 | C58: -1 | D58: -1 | E58: -1 | F58: -1 | G58: -1 | H58: -1 | J58: 15 | K58: 40 | L58: 20 | M58: 20 | N58: 20 | O58: 40 | P58: 15 | Q58: 5 | S58: -15 | T58: 156.92 | U58: -20 | V58: -20 | W58: -20 | X58: -40 | Y58: -15 | Z58: -5
A59: -1 | B59: 3.923 | C59: 3.923 | D59: 3.923 | E59: 3.923 | F59: 3.923 | G59: 3.923 | H59: -1 | J59: 5 | K59: 15 | L59: 40 | M59: 40 | N59: 40 | O59: 15 | P59: 5 | Q59: 5 | S59: -5 | T59: 58.845 | U59: 156.92 | V59: 156.92 | W59: 156.92 | X59: 58.845 | Y59: 19.615 | Z59: -5
A61: x [ i ][ j ] テンプレート "L" | J61: y [ i ][ j ] 対象画像 "X" | S61: 各要素同士を乗算 | AB61: 全要素を加算
A62: -1 | B62: 3.923 | C62: -1 | D62: -1 | E62: -1 | F62: -1 | G62: -1 | H62: -1 | J62: 40 | K62: 15 | L62: 5 | M62: 5 | N62: 5 | O62: 5 | P62: 15 | Q62: 40 | S62: =A62*J62 -> -40 | T62: =B62*K62 -> 58.845 | U62: -5 | V62: -5 | W62: -5 | X62: -5 | Y62: -15 | Z62: -40 | AB62: 相互相関値
A63: -1 | B63: 3.923 | C63: -1 | D63: -1 | E63: -1 | F63: -1 | G63: -1 | H63: -1 | J63: 15 | K63: 40 | L63: 15 | M63: 5 | N63: 5 | O63: 15 | P63: 40 | Q63: 15 | S63: =A63*J63 -> -15 | T63: 156.92 | U63: -15 | V63: -5 | W63: -5 | X63: -15 | Y63: -40 | Z63: -15 | AB63: "X"
A64: -1 | B64: 3.923 | C64: -1 | D64: -1 | E64: -1 | F64: -1 | G64: -1 | H64: -1 | J64: 5 | K64: 15 | L64: 40 | M64: 15 | N64: 15 | O64: 40 | P64: 15 | Q64: 5 | S64: -5 | T64: 58.845 | U64: -40 | V64: -15 | W64: -15 | X64: -40 | Y64: -15 | Z64: -5 | AB64: =SUM(S62:Z69) -> -209.245
A65: -1 | B65: 3.923 | C65: -1 | D65: -1 | E65: -1 | F65: -1 | G65: -1 | H65: -1 | J65: 5 | K65: 5 | L65: 15 | M65: 40 | N65: 40 | O65: 15 | P65: 5 | Q65: 5 | S65: -5 | T65: 19.615 | U65: -15 | V65: -40 | W65: -40 | X65: -15 | Y65: -5 | Z65: -5
A66: -1 | B66: 3.923 | C66: -1 | D66: -1 | E66: -1 | F66: -1 | G66: -1 | H66: -1 | J66: 5 | K66: 5 | L66: 15 | M66: 40 | N66: 40 | O66: 15 | P66: 5 | Q66: 5 | S66: -5 | T66: 19.615 | U66: -15 | V66: -40 | W66: -40 | X66: -15 | Y66: -5 | Z66: -5
A67: -1 | B67: 3.923 | C67: -1 | D67: -1 | E67: -1 | F67: -1 | G67: -1 | H67: -1 | J67: 5 | K67: 15 | L67: 40 | M67: 15 | N67: 15 | O67: 40 | P67: 15 | Q67: 5 | S67: -5 | T67: 58.845 | U67: -40 | V67: -15 | W67: -15 | X67: -40 | Y67: -15 | Z67: -5
A68: -1 | B68: 3.923 | C68: -1 | D68: -1 | E68: -1 | F68: -1 | G68: -1 | H68: -1 | J68: 15 | K68: 40 | L68: 15 | M68: 5 | N68: 5 | O68: 15 | P68: 40 | Q68: 15 | S68: -15 | T68: 156.92 | U68: -15 | V68: -5 | W68: -5 | X68: -15 | Y68: -40 | Z68: -15
A69: -1 | B69: 3.923 | C69: 3.923 | D69: 3.923 | E69: 3.923 | F69: 3.923 | G69: 3.923 | H69: -1 | J69: 40 | K69: 15 | L69: 5 | M69: 5 | N69: 5 | O69: 5 | P69: 15 | Q69: 40 | S69: -40 | T69: 58.845 | U69: 19.615 | V69: 19.615 | W69: 19.615 | X69: 19.615 | Y69: 58.845 | Z69: -40
A71: x [ i ][ j ] テンプレート "L" | J71: y [ i ][ j ] 対象画像 "L" | S71: 各要素同士を乗算 | AB71: 全要素を加算
A72: -1 | B72: 3.923 | C72: -1 | D72: -1 | E72: -1 | F72: -1 | G72: -1 | H72: -1 | J72: 15 | K72: 40 | L72: 20 | M72: 10 | N72: 5 | O72: 5 | P72: 5 | Q72: 5 | S72: =A72*J72 -> -15 | T72: =B72*K72 -> 156.92 | U72: -20 | V72: -10 | W72: -5 | X72: -5 | Y72: -5 | Z72: -5 | AB72: 相互相関値
A73: -1 | B73: 3.923 | C73: -1 | D73: -1 | E73: -1 | F73: -1 | G73: -1 | H73: -1 | J73: 15 | K73: 40 | L73: 20 | M73: 10 | N73: 5 | O73: 5 | P73: 5 | Q73: 5 | S73: =A73*J73 -> -15 | T73: 156.92 | U73: -20 | V73: -10 | W73: -5 | X73: -5 | Y73: -5 | Z73: -5 | AB73: "L"
A74: -1 | B74: 3.923 | C74: -1 | D74: -1 | E74: -1 | F74: -1 | G74: -1 | H74: -1 | J74: 15 | K74: 40 | L74: 20 | M74: 10 | N74: 5 | O74: 5 | P74: 5 | Q74: 5 | S74: -15 | T74: 156.92 | U74: -20 | V74: -10 | W74: -5 | X74: -5 | Y74: -5 | Z74: -5 | AB74: =SUM(S72:Z79) -> 1464.96 | AC74: MAX
A75: -1 | B75: 3.923 | C75: -1 | D75: -1 | E75: -1 | F75: -1 | G75: -1 | H75: -1 | J75: 15 | K75: 40 | L75: 20 | M75: 10 | N75: 5 | O75: 5 | P75: 5 | Q75: 5 | S75: -15 | T75: 156.92 | U75: -20 | V75: -10 | W75: -5 | X75: -5 | Y75: -5 | Z75: -5
A76: -1 | B76: 3.923 | C76: -1 | D76: -1 | E76: -1 | F76: -1 | G76: -1 | H76: -1 | J76: 15 | K76: 40 | L76: 20 | M76: 10 | N76: 5 | O76: 5 | P76: 5 | Q76: 5 | S76: -15 | T76: 156.92 | U76: -20 | V76: -10 | W76: -5 | X76: -5 | Y76: -5 | Z76: -5
A77: -1 | B77: 3.923 | C77: -1 | D77: -1 | E77: -1 | F77: -1 | G77: -1 | H77: -1 | J77: 15 | K77: 40 | L77: 20 | M77: 10 | N77: 10 | O77: 10 | P77: 10 | Q77: 5 | S77: -15 | T77: 156.92 | U77: -20 | V77: -10 | W77: -10 | X77: -10 | Y77: -10 | Z77: -5
A78: -1 | B78: 3.923 | C78: -1 | D78: -1 | E78: -1 | F78: -1 | G78: -1 | H78: -1 | J78: 15 | K78: 40 | L78: 30 | M78: 20 | N78: 20 | O78: 20 | P78: 20 | Q78: 10 | S78: -15 | T78: 156.92 | U78: -30 | V78: -20 | W78: -20 | X78: -20 | Y78: -20 | Z78: -10
A79: -1 | B79: 3.923 | C79: 3.923 | D79: 3.923 | E79: 3.923 | F79: 3.923 | G79: 3.923 | H79: -1 | J79: 15 | K79: 40 | L79: 40 | M79: 40 | N79: 40 | O79: 40 | P79: 40 | Q79: 20 | S79: -15 | T79: 156.92 | U79: 156.92 | V79: 156.92 | W79: 156.92 | X79: 156.92 | Y79: 156.92 | Z79: -20
A81: x [ i ][ j ] テンプレート "L" | J81: y [ i ][ j ] 対象画像 "F" | S81: 各要素同士を乗算 | AB81: 全要素を加算
A82: -1 | B82: 3.923 | C82: -1 | D82: -1 | E82: -1 | F82: -1 | G82: -1 | H82: -1 | J82: 15 | K82: 40 | L82: 40 | M82: 40 | N82: 40 | O82: 40 | P82: 30 | Q82: 5 | S82: =A82*J82 -> -15 | T82: =B82*K82 -> 156.92 | U82: -40 | V82: -40 | W82: -40 | X82: -40 | Y82: -30 | Z82: -5 | AB82: 相互相関値
A83: -1 | B83: 3.923 | C83: -1 | D83: -1 | E83: -1 | F83: -1 | G83: -1 | H83: -1 | J83: 15 | K83: 40 | L83: 20 | M83: 20 | N83: 20 | O83: 20 | P83: 15 | Q83: 5 | S83: =A83*J83 -> -15 | T83: 156.92 | U83: -20 | V83: -20 | W83: -20 | X83: -20 | Y83: -15 | Z83: -5 | AB83: "F"
A84: -1 | B84: 3.923 | C84: -1 | D84: -1 | E84: -1 | F84: -1 | G84: -1 | H84: -1 | J84: 15 | K84: 40 | L84: 15 | M84: 5 | N84: 5 | O84: 5 | P84: 5 | Q84: 5 | S84: -15 | T84: 156.92 | U84: -15 | V84: -5 | W84: -5 | X84: -5 | Y84: -5 | Z84: -5 | AB84: =SUM(S82:Z89) -> 532.665
A85: -1 | B85: 3.923 | C85: -1 | D85: -1 | E85: -1 | F85: -1 | G85: -1 | H85: -1 | J85: 15 | K85: 40 | L85: 25 | M85: 25 | N85: 25 | O85: 15 | P85: 5 | Q85: 5 | S85: -15 | T85: 156.92 | U85: -25 | V85: -25 | W85: -25 | X85: -15 | Y85: -5 | Z85: -5
A86: -1 | B86: 3.923 | C86: -1 | D86: -1 | E86: -1 | F86: -1 | G86: -1 | H86: -1 | J86: 15 | K86: 40 | L86: 40 | M86: 40 | N86: 40 | O86: 30 | P86: 5 | Q86: 5 | S86: -15 | T86: 156.92 | U86: -40 | V86: -40 | W86: -40 | X86: -30 | Y86: -5 | Z86: -5
A87: -1 | B87: 3.923 | C87: -1 | D87: -1 | E87: -1 | F87: -1 | G87: -1 | H87: -1 | J87: 15 | K87: 40 | L87: 25 | M87: 25 | N87: 25 | O87: 15 | P87: 5 | Q87: 5 | S87: -15 | T87: 156.92 | U87: -25 | V87: -25 | W87: -25 | X87: -15 | Y87: -5 | Z87: -5
A88: -1 | B88: 3.923 | C88: -1 | D88: -1 | E88: -1 | F88: -1 | G88: -1 | H88: -1 | J88: 15 | K88: 40 | L88: 15 | M88: 5 | N88: 5 | O88: 5 | P88: 5 | Q88: 5 | S88: -15 | T88: 156.92 | U88: -15 | V88: -5 | W88: -5 | X88: -5 | Y88: -5 | Z88: -5
A89: -1 | B89: 3.923 | C89: 3.923 | D89: 3.923 | E89: 3.923 | F89: 3.923 | G89: 3.923 | H89: -1 | J89: 15 | K89: 40 | L89: 15 | M89: 5 | N89: 5 | O89: 5 | P89: 5 | Q89: 5 | S89: -15 | T89: 156.92 | U89: 58.845 | V89: 19.615 | W89: 19.615 | X89: 19.615 | Y89: 19.615 | Z89: -5
A92: =SUM(A82:H89) -> -0.001 | B92: =COUNTIF(A82:H89, "> 0") -> 13 | C92: =(64-B92)/B92 -> 3.923076923

Sheet charX
A1: x [ i ][ j ] テンプレート "X" | J1: y [ i ][ j ] 対象画像 "Y" | S1: 各要素同士を乗算 | AB1: 全要素を加算
A2: 3 | B2: -1 | C2: -1 | D2: -1 | E2: -1 | F2: -1 | G2: -1 | H2: 3 | J2: 40 | K2: 15 | L2: 5 | M2: 5 | N2: 5 | O2: 15 | P2: 40 | Q2: 5 | S2: =A2*J2 -> 120 | T2: =B2*K2 -> -15 | U2: -5 | V2: -5 | W2: -5 | X2: -15 | Y2: -40 | Z2: 15 | AB2: 相互相関値
A3: -1 | B3: 3 | C3: -1 | D3: -1 | E3: -1 | F3: -1 | G3: 3 | H3: -1 | J3: 15 | K3: 40 | L3: 15 | M3: 5 | N3: 15 | O3: 40 | P3: 15 | Q3: 5 | S3: =A3*J3 -> -15 | T3: 120 | U3: -15 | V3: -5 | W3: -15 | X3: -40 | Y3: 45 | Z3: -5 | AB3: "Y"
A4: -1 | B4: -1 | C4: 3 | D4: -1 | E4: -1 | F4: 3 | G4: -1 | H4: -1 | J4: 5 | K4: 15 | L4: 40 | M4: 20 | N4: 40 | O4: 15 | P4: 5 | Q4: 5 | S4: -5 | T4: -15 | U4: 120 | V4: -20 | W4: -40 | X4: 45 | Y4: -5 | Z4: -5 | AB4: =SUM(S2:Z9) -> 320
A5: -1 | B5: -1 | C5: -1 | D5: 3 | E5: 3 | F5: -1 | G5: -1 | H5: -1 | J5: 5 | K5: 5 | L5: 15 | M5: 40 | N5: 15 | O5: 5 | P5: 5 | Q5: 5 | S5: -5 | T5: -5 | U5: -15 | V5: 120 | W5: 45 | X5: -5 | Y5: -5 | Z5: -5
A6: -1 | B6: -1 | C6: -1 | D6: 3 | E6: 3 | F6: -1 | G6: -1 | H6: -1 | J6: 5 | K6: 5 | L6: 15 | M6: 40 | N6: 15 | O6: 5 | P6: 5 | Q6: 5 | S6: -5 | T6: -5 | U6: -15 | V6: 120 | W6: 45 | X6: -5 | Y6: -5 | Z6: -5
A7: -1 | B7: -1 | C7: 3 | D7: -1 | E7: -1 | F7: 3 | G7: -1 | H7: -1 | J7: 5 | K7: 5 | L7: 15 | M7: 40 | N7: 15 | O7: 5 | P7: 5 | Q7: 5 | S7: -5 | T7: -5 | U7: 45 | V7: -40 | W7: -15 | X7: 15 | Y7: -5 | Z7: -5
A8: -1 | B8: 3 | C8: -1 | D8: -1 | E8: -1 | F8: -1 | G8: 3 | H8: -1 | J8: 5 | K8: 5 | L8: 15 | M8: 40 | N8: 15 | O8: 5 | P8: 5 | Q8: 5 | S8: -5 | T8: 15 | U8: -15 | V8: -40 | W8: -15 | X8: -5 | Y8: 15 | Z8: -5
A9: 3 | B9: -1 | C9: -1 | D9: -1 | E9: -1 | F9: -1 | G9: -1 | H9: 3 | J9: 5 | K9: 5 | L9: 15 | M9: 40 | N9: 15 | O9: 5 | P9: 5 | Q9: 5 | S9: 15 | T9: -5 | U9: -15 | V9: -40 | W9: -15 | X9: -5 | Y9: -5 | Z9: 15
A11: x [ i ][ j ] テンプレート "X" | J11: y [ i ][ j ] 対象画像 "Z" | S11: 各要素同士を乗算 | AB11: 全要素を加算
A12: 3 | B12: -1 | C12: -1 | D12: -1 | E12: -1 | F12: -1 | G12: -1 | H12: 3 | J12: 40 | K12: 40 | L12: 40 | M12: 40 | N12: 40 | O12: 40 | P12: 40 | Q12: 5 | S12: =A12*J12 -> 120 | T12: =B12*K12 -> -40 | U12: -40 | V12: -40 | W12: -40 | X12: -40 | Y12: -40 | Z12: 15 | AB12: 相互相関値
A13: -1 | B13: 3 | C13: -1 | D13: -1 | E13: -1 | F13: -1 | G13: 3 | H13: -1 | J13: 15 | K13: 15 | L13: 15 | M13: 20 | N13: 20 | O13: 40 | P13: 20 | Q13: 5 | S13: =A13*J13 -> -15 | T13: 45 | U13: -15 | V13: -20 | W13: -20 | X13: -40 | Y13: 60 | Z13: -5 | AB13: "Z"
A14: -1 | B14: -1 | C14: 3 | D14: -1 | E14: -1 | F14: 3 | G14: -1 | H14: -1 | J14: 5 | K14: 5 | L14: 5 | M14: 20 | N14: 40 | O14: 20 | P14: 5 | Q14: 5 | S14: -5 | T14: -5 | U14: 15 | V14: -20 | W14: -40 | X14: 60 | Y14: -5 | Z14: -5 | AB14: =SUM(S12:Z19) -> 25
A15: -1 | B15: -1 | C15: -1 | D15: 3 | E15: 3 | F15: -1 | G15: -1 | H15: -1 | J15: 5 | K15: 5 | L15: 15 | M15: 40 | N15: 20 | O15: 5 | P15: 5 | Q15: 5 | S15: -5 | T15: -5 | U15: -15 | V15: 120 | W15: 60 | X15: -5 | Y15: -5 | Z15: -5
A16: -1 | B16: -1 | C16: -1 | D16: 3 | E16: 3 | F16: -1 | G16: -1 | H16: -1 | J16: 5 | K16: 15 | L16: 40 | M16: 20 | N16: 10 | O16: 5 | P16: 5 | Q16: 5 | S16: -5 | T16: -15 | U16: -40 | V16: 60 | W16: 30 | X16: -5 | Y16: -5 | Z16: -5
A17: -1 | B17: -1 | C17: 3 | D17: -1 | E17: -1 | F17: 3 | G17: -1 | H17: -1 | J17: 15 | K17: 40 | L17: 15 | M17: 20 | N17: 20 | O17: 20 | P17: 20 | Q17: 5 | S17: -15 | T17: -40 | U17: 45 | V17: -20 | W17: -20 | X17: 60 | Y17: -20 | Z17: -5
A18: -1 | B18: 3 | C18: -1 | D18: -1 | E18: -1 | F18: -1 | G18: 3 | H18: -1 | J18: 40 | K18: 40 | L18: 40 | M18: 40 | N18: 40 | O18: 40 | P18: 40 | Q18: 5 | S18: -40 | T18: 120 | U18: -40 | V18: -40 | W18: -40 | X18: -40 | Y18: 120 | Z18: -5
A19: 3 | B19: -1 | C19: -1 | D19: -1 | E19: -1 | F19: -1 | G19: -1 | H19: 3 | J19: 15 | K19: 15 | L19: 15 | M19: 15 | N19: 15 | O19: 15 | P19: 15 | Q19: 5 | S19: 45 | T19: -15 | U19: -15 | V19: -15 | W19: -15 | X19: -15 | Y19: -15 | Z19: 15
A21: x [ i ][ j ] テンプレート "X" | J21: y [ i ][ j ] 対象画像 "R" | S21: 各要素同士を乗算 | AB21: 全要素を加算
A22: 3 | B22: -1 | C22: -1 | D22: -1 | E22: -1 | F22: -1 | G22: -1 | H22: 3 | J22: 15 | K22: 40 | L22: 40 | M22: 40 | N22: 40 | O22: 40 | P22: 20 | Q22: 5 | S22: =A22*J22 -> 45 | T22: =B22*K22 -> -40 | U22: -40 | V22: -40 | W22: -40 | X22: -40 | Y22: -20 | Z22: 15 | AB22: 相互相関値
A23: -1 | B23: 3 | C23: -1 | D23: -1 | E23: -1 | F23: -1 | G23: 3 | H23: -1 | J23: 15 | K23: 40 | L23: 20 | M23: 20 | N23: 20 | O23: 20 | P23: 40 | Q23: 15 | S23: =A23*J23 -> -15 | T23: 120 | U23: -20 | V23: -20 | W23: -20 | X23: -20 | Y23: 120 | Z23: -15 | AB23: "R"
A24: -1 | B24: -1 | C24: 3 | D24: -1 | E24: -1 | F24: 3 | G24: -1 | H24: -1 | J24: 15 | K24: 40 | L24: 20 | M24: 5 | N24: 20 | O24: 20 | P24: 40 | Q24: 15 | S24: -15 | T24: -40 | U24: 60 | V24: -5 | W24: -20 | X24: 60 | Y24: -40 | Z24: -15 | AB24: =SUM(S22:Z29) -> 205
A25: -1 | B25: -1 | C25: -1 | D25: 3 | E25: 3 | F25: -1 | G25: -1 | H25: -1 | J25: 15 | K25: 40 | L25: 20 | M25: 20 | N25: 20 | O25: 40 | P25: 15 | Q25: 5 | S25: -15 | T25: -40 | U25: -20 | V25: 60 | W25: 60 | X25: -40 | Y25: -15 | Z25: -5
A26: -1 | B26: -1 | C26: -1 | D26: 3 | E26: 3 | F26: -1 | G26: -1 | H26: -1 | J26: 15 | K26: 40 | L26: 40 | M26: 40 | N26: 40 | O26: 20 | P26: 5 | Q26: 5 | S26: -15 | T26: -40 | U26: -40 | V26: 120 | W26: 120 | X26: -20 | Y26: -5 | Z26: -5
A27: -1 | B27: -1 | C27: 3 | D27: -1 | E27: -1 | F27: 3 | G27: -1 | H27: -1 | J27: 15 | K27: 40 | L27: 15 | M27: 15 | N27: 40 | O27: 40 | P27: 15 | Q27: 5 | S27: -15 | T27: -40 | U27: 45 | V27: -15 | W27: -40 | X27: 120 | Y27: -15 | Z27: -5
A28: -1 | B28: 3 | C28: -1 | D28: -1 | E28: -1 | F28: -1 | G28: 3 | H28: -1 | J28: 15 | K28: 40 | L28: 10 | M28: 5 | N28: 10 | O28: 40 | P28: 40 | Q28: 5 | S28: -15 | T28: 120 | U28: -10 | V28: -5 | W28: -10 | X28: -40 | Y28: 120 | Z28: -5
A29: 3 | B29: -1 | C29: -1 | D29: -1 | E29: -1 | F29: -1 | G29: -1 | H29: 3 | J29: 15 | K29: 40 | L29: 5 | M29: 5 | N29: 5 | O29: 5 | P29: 40 | Q29: 5 | S29: 45 | T29: -40 | U29: -5 | V29: -5 | W29: -5 | X29: -5 | Y29: -40 | Z29: 15
A31: x [ i ][ j ] テンプレート "X" | J31: y [ i ][ j ] 対象画像 "J" | S31: 各要素同士を乗算 | AB31: 全要素を加算
A32: 3 | B32: -1 | C32: -1 | D32: -1 | E32: -1 | F32: -1 | G32: -1 | H32: 3 | J32: 5 | K32: 5 | L32: 5 | M32: 5 | N32: 5 | O32: 20 | P32: 40 | Q32: 15 | S32: =A32*J32 -> 15 | T32: =B32*K32 -> -5 | U32: -5 | V32: -5 | W32: -5 | X32: -20 | Y32: -40 | Z32: 45 | AB32: 相互相関値
A33: -1 | B33: 3 | C33: -1 | D33: -1 | E33: -1 | F33: -1 | G33: 3 | H33: -1 | J33: 5 | K33: 5 | L33: 5 | M33: 5 | N33: 5 | O33: 20 | P33: 40 | Q33: 15 | S33: =A33*J33 -> -5 | T33: 15 | U33: -5 | V33: -5 | W33: -5 | X33: -20 | Y33: 120 | Z33: -15 | AB33: "J"
A34: -1 | B34: -1 | C34: 3 | D34: -1 | E34: -1 | F34: 3 | G34: -1 | H34: -1 | J34: 5 | K34: 5 | L34: 5 | M34: 5 | N34: 5 | O34: 20 | P34: 40 | Q34: 15 | S34: -5 | T34: -5 | U34: 15 | V34: -5 | W34: -5 | X34: 60 | Y34: -40 | Z34: -15 | AB34: =SUM(S32:Z39) -> -105
A35: -1 | B35: -1 | C35: -1 | D35: 3 | E35: 3 | F35: -1 | G35: -1 | H35: -1 | J35: 5 | K35: 5 | L35: 5 | M35: 5 | N35: 5 | O35: 20 | P35: 40 | Q35: 15 | S35: -5 | T35: -5 | U35: -5 | V35: 15 | W35: 15 | X35: -20 | Y35: -40 | Z35: -15
A36: -1 | B36: -1 | C36: -1 | D36: 3 | E36: 3 | F36: -1 | G36: -1 | H36: -1 | J36: 5 | K36: 5 | L36: 5 | M36: 5 | N36: 5 | O36: 20 | P36: 40 | Q36: 15 | S36: -5 | T36: -5 | U36: -5 | V36: 15 | W36: 15 | X36: -20 | Y36: -40 | Z36: -15
A37: -1 | B37: -1 | C37: 3 | D37: -1 | E37: -1 | F37: 3 | G37: -1 | H37: -1 | J37: 5 | K37: 5 | L37: 5 | M37: 5 | N37: 20 | O37: 40 | P37: 20 | Q37: 15 | S37: -5 | T37: -5 | U37: 15 | V37: -5 | W37: -20 | X37: 120 | Y37: -20 | Z37: -15
A38: -1 | B38: 3 | C38: -1 | D38: -1 | E38: -1 | F38: -1 | G38: 3 | H38: -1 | J38: 5 | K38: 20 | L38: 20 | M38: 20 | N38: 40 | O38: 20 | P38: 5 | Q38: 5 | S38: -5 | T38: 60 | U38: -20 | V38: -20 | W38: -40 | X38: -20 | Y38: 15 | Z38: -5
A39: 3 | B39: -1 | C39: -1 | D39: -1 | E39: -1 | F39: -1 | G39: -1 | H39: 3 | J39: 20 | K39: 40 | L39: 40 | M39: 40 | N39: 20 | O39: 5 | P39: 5 | Q39: 5 | S39: 60 | T39: -40 | U39: -40 | V39: -40 | W39: -20 | X39: -5 | Y39: -5 | Z39: 15
A41: x [ i ][ j ] テンプレート "X" | J41: y [ i ][ j ] 対象画像 "N" | S41: 各要素同士を乗算 | AB41: 全要素を加算
A42: 3 | B42: -1 | C42: -1 | D42: -1 | E42: -1 | F42: -1 | G42: -1 | H42: 3 | J42: 40 | K42: 20 | L42: 5 | M42: 5 | N42: 5 | O42: 5 | P42: 40 | Q42: 15 | S42: =A42*J42 -> 120 | T42: =B42*K42 -> -20 | U42: -5 | V42: -5 | W42: -5 | X42: -5 | Y42: -40 | Z42: 45 | AB42: 相互相関値
A43: -1 | B43: 3 | C43: -1 | D43: -1 | E43: -1 | F43: -1 | G43: 3 | H43: -1 | J43: 40 | K43: 40 | L43: 15 | M43: 5 | N43: 5 | O43: 5 | P43: 40 | Q43: 15 | S43: =A43*J43 -> -40 | T43: 120 | U43: -15 | V43: -5 | W43: -5 | X43: -5 | Y43: 120 | Z43: -15 | AB43: "N"
A44: -1 | B44: -1 | C44: 3 | D44: -1 | E44: -1 | F44: 3 | G44: -1 | H44: -1 | J44: 40 | K44: 25 | L44: 40 | M44: 15 | N44: 5 | O44: 5 | P44: 40 | Q44: 15 | S44: -40 | T44: -25 | U44: 120 | V44: -15 | W44: -5 | X44: 15 | Y44: -40 | Z44: -15 | AB44: =SUM(S42:Z49) -> 435
A45: -1 | B45: -1 | C45: -1 | D45: 3 | E45: 3 | F45: -1 | G45: -1 | H45: -1 | J45: 40 | K45: 5 | L45: 15 | M45: 40 | N45: 15 | O45: 5 | P45: 40 | Q45: 15 | S45: -40 | T45: -5 | U45: -15 | V45: 120 | W45: 45 | X45: -5 | Y45: -40 | Z45: -15
A46: -1 | B46: -1 | C46: -1 | D46: 3 | E46: 3 | F46: -1 | G46: -1 | H46: -1 | J46: 40 | K46: 5 | L46: 5 | M46: 15 | N46: 40 | O46: 25 | P46: 40 | Q46: 15 | S46: -40 | T46: -5 | U46: -5 | V46: 45 | W46: 120 | X46: -25 | Y46: -40 | Z46: -15
A47: -1 | B47: -1 | C47: 3 | D47: -1 | E47: -1 | F47: 3 | G47: -1 | H47: -1 | J47: 40 | K47: 5 | L47: 5 | M47: 5 | N47: 15 | O47: 40 | P47: 40 | Q47: 15 | S47: -40 | T47: -5 | U47: 15 | V47: -5 | W47: -15 | X47: 120 | Y47: -40 | Z47: -15
A48: -1 | B48: 3 | C48: -1 | D48: -1 | E48: -1 | F48: -1 | G48: 3 | H48: -1 | J48: 40 | K48: 5 | L48: 5 | M48: 5 | N48: 5 | O48: 20 | P48: 40 | Q48: 15 | S48: -40 | T48: 15 | U48: -5 | V48: -5 | W48: -5 | X48: -20 | Y48: 120 | Z48: -15
A49: 3 | B49: -1 | C49: -1 | D49: -1 | E49: -1 | F49: -1 | G49: -1 | H49: 3 | J49: 20 | K49: 5 | L49: 5 | M49: 5 | N49: 5 | O49: 5 | P49: 20 | Q49: 15 | S49: 60 | T49: -5 | U49: -5 | V49: -5 | W49: -5 | X49: -5 | Y49: -20 | Z49: 45
A51: x [ i ][ j ] テンプレート "X" | J51: y [ i ][ j ] 対象画像 "O" | S51: 各要素同士を乗算 | AB51: 全要素を加算
A52: 3 | B52: -1 | C52: -1 | D52: -1 | E52: -1 | F52: -1 | G52: -1 | H52: 3 | J52: 5 | K52: 15 | L52: 40 | M52: 40 | N52: 40 | O52: 15 | P52: 5 | Q52: 5 | S52: =A52*J52 -> 15 | T52: =B52*K52 -> -15 | U52: -40 | V52: -40 | W52: -40 | X52: -15 | Y52: -5 | Z52: 15 | AB52: 相互相関値
A53: -1 | B53: 3 | C53: -1 | D53: -1 | E53: -1 | F53: -1 | G53: 3 | H53: -1 | J53: 15 | K53: 40 | L53: 20 | M53: 20 | N53: 20 | O53: 40 | P53: 15 | Q53: 5 | S53: =A53*J53 -> -15 | T53: 120 | U53: -20 | V53: -20 | W53: -20 | X53: -40 | Y53: 45 | Z53: -5 | AB53: "O"
A54: -1 | B54: -1 | C54: 3 | D54: -1 | E54: -1 | F54: 3 | G54: -1 | H54: -1 | J54: 40 | K54: 20 | L54: 5 | M54: 5 | N54: 5 | O54: 20 | P54: 40 | Q54: 15 | S54: -40 | T54: -20 | U54: 15 | V54: -5 | W54: -5 | X54: 60 | Y54: -40 | Z54: -15 | AB54: =SUM(S52:Z59) -> -480
A55: -1 | B55: -1 | C55: -1 | D55: 3 | E55: 3 | F55: -1 | G55: -1 | H55: -1 | J55: 40 | K55: 20 | L55: 5 | M55: 5 | N55: 5 | O55: 20 | P55: 40 | Q55: 15 | S55: -40 | T55: -20 | U55: -5 | V55: 15 | W55: 15 | X55: -20 | Y55: -40 | Z55: -15
A56: -1 | B56: -1 | C56: -1 | D56: 3 | E56: 3 | F56: -1 | G56: -1 | H56: -1 | J56: 40 | K56: 20 | L56: 5 | M56: 5 | N56: 5 | O56: 20 | P56: 40 | Q56: 15 | S56: -40 | T56: -20 | U56: -5 | V56: 15 | W56: 15 | X56: -20 | Y56: -40 | Z56: -15
A57: -1 | B57: -1 | C57: 3 | D57: -1 | E57: -1 | F57: 3 | G57: -1 | H57: -1 | J57: 40 | K57: 20 | L57: 5 | M57: 5 | N57: 5 | O57: 20 | P57: 40 | Q57: 15 | S57: -40 | T57: -20 | U57: 15 | V57: -5 | W57: -5 | X57: 60 | Y57: -40 | Z57: -15
A58: -1 | B58: 3 | C58: -1 | D58: -1 | E58: -1 | F58: -1 | G58: 3 | H58: -1 | J58: 15 | K58: 40 | L58: 20 | M58: 20 | N58: 20 | O58: 40 | P58: 15 | Q58: 5 | S58: -15 | T58: 120 | U58: -20 | V58: -20 | W58: -20 | X58: -40 | Y58: 45 | Z58: -5
A59: 3 | B59: -1 | C59: -1 | D59: -1 | E59: -1 | F59: -1 | G59: -1 | H59: 3 | J59: 5 | K59: 15 | L59: 40 | M59: 40 | N59: 40 | O59: 15 | P59: 5 | Q59: 5 | S59: 15 | T59: -15 | U59: -40 | V59: -40 | W59: -40 | X59: -15 | Y59: -5 | Z59: 15
A61: x [ i ][ j ] テンプレート "X" | J61: y [ i ][ j ] 対象画像 "X" | S61: 各要素同士を乗算 | AB61: 全要素を加算
A62: 3 | B62: -1 | C62: -1 | D62: -1 | E62: -1 | F62: -1 | G62: -1 | H62: 3 | J62: 40 | K62: 15 | L62: 5 | M62: 5 | N62: 5 | O62: 5 | P62: 15 | Q62: 40 | S62: =A62*J62 -> 120 | T62: =B62*K62 -> -15 | U62: -5 | V62: -5 | W62: -5 | X62: -5 | Y62: -15 | Z62: 120 | AB62: 相互相関値
A63: -1 | B63: 3 | C63: -1 | D63: -1 | E63: -1 | F63: -1 | G63: 3 | H63: -1 | J63: 15 | K63: 40 | L63: 15 | M63: 5 | N63: 5 | O63: 15 | P63: 40 | Q63: 15 | S63: =A63*J63 -> -15 | T63: 120 | U63: -15 | V63: -5 | W63: -5 | X63: -15 | Y63: 120 | Z63: -15 | AB63: "X"
A64: -1 | B64: -1 | C64: 3 | D64: -1 | E64: -1 | F64: 3 | G64: -1 | H64: -1 | J64: 5 | K64: 15 | L64: 40 | M64: 15 | N64: 15 | O64: 40 | P64: 15 | Q64: 5 | S64: -5 | T64: -15 | U64: 120 | V64: -15 | W64: -15 | X64: 120 | Y64: -15 | Z64: -5 | AB64: =SUM(S62:Z69) -> 1440 | AC64: MAX
A65: -1 | B65: -1 | C65: -1 | D65: 3 | E65: 3 | F65: -1 | G65: -1 | H65: -1 | J65: 5 | K65: 5 | L65: 15 | M65: 40 | N65: 40 | O65: 15 | P65: 5 | Q65: 5 | S65: -5 | T65: -5 | U65: -15 | V65: 120 | W65: 120 | X65: -15 | Y65: -5 | Z65: -5
A66: -1 | B66: -1 | C66: -1 | D66: 3 | E66: 3 | F66: -1 | G66: -1 | H66: -1 | J66: 5 | K66: 5 | L66: 15 | M66: 40 | N66: 40 | O66: 15 | P66: 5 | Q66: 5 | S66: -5 | T66: -5 | U66: -15 | V66: 120 | W66: 120 | X66: -15 | Y66: -5 | Z66: -5
A67: -1 | B67: -1 | C67: 3 | D67: -1 | E67: -1 | F67: 3 | G67: -1 | H67: -1 | J67: 5 | K67: 15 | L67: 40 | M67: 15 | N67: 15 | O67: 40 | P67: 15 | Q67: 5 | S67: -5 | T67: -15 | U67: 120 | V67: -15 | W67: -15 | X67: 120 | Y67: -15 | Z67: -5
A68: -1 | B68: 3 | C68: -1 | D68: -1 | E68: -1 | F68: -1 | G68: 3 | H68: -1 | J68: 15 | K68: 40 | L68: 15 | M68: 5 | N68: 5 | O68: 15 | P68: 40 | Q68: 15 | S68: -15 | T68: 120 | U68: -15 | V68: -5 | W68: -5 | X68: -15 | Y68: 120 | Z68: -15
A69: 3 | B69: -1 | C69: -1 | D69: -1 | E69: -1 | F69: -1 | G69: -1 | H69: 3 | J69: 40 | K69: 15 | L69: 5 | M69: 5 | N69: 5 | O69: 5 | P69: 15 | Q69: 40 | S69: 120 | T69: -15 | U69: -5 | V69: -5 | W69: -5 | X69: -5 | Y69: -15 | Z69: 120
A71: x [ i ][ j ] テンプレート "X" | J71: y [ i ][ j ] 対象画像 "L" | S71: 各要素同士を乗算 | AB71: 全要素を加算
A72: 3 | B72: -1 | C72: -1 | D72: -1 | E72: -1 | F72: -1 | G72: -1 | H72: 3 | J72: 15 | K72: 40 | L72: 20 | M72: 10 | N72: 5 | O72: 5 | P72: 5 | Q72: 5 | S72: =A72*J72 -> 45 | T72: =B72*K72 -> -40 | U72: -20 | V72: -10 | W72: -5 | X72: -5 | Y72: -5 | Z72: 15 | AB72: 相互相関値
A73: -1 | B73: 3 | C73: -1 | D73: -1 | E73: -1 | F73: -1 | G73: 3 | H73: -1 | J73: 15 | K73: 40 | L73: 20 | M73: 10 | N73: 5 | O73: 5 | P73: 5 | Q73: 5 | S73: =A73*J73 -> -15 | T73: 120 | U73: -20 | V73: -10 | W73: -5 | X73: -5 | Y73: 15 | Z73: -5 | AB73: "L"
A74: -1 | B74: -1 | C74: 3 | D74: -1 | E74: -1 | F74: 3 | G74: -1 | H74: -1 | J74: 15 | K74: 40 | L74: 20 | M74: 10 | N74: 5 | O74: 5 | P74: 5 | Q74: 5 | S74: -15 | T74: -40 | U74: 60 | V74: -10 | W74: -5 | X74: 15 | Y74: -5 | Z74: -5 | AB74: =SUM(S72:Z79) -> -115
A75: -1 | B75: -1 | C75: -1 | D75: 3 | E75: 3 | F75: -1 | G75: -1 | H75: -1 | J75: 15 | K75: 40 | L75: 20 | M75: 10 | N75: 5 | O75: 5 | P75: 5 | Q75: 5 | S75: -15 | T75: -40 | U75: -20 | V75: 30 | W75: 15 | X75: -5 | Y75: -5 | Z75: -5
A76: -1 | B76: -1 | C76: -1 | D76: 3 | E76: 3 | F76: -1 | G76: -1 | H76: -1 | J76: 15 | K76: 40 | L76: 20 | M76: 10 | N76: 5 | O76: 5 | P76: 5 | Q76: 5 | S76: -15 | T76: -40 | U76: -20 | V76: 30 | W76: 15 | X76: -5 | Y76: -5 | Z76: -5
A77: -1 | B77: -1 | C77: 3 | D77: -1 | E77: -1 | F77: 3 | G77: -1 | H77: -1 | J77: 15 | K77: 40 | L77: 20 | M77: 10 | N77: 10 | O77: 10 | P77: 10 | Q77: 5 | S77: -15 | T77: -40 | U77: 60 | V77: -10 | W77: -10 | X77: 30 | Y77: -10 | Z77: -5
A78: -1 | B78: 3 | C78: -1 | D78: -1 | E78: -1 | F78: -1 | G78: 3 | H78: -1 | J78: 15 | K78: 40 | L78: 30 | M78: 20 | N78: 20 | O78: 20 | P78: 20 | Q78: 10 | S78: -15 | T78: 120 | U78: -30 | V78: -20 | W78: -20 | X78: -20 | Y78: 60 | Z78: -10
A79: 3 | B79: -1 | C79: -1 | D79: -1 | E79: -1 | F79: -1 | G79: -1 | H79: 3 | J79: 15 | K79: 40 | L79: 40 | M79: 40 | N79: 40 | O79: 40 | P79: 40 | Q79: 20 | S79: 45 | T79: -40 | U79: -40 | V79: -40 | W79: -40 | X79: -40 | Y79: -40 | Z79: 60
A81: x [ i ][ j ] テンプレート "X" | J81: y [ i ][ j ] 対象画像 "F" | S81: 各要素同士を乗算 | AB81: 全要素を加算
A82: 3 | B82: -1 | C82: -1 | D82: -1 | E82: -1 | F82: -1 | G82: -1 | H82: 3 | J82: 15 | K82: 40 | L82: 40 | M82: 40 | N82: 40 | O82: 40 | P82: 30 | Q82: 5 | S82: =A82*J82 -> 45 | T82: =B82*K82 -> -40 | U82: -40 | V82: -40 | W82: -40 | X82: -40 | Y82: -30 | Z82: 15 | AB82: 相互相関値
A83: -1 | B83: 3 | C83: -1 | D83: -1 | E83: -1 | F83: -1 | G83: 3 | H83: -1 | J83: 15 | K83: 40 | L83: 20 | M83: 20 | N83: 20 | O83: 20 | P83: 15 | Q83: 5 | S83: =A83*J83 -> -15 | T83: 120 | U83: -20 | V83: -20 | W83: -20 | X83: -20 | Y83: 45 | Z83: -5 | AB83: "F"
A84: -1 | B84: -1 | C84: 3 | D84: -1 | E84: -1 | F84: 3 | G84: -1 | H84: -1 | J84: 15 | K84: 40 | L84: 15 | M84: 5 | N84: 5 | O84: 5 | P84: 5 | Q84: 5 | S84: -15 | T84: -40 | U84: 45 | V84: -5 | W84: -5 | X84: 15 | Y84: -5 | Z84: -5 | AB84: =SUM(S82:Z89) -> 105
A85: -1 | B85: -1 | C85: -1 | D85: 3 | E85: 3 | F85: -1 | G85: -1 | H85: -1 | J85: 15 | K85: 40 | L85: 25 | M85: 25 | N85: 25 | O85: 15 | P85: 5 | Q85: 5 | S85: -15 | T85: -40 | U85: -25 | V85: 75 | W85: 75 | X85: -15 | Y85: -5 | Z85: -5
A86: -1 | B86: -1 | C86: -1 | D86: 3 | E86: 3 | F86: -1 | G86: -1 | H86: -1 | J86: 15 | K86: 40 | L86: 40 | M86: 40 | N86: 40 | O86: 30 | P86: 5 | Q86: 5 | S86: -15 | T86: -40 | U86: -40 | V86: 120 | W86: 120 | X86: -30 | Y86: -5 | Z86: -5
A87: -1 | B87: -1 | C87: 3 | D87: -1 | E87: -1 | F87: 3 | G87: -1 | H87: -1 | J87: 15 | K87: 40 | L87: 25 | M87: 25 | N87: 25 | O87: 15 | P87: 5 | Q87: 5 | S87: -15 | T87: -40 | U87: 75 | V87: -25 | W87: -25 | X87: 45 | Y87: -5 | Z87: -5
A88: -1 | B88: 3 | C88: -1 | D88: -1 | E88: -1 | F88: -1 | G88: 3 | H88: -1 | J88: 15 | K88: 40 | L88: 15 | M88: 5 | N88: 5 | O88: 5 | P88: 5 | Q88: 5 | S88: -15 | T88: 120 | U88: -15 | V88: -5 | W88: -5 | X88: -5 | Y88: 15 | Z88: -5
A89: 3 | B89: -1 | C89: -1 | D89: -1 | E89: -1 | F89: -1 | G89: -1 | H89: 3 | J89: 15 | K89: 40 | L89: 15 | M89: 5 | N89: 5 | O89: 5 | P89: 5 | Q89: 5 | S89: 45 | T89: -40 | U89: -15 | V89: -5 | W89: -5 | X89: -5 | Y89: -5 | Z89: 15
A92: =SUM(A82:H89) -> 0 | B92: =COUNTIF(A82:H89, "> 0") -> 16 | C92: =(64-B92)/B92 -> 3

Sheet charO
A1: x [ i ][ j ] テンプレート "O" | J1: y [ i ][ j ] 対象画像 "Y" | S1: 各要素同士を乗算 | AB1: 全要素を加算
A2: -1 | B2: -1 | C2: 2.556 | D2: 2.556 | E2: 2.556 | F2: -1 | G2: -1 | H2: -1 | J2: 40 | K2: 15 | L2: 5 | M2: 5 | N2: 5 | O2: 15 | P2: 40 | Q2: 5 | S2: =A2*J2 -> -40 | T2: =B2*K2 -> -15 | U2: 12.78 | V2: 12.78 | W2: 12.78 | X2: -15 | Y2: -40 | Z2: -5 | AB2: 相互相関値
A3: -1 | B3: 2.556 | C3: -1 | D3: -1 | E3: -1 | F3: 2.556 | G3: -1 | H3: -1 | J3: 15 | K3: 40 | L3: 15 | M3: 5 | N3: 15 | O3: 40 | P3: 15 | Q3: 5 | S3: =A3*J3 -> -15 | T3: 102.24 | U3: -15 | V3: -5 | W3: -15 | X3: 102.24 | Y3: -15 | Z3: -5 | AB3: "Y"
A4: 2.556 | B4: -1 | C4: -1 | D4: -1 | E4: -1 | F4: -1 | G4: 2.556 | H4: -1 | J4: 5 | K4: 15 | L4: 40 | M4: 20 | N4: 40 | O4: 15 | P4: 5 | Q4: 5 | S4: 12.78 | T4: -15 | U4: -40 | V4: -20 | W4: -40 | X4: -15 | Y4: 12.78 | Z4: -5 | AB4: =SUM(S2:Z9) -> -135.46
A5: 2.556 | B5: -1 | C5: -1 | D5: -1 | E5: -1 | F5: -1 | G5: 2.556 | H5: -1 | J5: 5 | K5: 5 | L5: 15 | M5: 40 | N5: 15 | O5: 5 | P5: 5 | Q5: 5 | S5: 12.78 | T5: -5 | U5: -15 | V5: -40 | W5: -15 | X5: -5 | Y5: 12.78 | Z5: -5
A6: 2.556 | B6: -1 | C6: -1 | D6: -1 | E6: -1 | F6: -1 | G6: 2.556 | H6: -1 | J6: 5 | K6: 5 | L6: 15 | M6: 40 | N6: 15 | O6: 5 | P6: 5 | Q6: 5 | S6: 12.78 | T6: -5 | U6: -15 | V6: -40 | W6: -15 | X6: -5 | Y6: 12.78 | Z6: -5
A7: 2.556 | B7: -1 | C7: -1 | D7: -1 | E7: -1 | F7: -1 | G7: 2.556 | H7: -1 | J7: 5 | K7: 5 | L7: 15 | M7: 40 | N7: 15 | O7: 5 | P7: 5 | Q7: 5 | S7: 12.78 | T7: -5 | U7: -15 | V7: -40 | W7: -15 | X7: -5 | Y7: 12.78 | Z7: -5
A8: -1 | B8: 2.556 | C8: -1 | D8: -1 | E8: -1 | F8: 2.556 | G8: -1 | H8: -1 | J8: 5 | K8: 5 | L8: 15 | M8: 40 | N8: 15 | O8: 5 | P8: 5 | Q8: 5 | S8: -5 | T8: 12.78 | U8: -15 | V8: -40 | W8: -15 | X8: 12.78 | Y8: -5 | Z8: -5
A9: -1 | B9: -1 | C9: 2.556 | D9: 2.556 | E9: 2.556 | F9: -1 | G9: -1 | H9: -1 | J9: 5 | K9: 5 | L9: 15 | M9: 40 | N9: 15 | O9: 5 | P9: 5 | Q9: 5 | S9: -5 | T9: -5 | U9: 38.34 | V9: 102.24 | W9: 38.34 | X9: -5 | Y9: -5 | Z9: -5
A11: x [ i ][ j ] テンプレート "O" | J11: y [ i ][ j ] 対象画像 "Z" | S11: 各要素同士を乗算 | AB11: 全要素を加算
A12: -1 | B12: -1 | C12: 2.556 | D12: 2.556 | E12: 2.556 | F12: -1 | G12: -1 | H12: -1 | J12: 40 | K12: 40 | L12: 40 | M12: 40 | N12: 40 | O12: 40 | P12: 40 | Q12: 5 | S12: =A12*J12 -> -40 | T12: =B12*K12 -> -40 | U12: 102.24 | V12: 102.24 | W12: 102.24 | X12: -40 | Y12: -40 | Z12: -5 | AB12: 相互相関値
A13: -1 | B13: 2.556 | C13: -1 | D13: -1 | E13: -1 | F13: 2.556 | G13: -1 | H13: -1 | J13: 15 | K13: 15 | L13: 15 | M13: 20 | N13: 20 | O13: 40 | P13: 20 | Q13: 5 | S13: =A13*J13 -> -15 | T13: 38.34 | U13: -15 | V13: -20 | W13: -20 | X13: 102.24 | Y13: -20 | Z13: -5 | AB13: "Z"
A14: 2.556 | B14: -1 | C14: -1 | D14: -1 | E14: -1 | F14: -1 | G14: 2.556 | H14: -1 | J14: 5 | K14: 5 | L14: 5 | M14: 20 | N14: 40 | O14: 20 | P14: 5 | Q14: 5 | S14: 12.78 | T14: -5 | U14: -5 | V14: -20 | W14: -40 | X14: -20 | Y14: 12.78 | Z14: -5 | AB14: =SUM(S12:Z19) -> 2.94
A15: 2.556 | B15: -1 | C15: -1 | D15: -1 | E15: -1 | F15: -1 | G15: 2.556 | H15: -1 | J15: 5 | K15: 5 | L15: 15 | M15: 40 | N15: 20 | O15: 5 | P15: 5 | Q15: 5 | S15: 12.78 | T15: -5 | U15: -15 | V15: -40 | W15: -20 | X15: -5 | Y15: 12.78 | Z15: -5
A16: 2.556 | B16: -1 | C16: -1 | D16: -1 | E16: -1 | F16: -1 | G16: 2.556 | H16: -1 | J16: 5 | K16: 15 | L16: 40 | M16: 20 | N16: 10 | O16: 5 | P16: 5 | Q16: 5 | S16: 12.78 | T16: -15 | U16: -40 | V16: -20 | W16: -10 | X16: -5 | Y16: 12.78 | Z16: -5
A17: 2.556 | B17: -1 | C17: -1 | D17: -1 | E17: -1 | F17: -1 | G17: 2.556 | H17: -1 | J17: 15 | K17: 40 | L17: 15 | M17: 20 | N17: 20 | O17: 20 | P17: 20 | Q17: 5 | S17: 38.34 | T17: -40 | U17: -15 | V17: -20 | W17: -20 | X17: -20 | Y17: 51.12 | Z17: -5
A18: -1 | B18: 2.556 | C18: -1 | D18: -1 | E18: -1 | F18: 2.556 | G18: -1 | H18: -1 | J18: 40 | K18: 40 | L18: 40 | M18: 40 | N18: 40 | O18: 40 | P18: 40 | Q18: 5 | S18: -40 | T18: 102.24 | U18: -40 | V18: -40 | W18: -40 | X18: 102.24 | Y18: -40 | Z18: -5
A19: -1 | B19: -1 | C19: 2.556 | D19: 2.556 | E19: 2.556 | F19: -1 | G19: -1 | H19: -1 | J19: 15 | K19: 15 | L19: 15 | M19: 15 | N19: 15 | O19: 15 | P19: 15 | Q19: 5 | S19: -15 | T19: -15 | U19: 38.34 | V19: 38.34 | W19: 38.34 | X19: -15 | Y19: -15 | Z19: -5
A21: x [ i ][ j ] テンプレート "O" | J21: y [ i ][ j ] 対象画像 "R" | S21: 各要素同士を乗算 | AB21: 全要素を加算
A22: -1 | B22: -1 | C22: 2.556 | D22: 2.556 | E22: 2.556 | F22: -1 | G22: -1 | H22: -1 | J22: 15 | K22: 40 | L22: 40 | M22: 40 | N22: 40 | O22: 40 | P22: 20 | Q22: 5 | S22: =A22*J22 -> -15 | T22: =B22*K22 -> -40 | U22: 102.24 | V22: 102.24 | W22: 102.24 | X22: -40 | Y22: -20 | Z22: -5 | AB22: 相互相関値
A23: -1 | B23: 2.556 | C23: -1 | D23: -1 | E23: -1 | F23: 2.556 | G23: -1 | H23: -1 | J23: 15 | K23: 40 | L23: 20 | M23: 20 | N23: 20 | O23: 20 | P23: 40 | Q23: 15 | S23: =A23*J23 -> -15 | T23: 102.24 | U23: -20 | V23: -20 | W23: -20 | X23: 51.12 | Y23: -40 | Z23: -15 | AB23: "R"
A24: 2.556 | B24: -1 | C24: -1 | D24: -1 | E24: -1 | F24: -1 | G24: 2.556 | H24: -1 | J24: 15 | K24: 40 | L24: 20 | M24: 5 | N24: 20 | O24: 20 | P24: 40 | Q24: 15 | S24: 38.34 | T24: -40 | U24: -20 | V24: -5 | W24: -20 | X24: -20 | Y24: 102.24 | Z24: -15 | AB24: =SUM(S22:Z29) -> 2.96
A25: 2.556 | B25: -1 | C25: -1 | D25: -1 | E25: -1 | F25: -1 | G25: 2.556 | H25: -1 | J25: 15 | K25: 40 | L25: 20 | M25: 20 | N25: 20 | O25: 40 | P25: 15 | Q25: 5 | S25: 38.34 | T25: -40 | U25: -20 | V25: -20 | W25: -20 | X25: -40 | Y25: 38.34 | Z25: -5
A26: 2.556 | B26: -1 | C26: -1 | D26: -1 | E26: -1 | F26: -1 | G26: 2.556 | H26: -1 | J26: 15 | K26: 40 | L26: 40 | M26: 40 | N26: 40 | O26: 20 | P26: 5 | Q26: 5 | S26: 38.34 | T26: -40 | U26: -40 | V26: -40 | W26: -40 | X26: -20 | Y26: 12.78 | Z26: -5
A27: 2.556 | B27: -1 | C27: -1 | D27: -1 | E27: -1 | F27: -1 | G27: 2.556 | H27: -1 | J27: 15 | K27: 40 | L27: 15 | M27: 15 | N27: 40 | O27: 40 | P27: 15 | Q27: 5 | S27: 38.34 | T27: -40 | U27: -15 | V27: -15 | W27: -40 | X27: -40 | Y27: 38.34 | Z27: -5
A28: -1 | B28: 2.556 | C28: -1 | D28: -1 | E28: -1 | F28: 2.556 | G28: -1 | H28: -1 | J28: 15 | K28: 40 | L28: 10 | M28: 5 | N28: 10 | O28: 40 | P28: 40 | Q28: 5 | S28: -15 | T28: 102.24 | U28: -10 | V28: -5 | W28: -10 | X28: 102.24 | Y28: -40 | Z28: -5
A29: -1 | B29: -1 | C29: 2.556 | D29: 2.556 | E29: 2.556 | F29: -1 | G29: -1 | H29: -1 | J29: 15 | K29: 40 | L29: 5 | M29: 5 | N29: 5 | O29: 5 | P29: 40 | Q29: 5 | S29: -15 | T29: -40 | U29: 12.78 | V29: 12.78 | W29: 12.78 | X29: -5 | Y29: -40 | Z29: -5
A31: x [ i ][ j ] テンプレート "O" | J31: y [ i ][ j ] 対象画像 "J" | S31: 各要素同士を乗算 | AB31: 全要素を加算
A32: -1 | B32: -1 | C32: 2.556 | D32: 2.556 | E32: 2.556 | F32: -1 | G32: -1 | H32: -1 | J32: 5 | K32: 5 | L32: 5 | M32: 5 | N32: 5 | O32: 20 | P32: 40 | Q32: 15 | S32: =A32*J32 -> -5 | T32: =B32*K32 -> -5 | U32: 12.78 | V32: 12.78 | W32: 12.78 | X32: -20 | Y32: -40 | Z32: -15 | AB32: 相互相関値
A33: -1 | B33: 2.556 | C33: -1 | D33: -1 | E33: -1 | F33: 2.556 | G33: -1 | H33: -1 | J33: 5 | K33: 5 | L33: 5 | M33: 5 | N33: 5 | O33: 20 | P33: 40 | Q33: 15 | S33: =A33*J33 -> -5 | T33: 12.78 | U33: -5 | V33: -5 | W33: -5 | X33: 51.12 | Y33: -40 | Z33: -15 | AB33: "J"
A34: 2.556 | B34: -1 | C34: -1 | D34: -1 | E34: -1 | F34: -1 | G34: 2.556 | H34: -1 | J34: 5 | K34: 5 | L34: 5 | M34: 5 | N34: 5 | O34: 20 | P34: 40 | Q34: 15 | S34: 12.78 | T34: -5 | U34: -5 | V34: -5 | W34: -5 | X34: -20 | Y34: 102.24 | Z34: -15 | AB34: =SUM(S32:Z39) -> 284.04
A35: 2.556 | B35: -1 | C35: -1 | D35: -1 | E35: -1 | F35: -1 | G35: 2.556 | H35: -1 | J35: 5 | K35: 5 | L35: 5 | M35: 5 | N35: 5 | O35: 20 | P35: 40 | Q35: 15 | S35: 12.78 | T35: -5 | U35: -5 | V35: -5 | W35: -5 | X35: -20 | Y35: 102.24 | Z35: -15
A36: 2.556 | B36: -1 | C36: -1 | D36: -1 | E36: -1 | F36: -1 | G36: 2.556 | H36: -1 | J36: 5 | K36: 5 | L36: 5 | M36: 5 | N36: 5 | O36: 20 | P36: 40 | Q36: 15 | S36: 12.78 | T36: -5 | U36: -5 | V36: -5 | W36: -5 | X36: -20 | Y36: 102.24 | Z36: -15
A37: 2.556 | B37: -1 | C37: -1 | D37: -1 | E37: -1 | F37: -1 | G37: 2.556 | H37: -1 | J37: 5 | K37: 5 | L37: 5 | M37: 5 | N37: 20 | O37: 40 | P37: 20 | Q37: 15 | S37: 12.78 | T37: -5 | U37: -5 | V37: -5 | W37: -20 | X37: -40 | Y37: 51.12 | Z37: -15
A38: -1 | B38: 2.556 | C38: -1 | D38: -1 | E38: -1 | F38: 2.556 | G38: -1 | H38: -1 | J38: 5 | K38: 20 | L38: 20 | M38: 20 | N38: 40 | O38: 20 | P38: 5 | Q38: 5 | S38: -5 | T38: 51.12 | U38: -20 | V38: -20 | W38: -40 | X38: 51.12 | Y38: -5 | Z38: -5
A39: -1 | B39: -1 | C39: 2.556 | D39: 2.556 | E39: 2.556 | F39: -1 | G39: -1 | H39: -1 | J39: 20 | K39: 40 | L39: 40 | M39: 40 | N39: 20 | O39: 5 | P39: 5 | Q39: 5 | S39: -20 | T39: -40 | U39: 102.24 | V39: 102.24 | W39: 51.12 | X39: -5 | Y39: -5 | Z39: -5
A41: x [ i ][ j ] テンプレート "O" | J41: y [ i ][ j ] 対象画像 "N" | S41: 各要素同士を乗算 | AB41: 全要素を加算
A42: -1 | B42: -1 | C42: 2.556 | D42: 2.556 | E42: 2.556 | F42: -1 | G42: -1 | H42: -1 | J42: 40 | K42: 20 | L42: 5 | M42: 5 | N42: 5 | O42: 5 | P42: 40 | Q42: 15 | S42: =A42*J42 -> -40 | T42: =B42*K42 -> -20 | U42: 12.78 | V42: 12.78 | W42: 12.78 | X42: -5 | Y42: -40 | Z42: -15 | AB42: 相互相関値
A43: -1 | B43: 2.556 | C43: -1 | D43: -1 | E43: -1 | F43: 2.556 | G43: -1 | H43: -1 | J43: 40 | K43: 40 | L43: 15 | M43: 5 | N43: 5 | O43: 5 | P43: 40 | Q43: 15 | S43: =A43*J43 -> -40 | T43: 102.24 | U43: -15 | V43: -5 | W43: -5 | X43: 12.78 | Y43: -40 | Z43: -15 | AB43: "N"
A44: 2.556 | B44: -1 | C44: -1 | D44: -1 | E44: -1 | F44: -1 | G44: 2.556 | H44: -1 | J44: 40 | K44: 25 | L44: 40 | M44: 15 | N44: 5 | O44: 5 | P44: 40 | Q44: 15 | S44: 102.24 | T44: -25 | U44: -40 | V44: -15 | W44: -5 | X44: -5 | Y44: 102.24 | Z44: -15 | AB44: =SUM(S42:Z49) -> 268.52
A45: 2.556 | B45: -1 | C45: -1 | D45: -1 | E45: -1 | F45: -1 | G45: 2.556 | H45: -1 | J45: 40 | K45: 5 | L45: 15 | M45: 40 | N45: 15 | O45: 5 | P45: 40 | Q45: 15 | S45: 102.24 | T45: -5 | U45: -15 | V45: -40 | W45: -15 | X45: -5 | Y45: 102.24 | Z45: -15
A46: 2.556 | B46: -1 | C46: -1 | D46: -1 | E46: -1 | F46: -1 | G46: 2.556 | H46: -1 | J46: 40 | K46: 5 | L46: 5 | M46: 15 | N46: 40 | O46: 25 | P46: 40 | Q46: 15 | S46: 102.24 | T46: -5 | U46: -5 | V46: -15 | W46: -40 | X46: -25 | Y46: 102.24 | Z46: -15
A47: 2.556 | B47: -1 | C47: -1 | D47: -1 | E47: -1 | F47: -1 | G47: 2.556 | H47: -1 | J47: 40 | K47: 5 | L47: 5 | M47: 5 | N47: 15 | O47: 40 | P47: 40 | Q47: 15 | S47: 102.24 | T47: -5 | U47: -5 | V47: -5 | W47: -15 | X47: -40 | Y47: 102.24 | Z47: -15
A48: -1 | B48: 2.556 | C48: -1 | D48: -1 | E48: -1 | F48: 2.556 | G48: -1 | H48: -1 | J48: 40 | K48: 5 | L48: 5 | M48: 5 | N48: 5 | O48: 20 | P48: 40 | Q48: 15 | S48: -40 | T48: 12.78 | U48: -5 | V48: -5 | W48: -5 | X48: 51.12 | Y48: -40 | Z48: -15
A49: -1 | B49: -1 | C49: 2.556 | D49: 2.556 | E49: 2.556 | F49: -1 | G49: -1 | H49: -1 | J49: 20 | K49: 5 | L49: 5 | M49: 5 | N49: 5 | O49: 5 | P49: 20 | Q49: 15 | S49: -20 | T49: -5 | U49: 12.78 | V49: 12.78 | W49: 12.78 | X49: -5 | Y49: -20 | Z49: -15
A51: x [ i ][ j ] テンプレート "O" | J51: y [ i ][ j ] 対象画像 "O" | S51: 各要素同士を乗算 | AB51: 全要素を加算
A52: -1 | B52: -1 | C52: 2.556 | D52: 2.556 | E52: 2.556 | F52: -1 | G52: -1 | H52: -1 | J52: 5 | K52: 15 | L52: 40 | M52: 40 | N52: 40 | O52: 15 | P52: 5 | Q52: 5 | S52: =A52*J52 -> -5 | T52: =B52*K52 -> -15 | U52: 102.24 | V52: 102.24 | W52: 102.24 | X52: -15 | Y52: -5 | Z52: -5 | AB52: 相互相関値
A53: -1 | B53: 2.556 | C53: -1 | D53: -1 | E53: -1 | F53: 2.556 | G53: -1 | H53: -1 | J53: 15 | K53: 40 | L53: 20 | M53: 20 | N53: 20 | O53: 40 | P53: 15 | Q53: 5 | S53: =A53*J53 -> -15 | T53: 102.24 | U53: -20 | V53: -20 | W53: -20 | X53: 102.24 | Y53: -15 | Z53: -5 | AB53: "O"
A54: 2.556 | B54: -1 | C54: -1 | D54: -1 | E54: -1 | F54: -1 | G54: 2.556 | H54: -1 | J54: 40 | K54: 20 | L54: 5 | M54: 5 | N54: 5 | O54: 20 | P54: 40 | Q54: 15 | S54: 102.24 | T54: -20 | U54: -5 | V54: -5 | W54: -5 | X54: -20 | Y54: 102.24 | Z54: -15 | AB54: =SUM(S52:Z59) -> 1280.32 | AC54: MAX
A55: 2.556 | B55: -1 | C55: -1 | D55: -1 | E55: -1 | F55: -1 | G55: 2.556 | H55: -1 | J55: 40 | K55: 20 | L55: 5 | M55: 5 | N55: 5 | O55: 20 | P55: 40 | Q55: 15 | S55: 102.24 | T55: -20 | U55: -5 | V55: -5 | W55: -5 | X55: -20 | Y55: 102.24 | Z55: -15
A56: 2.556 | B56: -1 | C56: -1 | D56: -1 | E56: -1 | F56: -1 | G56: 2.556 | H56: -1 | J56: 40 | K56: 20 | L56: 5 | M56: 5 | N56: 5 | O56: 20 | P56: 40 | Q56: 15 | S56: 102.24 | T56: -20 | U56: -5 | V56: -5 | W56: -5 | X56: -20 | Y56: 102.24 | Z56: -15
A57: 2.556 | B57: -1 | C57: -1 | D57: -1 | E57: -1 | F57: -1 | G57: 2.556 | H57: -1 | J57: 40 | K57: 20 | L57: 5 | M57: 5 | N57: 5 | O57: 20 | P57: 40 | Q57: 15 | S57: 102.24 | T57: -20 | U57: -5 | V57: -5 | W57: -5 | X57: -20 | Y57: 102.24 | Z57: -15
A58: -1 | B58: 2.556 | C58: -1 | D58: -1 | E58: -1 | F58: 2.556 | G58: -1 | H58: -1 | J58: 15 | K58: 40 | L58: 20 | M58: 20 | N58: 20 | O58: 40 | P58: 15 | Q58: 5 | S58: -15 | T58: 102.24 | U58: -20 | V58: -20 | W58: -20 | X58: 102.24 | Y58: -15 | Z58: -5
A59: -1 | B59: -1 | C59: 2.556 | D59: 2.556 | E59: 2.556 | F59: -1 | G59: -1 | H59: -1 | J59: 5 | K59: 15 | L59: 40 | M59: 40 | N59: 40 | O59: 15 | P59: 5 | Q59: 5 | S59: -5 | T59: -15 | U59: 102.24 | V59: 102.24 | W59: 102.24 | X59: -15 | Y59: -5 | Z59: -5
A61: x [ i ][ j ] テンプレート "O" | J61: y [ i ][ j ] 対象画像 "X" | S61: 各要素同士を乗算 | AB61: 全要素を加算
A62: -1 | B62: -1 | C62: 2.556 | D62: 2.556 | E62: 2.556 | F62: -1 | G62: -1 | H62: -1 | J62: 40 | K62: 15 | L62: 5 | M62: 5 | N62: 5 | O62: 5 | P62: 15 | Q62: 40 | S62: =A62*J62 -> -40 | T62: =B62*K62 -> -15 | U62: 12.78 | V62: 12.78 | W62: 12.78 | X62: -5 | Y62: -15 | Z62: -40 | AB62: 相互相関値
A63: -1 | B63: 2.556 | C63: -1 | D63: -1 | E63: -1 | F63: 2.556 | G63: -1 | H63: -1 | J63: 15 | K63: 40 | L63: 15 | M63: 5 | N63: 5 | O63: 15 | P63: 40 | Q63: 15 | S63: =A63*J63 -> -15 | T63: 102.24 | U63: -15 | V63: -5 | W63: -5 | X63: 38.34 | Y63: -40 | Z63: -15 | AB63: "X"
A64: 2.556 | B64: -1 | C64: -1 | D64: -1 | E64: -1 | F64: -1 | G64: 2.556 | H64: -1 | J64: 5 | K64: 15 | L64: 40 | M64: 15 | N64: 15 | O64: 40 | P64: 15 | Q64: 5 | S64: 12.78 | T64: -15 | U64: -40 | V64: -15 | W64: -15 | X64: -40 | Y64: 38.34 | Z64: -5 | AB64: =SUM(S62:Z69) -> -408.8
A65: 2.556 | B65: -1 | C65: -1 | D65: -1 | E65: -1 | F65: -1 | G65: 2.556 | H65: -1 | J65: 5 | K65: 5 | L65: 15 | M65: 40 | N65: 40 | O65: 15 | P65: 5 | Q65: 5 | S65: 12.78 | T65: -5 | U65: -15 | V65: -40 | W65: -40 | X65: -15 | Y65: 12.78 | Z65: -5
A66: 2.556 | B66: -1 | C66: -1 | D66: -1 | E66: -1 | F66: -1 | G66: 2.556 | H66: -1 | J66: 5 | K66: 5 | L66: 15 | M66: 40 | N66: 40 | O66: 15 | P66: 5 | Q66: 5 | S66: 12.78 | T66: -5 | U66: -15 | V66: -40 | W66: -40 | X66: -15 | Y66: 12.78 | Z66: -5
A67: 2.556 | B67: -1 | C67: -1 | D67: -1 | E67: -1 | F67: -1 | G67: 2.556 | H67: -1 | J67: 5 | K67: 15 | L67: 40 | M67: 15 | N67: 15 | O67: 40 | P67: 15 | Q67: 5 | S67: 12.78 | T67: -15 | U67: -40 | V67: -15 | W67: -15 | X67: -40 | Y67: 38.34 | Z67: -5
A68: -1 | B68: 2.556 | C68: -1 | D68: -1 | E68: -1 | F68: 2.556 | G68: -1 | H68: -1 | J68: 15 | K68: 40 | L68: 15 | M68: 5 | N68: 5 | O68: 15 | P68: 40 | Q68: 15 | S68: -15 | T68: 102.24 | U68: -15 | V68: -5 | W68: -5 | X68: 38.34 | Y68: -40 | Z68: -15
A69: -1 | B69: -1 | C69: 2.556 | D69: 2.556 | E69: 2.556 | F69: -1 | G69: -1 | H69: -1 | J69: 40 | K69: 15 | L69: 5 | M69: 5 | N69: 5 | O69: 5 | P69: 15 | Q69: 40 | S69: -40 | T69: -15 | U69: 12.78 | V69: 12.78 | W69: 12.78 | X69: -5 | Y69: -15 | Z69: -40
A71: x [ i ][ j ] テンプレート "O" | J71: y [ i ][ j ] 対象画像 "L" | S71: 各要素同士を乗算 | AB71: 全要素を加算
A72: -1 | B72: -1 | C72: 2.556 | D72: 2.556 | E72: 2.556 | F72: -1 | G72: -1 | H72: -1 | J72: 15 | K72: 40 | L72: 20 | M72: 10 | N72: 5 | O72: 5 | P72: 5 | Q72: 5 | S72: =A72*J72 -> -15 | T72: =B72*K72 -> -40 | U72: 51.12 | V72: 25.56 | W72: 12.78 | X72: -5 | Y72: -5 | Z72: -5 | AB72: 相互相関値
A73: -1 | B73: 2.556 | C73: -1 | D73: -1 | E73: -1 | F73: 2.556 | G73: -1 | H73: -1 | J73: 15 | K73: 40 | L73: 20 | M73: 10 | N73: 5 | O73: 5 | P73: 5 | Q73: 5 | S73: =A73*J73 -> -15 | T73: 102.24 | U73: -20 | V73: -10 | W73: -5 | X73: 12.78 | Y73: -5 | Z73: -5 | AB73: "L"
A74: 2.556 | B74: -1 | C74: -1 | D74: -1 | E74: -1 | F74: -1 | G74: 2.556 | H74: -1 | J74: 15 | K74: 40 | L74: 20 | M74: 10 | N74: 5 | O74: 5 | P74: 5 | Q74: 5 | S74: 38.34 | T74: -40 | U74: -20 | V74: -10 | W74: -5 | X74: -5 | Y74: 12.78 | Z74: -5 | AB74: =SUM(S72:Z79) -> 131.82
A75: 2.556 | B75: -1 | C75: -1 | D75: -1 | E75: -1 | F75: -1 | G75: 2.556 | H75: -1 | J75: 15 | K75: 40 | L75: 20 | M75: 10 | N75: 5 | O75: 5 | P75: 5 | Q75: 5 | S75: 38.34 | T75: -40 | U75: -20 | V75: -10 | W75: -5 | X75: -5 | Y75: 12.78 | Z75: -5
A76: 2.556 | B76: -1 | C76: -1 | D76: -1 | E76: -1 | F76: -1 | G76: 2.556 | H76: -1 | J76: 15 | K76: 40 | L76: 20 | M76: 10 | N76: 5 | O76: 5 | P76: 5 | Q76: 5 | S76: 38.34 | T76: -40 | U76: -20 | V76: -10 | W76: -5 | X76: -5 | Y76: 12.78 | Z76: -5
A77: 2.556 | B77: -1 | C77: -1 | D77: -1 | E77: -1 | F77: -1 | G77: 2.556 | H77: -1 | J77: 15 | K77: 40 | L77: 20 | M77: 10 | N77: 10 | O77: 10 | P77: 10 | Q77: 5 | S77: 38.34 | T77: -40 | U77: -20 | V77: -10 | W77: -10 | X77: -10 | Y77: 25.56 | Z77: -5
A78: -1 | B78: 2.556 | C78: -1 | D78: -1 | E78: -1 | F78: 2.556 | G78: -1 | H78: -1 | J78: 15 | K78: 40 | L78: 30 | M78: 20 | N78: 20 | O78: 20 | P78: 20 | Q78: 10 | S78: -15 | T78: 102.24 | U78: -30 | V78: -20 | W78: -20 | X78: 51.12 | Y78: -20 | Z78: -10
A79: -1 | B79: -1 | C79: 2.556 | D79: 2.556 | E79: 2.556 | F79: -1 | G79: -1 | H79: -1 | J79: 15 | K79: 40 | L79: 40 | M79: 40 | N79: 40 | O79: 40 | P79: 40 | Q79: 20 | S79: -15 | T79: -40 | U79: 102.24 | V79: 102.24 | W79: 102.24 | X79: -40 | Y79: -40 | Z79: -20
A81: x [ i ][ j ] テンプレート "O" | J81: y [ i ][ j ] 対象画像 "F" | S81: 各要素同士を乗算 | AB81: 全要素を加算
A82: -1 | B82: -1 | C82: 2.556 | D82: 2.556 | E82: 2.556 | F82: -1 | G82: -1 | H82: -1 | J82: 15 | K82: 40 | L82: 40 | M82: 40 | N82: 40 | O82: 40 | P82: 30 | Q82: 5 | S82: =A82*J82 -> -15 | T82: =B82*K82 -> -40 | U82: 102.24 | V82: 102.24 | W82: 102.24 | X82: -40 | Y82: -30 | Z82: -5 | AB82: 相互相関値
A83: -1 | B83: 2.556 | C83: -1 | D83: -1 | E83: -1 | F83: 2.556 | G83: -1 | H83: -1 | J83: 15 | K83: 40 | L83: 20 | M83: 20 | N83: 20 | O83: 20 | P83: 15 | Q83: 5 | S83: =A83*J83 -> -15 | T83: 102.24 | U83: -20 | V83: -20 | W83: -20 | X83: 51.12 | Y83: -15 | Z83: -5 | AB83: "F"
A84: 2.556 | B84: -1 | C84: -1 | D84: -1 | E84: -1 | F84: -1 | G84: 2.556 | H84: -1 | J84: 15 | K84: 40 | L84: 15 | M84: 5 | N84: 5 | O84: 5 | P84: 5 | Q84: 5 | S84: 38.34 | T84: -40 | U84: -15 | V84: -5 | W84: -5 | X84: -5 | Y84: 12.78 | Z84: -5 | AB84: =SUM(S82:Z89) -> -41.52
A85: 2.556 | B85: -1 | C85: -1 | D85: -1 | E85: -1 | F85: -1 | G85: 2.556 | H85: -1 | J85: 15 | K85: 40 | L85: 25 | M85: 25 | N85: 25 | O85: 15 | P85: 5 | Q85: 5 | S85: 38.34 | T85: -40 | U85: -25 | V85: -25 | W85: -25 | X85: -15 | Y85: 12.78 | Z85: -5
A86: 2.556 | B86: -1 | C86: -1 | D86: -1 | E86: -1 | F86: -1 | G86: 2.556 | H86: -1 | J86: 15 | K86: 40 | L86: 40 | M86: 40 | N86: 40 | O86: 30 | P86: 5 | Q86: 5 | S86: 38.34 | T86: -40 | U86: -40 | V86: -40 | W86: -40 | X86: -30 | Y86: 12.78 | Z86: -5
A87: 2.556 | B87: -1 | C87: -1 | D87: -1 | E87: -1 | F87: -1 | G87: 2.556 | H87: -1 | J87: 15 | K87: 40 | L87: 25 | M87: 25 | N87: 25 | O87: 15 | P87: 5 | Q87: 5 | S87: 38.34 | T87: -40 | U87: -25 | V87: -25 | W87: -25 | X87: -15 | Y87: 12.78 | Z87: -5
A88: -1 | B88: 2.556 | C88: -1 | D88: -1 | E88: -1 | F88: 2.556 | G88: -1 | H88: -1 | J88: 15 | K88: 40 | L88: 15 | M88: 5 | N88: 5 | O88: 5 | P88: 5 | Q88: 5 | S88: -15 | T88: 102.24 | U88: -15 | V88: -5 | W88: -5 | X88: 12.78 | Y88: -5 | Z88: -5
A89: -1 | B89: -1 | C89: 2.556 | D89: 2.556 | E89: 2.556 | F89: -1 | G89: -1 | H89: -1 | J89: 15 | K89: 40 | L89: 15 | M89: 5 | N89: 5 | O89: 5 | P89: 5 | Q89: 5 | S89: -15 | T89: -40 | U89: 38.34 | V89: 12.78 | W89: 12.78 | X89: -5 | Y89: -5 | Z89: -5
A92: =SUM(A82:H89) -> 0.008 | B92: =COUNTIF(A82:H89, "> 0") -> 18 | C92: =(64-B92)/B92 -> 2.555555556

Sheet charN
A1: x [ i ][ j ] テンプレート "N" | J1: y [ i ][ j ] 対象画像 "Y" | S1: 各要素同士を乗算 | AB1: 全要素を加算
A2: 2.368 | B2: -1 | C2: -1 | D2: -1 | E2: -1 | F2: -1 | G2: 2.368 | H2: -1 | J2: 40 | K2: 15 | L2: 5 | M2: 5 | N2: 5 | O2: 15 | P2: 40 | Q2: 5 | S2: =A2*J2 -> 94.72 | T2: =B2*K2 -> -15 | U2: -5 | V2: -5 | W2: -5 | X2: -15 | Y2: 94.72 | Z2: -5 | AB2: 相互相関値
A3: 2.368 | B3: 2.368 | C3: -1 | D3: -1 | E3: -1 | F3: -1 | G3: 2.368 | H3: -1 | J3: 15 | K3: 40 | L3: 15 | M3: 5 | N3: 15 | O3: 40 | P3: 15 | Q3: 5 | S3: =A3*J3 -> 35.52 | T3: 94.72 | U3: -15 | V3: -5 | W3: -15 | X3: -40 | Y3: 35.52 | Z3: -5 | AB3: "Y"
A4: 2.368 | B4: -1 | C4: 2.368 | D4: -1 | E4: -1 | F4: -1 | G4: 2.368 | H4: -1 | J4: 5 | K4: 15 | L4: 40 | M4: 20 | N4: 40 | O4: 15 | P4: 5 | Q4: 5 | S4: 11.84 | T4: -15 | U4: 94.72 | V4: -20 | W4: -40 | X4: -15 | Y4: 11.84 | Z4: -5 | AB4: =SUM(S2:Z9) -> 110.4
A5: 2.368 | B5: -1 | C5: -1 | D5: 2.368 | E5: -1 | F5: -1 | G5: 2.368 | H5: -1 | J5: 5 | K5: 5 | L5: 15 | M5: 40 | N5: 15 | O5: 5 | P5: 5 | Q5: 5 | S5: 11.84 | T5: -5 | U5: -15 | V5: 94.72 | W5: -15 | X5: -5 | Y5: 11.84 | Z5: -5
A6: 2.368 | B6: -1 | C6: -1 | D6: -1 | E6: 2.368 | F6: -1 | G6: 2.368 | H6: -1 | J6: 5 | K6: 5 | L6: 15 | M6: 40 | N6: 15 | O6: 5 | P6: 5 | Q6: 5 | S6: 11.84 | T6: -5 | U6: -15 | V6: -40 | W6: 35.52 | X6: -5 | Y6: 11.84 | Z6: -5
A7: 2.368 | B7: -1 | C7: -1 | D7: -1 | E7: -1 | F7: 2.368 | G7: 2.368 | H7: -1 | J7: 5 | K7: 5 | L7: 15 | M7: 40 | N7: 15 | O7: 5 | P7: 5 | Q7: 5 | S7: 11.84 | T7: -5 | U7: -15 | V7: -40 | W7: -15 | X7: 11.84 | Y7: 11.84 | Z7: -5
A8: 2.368 | B8: -1 | C8: -1 | D8: -1 | E8: -1 | F8: -1 | G8: 2.368 | H8: -1 | J8: 5 | K8: 5 | L8: 15 | M8: 40 | N8: 15 | O8: 5 | P8: 5 | Q8: 5 | S8: 11.84 | T8: -5 | U8: -15 | V8: -40 | W8: -15 | X8: -5 | Y8: 11.84 | Z8: -5
A9: -1 | B9: -1 | C9: -1 | D9: -1 | E9: -1 | F9: -1 | G9: -1 | H9: -1 | J9: 5 | K9: 5 | L9: 15 | M9: 40 | N9: 15 | O9: 5 | P9: 5 | Q9: 5 | S9: -5 | T9: -5 | U9: -15 | V9: -40 | W9: -15 | X9: -5 | Y9: -5 | Z9: -5
A11: x [ i ][ j ] テンプレート "N" | J11: y [ i ][ j ] 対象画像 "Z" | S11: 各要素同士を乗算 | AB11: 全要素を加算
A12: 2.368 | B12: -1 | C12: -1 | D12: -1 | E12: -1 | F12: -1 | G12: 2.368 | H12: -1 | J12: 40 | K12: 40 | L12: 40 | M12: 40 | N12: 40 | O12: 40 | P12: 40 | Q12: 5 | S12: =A12*J12 -> 94.72 | T12: =B12*K12 -> -40 | U12: -40 | V12: -40 | W12: -40 | X12: -40 | Y12: 94.72 | Z12: -5 | AB12: 相互相関値
A13: 2.368 | B13: 2.368 | C13: -1 | D13: -1 | E13: -1 | F13: -1 | G13: 2.368 | H13: -1 | J13: 15 | K13: 15 | L13: 15 | M13: 20 | N13: 20 | O13: 40 | P13: 20 | Q13: 5 | S13: =A13*J13 -> 35.52 | T13: 35.52 | U13: -15 | V13: -20 | W13: -20 | X13: -40 | Y13: 47.36 | Z13: -5 | AB13: "Z"
A14: 2.368 | B14: -1 | C14: 2.368 | D14: -1 | E14: -1 | F14: -1 | G14: 2.368 | H14: -1 | J14: 5 | K14: 5 | L14: 5 | M14: 20 | N14: 40 | O14: 20 | P14: 5 | Q14: 5 | S14: 11.84 | T14: -5 | U14: 11.84 | V14: -20 | W14: -40 | X14: -20 | Y14: 11.84 | Z14: -5 | AB14: =SUM(S12:Z19) -> -116.2
A15: 2.368 | B15: -1 | C15: -1 | D15: 2.368 | E15: -1 | F15: -1 | G15: 2.368 | H15: -1 | J15: 5 | K15: 5 | L15: 15 | M15: 40 | N15: 20 | O15: 5 | P15: 5 | Q15: 5 | S15: 11.84 | T15: -5 | U15: -15 | V15: 94.72 | W15: -20 | X15: -5 | Y15: 11.84 | Z15: -5
A16: 2.368 | B16: -1 | C16: -1 | D16: -1 | E16: 2.368 | F16: -1 | G16: 2.368 | H16: -1 | J16: 5 | K16: 15 | L16: 40 | M16: 20 | N16: 10 | O16: 5 | P16: 5 | Q16: 5 | S16: 11.84 | T16: -15 | U16: -40 | V16: -20 | W16: 23.68 | X16: -5 | Y16: 11.84 | Z16: -5
A17: 2.368 | B17: -1 | C17: -1 | D17: -1 | E17: -1 | F17: 2.368 | G17: 2.368 | H17: -1 | J17: 15 | K17: 40 | L17: 15 | M17: 20 | N17: 20 | O17: 20 | P17: 20 | Q17: 5 | S17: 35.52 | T17: -40 | U17: -15 | V17: -20 | W17: -20 | X17: 47.36 | Y17: 47.36 | Z17: -5
A18: 2.368 | B18: -1 | C18: -1 | D18: -1 | E18: -1 | F18: -1 | G18: 2.368 | H18: -1 | J18: 40 | K18: 40 | L18: 40 | M18: 40 | N18: 40 | O18: 40 | P18: 40 | Q18: 5 | S18: 94.72 | T18: -40 | U18: -40 | V18: -40 | W18: -40 | X18: -40 | Y18: 94.72 | Z18: -5
A19: -1 | B19: -1 | C19: -1 | D19: -1 | E19: -1 | F19: -1 | G19: -1 | H19: -1 | J19: 15 | K19: 15 | L19: 15 | M19: 15 | N19: 15 | O19: 15 | P19: 15 | Q19: 5 | S19: -15 | T19: -15 | U19: -15 | V19: -15 | W19: -15 | X19: -15 | Y19: -15 | Z19: -5
A21: x [ i ][ j ] テンプレート "N" | J21: y [ i ][ j ] 対象画像 "R" | S21: 各要素同士を乗算 | AB21: 全要素を加算
A22: 2.368 | B22: -1 | C22: -1 | D22: -1 | E22: -1 | F22: -1 | G22: 2.368 | H22: -1 | J22: 15 | K22: 40 | L22: 40 | M22: 40 | N22: 40 | O22: 40 | P22: 20 | Q22: 5 | S22: =A22*J22 -> 35.52 | T22: =B22*K22 -> -40 | U22: -40 | V22: -40 | W22: -40 | X22: -40 | Y22: 47.36 | Z22: -5 | AB22: 相互相関値
A23: 2.368 | B23: 2.368 | C23: -1 | D23: -1 | E23: -1 | F23: -1 | G23: 2.368 | H23: -1 | J23: 15 | K23: 40 | L23: 20 | M23: 20 | N23: 20 | O23: 20 | P23: 40 | Q23: 15 | S23: =A23*J23 -> 35.52 | T23: 94.72 | U23: -20 | V23: -20 | W23: -20 | X23: -20 | Y23: 94.72 | Z23: -15 | AB23: "R"
A24: 2.368 | B24: -1 | C24: 2.368 | D24: -1 | E24: -1 | F24: -1 | G24: 2.368 | H24: -1 | J24: 15 | K24: 40 | L24: 20 | M24: 5 | N24: 20 | O24: 20 | P24: 40 | Q24: 15 | S24: 35.52 | T24: -40 | U24: 47.36 | V24: -5 | W24: -20 | X24: -20 | Y24: 94.72 | Z24: -15 | AB24: =SUM(S22:Z29) -> 26.92
A25: 2.368 | B25: -1 | C25: -1 | D25: 2.368 | E25: -1 | F25: -1 | G25: 2.368 | H25: -1 | J25: 15 | K25: 40 | L25: 20 | M25: 20 | N25: 20 | O25: 40 | P25: 15 | Q25: 5 | S25: 35.52 | T25: -40 | U25: -20 | V25: 47.36 | W25: -20 | X25: -40 | Y25: 35.52 | Z25: -5
A26: 2.368 | B26: -1 | C26: -1 | D26: -1 | E26: 2.368 | F26: -1 | G26: 2.368 | H26: -1 | J26: 15 | K26: 40 | L26: 40 | M26: 40 | N26: 40 | O26: 20 | P26: 5 | Q26: 5 | S26: 35.52 | T26: -40 | U26: -40 | V26: -40 | W26: 94.72 | X26: -20 | Y26: 11.84 | Z26: -5
A27: 2.368 | B27: -1 | C27: -1 | D27: -1 | E27: -1 | F27: 2.368 | G27: 2.368 | H27: -1 | J27: 15 | K27: 40 | L27: 15 | M27: 15 | N27: 40 | O27: 40 | P27: 15 | Q27: 5 | S27: 35.52 | T27: -40 | U27: -15 | V27: -15 | W27: -40 | X27: 94.72 | Y27: 35.52 | Z27: -5
A28: 2.368 | B28: -1 | C28: -1 | D28: -1 | E28: -1 | F28: -1 | G28: 2.368 | H28: -1 | J28: 15 | K28: 40 | L28: 10 | M28: 5 | N28: 10 | O28: 40 | P28: 40 | Q28: 5 | S28: 35.52 | T28: -40 | U28: -10 | V28: -5 | W28: -10 | X28: -40 | Y28: 94.72 | Z28: -5
A29: -1 | B29: -1 | C29: -1 | D29: -1 | E29: -1 | F29: -1 | G29: -1 | H29: -1 | J29: 15 | K29: 40 | L29: 5 | M29: 5 | N29: 5 | O29: 5 | P29: 40 | Q29: 5 | S29: -15 | T29: -40 | U29: -5 | V29: -5 | W29: -5 | X29: -5 | Y29: -40 | Z29: -5
A31: x [ i ][ j ] テンプレート "N" | J31: y [ i ][ j ] 対象画像 "J" | S31: 各要素同士を乗算 | AB31: 全要素を加算
A32: 2.368 | B32: -1 | C32: -1 | D32: -1 | E32: -1 | F32: -1 | G32: 2.368 | H32: -1 | J32: 5 | K32: 5 | L32: 5 | M32: 5 | N32: 5 | O32: 20 | P32: 40 | Q32: 15 | S32: =A32*J32 -> 11.84 | T32: =B32*K32 -> -5 | U32: -5 | V32: -5 | W32: -5 | X32: -20 | Y32: 94.72 | Z32: -15 | AB32: 相互相関値
A33: 2.368 | B33: 2.368 | C33: -1 | D33: -1 | E33: -1 | F33: -1 | G33: 2.368 | H33: -1 | J33: 5 | K33: 5 | L33: 5 | M33: 5 | N33: 5 | O33: 20 | P33: 40 | Q33: 15 | S33: =A33*J33 -> 11.84 | T33: 11.84 | U33: -5 | V33: -5 | W33: -5 | X33: -20 | Y33: 94.72 | Z33: -15 | AB33: "J"
A34: 2.368 | B34: -1 | C34: 2.368 | D34: -1 | E34: -1 | F34: -1 | G34: 2.368 | H34: -1 | J34: 5 | K34: 5 | L34: 5 | M34: 5 | N34: 5 | O34: 20 | P34: 40 | Q34: 15 | S34: 11.84 | T34: -5 | U34: 11.84 | V34: -5 | W34: -5 | X34: -20 | Y34: 94.72 | Z34: -15 | AB34: =SUM(S32:Z39) -> 152.76
A35: 2.368 | B35: -1 | C35: -1 | D35: 2.368 | E35: -1 | F35: -1 | G35: 2.368 | H35: -1 | J35: 5 | K35: 5 | L35: 5 | M35: 5 | N35: 5 | O35: 20 | P35: 40 | Q35: 15 | S35: 11.84 | T35: -5 | U35: -5 | V35: 11.84 | W35: -5 | X35: -20 | Y35: 94.72 | Z35: -15
A36: 2.368 | B36: -1 | C36: -1 | D36: -1 | E36: 2.368 | F36: -1 | G36: 2.368 | H36: -1 | J36: 5 | K36: 5 | L36: 5 | M36: 5 | N36: 5 | O36: 20 | P36: 40 | Q36: 15 | S36: 11.84 | T36: -5 | U36: -5 | V36: -5 | W36: 11.84 | X36: -20 | Y36: 94.72 | Z36: -15
A37: 2.368 | B37: -1 | C37: -1 | D37: -1 | E37: -1 | F37: 2.368 | G37: 2.368 | H37: -1 | J37: 5 | K37: 5 | L37: 5 | M37: 5 | N37: 20 | O37: 40 | P37: 20 | Q37: 15 | S37: 11.84 | T37: -5 | U37: -5 | V37: -5 | W37: -20 | X37: 94.72 | Y37: 47.36 | Z37: -15
A38: 2.368 | B38: -1 | C38: -1 | D38: -1 | E38: -1 | F38: -1 | G38: 2.368 | H38: -1 | J38: 5 | K38: 20 | L38: 20 | M38: 20 | N38: 40 | O38: 20 | P38: 5 | Q38: 5 | S38: 11.84 | T38: -20 | U38: -20 | V38: -20 | W38: -40 | X38: -20 | Y38: 11.84 | Z38: -5
A39: -1 | B39: -1 | C39: -1 | D39: -1 | E39: -1 | F39: -1 | G39: -1 | H39: -1 | J39: 20 | K39: 40 | L39: 40 | M39: 40 | N39: 20 | O39: 5 | P39: 5 | Q39: 5 | S39: -20 | T39: -40 | U39: -40 | V39: -40 | W39: -20 | X39: -5 | Y39: -5 | Z39: -5
A41: x [ i ][ j ] テンプレート "N" | J41: y [ i ][ j ] 対象画像 "N" | S41: 各要素同士を乗算 | AB41: 全要素を加算
A42: 2.368 | B42: -1 | C42: -1 | D42: -1 | E42: -1 | F42: -1 | G42: 2.368 | H42: -1 | J42: 40 | K42: 20 | L42: 5 | M42: 5 | N42: 5 | O42: 5 | P42: 40 | Q42: 15 | S42: =A42*J42 -> 94.72 | T42: =B42*K42 -> -20 | U42: -5 | V42: -5 | W42: -5 | X42: -5 | Y42: 94.72 | Z42: -15 | AB42: 相互相関値
A43: 2.368 | B43: 2.368 | C43: -1 | D43: -1 | E43: -1 | F43: -1 | G43: 2.368 | H43: -1 | J43: 40 | K43: 40 | L43: 15 | M43: 5 | N43: 5 | O43: 5 | P43: 40 | Q43: 15 | S43: =A43*J43 -> 94.72 | T43: 94.72 | U43: -15 | V43: -5 | W43: -5 | X43: -5 | Y43: 94.72 | Z43: -15 | AB43: "N"
A44: 2.368 | B44: -1 | C44: 2.368 | D44: -1 | E44: -1 | F44: -1 | G44: 2.368 | H44: -1 | J44: 40 | K44: 25 | L44: 40 | M44: 15 | N44: 5 | O44: 5 | P44: 40 | Q44: 15 | S44: 94.72 | T44: -25 | U44: 94.72 | V44: -15 | W44: -5 | X44: -5 | Y44: 94.72 | Z44: -15 | AB44: =SUM(S42:Z49) -> 1334.68 | AC44: MAX
A45: 2.368 | B45: -1 | C45: -1 | D45: 2.368 | E45: -1 | F45: -1 | G45: 2.368 | H45: -1 | J45: 40 | K45: 5 | L45: 15 | M45: 40 | N45: 15 | O45: 5 | P45: 40 | Q45: 15 | S45: 94.72 | T45: -5 | U45: -15 | V45: 94.72 | W45: -15 | X45: -5 | Y45: 94.72 | Z45: -15
A46: 2.368 | B46: -1 | C46: -1 | D46: -1 | E46: 2.368 | F46: -1 | G46: 2.368 | H46: -1 | J46: 40 | K46: 5 | L46: 5 | M46: 15 | N46: 40 | O46: 25 | P46: 40 | Q46: 15 | S46: 94.72 | T46: -5 | U46: -5 | V46: -15 | W46: 94.72 | X46: -25 | Y46: 94.72 | Z46: -15
A47: 2.368 | B47: -1 | C47: -1 | D47: -1 | E47: -1 | F47: 2.368 | G47: 2.368 | H47: -1 | J47: 40 | K47: 5 | L47: 5 | M47: 5 | N47: 15 | O47: 40 | P47: 40 | Q47: 15 | S47: 94.72 | T47: -5 | U47: -5 | V47: -5 | W47: -15 | X47: 94.72 | Y47: 94.72 | Z47: -15
A48: 2.368 | B48: -1 | C48: -1 | D48: -1 | E48: -1 | F48: -1 | G48: 2.368 | H48: -1 | J48: 40 | K48: 5 | L48: 5 | M48: 5 | N48: 5 | O48: 20 | P48: 40 | Q48: 15 | S48: 94.72 | T48: -5 | U48: -5 | V48: -5 | W48: -5 | X48: -20 | Y48: 94.72 | Z48: -15
A49: -1 | B49: -1 | C49: -1 | D49: -1 | E49: -1 | F49: -1 | G49: -1 | H49: -1 | J49: 20 | K49: 5 | L49: 5 | M49: 5 | N49: 5 | O49: 5 | P49: 20 | Q49: 15 | S49: -20 | T49: -5 | U49: -5 | V49: -5 | W49: -5 | X49: -5 | Y49: -20 | Z49: -15
A51: x [ i ][ j ] テンプレート "N" | J51: y [ i ][ j ] 対象画像 "O" | S51: 各要素同士を乗算 | AB51: 全要素を加算
A52: 2.368 | B52: -1 | C52: -1 | D52: -1 | E52: -1 | F52: -1 | G52: 2.368 | H52: -1 | J52: 5 | K52: 15 | L52: 40 | M52: 40 | N52: 40 | O52: 15 | P52: 5 | Q52: 5 | S52: =A52*J52 -> 11.84 | T52: =B52*K52 -> -15 | U52: -40 | V52: -40 | W52: -40 | X52: -15 | Y52: 11.84 | Z52: -5 | AB52: 相互相関値
A53: 2.368 | B53: 2.368 | C53: -1 | D53: -1 | E53: -1 | F53: -1 | G53: 2.368 | H53: -1 | J53: 15 | K53: 40 | L53: 20 | M53: 20 | N53: 20 | O53: 40 | P53: 15 | Q53: 5 | S53: =A53*J53 -> 35.52 | T53: 94.72 | U53: -20 | V53: -20 | W53: -20 | X53: -40 | Y53: 35.52 | Z53: -5 | AB53: "O"
A54: 2.368 | B54: -1 | C54: 2.368 | D54: -1 | E54: -1 | F54: -1 | G54: 2.368 | H54: -1 | J54: 40 | K54: 20 | L54: 5 | M54: 5 | N54: 5 | O54: 20 | P54: 40 | Q54: 15 | S54: 94.72 | T54: -20 | U54: 11.84 | V54: -5 | W54: -5 | X54: -20 | Y54: 94.72 | Z54: -15 | AB54: =SUM(S52:Z59) -> 286.12
A55: 2.368 | B55: -1 | C55: -1 | D55: 2.368 | E55: -1 | F55: -1 | G55: 2.368 | H55: -1 | J55: 40 | K55: 20 | L55: 5 | M55: 5 | N55: 5 | O55: 20 | P55: 40 | Q55: 15 | S55: 94.72 | T55: -20 | U55: -5 | V55: 11.84 | W55: -5 | X55: -20 | Y55: 94.72 | Z55: -15
A56: 2.368 | B56: -1 | C56: -1 | D56: -1 | E56: 2.368 | F56: -1 | G56: 2.368 | H56: -1 | J56: 40 | K56: 20 | L56: 5 | M56: 5 | N56: 5 | O56: 20 | P56: 40 | Q56: 15 | S56: 94.72 | T56: -20 | U56: -5 | V56: -5 | W56: 11.84 | X56: -20 | Y56: 94.72 | Z56: -15
A57: 2.368 | B57: -1 | C57: -1 | D57: -1 | E57: -1 | F57: 2.368 | G57: 2.368 | H57: -1 | J57: 40 | K57: 20 | L57: 5 | M57: 5 | N57: 5 | O57: 20 | P57: 40 | Q57: 15 | S57: 94.72 | T57: -20 | U57: -5 | V57: -5 | W57: -5 | X57: 47.36 | Y57: 94.72 | Z57: -15
A58: 2.368 | B58: -1 | C58: -1 | D58: -1 | E58: -1 | F58: -1 | G58: 2.368 | H58: -1 | J58: 15 | K58: 40 | L58: 20 | M58: 20 | N58: 20 | O58: 40 | P58: 15 | Q58: 5 | S58: 35.52 | T58: -40 | U58: -20 | V58: -20 | W58: -20 | X58: -40 | Y58: 35.52 | Z58: -5
A59: -1 | B59: -1 | C59: -1 | D59: -1 | E59: -1 | F59: -1 | G59: -1 | H59: -1 | J59: 5 | K59: 15 | L59: 40 | M59: 40 | N59: 40 | O59: 15 | P59: 5 | Q59: 5 | S59: -5 | T59: -15 | U59: -40 | V59: -40 | W59: -40 | X59: -15 | Y59: -5 | Z59: -5
A61: x [ i ][ j ] テンプレート "N" | J61: y [ i ][ j ] 対象画像 "X" | S61: 各要素同士を乗算 | AB61: 全要素を加算
A62: 2.368 | B62: -1 | C62: -1 | D62: -1 | E62: -1 | F62: -1 | G62: 2.368 | H62: -1 | J62: 40 | K62: 15 | L62: 5 | M62: 5 | N62: 5 | O62: 5 | P62: 15 | Q62: 40 | S62: =A62*J62 -> 94.72 | T62: =B62*K62 -> -15 | U62: -5 | V62: -5 | W62: -5 | X62: -5 | Y62: 35.52 | Z62: -40 | AB62: 相互相関値
A63: 2.368 | B63: 2.368 | C63: -1 | D63: -1 | E63: -1 | F63: -1 | G63: 2.368 | H63: -1 | J63: 15 | K63: 40 | L63: 15 | M63: 5 | N63: 5 | O63: 15 | P63: 40 | Q63: 15 | S63: =A63*J63 -> 35.52 | T63: 94.72 | U63: -15 | V63: -5 | W63: -5 | X63: -15 | Y63: 94.72 | Z63: -15 | AB63: "X"
A64: 2.368 | B64: -1 | C64: 2.368 | D64: -1 | E64: -1 | F64: -1 | G64: 2.368 | H64: -1 | J64: 5 | K64: 15 | L64: 40 | M64: 15 | N64: 15 | O64: 40 | P64: 15 | Q64: 5 | S64: 11.84 | T64: -15 | U64: 94.72 | V64: -15 | W64: -15 | X64: -40 | Y64: 35.52 | Z64: -5 | AB64: =SUM(S62:Z69) -> 311.4
A65: 2.368 | B65: -1 | C65: -1 | D65: 2.368 | E65: -1 | F65: -1 | G65: 2.368 | H65: -1 | J65: 5 | K65: 5 | L65: 15 | M65: 40 | N65: 40 | O65: 15 | P65: 5 | Q65: 5 | S65: 11.84 | T65: -5 | U65: -15 | V65: 94.72 | W65: -40 | X65: -15 | Y65: 11.84 | Z65: -5
A66: 2.368 | B66: -1 | C66: -1 | D66: -1 | E66: 2.368 | F66: -1 | G66: 2.368 | H66: -1 | J66: 5 | K66: 5 | L66: 15 | M66: 40 | N66: 40 | O66: 15 | P66: 5 | Q66: 5 | S66: 11.84 | T66: -5 | U66: -15 | V66: -40 | W66: 94.72 | X66: -15 | Y66: 11.84 | Z66: -5
A67: 2.368 | B67: -1 | C67: -1 | D67: -1 | E67: -1 | F67: 2.368 | G67: 2.368 | H67: -1 | J67: 5 | K67: 15 | L67: 40 | M67: 15 | N67: 15 | O67: 40 | P67: 15 | Q67: 5 | S67: 11.84 | T67: -15 | U67: -40 | V67: -15 | W67: -15 | X67: 94.72 | Y67: 35.52 | Z67: -5
A68: 2.368 | B68: -1 | C68: -1 | D68: -1 | E68: -1 | F68: -1 | G68: 2.368 | H68: -1 | J68: 15 | K68: 40 | L68: 15 | M68: 5 | N68: 5 | O68: 15 | P68: 40 | Q68: 15 | S68: 35.52 | T68: -40 | U68: -15 | V68: -5 | W68: -5 | X68: -15 | Y68: 94.72 | Z68: -15
A69: -1 | B69: -1 | C69: -1 | D69: -1 | E69: -1 | F69: -1 | G69: -1 | H69: -1 | J69: 40 | K69: 15 | L69: 5 | M69: 5 | N69: 5 | O69: 5 | P69: 15 | Q69: 40 | S69: -40 | T69: -15 | U69: -5 | V69: -5 | W69: -5 | X69: -5 | Y69: -15 | Z69: -40
A71: x [ i ][ j ] テンプレート "N" | J71: y [ i ][ j ] 対象画像 "L" | S71: 各要素同士を乗算 | AB71: 全要素を加算
A72: 2.368 | B72: -1 | C72: -1 | D72: -1 | E72: -1 | F72: -1 | G72: 2.368 | H72: -1 | J72: 15 | K72: 40 | L72: 20 | M72: 10 | N72: 5 | O72: 5 | P72: 5 | Q72: 5 | S72: =A72*J72 -> 35.52 | T72: =B72*K72 -> -40 | U72: -20 | V72: -10 | W72: -5 | X72: -5 | Y72: 11.84 | Z72: -5 | AB72: 相互相関値
A73: 2.368 | B73: 2.368 | C73: -1 | D73: -1 | E73: -1 | F73: -1 | G73: 2.368 | H73: -1 | J73: 15 | K73: 40 | L73: 20 | M73: 10 | N73: 5 | O73: 5 | P73: 5 | Q73: 5 | S73: =A73*J73 -> 35.52 | T73: 94.72 | U73: -20 | V73: -10 | W73: -5 | X73: -5 | Y73: 11.84 | Z73: -5 | AB73: "L"
A74: 2.368 | B74: -1 | C74: 2.368 | D74: -1 | E74: -1 | F74: -1 | G74: 2.368 | H74: -1 | J74: 15 | K74: 40 | L74: 20 | M74: 10 | N74: 5 | O74: 5 | P74: 5 | Q74: 5 | S74: 35.52 | T74: -40 | U74: 47.36 | V74: -10 | W74: -5 | X74: -5 | Y74: 11.84 | Z74: -5 | AB74: =SUM(S72:Z79) -> -269.84
A75: 2.368 | B75: -1 | C75: -1 | D75: 2.368 | E75: -1 | F75: -1 | G75: 2.368 | H75: -1 | J75: 15 | K75: 40 | L75: 20 | M75: 10 | N75: 5 | O75: 5 | P75: 5 | Q75: 5 | S75: 35.52 | T75: -40 | U75: -20 | V75: 23.68 | W75: -5 | X75: -5 | Y75: 11.84 | Z75: -5
A76: 2.368 | B76: -1 | C76: -1 | D76: -1 | E76: 2.368 | F76: -1 | G76: 2.368 | H76: -1 | J76: 15 | K76: 40 | L76: 20 | M76: 10 | N76: 5 | O76: 5 | P76: 5 | Q76: 5 | S76: 35.52 | T76: -40 | U76: -20 | V76: -10 | W76: 11.84 | X76: -5 | Y76: 11.84 | Z76: -5
A77: 2.368 | B77: -1 | C77: -1 | D77: -1 | E77: -1 | F77: 2.368 | G77: 2.368 | H77: -1 | J77: 15 | K77: 40 | L77: 20 | M77: 10 | N77: 10 | O77: 10 | P77: 10 | Q77: 5 | S77: 35.52 | T77: -40 | U77: -20 | V77: -10 | W77: -10 | X77: 23.68 | Y77: 23.68 | Z77: -5
A78: 2.368 | B78: -1 | C78: -1 | D78: -1 | E78: -1 | F78: -1 | G78: 2.368 | H78: -1 | J78: 15 | K78: 40 | L78: 30 | M78: 20 | N78: 20 | O78: 20 | P78: 20 | Q78: 10 | S78: 35.52 | T78: -40 | U78: -30 | V78: -20 | W78: -20 | X78: -20 | Y78: 47.36 | Z78: -10
A79: -1 | B79: -1 | C79: -1 | D79: -1 | E79: -1 | F79: -1 | G79: -1 | H79: -1 | J79: 15 | K79: 40 | L79: 40 | M79: 40 | N79: 40 | O79: 40 | P79: 40 | Q79: 20 | S79: -15 | T79: -40 | U79: -40 | V79: -40 | W79: -40 | X79: -40 | Y79: -40 | Z79: -20
A81: x [ i ][ j ] テンプレート "N" | J81: y [ i ][ j ] 対象画像 "F" | S81: 各要素同士を乗算 | AB81: 全要素を加算
A82: 2.368 | B82: -1 | C82: -1 | D82: -1 | E82: -1 | F82: -1 | G82: 2.368 | H82: -1 | J82: 15 | K82: 40 | L82: 40 | M82: 40 | N82: 40 | O82: 40 | P82: 30 | Q82: 5 | S82: =A82*J82 -> 35.52 | T82: =B82*K82 -> -40 | U82: -40 | V82: -40 | W82: -40 | X82: -40 | Y82: 71.04 | Z82: -5 | AB82: 相互相関値
A83: 2.368 | B83: 2.368 | C83: -1 | D83: -1 | E83: -1 | F83: -1 | G83: 2.368 | H83: -1 | J83: 15 | K83: 40 | L83: 20 | M83: 20 | N83: 20 | O83: 20 | P83: 15 | Q83: 5 | S83: =A83*J83 -> 35.52 | T83: 94.72 | U83: -20 | V83: -20 | W83: -20 | X83: -20 | Y83: 35.52 | Z83: -5 | AB83: "F"
A84: 2.368 | B84: -1 | C84: 2.368 | D84: -1 | E84: -1 | F84: -1 | G84: 2.368 | H84: -1 | J84: 15 | K84: 40 | L84: 15 | M84: 5 | N84: 5 | O84: 5 | P84: 5 | Q84: 5 | S84: 35.52 | T84: -40 | U84: 35.52 | V84: -5 | W84: -5 | X84: -5 | Y84: 11.84 | Z84: -5 | AB84: =SUM(S82:Z89) -> -170.92
A85: 2.368 | B85: -1 | C85: -1 | D85: 2.368 | E85: -1 | F85: -1 | G85: 2.368 | H85: -1 | J85: 15 | K85: 40 | L85: 25 | M85: 25 | N85: 25 | O85: 15 | P85: 5 | Q85: 5 | S85: 35.52 | T85: -40 | U85: -25 | V85: 59.2 | W85: -25 | X85: -15 | Y85: 11.84 | Z85: -5
A86: 2.368 | B86: -1 | C86: -1 | D86: -1 | E86: 2.368 | F86: -1 | G86: 2.368 | H86: -1 | J86: 15 | K86: 40 | L86: 40 | M86: 40 | N86: 40 | O86: 30 | P86: 5 | Q86: 5 | S86: 35.52 | T86: -40 | U86: -40 | V86: -40 | W86: 94.72 | X86: -30 | Y86: 11.84 | Z86: -5
A87: 2.368 | B87: -1 | C87: -1 | D87: -1 | E87: -1 | F87: 2.368 | G87: 2.368 | H87: -1 | J87: 15 | K87: 40 | L87: 25 | M87: 25 | N87: 25 | O87: 15 | P87: 5 | Q87: 5 | S87: 35.52 | T87: -40 | U87: -25 | V87: -25 | W87: -25 | X87: 35.52 | Y87: 11.84 | Z87: -5
A88: 2.368 | B88: -1 | C88: -1 | D88: -1 | E88: -1 | F88: -1 | G88: 2.368 | H88: -1 | J88: 15 | K88: 40 | L88: 15 | M88: 5 | N88: 5 | O88: 5 | P88: 5 | Q88: 5 | S88: 35.52 | T88: -40 | U88: -15 | V88: -5 | W88: -5 | X88: -5 | Y88: 11.84 | Z88: -5
A89: -1 | B89: -1 | C89: -1 | D89: -1 | E89: -1 | F89: -1 | G89: -1 | H89: -1 | J89: 15 | K89: 40 | L89: 15 | M89: 5 | N89: 5 | O89: 5 | P89: 5 | Q89: 5 | S89: -15 | T89: -40 | U89: -15 | V89: -5 | W89: -5 | X89: -5 | Y89: -5 | Z89: -5
A92: =SUM(A82:H89) -> -0.008 | B92: =COUNTIF(A82:H89, "> 0") -> 19 | C92: =(64-B92)/B92 -> 2.368421053

Sheet char10
A1: 5 | B1: 5 | C1: 5 | D1: 5 | E1: 5 | F1: 5 | G1: 5 | H1: 5 | I1: 5 | J1: 5 | K1: 5 | L1: 5 | M1: 5 | N1: 5 | O1: 5 | P1: 5 | Q1: 5 | R1: 5 | S1: 5 | T1: 5 | U1: 5 | V1: 5 | W1: 5 | X1: 5 | Y1: 5 | Z1: 5 | AA1: 5 | AB1: 5 | AC1: 5 | AD1: 5 | AE1: 5 | AF1: 5 | AG1: 5 | AH1: 5 | AI1: 5 | AJ1: 5 | AK1: 5 | AL1: 5 | AM1: 5 | AN1: 5 | AO1: 5 | AP1: 5 | AQ1: 5 | AR1: 5 | AS1: 5 | AT1: 5 | AU1: 5 | AV1: 5
A2: 5 | B2: 5 | C2: 5 | D2: 5 | E2: 5 | F2: 5 | G2: 5 | H2: 5 | I2: 5 | J2: 5 | K2: 5 | L2: 5 | M2: 5 | N2: 5 | O2: 5 | P2: 5 | Q2: 5 | R2: 5 | S2: 5 | T2: 5 | U2: 5 | V2: 5 | W2: 5 | X2: 5 | Y2: 5 | Z2: 5 | AA2: 5 | AB2: 5 | AC2: 5 | AD2: 5 | AE2: 5 | AF2: 5 | AG2: 5 | AH2: 5 | AI2: 5 | AJ2: 5 | AK2: 5 | AL2: 5 | AM2: 5 | AN2: 5 | AO2: 5 | AP2: 5 | AQ2: 5 | AR2: 5 | AS2: 5 | AT2: 5 | AU2: 5 | AV2: 5
A3: 5 | B3: 5 | C3: 5 | D3: 5 | E3: 5 | F3: 5 | G3: 5 | H3: 5 | I3: 5 | J3: 5 | K3: 5 | L3: 5 | M3: 5 | N3: 5 | O3: 5 | P3: 5 | Q3: 5 | R3: 5 | S3: 5 | T3: 15 | U3: 40 | V3: 40 | W3: 40 | X3: 15 | Y3: 5 | Z3: 5 | AA3: 5 | AB3: 5 | AC3: 5 | AD3: 5 | AE3: 5 | AF3: 5 | AG3: 5 | AH3: 5 | AI3: 5 | AJ3: 5 | AK3: 5 | AL3: 5 | AM3: 5 | AN3: 5 | AO3: 5 | AP3: 5 | AQ3: 5 | AR3: 5 | AS3: 5 | AT3: 5 | AU3: 5 | AV3: 5
A4: 5 | B4: 5 | C4: 5 | D4: 5 | E4: 5 | F4: 5 | G4: 5 | H4: 5 | I4: 5 | J4: 5 | K4: 5 | L4: 5 | M4: 5 | N4: 5 | O4: 5 | P4: 5 | Q4: 5 | R4: 5 | S4: 15 | T4: 40 | U4: 20 | V4: 20 | W4: 20 | X4: 40 | Y4: 15 | Z4: 5 | AA4: 5 | AB4: 5 | AC4: 5 | AD4: 5 | AE4: 5 | AF4: 5 | AG4: 5 | AH4: 5 | AI4: 5 | AJ4: 5 | AK4: 5 | AL4: 5 | AM4: 5 | AN4: 5 | AO4: 5 | AP4: 5 | AQ4: 5 | AR4: 5 | AS4: 5 | AT4: 5 | AU4: 5 | AV4: 5
A5: 5 | B5: 5 | C5: 5 | D5: 5 | E5: 5 | F5: 5 | G5: 5 | H5: 5 | I5: 5 | J5: 5 | K5: 5 | L5: 5 | M5: 5 | N5: 5 | O5: 5 | P5: 5 | Q5: 5 | R5: 5 | S5: 40 | T5: 20 | U5: 5 | V5: 5 | W5: 5 | X5: 20 | Y5: 40 | Z5: 15 | AA5: 5 | AB5: 5 | AC5: 5 | AD5: 5 | AE5: 5 | AF5: 5 | AG5: 5 | AH5: 5 | AI5: 5 | AJ5: 5 | AK5: 5 | AL5: 5 | AM5: 5 | AN5: 5 | AO5: 5 | AP5: 5 | AQ5: 5 | AR5: 5 | AS5: 5 | AT5: 5 | AU5: 5 | AV5: 5
A6: 5 | B6: 5 | C6: 5 | D6: 15 | E6: 40 | F6: 40 | G6: 40 | H6: 40 | I6: 40 | J6: 30 | K6: 5 | L6: 5 | M6: 5 | N6: 5 | O6: 5 | P6: 5 | Q6: 5 | R6: 5 | S6: 40 | T6: 20 | U6: 5 | V6: 5 | W6: 5 | X6: 20 | Y6: 40 | Z6: 15 | AA6: 5 | AB6: 5 | AC6: 5 | AD6: 5 | AE6: 5 | AF6: 5 | AG6: 30 | AH6: 40 | AI6: 30 | AJ6: 5 | AK6: 5 | AL6: 5 | AM6: 5 | AN6: 5 | AO6: 5 | AP6: 5 | AQ6: 5 | AR6: 5 | AS6: 5 | AT6: 5 | AU6: 5 | AV6: 5
A7: 5 | B7: 5 | C7: 5 | D7: 15 | E7: 40 | F7: 20 | G7: 20 | H7: 20 | I7: 20 | J7: 15 | K7: 5 | L7: 5 | M7: 5 | N7: 5 | O7: 5 | P7: 5 | Q7: 5 | R7: 5 | S7: 40 | T7: 20 | U7: 5 | V7: 5 | W7: 5 | X7: 20 | Y7: 40 | Z7: 15 | AA7: 5 | AB7: 5 | AC7: 5 | AD7: 5 | AE7: 5 | AF7: 5 | AG7: 15 | AH7: 40 | AI7: 15 | AJ7: 5 | AK7: 5 | AL7: 5 | AM7: 5 | AN7: 5 | AO7: 5 | AP7: 5 | AQ7: 5 | AR7: 5 | AS7: 5 | AT7: 5 | AU7: 5 | AV7: 5
A8: 5 | B8: 5 | C8: 5 | D8: 15 | E8: 40 | F8: 15 | G8: 5 | H8: 5 | I8: 5 | J8: 5 | K8: 5 | L8: 5 | M8: 5 | N8: 5 | O8: 5 | P8: 5 | Q8: 5 | R8: 5 | S8: 40 | T8: 20 | U8: 5 | V8: 5 | W8: 5 | X8: 20 | Y8: 40 | Z8: 15 | AA8: 5 | AB8: 5 | AC8: 5 | AD8: 5 | AE8: 5 | AF8: 5 | AG8: 15 | AH8: 40 | AI8: 15 | AJ8: 5 | AK8: 5 | AL8: 5 | AM8: 5 | AN8: 5 | AO8: 5 | AP8: 5 | AQ8: 5 | AR8: 5 | AS8: 5 | AT8: 5 | AU8: 5 | AV8: 5
A9: 5 | B9: 5 | C9: 5 | D9: 15 | E9: 40 | F9: 25 | G9: 25 | H9: 25 | I9: 15 | J9: 5 | K9: 5 | L9: 5 | M9: 5 | N9: 5 | O9: 5 | P9: 5 | Q9: 5 | R9: 5 | S9: 15 | T9: 40 | U9: 20 | V9: 20 | W9: 20 | X9: 40 | Y9: 15 | Z9: 5 | AA9: 5 | AB9: 5 | AC9: 5 | AD9: 5 | AE9: 5 | AF9: 5 | AG9: 15 | AH9: 40 | AI9: 15 | AJ9: 5 | AK9: 5 | AL9: 5 | AM9: 5 | AN9: 5 | AO9: 5 | AP9: 5 | AQ9: 5 | AR9: 5 | AS9: 5 | AT9: 5 | AU9: 5 | AV9: 5
A10: 5 | B10: 5 | C10: 5 | D10: 15 | E10: 40 | F10: 40 | G10: 40 | H10: 40 | I10: 30 | J10: 5 | K10: 5 | L10: 5 | M10: 5 | N10: 5 | O10: 5 | P10: 5 | Q10: 5 | R10: 5 | S10: 5 | T10: 15 | U10: 40 | V10: 40 | W10: 40 | X10: 15 | Y10: 5 | Z10: 5 | AA10: 5 | AB10: 5 | AC10: 5 | AD10: 5 | AE10: 5 | AF10: 5 | AG10: 15 | AH10: 40 | AI10: 15 | AJ10: 5 | AK10: 5 | AL10: 5 | AM10: 5 | AN10: 5 | AO10: 5 | AP10: 5 | AQ10: 5 | AR10: 5 | AS10: 5 | AT10: 5 | AU10: 5 | AV10: 5
A11: 5 | B11: 5 | C11: 5 | D11: 15 | E11: 40 | F11: 25 | G11: 25 | H11: 25 | I11: 15 | J11: 5 | K11: 5 | L11: 5 | M11: 5 | N11: 5 | O11: 5 | P11: 5 | Q11: 5 | R11: 5 | S11: 5 | T11: 5 | U11: 5 | V11: 5 | W11: 5 | X11: 5 | Y11: 5 | Z11: 5 | AA11: 5 | AB11: 5 | AC11: 5 | AD11: 5 | AE11: 5 | AF11: 5 | AG11: 15 | AH11: 40 | AI11: 15 | AJ11: 5 | AK11: 5 | AL11: 5 | AM11: 5 | AN11: 5 | AO11: 5 | AP11: 5 | AQ11: 5 | AR11: 5 | AS11: 5 | AT11: 5 | AU11: 5 | AV11: 5
A12: 5 | B12: 5 | C12: 5 | D12: 15 | E12: 40 | F12: 15 | G12: 5 | H12: 5 | I12: 5 | J12: 5 | K12: 5 | L12: 5 | M12: 5 | N12: 5 | O12: 5 | P12: 5 | Q12: 5 | R12: 5 | S12: 5 | T12: 5 | U12: 5 | V12: 5 | W12: 5 | X12: 5 | Y12: 5 | Z12: 5 | AA12: 5 | AB12: 5 | AC12: 5 | AD12: 5 | AE12: 5 | AF12: 5 | AG12: 15 | AH12: 40 | AI12: 15 | AJ12: 5 | AK12: 5 | AL12: 5 | AM12: 5 | AN12: 5 | AO12: 5 | AP12: 5 | AQ12: 5 | AR12: 5 | AS12: 20 | AT12: 40 | AU12: 15 | AV12: 5
A13: 5 | B13: 5 | C13: 5 | D13: 15 | E13: 40 | F13: 15 | G13: 5 | H13: 5 | I13: 5 | J13: 5 | K13: 5 | L13: 5 | M13: 5 | N13: 5 | O13: 5 | P13: 5 | Q13: 5 | R13: 5 | S13: 5 | T13: 5 | U13: 5 | V13: 5 | W13: 5 | X13: 5 | Y13: 5 | Z13: 5 | AA13: 5 | AB13: 5 | AC13: 5 | AD13: 5 | AE13: 5 | AF13: 5 | AG13: 30 | AH13: 40 | AI13: 30 | AJ13: 5 | AK13: 5 | AL13: 5 | AM13: 5 | AN13: 5 | AO13: 5 | AP13: 5 | AQ13: 5 | AR13: 5 | AS13: 20 | AT13: 40 | AU13: 15 | AV13: 5
A14: 5 | B14: 5 | C14: 5 | D14: 5 | E14: 5 | F14: 5 | G14: 5 | H14: 5 | I14: 5 | J14: 5 | K14: 5 | L14: 5 | M14: 5 | N14: 5 | O14: 5 | P14: 5 | Q14: 5 | R14: 5 | S14: 5 | T14: 5 | U14: 5 | V14: 5 | W14: 5 | X14: 5 | Y14: 5 | Z14: 5 | AA14: 5 | AB14: 5 | AC14: 5 | AD14: 5 | AE14: 5 | AF14: 5 | AG14: 5 | AH14: 5 | AI14: 5 | AJ14: 5 | AK14: 5 | AL14: 5 | AM14: 5 | AN14: 5 | AO14: 5 | AP14: 5 | AQ14: 5 | AR14: 5 | AS14: 20 | AT14: 40 | AU14: 15 | AV14: 5
A15: 5 | B15: 5 | C15: 5 | D15: 5 | E15: 5 | F15: 5 | G15: 5 | H15: 5 | I15: 5 | J15: 5 | K15: 5 | L15: 5 | M15: 5 | N15: 5 | O15: 5 | P15: 5 | Q15: 5 | R15: 5 | S15: 5 | T15: 5 | U15: 5 | V15: 5 | W15: 5 | X15: 5 | Y15: 5 | Z15: 5 | AA15: 5 | AB15: 5 | AC15: 5 | AD15: 5 | AE15: 5 | AF15: 5 | AG15: 5 | AH15: 5 | AI15: 5 | AJ15: 5 | AK15: 5 | AL15: 5 | AM15: 5 | AN15: 5 | AO15: 5 | AP15: 5 | AQ15: 5 | AR15: 5 | AS15: 20 | AT15: 40 | AU15: 15 | AV15: 5
A16: 5 | B16: 5 | C16: 5 | D16: 5 | E16: 5 | F16: 5 | G16: 5 | H16: 5 | I16: 5 | J16: 5 | K16: 5 | L16: 5 | M16: 5 | N16: 5 | O16: 5 | P16: 5 | Q16: 5 | R16: 5 | S16: 5 | T16: 5 | U16: 5 | V16: 5 | W16: 5 | X16: 5 | Y16: 5 | Z16: 5 | AA16: 5 | AB16: 5 | AC16: 5 | AD16: 5 | AE16: 5 | AF16: 5 | AG16: 5 | AH16: 5 | AI16: 5 | AJ16: 5 | AK16: 5 | AL16: 5 | AM16: 5 | AN16: 5 | AO16: 5 | AP16: 5 | AQ16: 5 | AR16: 5 | AS16: 20 | AT16: 40 | AU16: 15 | AV16: 5
A17: 5 | B17: 5 | C17: 5 | D17: 5 | E17: 5 | F17: 5 | G17: 5 | H17: 5 | I17: 5 | J17: 5 | K17: 5 | L17: 5 | M17: 5 | N17: 5 | O17: 5 | P17: 5 | Q17: 5 | R17: 5 | S17: 5 | T17: 5 | U17: 5 | V17: 5 | W17: 5 | X17: 5 | Y17: 5 | Z17: 5 | AA17: 5 | AB17: 5 | AC17: 5 | AD17: 5 | AE17: 5 | AF17: 5 | AG17: 5 | AH17: 5 | AI17: 5 | AJ17: 5 | AK17: 5 | AL17: 5 | AM17: 5 | AN17: 5 | AO17: 5 | AP17: 5 | AQ17: 5 | AR17: 20 | AS17: 40 | AT17: 20 | AU17: 15 | AV17: 5
A18: 5 | B18: 5 | C18: 5 | D18: 5 | E18: 5 | F18: 5 | G18: 5 | H18: 5 | I18: 5 | J18: 5 | K18: 5 | L18: 5 | M18: 5 | N18: 5 | O18: 5 | P18: 5 | Q18: 5 | R18: 5 | S18: 5 | T18: 5 | U18: 5 | V18: 5 | W18: 5 | X18: 5 | Y18: 5 | Z18: 5 | AA18: 5 | AB18: 5 | AC18: 5 | AD18: 5 | AE18: 5 | AF18: 5 | AG18: 5 | AH18: 5 | AI18: 5 | AJ18: 5 | AK18: 5 | AL18: 5 | AM18: 5 | AN18: 5 | AO18: 20 | AP18: 20 | AQ18: 20 | AR18: 40 | AS18: 20 | AT18: 5 | AU18: 5 | AV18: 5
A19: 5 | B19: 5 | C19: 5 | D19: 5 | E19: 5 | F19: 5 | G19: 5 | H19: 5 | I19: 5 | J19: 5 | K19: 5 | L19: 5 | M19: 5 | N19: 5 | O19: 5 | P19: 5 | Q19: 5 | R19: 5 | S19: 5 | T19: 5 | U19: 5 | V19: 5 | W19: 5 | X19: 5 | Y19: 5 | Z19: 5 | AA19: 5 | AB19: 5 | AC19: 5 | AD19: 5 | AE19: 5 | AF19: 5 | AG19: 5 | AH19: 5 | AI19: 5 | AJ19: 5 | AK19: 5 | AL19: 5 | AM19: 5 | AN19: 20 | AO19: 40 | AP19: 40 | AQ19: 40 | AR19: 20 | AS19: 5 | AT19: 5 | AU19: 5 | AV19: 5
A20: 5 | B20: 5 | C20: 5 | D20: 5 | E20: 5 | F20: 5 | G20: 5 | H20: 5 | I20: 5 | J20: 5 | K20: 5 | L20: 5 | M20: 5 | N20: 5 | O20: 5 | P20: 5 | Q20: 40 | R20: 15 | S20: 5 | T20: 5 | U20: 5 | V20: 5 | W20: 15 | X20: 40 | Y20: 5 | Z20: 5 | AA20: 5 | AB20: 5 | AC20: 5 | AD20: 5 | AE20: 5 | AF20: 5 | AG20: 5 | AH20: 5 | AI20: 5 | AJ20: 5 | AK20: 5 | AL20: 5 | AM20: 5 | AN20: 5 | AO20: 5 | AP20: 5 | AQ20: 5 | AR20: 5 | AS20: 5 | AT20: 5 | AU20: 5 | AV20: 5
A21: 5 | B21: 5 | C21: 5 | D21: 5 | E21: 5 | F21: 5 | G21: 5 | H21: 5 | I21: 5 | J21: 5 | K21: 5 | L21: 5 | M21: 5 | N21: 5 | O21: 5 | P21: 5 | Q21: 15 | R21: 40 | S21: 15 | T21: 5 | U21: 5 | V21: 15 | W21: 40 | X21: 15 | Y21: 5 | Z21: 5 | AA21: 5 | AB21: 5 | AC21: 5 | AD21: 5 | AE21: 5 | AF21: 5 | AG21: 5 | AH21: 5 | AI21: 5 | AJ21: 5 | AK21: 5 | AL21: 5 | AM21: 5 | AN21: 5 | AO21: 5 | AP21: 5 | AQ21: 5 | AR21: 5 | AS21: 5 | AT21: 5 | AU21: 5 | AV21: 5
A22: 5 | B22: 40 | C22: 15 | D22: 5 | E22: 5 | F22: 5 | G22: 15 | H22: 40 | I22: 5 | J22: 5 | K22: 5 | L22: 5 | M22: 5 | N22: 5 | O22: 5 | P22: 5 | Q22: 5 | R22: 15 | S22: 40 | T22: 15 | U22: 15 | V22: 40 | W22: 15 | X22: 5 | Y22: 5 | Z22: 5 | AA22: 5 | AB22: 5 | AC22: 5 | AD22: 5 | AE22: 5 | AF22: 5 | AG22: 5 | AH22: 5 | AI22: 5 | AJ22: 5 | AK22: 5 | AL22: 5 | AM22: 5 | AN22: 5 | AO22: 5 | AP22: 5 | AQ22: 5 | AR22: 5 | AS22: 5 | AT22: 5 | AU22: 5 | AV22: 5
A23: 5 | B23: 15 | C23: 40 | D23: 15 | E23: 5 | F23: 15 | G23: 40 | H23: 15 | I23: 5 | J23: 5 | K23: 5 | L23: 5 | M23: 5 | N23: 5 | O23: 5 | P23: 5 | Q23: 5 | R23: 5 | S23: 15 | T23: 40 | U23: 40 | V23: 15 | W23: 5 | X23: 5 | Y23: 5 | Z23: 5 | AA23: 5 | AB23: 5 | AC23: 15 | AD23: 40 | AE23: 40 | AF23: 40 | AG23: 40 | AH23: 40 | AI23: 20 | AJ23: 5 | AK23: 5 | AL23: 5 | AM23: 5 | AN23: 5 | AO23: 5 | AP23: 5 | AQ23: 5 | AR23: 5 | AS23: 5 | AT23: 5 | AU23: 5 | AV23: 5
A24: 5 | B24: 5 | C24: 15 | D24: 40 | E24: 20 | F24: 40 | G24: 15 | H24: 5 | I24: 5 | J24: 5 | K24: 5 | L24: 5 | M24: 5 | N24: 5 | O24: 5 | P24: 5 | Q24: 5 | R24: 5 | S24: 15 | T24: 40 | U24: 40 | V24: 15 | W24: 5 | X24: 5 | Y24: 5 | Z24: 5 | AA24: 5 | AB24: 5 | AC24: 15 | AD24: 40 | AE24: 20 | AF24: 20 | AG24: 20 | AH24: 20 | AI24: 40 | AJ24: 15 | AK24: 5 | AL24: 5 | AM24: 5 | AN24: 5 | AO24: 5 | AP24: 5 | AQ24: 5 | AR24: 5 | AS24: 5 | AT24: 5 | AU24: 5 | AV24: 5
A25: 5 | B25: 5 | C25: 5 | D25: 15 | E25: 40 | F25: 15 | G25: 5 | H25: 5 | I25: 5 | J25: 5 | K25: 5 | L25: 5 | M25: 5 | N25: 5 | O25: 5 | P25: 5 | Q25: 5 | R25: 15 | S25: 40 | T25: 15 | U25: 15 | V25: 40 | W25: 15 | X25: 5 | Y25: 5 | Z25: 5 | AA25: 5 | AB25: 5 | AC25: 15 | AD25: 40 | AE25: 20 | AF25: 5 | AG25: 20 | AH25: 20 | AI25: 40 | AJ25: 15 | AK25: 5 | AL25: 5 | AM25: 5 | AN25: 5 | AO25: 5 | AP25: 5 | AQ25: 5 | AR25: 5 | AS25: 5 | AT25: 5 | AU25: 5 | AV25: 5
A26: 5 | B26: 5 | C26: 5 | D26: 15 | E26: 40 | F26: 15 | G26: 5 | H26: 5 | I26: 5 | J26: 5 | K26: 5 | L26: 5 | M26: 5 | N26: 5 | O26: 5 | P26: 5 | Q26: 15 | R26: 40 | S26: 15 | T26: 5 | U26: 5 | V26: 15 | W26: 40 | X26: 15 | Y26: 5 | Z26: 5 | AA26: 5 | AB26: 5 | AC26: 15 | AD26: 40 | AE26: 20 | AF26: 20 | AG26: 20 | AH26: 40 | AI26: 15 | AJ26: 5 | AK26: 5 | AL26: 5 | AM26: 5 | AN26: 5 | AO26: 5 | AP26: 5 | AQ26: 5 | AR26: 5 | AS26: 5 | AT26: 5 | AU26: 5 | AV26: 5
A27: 5 | B27: 5 | C27: 5 | D27: 15 | E27: 40 | F27: 15 | G27: 5 | H27: 5 | I27: 5 | J27: 5 | K27: 5 | L27: 5 | M27: 5 | N27: 5 | O27: 5 | P27: 5 | Q27: 40 | R27: 15 | S27: 5 | T27: 5 | U27: 5 | V27: 5 | W27: 15 | X27: 40 | Y27: 5 | Z27: 5 | AA27: 5 | AB27: 5 | AC27: 15 | AD27: 40 | AE27: 40 | AF27: 40 | AG27: 40 | AH27: 20 | AI27: 5 | AJ27: 5 | AK27: 5 | AL27: 5 | AM27: 5 | AN27: 5 | AO27: 5 | AP27: 5 | AQ27: 5 | AR27: 5 | AS27: 5 | AT27: 5 | AU27: 5 | AV27: 5
A28: 5 | B28: 5 | C28: 5 | D28: 15 | E28: 40 | F28: 15 | G28: 5 | H28: 5 | I28: 5 | J28: 5 | K28: 5 | L28: 5 | M28: 5 | N28: 5 | O28: 5 | P28: 5 | Q28: 5 | R28: 5 | S28: 5 | T28: 5 | U28: 5 | V28: 5 | W28: 5 | X28: 5 | Y28: 5 | Z28: 5 | AA28: 5 | AB28: 5 | AC28: 15 | AD28: 40 | AE28: 15 | AF28: 15 | AG28: 40 | AH28: 40 | AI28: 15 | AJ28: 5 | AK28: 5 | AL28: 5 | AM28: 5 | AN28: 5 | AO28: 5 | AP28: 5 | AQ28: 5 | AR28: 5 | AS28: 5 | AT28: 5 | AU28: 5 | AV28: 5
A29: 5 | B29: 5 | C29: 5 | D29: 15 | E29: 40 | F29: 15 | G29: 5 | H29: 5 | I29: 5 | J29: 5 | K29: 5 | L29: 5 | M29: 5 | N29: 5 | O29: 5 | P29: 5 | Q29: 5 | R29: 5 | S29: 5 | T29: 5 | U29: 5 | V29: 5 | W29: 5 | X29: 5 | Y29: 5 | Z29: 5 | AA29: 5 | AB29: 5 | AC29: 15 | AD29: 40 | AE29: 10 | AF29: 5 | AG29: 10 | AH29: 40 | AI29: 40 | AJ29: 5 | AK29: 5 | AL29: 5 | AM29: 5 | AN29: 5 | AO29: 5 | AP29: 5 | AQ29: 5 | AR29: 5 | AS29: 5 | AT29: 5 | AU29: 5 | AV29: 5
A30: 5 | B30: 5 | C30: 5 | D30: 5 | E30: 5 | F30: 5 | G30: 5 | H30: 5 | I30: 5 | J30: 5 | K30: 5 | L30: 5 | M30: 5 | N30: 5 | O30: 5 | P30: 5 | Q30: 5 | R30: 5 | S30: 5 | T30: 5 | U30: 5 | V30: 5 | W30: 5 | X30: 5 | Y30: 5 | Z30: 5 | AA30: 5 | AB30: 5 | AC30: 15 | AD30: 40 | AE30: 5 | AF30: 5 | AG30: 5 | AH30: 5 | AI30: 40 | AJ30: 5 | AK30: 5 | AL30: 5 | AM30: 5 | AN30: 5 | AO30: 5 | AP30: 5 | AQ30: 5 | AR30: 5 | AS30: 5 | AT30: 5 | AU30: 5 | AV30: 5
A31: 5 | B31: 5 | C31: 5 | D31: 5 | E31: 5 | F31: 5 | G31: 5 | H31: 5 | I31: 5 | J31: 5 | K31: 5 | L31: 5 | M31: 5 | N31: 5 | O31: 5 | P31: 5 | Q31: 5 | R31: 5 | S31: 5 | T31: 5 | U31: 5 | V31: 5 | W31: 5 | X31: 5 | Y31: 5 | Z31: 5 | AA31: 5 | AB31: 5 | AC31: 5 | AD31: 5 | AE31: 5 | AF31: 5 | AG31: 5 | AH31: 5 | AI31: 5 | AJ31: 5 | AK31: 5 | AL31: 5 | AM31: 5 | AN31: 5 | AO31: 5 | AP31: 5 | AQ31: 5 | AR31: 5 | AS31: 5 | AT31: 5 | AU31: 5 | AV31: 5
A32: 5 | B32: 5 | C32: 5 | D32: 5 | E32: 5 | F32: 5 | G32: 5 | H32: 5 | I32: 5 | J32: 5 | K32: 5 | L32: 5 | M32: 5 | N32: 5 | O32: 5 | P32: 5 | Q32: 5 | R32: 5 | S32: 5 | T32: 5 | U32: 5 | V32: 5 | W32: 5 | X32: 5 | Y32: 5 | Z32: 5 | AA32: 5 | AB32: 5 | AC32: 5 | AD32: 5 | AE32: 5 | AF32: 5 | AG32: 5 | AH32: 5 | AI32: 5 | AJ32: 5 | AK32: 5 | AL32: 5 | AM32: 5 | AN32: 5 | AO32: 5 | AP32: 5 | AQ32: 5 | AR32: 5 | AS32: 5 | AT32: 5 | AU32: 5 | AV32: 5
A33: 5 | B33: 5 | C33: 5 | D33: 5 | E33: 5 | F33: 5 | G33: 5 | H33: 5 | I33: 5 | J33: 5 | K33: 5 | L33: 5 | M33: 5 | N33: 5 | O33: 5 | P33: 5 | Q33: 5 | R33: 5 | S33: 5 | T33: 5 | U33: 5 | V33: 5 | W33: 5 | X33: 5 | Y33: 5 | Z33: 5 | AA33: 5 | AB33: 5 | AC33: 5 | AD33: 5 | AE33: 5 | AF33: 5 | AG33: 5 | AH33: 5 | AI33: 5 | AJ33: 5 | AK33: 5 | AL33: 5 | AM33: 5 | AN33: 5 | AO33: 5 | AP33: 5 | AQ33: 5 | AR33: 5 | AS33: 5 | AT33: 5 | AU33: 5 | AV33: 5
A34: 5 | B34: 5 | C34: 5 | D34: 5 | E34: 5 | F34: 5 | G34: 5 | H34: 5 | I34: 5 | J34: 5 | K34: 5 | L34: 5 | M34: 5 | N34: 5 | O34: 5 | P34: 5 | Q34: 5 | R34: 5 | S34: 5 | T34: 5 | U34: 5 | V34: 5 | W34: 5 | X34: 5 | Y34: 5 | Z34: 5 | AA34: 5 | AB34: 5 | AC34: 5 | AD34: 5 | AE34: 5 | AF34: 5 | AG34: 5 | AH34: 5 | AI34: 5 | AJ34: 5 | AK34: 40 | AL34: 20 | AM34: 5 | AN34: 5 | AO34: 5 | AP34: 5 | AQ34: 40 | AR34: 15 | AS34: 5 | AT34: 5 | AU34: 5 | AV34: 5
A35: 5 | B35: 5 | C35: 5 | D35: 5 | E35: 5 | F35: 5 | G35: 5 | H35: 5 | I35: 5 | J35: 5 | K35: 5 | L35: 5 | M35: 5 | N35: 5 | O35: 5 | P35: 5 | Q35: 5 | R35: 5 | S35: 5 | T35: 5 | U35: 5 | V35: 5 | W35: 5 | X35: 5 | Y35: 5 | Z35: 5 | AA35: 5 | AB35: 5 | AC35: 5 | AD35: 5 | AE35: 5 | AF35: 5 | AG35: 5 | AH35: 5 | AI35: 5 | AJ35: 5 | AK35: 40 | AL35: 40 | AM35: 15 | AN35: 5 | AO35: 5 | AP35: 5 | AQ35: 40 | AR35: 15 | AS35: 5 | AT35: 5 | AU35: 5 | AV35: 5
A36: 5 | B36: 5 | C36: 5 | D36: 5 | E36: 5 | F36: 5 | G36: 5 | H36: 5 | I36: 5 | J36: 5 | K36: 5 | L36: 5 | M36: 5 | N36: 5 | O36: 5 | P36: 5 | Q36: 5 | R36: 5 | S36: 5 | T36: 5 | U36: 5 | V36: 5 | W36: 5 | X36: 5 | Y36: 5 | Z36: 5 | AA36: 5 | AB36: 5 | AC36: 5 | AD36: 5 | AE36: 5 | AF36: 5 | AG36: 5 | AH36: 5 | AI36: 5 | AJ36: 5 | AK36: 40 | AL36: 25 | AM36: 40 | AN36: 15 | AO36: 5 | AP36: 5 | AQ36: 40 | AR36: 15 | AS36: 5 | AT36: 5 | AU36: 5 | AV36: 5
A37: 5 | B37: 5 | C37: 5 | D37: 5 | E37: 5 | F37: 5 | G37: 5 | H37: 5 | I37: 15 | J37: 40 | K37: 20 | L37: 10 | M37: 5 | N37: 5 | O37: 5 | P37: 5 | Q37: 5 | R37: 5 | S37: 5 | T37: 5 | U37: 5 | V37: 5 | W37: 40 | X37: 40 | Y37: 40 | Z37: 40 | AA37: 40 | AB37: 40 | AC37: 40 | AD37: 5 | AE37: 5 | AF37: 5 | AG37: 5 | AH37: 5 | AI37: 5 | AJ37: 5 | AK37: 40 | AL37: 5 | AM37: 15 | AN37: 40 | AO37: 15 | AP37: 5 | AQ37: 40 | AR37: 15 | AS37: 5 | AT37: 5 | AU37: 5 | AV37: 5
A38: 5 | B38: 5 | C38: 5 | D38: 5 | E38: 5 | F38: 5 | G38: 5 | H38: 5 | I38: 15 | J38: 40 | K38: 20 | L38: 10 | M38: 5 | N38: 5 | O38: 5 | P38: 5 | Q38: 5 | R38: 5 | S38: 5 | T38: 5 | U38: 5 | V38: 5 | W38: 15 | X38: 15 | Y38: 15 | Z38: 20 | AA38: 20 | AB38: 40 | AC38: 20 | AD38: 5 | AE38: 5 | AF38: 5 | AG38: 5 | AH38: 5 | AI38: 5 | AJ38: 5 | AK38: 40 | AL38: 5 | AM38: 5 | AN38: 15 | AO38: 40 | AP38: 25 | AQ38: 40 | AR38: 15 | AS38: 5 | AT38: 5 | AU38: 5 | AV38: 5
A39: 5 | B39: 5 | C39: 5 | D39: 5 | E39: 5 | F39: 5 | G39: 5 | H39: 5 | I39: 15 | J39: 40 | K39: 20 | L39: 10 | M39: 5 | N39: 5 | O39: 5 | P39: 5 | Q39: 5 | R39: 5 | S39: 5 | T39: 5 | U39: 5 | V39: 5 | W39: 5 | X39: 5 | Y39: 5 | Z39: 20 | AA39: 40 | AB39: 20 | AC39: 5 | AD39: 5 | AE39: 5 | AF39: 5 | AG39: 5 | AH39: 5 | AI39: 5 | AJ39: 5 | AK39: 40 | AL39: 5 | AM39: 5 | AN39: 5 | AO39: 15 | AP39: 40 | AQ39: 40 | AR39: 15 | AS39: 5 | AT39: 5 | AU39: 5 | AV39: 5
A40: 5 | B40: 5 | C40: 5 | D40: 5 | E40: 5 | F40: 5 | G40: 5 | H40: 5 | I40: 15 | J40: 40 | K40: 20 | L40: 10 | M40: 5 | N40: 5 | O40: 5 | P40: 5 | Q40: 5 | R40: 5 | S40: 5 | T40: 5 | U40: 5 | V40: 5 | W40: 5 | X40: 5 | Y40: 15 | Z40: 40 | AA40: 20 | AB40: 5 | AC40: 5 | AD40: 5 | AE40: 5 | AF40: 5 | AG40: 5 | AH40: 5 | AI40: 5 | AJ40: 5 | AK40: 40 | AL40: 5 | AM40: 5 | AN40: 5 | AO40: 5 | AP40: 20 | AQ40: 40 | AR40: 15 | AS40: 5 | AT40: 5 | AU40: 5 | AV40: 5
A41: 5 | B41: 5 | C41: 5 | D41: 5 | E41: 5 | F41: 5 | G41: 5 | H41: 5 | I41: 15 | J41: 40 | K41: 20 | L41: 10 | M41: 5 | N41: 5 | O41: 5 | P41: 5 | Q41: 5 | R41: 5 | S41: 5 | T41: 5 | U41: 5 | V41: 5 | W41: 5 | X41: 15 | Y41: 40 | Z41: 20 | AA41: 10 | AB41: 5 | AC41: 5 | AD41: 5 | AE41: 5 | AF41: 5 | AG41: 5 | AH41: 5 | AI41: 5 | AJ41: 5 | AK41: 20 | AL41: 5 | AM41: 5 | AN41: 5 | AO41: 5 | AP41: 5 | AQ41: 20 | AR41: 15 | AS41: 5 | AT41: 5 | AU41: 5 | AV41: 5
A42: 5 | B42: 5 | C42: 5 | D42: 5 | E42: 5 | F42: 5 | G42: 5 | H42: 5 | I42: 15 | J42: 40 | K42: 20 | L42: 10 | M42: 10 | N42: 10 | O42: 10 | P42: 5 | Q42: 5 | R42: 5 | S42: 5 | T42: 5 | U42: 5 | V42: 5 | W42: 15 | X42: 40 | Y42: 15 | Z42: 20 | AA42: 20 | AB42: 20 | AC42: 20 | AD42: 5 | AE42: 5 | AF42: 5 | AG42: 5 | AH42: 5 | AI42: 5 | AJ42: 5 | AK42: 5 | AL42: 5 | AM42: 5 | AN42: 5 | AO42: 5 | AP42: 5 | AQ42: 5 | AR42: 5 | AS42: 5 | AT42: 5 | AU42: 5 | AV42: 5
A43: 5 | B43: 5 | C43: 5 | D43: 5 | E43: 5 | F43: 5 | G43: 5 | H43: 5 | I43: 15 | J43: 40 | K43: 30 | L43: 20 | M43: 20 | N43: 20 | O43: 20 | P43: 10 | Q43: 5 | R43: 5 | S43: 5 | T43: 5 | U43: 5 | V43: 5 | W43: 40 | X43: 40 | Y43: 40 | Z43: 40 | AA43: 40 | AB43: 40 | AC43: 40 | AD43: 5 | AE43: 5 | AF43: 5 | AG43: 5 | AH43: 5 | AI43: 5 | AJ43: 5 | AK43: 5 | AL43: 5 | AM43: 5 | AN43: 5 | AO43: 5 | AP43: 5 | AQ43: 5 | AR43: 5 | AS43: 5 | AT43: 5 | AU43: 5 | AV43: 5
A44: 5 | B44: 5 | C44: 5 | D44: 5 | E44: 5 | F44: 5 | G44: 5 | H44: 5 | I44: 15 | J44: 40 | K44: 40 | L44: 40 | M44: 40 | N44: 40 | O44: 40 | P44: 20 | Q44: 5 | R44: 5 | S44: 5 | T44: 5 | U44: 5 | V44: 5 | W44: 15 | X44: 15 | Y44: 15 | Z44: 15 | AA44: 15 | AB44: 15 | AC44: 15 | AD44: 5 | AE44: 5 | AF44: 5 | AG44: 5 | AH44: 5 | AI44: 5 | AJ44: 5 | AK44: 5 | AL44: 5 | AM44: 5 | AN44: 5 | AO44: 5 | AP44: 5 | AQ44: 5 | AR44: 5 | AS44: 5 | AT44: 5 | AU44: 5 | AV44: 5
A45: 5 | B45: 5 | C45: 5 | D45: 5 | E45: 5 | F45: 5 | G45: 5 | H45: 5 | I45: 5 | J45: 5 | K45: 5 | L45: 5 | M45: 5 | N45: 5 | O45: 5 | P45: 5 | Q45: 5 | R45: 5 | S45: 5 | T45: 5 | U45: 5 | V45: 5 | W45: 5 | X45: 5 | Y45: 5 | Z45: 5 | AA45: 5 | AB45: 5 | AC45: 5 | AD45: 5 | AE45: 5 | AF45: 5 | AG45: 5 | AH45: 5 | AI45: 5 | AJ45: 5 | AK45: 5 | AL45: 5 | AM45: 5 | AN45: 5 | AO45: 5 | AP45: 5 | AQ45: 5 | AR45: 5 | AS45: 5 | AT45: 5 | AU45: 5 | AV45: 5
A46: 5 | B46: 5 | C46: 5 | D46: 5 | E46: 5 | F46: 5 | G46: 5 | H46: 5 | I46: 5 | J46: 5 | K46: 5 | L46: 5 | M46: 5 | N46: 5 | O46: 5 | P46: 5 | Q46: 5 | R46: 5 | S46: 5 | T46: 5 | U46: 5 | V46: 5 | W46: 5 | X46: 5 | Y46: 5 | Z46: 5 | AA46: 5 | AB46: 5 | AC46: 5 | AD46: 5 | AE46: 5 | AF46: 5 | AG46: 5 | AH46: 5 | AI46: 5 | AJ46: 5 | AK46: 5 | AL46: 5 | AM46: 5 | AN46: 5 | AO46: 5 | AP46: 5 | AQ46: 5 | AR46: 5 | AS46: 5 | AT46: 5 | AU46: 5 | AV46: 5
A47: 5 | B47: 5 | C47: 5 | D47: 5 | E47: 5 | F47: 5 | G47: 5 | H47: 5 | I47: 5 | J47: 5 | K47: 5 | L47: 5 | M47: 5 | N47: 5 | O47: 5 | P47: 5 | Q47: 5 | R47: 5 | S47: 5 | T47: 5 | U47: 5 | V47: 5 | W47: 5 | X47: 5 | Y47: 5 | Z47: 5 | AA47: 5 | AB47: 5 | AC47: 5 | AD47: 5 | AE47: 5 | AF47: 5 | AG47: 5 | AH47: 5 | AI47: 5 | AJ47: 5 | AK47: 5 | AL47: 5 | AM47: 5 | AN47: 5 | AO47: 5 | AP47: 5 | AQ47: 5 | AR47: 5 | AS47: 5 | AT47: 5 | AU47: 5 | AV47: 5
A48: 5 | B48: 5 | C48: 5 | D48: 5 | E48: 5 | F48: 5 | G48: 5 | H48: 5 | I48: 5 | J48: 5 | K48: 5 | L48: 5 | M48: 5 | N48: 5 | O48: 5 | P48: 5 | Q48: 5 | R48: 5 | S48: 5 | T48: 5 | U48: 5 | V48: 5 | W48: 5 | X48: 5 | Y48: 5 | Z48: 5 | AA48: 5 | AB48: 5 | AC48: 5 | AD48: 5 | AE48: 5 | AF48: 5 | AG48: 5 | AH48: 5 | AI48: 5 | AJ48: 5 | AK48: 5 | AL48: 5 | AM48: 5 | AN48: 5 | AO48: 5 | AP48: 5 | AQ48: 5 | AR48: 5 | AS48: 5 | AT48: 5 | AU48: 5 | AV48: 5
S49: 5 | T49: 5 | U49: 5 | V49: 5
A51: 1 | B51: 2 | C51: 3 | D51: 4 | E51: 5 | F51: 6 | G51: 7 | H51: 8 | I51: 9 | J51: 10 | K51: 11 | L51: 12 | M51: 13 | N51: 14 | O51: 15 | P51: 16 | Q51: 17 | R51: 18 | S51: 19 | T51: 20 | U51: 21 | V51: 22 | W51: 23 | X51: 24 | Y51: 25 | Z51: 26 | AA51: 27 | AB51: 28 | AC51: 29 | AD51: 30 | AE51: 31 | AF51: 32 | AG51: 33 | AH51: 34 | AI51: 35 | AJ51: 36 | AK51: 37 | AL51: 38 | AM51: 39 | AN51: 40 | AO51: 41 | AP51: 42 | AQ51: 43 | AR51: 44 | AS51: 45 | AT51: 46 | AU51: 47 | AV51: 48

Sheet shift40x40
B2: =OFFSET(char10!A$1, ROW()-2-0+0, COLUMN()-2-0+0) -> 5 | C2: =OFFSET(char10!A$1, ROW()-2-0+0, COLUMN()-2-0+0) -> 5 | D2: =OFFSET(char10!A$1, ROW()-2-0+0, COLUMN()-2-0+0) -> 5 | E2: =OFFSET(char10!A$1, ROW()-2-0+0, COLUMN()-2-0+0) -> 5 | F2: =OFFSET(char10!A$1, ROW()-2-0+0, COLUMN()-2-0+0) -> 5 | G2: =OFFSET(char10!A$1, ROW()-2-0+0, COLUMN()-2-0+0) -> 5 | H2: =OFFSET(char10!A$1, ROW()-2-0+0, COLUMN()-2-0+0) -> 5 | I2: =OFFSET(char10!A$1, ROW()-2-0+0, COLUMN()-2-0+0) -> 5 | L2: =OFFSET(char10!A$1, ROW()-2-0+0, COLUMN()-2-10+1) -> 5 | M2: =OFFSET(char10!A$1, ROW()-2-0+0, COLUMN()-2-10+1) -> 5 | N2: =OFFSET(char10!A$1, ROW()-2-0+0, COLUMN()-2-10+1) -> 5 | O2: =OFFSET(char10!A$1, ROW()-2-0+0, COLUMN()-2-10+1) -> 5 | P2: =OFFSET(char10!A$1, ROW()-2-0+0, COLUMN()-2-10+1) -> 5 | Q2: =OFFSET(char10!A$1, ROW()-2-0+0, COLUMN()-2-10+1) -> 5 | R2: =OFFSET(char10!A$1, ROW()-2-0+0, COLUMN()-2-10+1) -> 5 | S2: =OFFSET(char10!A$1, ROW()-2-0+0, COLUMN()-2-10+1) -> 5 | V2: =OFFSET(char10!A$1, ROW()-2-0+0, COLUMN()-2-20+2) -> 5 | W2: =OFFSET(char10!A$1, ROW()-2-0+0, COLUMN()-2-20+2) -> 5 | X2: =OFFSET(char10!A$1, ROW()-2-0+0, COLUMN()-2-20+2) -> 5 | Y2: =OFFSET(char10!A$1, ROW()-2-0+0, COLUMN()-2-20+2) -> 5 | Z2: =OFFSET(char10!A$1, ROW()-2-0+0, COLUMN()-2-20+2) -> 5 | AA2: =OFFSET(char10!A$1, ROW()-2-0+0, COLUMN()-2-20+2) -> 5 | AB2: =OFFSET(char10!A$1, ROW()-2-0+0, COLUMN()-2-20+2) -> 5 | AC2: =OFFSET(char10!A$1, ROW()-2-0+0, COLUMN()-2-20+2) -> 5 | AF2: =OFFSET(char10!A$1, ROW()-2-0+0, COLUMN()-2-30+3) -> 5 | AG2: =OFFSET(char10!A$1, ROW()-2-0+0, COLUMN()-2-30+3) -> 5 | AH2: =OFFSET(char10!A$1, ROW()-2-0+0, COLUMN()-2-30+3) -> 5 | AI2: =OFFSET(char10!A$1, ROW()-2-0+0, COLUMN()-2-30+3) -> 5 | AJ2: =OFFSET(char10!A$1, ROW()-2-0+0, COLUMN()-2-30+3) -> 5 | AK2: =OFFSET(char10!A$1, ROW()-2-0+0, COLUMN()-2-30+3) -> 5 | AL2: =OFFSET(char10!A$1, ROW()-2-0+0, COLUMN()-2-30+3) -> 5 | AM2: =OFFSET(char10!A$1, ROW()-2-0+0, COLUMN()-2-30+3) -> 5 | AP2: =OFFSET(char10!A$1, ROW()-2-0+0, COLUMN()-2-40+4) -> 5 | AQ2: =OFFSET(char10!A$1, ROW()-2-0+0, COLUMN()-2-40+4) -> 5 | AR2: =OFFSET(char10!A$1, ROW()-2-0+0, COLUMN()-2-40+4) -> 5 | AS2: =OFFSET(char10!A$1, ROW()-2-0+0, COLUMN()-2-40+4) -> 5 | AT2: =OFFSET(char10!A$1, ROW()-2-0+0, COLUMN()-2-40+4) -> 5 | AU2: =OFFSET(char10!A$1, ROW()-2-0+0, COLUMN()-2-40+4) -> 5 | AV2: =OFFSET(char10!A$1, ROW()-2-0+0, COLUMN()-2-40+4) -> 5 | AW2: =OFFSET(char10!A$1, ROW()-2-0+0, COLUMN()-2-40+4) -> 5 | AZ2: =OFFSET(char10!A$1, ROW()-2-0+0, COLUMN()-2-50+5) -> 5 | BA2: =OFFSET(char10!A$1, ROW()-2-0+0, COLUMN()-2-50+5) -> 5 | BB2: =OFFSET(char10!A$1, ROW()-2-0+0, COLUMN()-2-50+5) -> 5 | BC2: =OFFSET(char10!A$1, ROW()-2-0+0, COLUMN()-2-50+5) -> 5 | BD2: =OFFSET(char10!A$1, ROW()-2-0+0, COLUMN()-2-50+5) -> 5 | BE2: =OFFSET(char10!A$1, ROW()-2-0+0, COLUMN()-2-50+5) -> 5 | BF2: =OFFSET(char10!A$1, ROW()-2-0+0, COLUMN()-2-50+5) -> 5 | BG2: =OFFSET(char10!A$1, ROW()-2-0+0, COLUMN()-2-50+5) -> 5 | BJ2: =OFFSET(char10!A$1, ROW()-2-0+0, COLUMN()-2-60+6) -> 5 | BK2: =OFFSET(char10!A$1, ROW()-2-0+0, COLUMN()-2-60+6) -> 5 | BL2: =OFFSET(char10!A$1, ROW()-2-0+0, COLUMN()-2-60+6) -> 5 | BM2: =OFFSET(char10!A$1, ROW()-2-0+0, COLUMN()-2-60+6) -> 5 | BN2: =OFFSET(char10!A$1, ROW()-2-0+0, COLUMN()-2-60+6) -> 5 | BO2: =OFFSET(char10!A$1, ROW()-2-0+0, COLUMN()-2-60+6) -> 5 | BP2: =OFFSET(char10!A$1, ROW()-2-0+0, COLUMN()-2-60+6) -> 5 | BQ2: =OFFSET(char10!A$1, ROW()-2-0+0, COLUMN()-2-60+6) -> 5 | BT2: =OFFSET(char10!A$1, ROW()-2-0+0, COLUMN()-2-70+7) -> 5 | BU2: =OFFSET(char10!A$1, ROW()-2-0+0, COLUMN()-2-70+7) -> 5 | BV2: =OFFSET(char10!A$1, ROW()-2-0+0, COLUMN()-2-70+7) -> 5 | BW2: =OFFSET(char10!A$1, ROW()-2-0+0, COLUMN()-2-70+7) -> 5 | BX2: =OFFSET(char10!A$1, ROW()-2-0+0, COLUMN()-2-70+7) -> 5 | BY2: =OFFSET(char10!A$1, ROW()-2-0+0, COLUMN()-2-70+7) -> 5 | BZ2: =OFFSET(char10!A$1, ROW()-2-0+0, COLUMN()-2-70+7) -> 5 | CA2: =OFFSET(char10!A$1, ROW()-2-0+0, COLUMN()-2-70+7) -> 5 | CD2: =OFFSET(char10!A$1, ROW()-2-0+0, COLUMN()-2-80+8) -> 5 | CE2: =OFFSET(char10!A$1, ROW()-2-0+0, COLUMN()-2-80+8) -> 5 | CF2: =OFFSET(char10!A$1, ROW()-2-0+0, COLUMN()-2-80+8) -> 5 | CG2: =OFFSET(char10!A$1, ROW()-2-0+0, COLUMN()-2-80+8) -> 5 | CH2: =OFFSET(char10!A$1, ROW()-2-0+0, COLUMN()-2-80+8) -> 5 | CI2: =OFFSET(char10!A$1, ROW()-2-0+0, COLUMN()-2-80+8) -> 5 | CJ2: =OFFSET(char10!A$1, ROW()-2-0+0, COLUMN()-2-80+8) -> 5 | CK2: =OFFSET(char10!A$1, ROW()-2-0+0, COLUMN()-2-80+8) -> 5 | CN2: =OFFSET(char10!A$1, ROW()-2-0+0, COLUMN()-2-90+9) -> 5 | CO2: =OFFSET(char10!A$1, ROW()-2-0+0, COLUMN()-2-90+9) -> 5 | CP2: =OFFSET(char10!A$1, ROW()-2-0+0, COLUMN()-2-90+9) -> 5 | CQ2: =OFFSET(char10!A$1, ROW()-2-0+0, COLUMN()-2-90+9) -> 5 | CR2: =OFFSET(char10!A$1, ROW()-2-0+0, COLUMN()-2-90+9) -> 5 | CS2: =OFFSET(char10!A$1, ROW()-2-0+0, COLUMN()-2-90+9) -> 5 | CT2: =OFFSET(char10!A$1, ROW()-2-0+0, COLUMN()-2-90+9) -> 5 | CU2: =OFFSET(char10!A$1, ROW()-2-0+0, COLUMN()-2-90+9) -> 5 | CX2: =OFFSET(char10!A$1, ROW()-2-0+0, COLUMN()-2-100+10) -> 5 | CY2: =OFFSET(char10!A$1, ROW()-2-0+0, COLUMN()-2-100+10) -> 5 | CZ2: =OFFSET(char10!A$1, ROW()-2-0+0, COLUMN()-2-100+10) -> 5 | DA2: =OFFSET(char10!A$1, ROW()-2-0+0, COLUMN()-2-100+10) -> 5 | DB2: =OFFSET(char10!A$1, ROW()-2-0+0, COLUMN()-2-100+10) -> 5 | DC2: =OFFSET(char10!A$1, ROW()-2-0+0, COLUMN()-2-100+10) -> 5 | DD2: =OFFSET(char10!A$1, ROW()-2-0+0, COLUMN()-2-100+10) -> 5 | DE2: =OFFSET(char10!A$1, ROW()-2-0+0, COLUMN()-2-100+10) -> 5 | DH2: =OFFSET(char10!A$1, ROW()-2-0+0, COLUMN()-2-110+11) -> 5 | DI2: =OFFSET(char10!A$1, ROW()-2-0+0, COLUMN()-2-110+11) -> 5 | DJ2: =OFFSET(char10!A$1, ROW()-2-0+0, COLUMN()-2-110+11) -> 5 | DK2: =OFFSET(char10!A$1, ROW()-2-0+0, COLUMN()-2-110+11) -> 5 | DL2: =OFFSET(char10!A$1, ROW()-2-0+0, COLUMN()-2-110+11) -> 5 | DM2: =OFFSET(char10!A$1, ROW()-2-0+0, COLUMN()-2-110+11) -> 5 | DN2: =OFFSET(char10!A$1, ROW()-2-0+0, COLUMN()-2-110+11) -> 5 | DO2: =OFFSET(char10!A$1, ROW()-2-0+0, COLUMN()-2-110+11) -> 5 | DR2: =OFFSET(char10!A$1, ROW()-2-0+0, COLUMN()-2-120+12) -> 5 | DS2: =OFFSET(char10!A$1, ROW()-2-0+0, COLUMN()-2-120+12) -> 5 | DT2: =OFFSET(char10!A$1, ROW()-2-0+0, COLUMN()-2-120+12) -> 5 | DU2: =OFFSET(char10!A$1, ROW()-2-0+0, COLUMN()-2-120+12) -> 5 | DV2: =OFFSET(char10!A$1, ROW()-2-0+0, COLUMN()-2-120+12) -> 5 | DW2: =OFFSET(char10!A$1, ROW()-2-0+0, COLUMN()-2-120+12) -> 5 | DX2: =OFFSET(char10!A$1, ROW()-2-0+0, COLUMN()-2-120+12) -> 5 | DY2: =OFFSET(char10!A$1, ROW()-2-0+0, COLUMN()-2-120+12) -> 5 | EB2: =OFFSET(char10!A$1, ROW()-2-0+0, COLUMN()-2-130+13) -> 5 | EC2: =OFFSET(char10!A$1, ROW()-2-0+0, COLUMN()-2-130+13) -> 5 | ED2: =OFFSET(char10!A$1, ROW()-2-0+0, COLUMN()-2-130+13) -> 5 | EE2: =OFFSET(char10!A$1, ROW()-2-0+0, COLUMN()-2-130+13) -> 5 | EF2: =OFFSET(char10!A$1, ROW()-2-0+0, COLUMN()-2-130+13) -> 5 | EG2: =OFFSET(char10!A$1, ROW()-2-0+0, COLUMN()-2-130+13) -> 5 | EH2: =OFFSET(char10!A$1, ROW()-2-0+0, COLUMN()-2-130+13) -> 5 | EI2: =OFFSET(char10!A$1, ROW()-2-0+0, COLUMN()-2-130+13) -> 5 | EL2: =OFFSET(char10!A$1, ROW()-2-0+0, COLUMN()-2-140+14) -> 5 | EM2: =OFFSET(char10!A$1, ROW()-2-0+0, COLUMN()-2-140+14) -> 5 | EN2: =OFFSET(char10!A$1, ROW()-2-0+0, COLUMN()-2-140+14) -> 5 | EO2: =OFFSET(char10!A$1, ROW()-2-0+0, COLUMN()-2-140+14) -> 5 | EP2: =OFFSET(char10!A$1, ROW()-2-0+0, COLUMN()-2-140+14) -> 5 | EQ2: =OFFSET(char10!A$1, ROW()-2-0+0, COLUMN()-2-140+14) -> 5 | ER2: =OFFSET(char10!A$1, ROW()-2-0+0, COLUMN()-2-140+14) -> 5 | ES2: =OFFSET(char10!A$1, ROW()-2-0+0, COLUMN()-2-140+14) -> 5 | EV2: =OFFSET(char10!A$1, ROW()-2-0+0, COLUMN()-2-150+15) -> 5 | EW2: =OFFSET(char10!A$1, ROW()-2-0+0, COLUMN()-2-150+15) -> 5 | EX2: =OFFSET(char10!A$1, ROW()-2-0+0, COLUMN()-2-150+15) -> 5 | EY2: =OFFSET(char10!A$1, ROW()-2-0+0, COLUMN()-2-150+15) -> 5 | EZ2: =OFFSET(char10!A$1, ROW()-2-0+0, COLUMN()-2-150+15) -> 5 | FA2: =OFFSET(char10!A$1, ROW()-2-0+0, COLUMN()-2-150+15) -> 5 | FB2: =OFFSET(char10!A$1, ROW()-2-0+0, COLUMN()-2-150+15) -> 5 | FC2: =OFFSET(char10!A$1, ROW()-2-0+0, COLUMN()-2-150+15) -> 5 | FF2: =OFFSET(char10!A$1, ROW()-2-0+0, COLUMN()-2-160+16) -> 5 | FG2: =OFFSET(char10!A$1, ROW()-2-0+0, COLUMN()-2-160+16) -> 5 | FH2: =OFFSET(char10!A$1, ROW()-2-0+0, COLUMN()-2-160+16) -> 5 | FI2: =OFFSET(char10!A$1, ROW()-2-0+0, COLUMN()-2-160+16) -> 5 | FJ2: =OFFSET(char10!A$1, ROW()-2-0+0, COLUMN()-2-160+16) -> 5 | FK2: =OFFSET(char10!A$1, ROW()-2-0+0, COLUMN()-2-160+16) -> 5 | FL2: =OFFSET(char10!A$1, ROW()-2-0+0, COLUMN()-2-160+16) -> 5 | FM2: =OFFSET(char10!A$1, ROW()-2-0+0, COLUMN()-2-160+16) -> 5 | FP2: =OFFSET(char10!A$1, ROW()-2-0+0, COLUMN()-2-170+17) -> 5 | FQ2: =OFFSET(char10!A$1, ROW()-2-0+0, COLUMN()-2-170+17) -> 5 | FR2: =OFFSET(char10!A$1, ROW()-2-0+0, COLUMN()-2-170+17) -> 5 | FS2: =OFFSET(char10!A$1, ROW()-2-0+0, COLUMN()-2-170+17) -> 5 | FT2: =OFFSET(char10!A$1, ROW()-2-0+0, COLUMN()-2-170+17) -> 5 | FU2: =OFFSET(char10!A$1, ROW()-2-0+0, COLUMN()-2-170+17) -> 5 | FV2: =OFFSET(char10!A$1, ROW()-2-0+0, COLUMN()-2-170+17) -> 5 | FW2: =OFFSET(char10!A$1, ROW()-2-0+0, COLUMN()-2-170+17) -> 5 | FZ2: =OFFSET(char10!A$1, ROW()-2-0+0, COLUMN()-2-180+18) -> 5 | GA2: =OFFSET(char10!A$1, ROW()-2-0+0, COLUMN()-2-180+18) -> 5 | GB2: =OFFSET(char10!A$1, ROW()-2-0+0, COLUMN()-2-180+18) -> 5 | GC2: =OFFSET(char10!A$1, ROW()-2-0+0, COLUMN()-2-180+18) -> 5 | GD2: =OFFSET(char10!A$1, ROW()-2-0+0, COLUMN()-2-180+18) -> 5 | GE2: =OFFSET(char10!A$1, ROW()-2-0+0, COLUMN()-2-180+18) -> 5 | GF2: =OFFSET(char10!A$1, ROW()-2-0+0, COLUMN()-2-180+18) -> 5 | GG2: =OFFSET(char10!A$1, ROW()-2-0+0, COLUMN()-2-180+18) -> 5 | GJ2: =OFFSET(char10!A$1, ROW()-2-0+0, COLUMN()-2-190+19) -> 5 | GK2: =OFFSET(char10!A$1, ROW()-2-0+0, COLUMN()-2-190+19) -> 5 | GL2: =OFFSET(char10!A$1, ROW()-2-0+0, COLUMN()-2-190+19) -> 5 | GM2: =OFFSET(char10!A$1, ROW()-2-0+0, COLUMN()-2-190+19) -> 5 | GN2: =OFFSET(char10!A$1, ROW()-2-0+0, COLUMN()-2-190+19) -> 5 | GO2: =OFFSET(char10!A$1, ROW()-2-0+0, COLUMN()-2-190+19) -> 5 | GP2: =OFFSET(char10!A$1, ROW()-2-0+0, COLUMN()-2-190+19) -> 5 | GQ2: =OFFSET(char10!A$1, ROW()-2-0+0, COLUMN()-2-190+19) -> 5 | GT2: =OFFSET(char10!A$1, ROW()-2-0+0, COLUMN()-2-200+20) -> 5 | GU2: =OFFSET(char10!A$1, ROW()-2-0+0, COLUMN()-2-200+20) -> 5 | GV2: =OFFSET(char10!A$1, ROW()-2-0+0, COLUMN()-2-200+20) -> 5 | GW2: =OFFSET(char10!A$1, ROW()-2-0+0, COLUMN()-2-200+20) -> 5 | GX2: =OFFSET(char10!A$1, ROW()-2-0+0, COLUMN()-2-200+20) -> 5 | GY2: =OFFSET(char10!A$1, ROW()-2-0+0, COLUMN()-2-200+20) -> 5 | GZ2: =OFFSET(char10!A$1, ROW()-2-0+0, COLUMN()-2-200+20) -> 5 | HA2: =OFFSET(char10!A$1, ROW()-2-0+0, COLUMN()-2-200+20) -> 5 | HD2: =OFFSET(char10!A$1, ROW()-2-0+0, COLUMN()-2-210+21) -> 5 | HE2: =OFFSET(char10!A$1, ROW()-2-0+0, COLUMN()-2-210+21) -> 5 | HF2: =OFFSET(char10!A$1, ROW()-2-0+0, COLUMN()-2-210+21) -> 5 | HG2: =OFFSET(char10!A$1, ROW()-2-0+0, COLUMN()-2-210+21) -> 5 | HH2: =OFFSET(char10!A$1, ROW()-2-0+0, COLUMN()-2-210+21) -> 5 | HI2: =OFFSET(char10!A$1, ROW()-2-0+0, COLUMN()-2-210+21) -> 5 | HJ2: =OFFSET(char10!A$1, ROW()-2-0+0, COLUMN()-2-210+21) -> 5 | HK2: =OFFSET(char10!A$1, ROW()-2-0+0, COLUMN()-2-210+21) -> 5 | HN2: =OFFSET(char10!A$1, ROW()-2-0+0, COLUMN()-2-220+22) -> 5 | HO2: =OFFSET(char10!A$1, ROW()-2-0+0, COLUMN()-2-220+22) -> 5 | HP2: =OFFSET(char10!A$1, ROW()-2-0+0, COLUMN()-2-220+22) -> 5 | HQ2: =OFFSET(char10!A$1, ROW()-2-0+0, COLUMN()-2-220+22) -> 5 | HR2: =OFFSET(char10!A$1, ROW()-2-0+0, COLUMN()-2-220+22) -> 5 | HS2: =OFFSET(char10!A$1, ROW()-2-0+0, COLUMN()-2-220+22) -> 5 | HT2: =OFFSET(char10!A$1, ROW()-2-0+0, COLUMN()-2-220+22) -> 5 | HU2: =OFFSET(char10!A$1, ROW()-2-0+0, COLUMN()-2-220+22) -> 5 | HX2: =OFFSET(char10!A$1, ROW()-2-0+0, COLUMN()-2-230+23) -> 5 | HY2: =OFFSET(char10!A$1, ROW()-2-0+0, COLUMN()-2-230+23) -> 5 | HZ2: =OFFSET(char10!A$1, ROW()-2-0+0, COLUMN()-2-230+23) -> 5 | IA2: =OFFSET(char10!A$1, ROW()-2-0+0, COLUMN()-2-230+23) -> 5 | IB2: =OFFSET(char10!A$1, ROW()-2-0+0, COLUMN()-2-230+23) -> 5 | IC2: =OFFSET(char10!A$1, ROW()-2-0+0, COLUMN()-2-230+23) -> 5 | ID2: =OFFSET(char10!A$1, ROW()-2-0+0, COLUMN()-2-230+23) -> 5 | IE2: =OFFSET(char10!A$1, ROW()-2-0+0, COLUMN()-2-230+23) -> 5 | IH2: =OFFSET(char10!A$1, ROW()-2-0+0, COLUMN()-2-240+24) -> 5 | II2: =OFFSET(char10!A$1, ROW()-2-0+0, COLUMN()-2-240+24) -> 5 | IJ2: =OFFSET(char10!A$1, ROW()-2-0+0, COLUMN()-2-240+24) -> 5 | IK2: =OFFSET(char10!A$1, ROW()-2-0+0, COLUMN()-2-240+24) -> 5 | IL2: =OFFSET(char10!A$1, ROW()-2-0+0, COLUMN()-2-240+24) -> 5 | IM2: =OFFSET(char10!A$1, ROW()-2-0+0, COLUMN()-2-240+24) -> 5 | IN2: =OFFSET(char10!A$1, ROW()-2-0+0, COLUMN()-2-240+24) -> 5 | IO2: =OFFSET(char10!A$1, ROW()-2-0+0, COLUMN()-2-240+24) -> 5 | IR2: =OFFSET(char10!A$1, ROW()-2-0+0, COLUMN()-2-250+25) -> 5 | IS2: =OFFSET(char10!A$1, ROW()-2-0+0, COLUMN()-2-250+25) -> 5 | IT2: =OFFSET(char10!A$1, ROW()-2-0+0, COLUMN()-2-250+25) -> 5 | IU2: =OFFSET(char10!A$1, ROW()-2-0+0, COLUMN()-2-250+25) -> 5 | IV2: =OFFSET(char10!A$1, ROW()-2-0+0, COLUMN()-2-250+25) -> 5 | IW2: =OFFSET(char10!A$1, ROW()-2-0+0, COLUMN()-2-250+25) -> 5 | IX2: =OFFSET(char10!A$1, ROW()-2-0+0, COLUMN()-2-250+25) -> 5 | IY2: =OFFSET(char10!A$1, ROW()-2-0+0, COLUMN()-2-250+25) -> 5 | JB2: =OFFSET(char10!A$1, ROW()-2-0+0, COLUMN()-2-260+26) -> 5 | JC2: =OFFSET(char10!A$1, ROW()-2-0+0, COLUMN()-2-260+26) -> 5 | JD2: =OFFSET(char10!A$1, ROW()-2-0+0, COLUMN()-2-260+26) -> 5 | JE2: =OFFSET(char10!A$1, ROW()-2-0+0, COLUMN()-2-260+26) -> 5 | JF2: =OFFSET(char10!A$1, ROW()-2-0+0, COLUMN()-2-260+26) -> 5 | JG2: =OFFSET(char10!A$1, ROW()-2-0+0, COLUMN()-2-260+26) -> 5 | JH2: =OFFSET(char10!A$1, ROW()-2-0+0, COLUMN()-2-260+26) -> 5 | JI2: =OFFSET(char10!A$1, ROW()-2-0+0, COLUMN()-2-260+26) -> 5 | JL2: =OFFSET(char10!A$1, ROW()-2-0+0, COLUMN()-2-270+27) -> 5 | JM2: =OFFSET(char10!A$1, ROW()-2-0+0, COLUMN()-2-270+27) -> 5 | JN2: =OFFSET(char10!A$1, ROW()-2-0+0, COLUMN()-2-270+27) -> 5 | JO2: =OFFSET(char10!A$1, ROW()-2-0+0, COLUMN()-2-270+27) -> 5 | JP2: =OFFSET(char10!A$1, ROW()-2-0+0, COLUMN()-2-270+27) -> 5 | JQ2: =OFFSET(char10!A$1, ROW()-2-0+0, COLUMN()-2-270+27) -> 5 | JR2: =OFFSET(char10!A$1, ROW()-2-0+0, COLUMN()-2-270+27) -> 5 | JS2: =OFFSET(char10!A$1, ROW()-2-0+0, COLUMN()-2-270+27) -> 5 | JV2: =OFFSET(char10!A$1, ROW()-2-0+0, COLUMN()-2-280+28) -> 5 | JW2: =OFFSET(char10!A$1, ROW()-2-0+0, COLUMN()-2-280+28) -> 5 | JX2: =OFFSET(char10!A$1, ROW()-2-0+0, COLUMN()-2-280+28) -> 5 | JY2: =OFFSET(char10!A$1, ROW()-2-0+0, COLUMN()-2-280+28) -> 5 | JZ2: =OFFSET(char10!A$1, ROW()-2-0+0, COLUMN()-2-280+28) -> 5 | KA2: =OFFSET(char10!A$1, ROW()-2-0+0, COLUMN()-2-280+28) -> 5 | KB2: =OFFSET(char10!A$1, ROW()-2-0+0, COLUMN()-2-280+28) -> 5 | KC2: =OFFSET(char10!A$1, ROW()-2-0+0, COLUMN()-2-280+28) -> 5 | KF2: =OFFSET(char10!A$1, ROW()-2-0+0, COLUMN()-2-290+29) -> 5 | KG2: =OFFSET(char10!A$1, ROW()-2-0+0, COLUMN()-2-290+29) -> 5 | KH2: =OFFSET(char10!A$1, ROW()-2-0+0, COLUMN()-2-290+29) -> 5 | KI2: =OFFSET(char10!A$1, ROW()-2-0+0, COLUMN()-2-290+29) -> 5 | KJ2: =OFFSET(char10!A$1, ROW()-2-0+0, COLUMN()-2-290+29) -> 5 | KK2: =OFFSET(char10!A$1, ROW()-2-0+0, COLUMN()-2-290+29) -> 5 | KL2: =OFFSET(char10!A$1, ROW()-2-0+0, COLUMN()-2-290+29) -> 5 | KM2: =OFFSET(char10!A$1, ROW()-2-0+0, COLUMN()-2-290+29) -> 5 | KP2: =OFFSET(char10!A$1, ROW()-2-0+0, COLUMN()-2-300+30) -> 5 | KQ2: =OFFSET(char10!A$1, ROW()-2-0+0, COLUMN()-2-300+30) -> 5 | KR2: =OFFSET(char10!A$1, ROW()-2-0+0, COLUMN()-2-300+30) -> 5 | KS2: =OFFSET(char10!A$1, ROW()-2-0+0, COLUMN()-2-300+30) -> 5 | KT2: =OFFSET(char10!A$1, ROW()-2-0+0, COLUMN()-2-300+30) -> 5 | KU2: =OFFSET(char10!A$1, ROW()-2-0+0, COLUMN()-2-300+30) -> 5 | KV2: =OFFSET(char10!A$1, ROW()-2-0+0, COLUMN()-2-300+30) -> 5 | KW2: =OFFSET(char10!A$1, ROW()-2-0+0, COLUMN()-2-300+30) -> 5 | KZ2: =OFFSET(char10!A$1, ROW()-2-0+0, COLUMN()-2-310+31) -> 5 | LA2: =OFFSET(char10!A$1, ROW()-2-0+0, COLUMN()-2-310+31) -> 5 | LB2: =OFFSET(char10!A$1, ROW()-2-0+0, COLUMN()-2-310+31) -> 5 | LC2: =OFFSET(char10!A$1, ROW()-2-0+0, COLUMN()-2-310+31) -> 5 | LD2: =OFFSET(char10!A$1, ROW()-2-0+0, COLUMN()-2-310+31) -> 5 | LE2: =OFFSET(char10!A$1, ROW()-2-0+0, COLUMN()-2-310+31) -> 5 | LF2: =OFFSET(char10!A$1, ROW()-2-0+0, COLUMN()-2-310+31) -> 5 | LG2: =OFFSET(char10!A$1, ROW()-2-0+0, COLUMN()-2-310+31) -> 5 | LJ2: =OFFSET(char10!A$1, ROW()-2-0+0, COLUMN()-2-320+32) -> 5 | LK2: =OFFSET(char10!A$1, ROW()-2-0+0, COLUMN()-2-320+32) -> 5 | LL2: =OFFSET(char10!A$1, ROW()-2-0+0, COLUMN()-2-320+32) -> 5 | LM2: =OFFSET(char10!A$1, ROW()-2-0+0, COLUMN()-2-320+32) -> 5 | LN2: =OFFSET(char10!A$1, ROW()-2-0+0, COLUMN()-2-320+32) -> 5 | LO2: =OFFSET(char10!A$1, ROW()-2-0+0, COLUMN()-2-320+32) -> 5 | LP2: =OFFSET(char10!A$1, ROW()-2-0+0, COLUMN()-2-320+32) -> 5 | LQ2: =OFFSET(char10!A$1, ROW()-2-0+0, COLUMN()-2-320+32) -> 5 | LT2: =OFFSET(char10!A$1, ROW()-2-0+0, COLUMN()-2-330+33) -> 5 | LU2: =OFFSET(char10!A$1, ROW()-2-0+0, COLUMN()-2-330+33) -> 5 | LV2: =OFFSET(char10!A$1, ROW()-2-0+0, COLUMN()-2-330+33) -> 5 | LW2: =OFFSET(char10!A$1, ROW()-2-0+0, COLUMN()-2-330+33) -> 5 | LX2: =OFFSET(char10!A$1, ROW()-2-0+0, COLUMN()-2-330+33) -> 5 | LY2: =OFFSET(char10!A$1, ROW()-2-0+0, COLUMN()-2-330+33) -> 5 | LZ2: =OFFSET(char10!A$1, ROW()-2-0+0, COLUMN()-2-330+33) -> 5 | MA2: =OFFSET(char10!A$1, ROW()-2-0+0, COLUMN()-2-330+33) -> 5 | MD2: =OFFSET(char10!A$1, ROW()-2-0+0, COLUMN()-2-340+34) -> 5 | ME2: =OFFSET(char10!A$1, ROW()-2-0+0, COLUMN()-2-340+34) -> 5 | MF2: =OFFSET(char10!A$1, ROW()-2-0+0, COLUMN()-2-340+34) -> 5 | MG2: =OFFSET(char10!A$1, ROW()-2-0+0, COLUMN()-2-340+34) -> 5 | MH2: =OFFSET(char10!A$1, ROW()-2-0+0, COLUMN()-2-340+34) -> 5 | MI2: =OFFSET(char10!A$1, ROW()-2-0+0, COLUMN()-2-340+34) -> 5 | MJ2: =OFFSET(char10!A$1, ROW()-2-0+0, COLUMN()-2-340+34) -> 5 | MK2: =OFFSET(char10!A$1, ROW()-2-0+0, COLUMN()-2-340+34) -> 5 | MN2: =OFFSET(char10!A$1, ROW()-2-0+0, COLUMN()-2-350+35) -> 5 | MO2: =OFFSET(char10!A$1, ROW()-2-0+0, COLUMN()-2-350+35) -> 5 | MP2: =OFFSET(char10!A$1, ROW()-2-0+0, COLUMN()-2-350+35) -> 5 | MQ2: =OFFSET(char10!A$1, ROW()-2-0+0, COLUMN()-2-350+35) -> 5 | MR2: =OFFSET(char10!A$1, ROW()-2-0+0, COLUMN()-2-350+35) -> 5 | MS2: =OFFSET(char10!A$1, ROW()-2-0+0, COLUMN()-2-350+35) -> 5 | MT2: =OFFSET(char10!A$1, ROW()-2-0+0, COLUMN()-2-350+35) -> 5 | MU2: =OFFSET(char10!A$1, ROW()-2-0+0, COLUMN()-2-350+35) -> 5 | MX2: =OFFSET(char10!A$1, ROW()-2-0+0, COLUMN()-2-360+36) -> 5 | MY2: =OFFSET(char10!A$1, ROW()-2-0+0, COLUMN()-2-360+36) -> 5 | MZ2: =OFFSET(char10!A$1, ROW()-2-0+0, COLUMN()-2-360+36) -> 5 | NA2: =OFFSET(char10!A$1, ROW()-2-0+0, COLUMN()-2-360+36) -> 5 | NB2: =OFFSET(char10!A$1, ROW()-2-0+0, COLUMN()-2-360+36) -> 5 | NC2: =OFFSET(char10!A$1, ROW()-2-0+0, COLUMN()-2-360+36) -> 5 | ND2: =OFFSET(char10!A$1, ROW()-2-0+0, COLUMN()-2-360+36) -> 5 | NE2: =OFFSET(char10!A$1, ROW()-2-0+0, COLUMN()-2-360+36) -> 5 | NH2: =OFFSET(char10!A$1, ROW()-2-0+0, COLUMN()-2-370+37) -> 5 | NI2: =OFFSET(char10!A$1, ROW()-2-0+0, COLUMN()-2-370+37) -> 5 | NJ2: =OFFSET(char10!A$1, ROW()-2-0+0, COLUMN()-2-370+37) -> 5 | NK2: =OFFSET(char10!A$1, ROW()-2-0+0, COLUMN()-2-370+37) -> 5 | NL2: =OFFSET(char10!A$1, ROW()-2-0+0, COLUMN()-2-370+37) -> 5 | NM2: =OFFSET(char10!A$1, ROW()-2-0+0, COLUMN()-2-370+37) -> 5 | NN2: =OFFSET(char10!A$1, ROW()-2-0+0, COLUMN()-2-370+37) -> 5 | NO2: =OFFSET(char10!A$1, ROW()-2-0+0, COLUMN()-2-370+37) -> 5 | NR2: =OFFSET(char10!A$1, ROW()-2-0+0, COLUMN()-2-380+38) -> 5 | NS2: =OFFSET(char10!A$1, ROW()-2-0+0, COLUMN()-2-380+38) -> 5 | NT2: =OFFSET(char10!A$1, ROW()-2-0+0, COLUMN()-2-380+38) -> 5 | NU2: =OFFSET(char10!A$1, ROW()-2-0+0, COLUMN()-2-380+38) -> 5 | NV2: =OFFSET(char10!A$1, ROW()-2-0+0, COLUMN()-2-380+38) -> 5 | NW2: =OFFSET(char10!A$1, ROW()-2-0+0, COLUMN()-2-380+38) -> 5 | NX2: =OFFSET(char10!A$1, ROW()-2-0+0, COLUMN()-2-380+38) -> 5 | NY2: =OFFSET(char10!A$1, ROW()-2-0+0, COLUMN()-2-380+38) -> 5 | OB2: =OFFSET(char10!A$1, ROW()-2-0+0, COLUMN()-2-390+39) -> 5 | OC2: =OFFSET(char10!A$1, ROW()-2-0+0, COLUMN()-2-390+39) -> 5 | OD2: =OFFSET(char10!A$1, ROW()-2-0+0, COLUMN()-2-390+39) -> 5 | OE2: =OFFSET(char10!A$1, ROW()-2-0+0, COLUMN()-2-390+39) -> 5 | OF2: =OFFSET(char10!A$1, ROW()-2-0+0, COLUMN()-2-390+39) -> 5 | OG2: =OFFSET(char10!A$1, ROW()-2-0+0, COLUMN()-2-390+39) -> 5 | OH2: =OFFSET(char10!A$1, ROW()-2-0+0, COLUMN()-2-390+39) -> 5 | OI2: =OFFSET(char10!A$1, ROW()-2-0+0, COLUMN()-2-390+39) -> 5
B3: =OFFSET(char10!A$1, ROW()-2-0+0, COLUMN()-2-0+0) -> 5 | C3: =OFFSET(char10!A$1, ROW()-2-0+0, COLUMN()-2-0+0) -> 5 | D3: =OFFSET(char10!A$1, ROW()-2-0+0, COLUMN()-2-0+0) -> 5 | E3: =OFFSET(char10!A$1, ROW()-2-0+0, COLUMN()-2-0+0) -> 5 | F3: =OFFSET(char10!A$1, ROW()-2-0+0, COLUMN()-2-0+0) -> 5 | G3: =OFFSET(char10!A$1, ROW()-2-0+0, COLUMN()-2-0+0) -> 5 | H3: =OFFSET(char10!A$1, ROW()-2-0+0, COLUMN()-2-0+0) -> 5 | I3: =OFFSET(char10!A$1, ROW()-2-0+0, COLUMN()-2-0+0) -> 5 | L3: =OFFSET(char10!A$1, ROW()-2-0+0, COLUMN()-2-10+1) -> 5 | M3: =OFFSET(char10!A$1, ROW()-2-0+0, COLUMN()-2-10+1) -> 5 | N3: =OFFSET(char10!A$1, ROW()-2-0+0, COLUMN()-2-10+1) -> 5 | O3: =OFFSET(char10!A$1, ROW()-2-0+0, COLUMN()-2-10+1) -> 5 | P3: =OFFSET(char10!A$1, ROW()-2-0+0, COLUMN()-2-10+1) -> 5 | Q3: =OFFSET(char10!A$1, ROW()-2-0+0, COLUMN()-2-10+1) -> 5 | R3: =OFFSET(char10!A$1, ROW()-2-0+0, COLUMN()-2-10+1) -> 5 | S3: =OFFSET(char10!A$1, ROW()-2-0+0, COLUMN()-2-10+1) -> 5 | V3: =OFFSET(char10!A$1, ROW()-2-0+0, COLUMN()-2-20+2) -> 5 | W3: =OFFSET(char10!A$1, ROW()-2-0+0, COLUMN()-2-20+2) -> 5 | X3: =OFFSET(char10!A$1, ROW()-2-0+0, COLUMN()-2-20+2) -> 5 | Y3: =OFFSET(char10!A$1, ROW()-2-0+0, COLUMN()-2-20+2) -> 5 | Z3: =OFFSET(char10!A$1, ROW()-2-0+0, COLUMN()-2-20+2) -> 5 | AA3: =OFFSET(char10!A$1, ROW()-2-0+0, COLUMN()-2-20+2) -> 5 | AB3: =OFFSET(char10!A$1, ROW()-2-0+0, COLUMN()-2-20+2) -> 5 | AC3: =OFFSET(char10!A$1, ROW()-2-0+0, COLUMN()-2-20+2) -> 5 | AF3: =OFFSET(char10!A$1, ROW()-2-0+0, COLUMN()-2-30+3) -> 5 | AG3: =OFFSET(char10!A$1, ROW()-2-0+0, COLUMN()-2-30+3) -> 5 | AH3: =OFFSET(char10!A$1, ROW()-2-0+0, COLUMN()-2-30+3) -> 5 | AI3: =OFFSET(char10!A$1, ROW()-2-0+0, COLUMN()-2-30+3) -> 5 | AJ3: =OFFSET(char10!A$1, ROW()-2-0+0, COLUMN()-2-30+3) -> 5 | AK3: =OFFSET(char10!A$1, ROW()-2-0+0, COLUMN()-2-30+3) -> 5 | AL3: =OFFSET(char10!A$1, ROW()-2-0+0, COLUMN()-2-30+3) -> 5 | AM3: =OFFSET(char10!A$1, ROW()-2-0+0, COLUMN()-2-30+3) -> 5 | AP3: =OFFSET(char10!A$1, ROW()-2-0+0, COLUMN()-2-40+4) -> 5 | AQ3: =OFFSET(char10!A$1, ROW()-2-0+0, COLUMN()-2-40+4) -> 5 | AR3: =OFFSET(char10!A$1, ROW()-2-0+0, COLUMN()-2-40+4) -> 5 | AS3: =OFFSET(char10!A$1, ROW()-2-0+0, COLUMN()-2-40+4) -> 5 | AT3: =OFFSET(char10!A$1, ROW()-2-0+0, COLUMN()-2-40+4) -> 5 | AU3: =OFFSET(char10!A$1, ROW()-2-0+0, COLUMN()-2-40+4) -> 5 | AV3: =OFFSET(char10!A$1, ROW()-2-0+0, COLUMN()-2-40+4) -> 5 | AW3: =OFFSET(char10!A$1, ROW()-2-0+0, COLUMN()-2-40+4) -> 5 | AZ3: =OFFSET(char10!A$1, ROW()-2-0+0, COLUMN()-2-50+5) -> 5 | BA3: =OFFSET(char10!A$1, ROW()-2-0+0, COLUMN()-2-50+5) -> 5 | BB3: =OFFSET(char10!A$1, ROW()-2-0+0, COLUMN()-2-50+5) -> 5 | BC3: =OFFSET(char10!A$1, ROW()-2-0+0, COLUMN()-2-50+5) -> 5 | BD3: =OFFSET(char10!A$1, ROW()-2-0+0, COLUMN()-2-50+5) -> 5 | BE3: =OFFSET(char10!A$1, ROW()-2-0+0, COLUMN()-2-50+5) -> 5 | BF3: =OFFSET(char10!A$1, ROW()-2-0+0, COLUMN()-2-50+5) -> 5 | BG3: =OFFSET(char10!A$1, ROW()-2-0+0, COLUMN()-2-50+5) -> 5 | BJ3: =OFFSET(char10!A$1, ROW()-2-0+0, COLUMN()-2-60+6) -> 5 | BK3: =OFFSET(char10!A$1, ROW()-2-0+0, COLUMN()-2-60+6) -> 5 | BL3: =OFFSET(char10!A$1, ROW()-2-0+0, COLUMN()-2-60+6) -> 5 | BM3: =OFFSET(char10!A$1, ROW()-2-0+0, COLUMN()-2-60+6) -> 5 | BN3: =OFFSET(char10!A$1, ROW()-2-0+0, COLUMN()-2-60+6) -> 5 | BO3: =OFFSET(char10!A$1, ROW()-2-0+0, COLUMN()-2-60+6) -> 5 | BP3: =OFFSET(char10!A$1, ROW()-2-0+0, COLUMN()-2-60+6) -> 5 | BQ3: =OFFSET(char10!A$1, ROW()-2-0+0, COLUMN()-2-60+6) -> 5 | BT3: =OFFSET(char10!A$1, ROW()-2-0+0, COLUMN()-2-70+7) -> 5 | BU3: =OFFSET(char10!A$1, ROW()-2-0+0, COLUMN()-2-70+7) -> 5 | BV3: =OFFSET(char10!A$1, ROW()-2-0+0, COLUMN()-2-70+7) -> 5 | BW3: =OFFSET(char10!A$1, ROW()-2-0+0, COLUMN()-2-70+7) -> 5 | BX3: =OFFSET(char10!A$1, ROW()-2-0+0, COLUMN()-2-70+7) -> 5 | BY3: =OFFSET(char10!A$1, ROW()-2-0+0, COLUMN()-2-70+7) -> 5 | BZ3: =OFFSET(char10!A$1, ROW()-2-0+0, COLUMN()-2-70+7) -> 5 | CA3: =OFFSET(char10!A$1, ROW()-2-0+0, COLUMN()-2-70+7) -> 5 | CD3: =OFFSET(char10!A$1, ROW()-2-0+0, COLUMN()-2-80+8) -> 5 | CE3: =OFFSET(char10!A$1, ROW()-2-0+0, COLUMN()-2-80+8) -> 5 | CF3: =OFFSET(char10!A$1, ROW()-2-0+0, COLUMN()-2-80+8) -> 5 | CG3: =OFFSET(char10!A$1, ROW()-2-0+0, COLUMN()-2-80+8) -> 5 | CH3: =OFFSET(char10!A$1, ROW()-2-0+0, COLUMN()-2-80+8) -> 5 | CI3: =OFFSET(char10!A$1, ROW()-2-0+0, COLUMN()-2-80+8) -> 5 | CJ3: =OFFSET(char10!A$1, ROW()-2-0+0, COLUMN()-2-80+8) -> 5 | CK3: =OFFSET(char10!A$1, ROW()-2-0+0, COLUMN()-2-80+8) -> 5 | CN3: =OFFSET(char10!A$1, ROW()-2-0+0, COLUMN()-2-90+9) -> 5 | CO3: =OFFSET(char10!A$1, ROW()-2-0+0, COLUMN()-2-90+9) -> 5 | CP3: =OFFSET(char10!A$1, ROW()-2-0+0, COLUMN()-2-90+9) -> 5 | CQ3: =OFFSET(char10!A$1, ROW()-2-0+0, COLUMN()-2-90+9) -> 5 | CR3: =OFFSET(char10!A$1, ROW()-2-0+0, COLUMN()-2-90+9) -> 5 | CS3: =OFFSET(char10!A$1, ROW()-2-0+0, COLUMN()-2-90+9) -> 5 | CT3: =OFFSET(char10!A$1, ROW()-2-0+0, COLUMN()-2-90+9) -> 5 | CU3: =OFFSET(char10!A$1, ROW()-2-0+0, COLUMN()-2-90+9) -> 5 | CX3: =OFFSET(char10!A$1, ROW()-2-0+0, COLUMN()-2-100+10) -> 5 | CY3: =OFFSET(char10!A$1, ROW()-2-0+0, COLUMN()-2-100+10) -> 5 | CZ3: =OFFSET(char10!A$1, ROW()-2-0+0, COLUMN()-2-100+10) -> 5 | DA3: =OFFSET(char10!A$1, ROW()-2-0+0, COLUMN()-2-100+10) -> 5 | DB3: =OFFSET(char10!A$1, ROW()-2-0+0, COLUMN()-2-100+10) -> 5 | DC3: =OFFSET(char10!A$1, ROW()-2-0+0, COLUMN()-2-100+10) -> 5 | DD3: =OFFSET(char10!A$1, ROW()-2-0+0, COLUMN()-2-100+10) -> 5 | DE3: =OFFSET(char10!A$1, ROW()-2-0+0, COLUMN()-2-100+10) -> 5 | DH3: =OFFSET(char10!A$1, ROW()-2-0+0, COLUMN()-2-110+11) -> 5 | DI3: =OFFSET(char10!A$1, ROW()-2-0+0, COLUMN()-2-110+11) -> 5 | DJ3: =OFFSET(char10!A$1, ROW()-2-0+0, COLUMN()-2-110+11) -> 5 | DK3: =OFFSET(char10!A$1, ROW()-2-0+0, COLUMN()-2-110+11) -> 5 | DL3: =OFFSET(char10!A$1, ROW()-2-0+0, COLUMN()-2-110+11) -> 5 | DM3: =OFFSET(char10!A$1, ROW()-2-0+0, COLUMN()-2-110+11) -> 5 | DN3: =OFFSET(char10!A$1, ROW()-2-0+0, COLUMN()-2-110+11) -> 5 | DO3: =OFFSET(char10!A$1, ROW()-2-0+0, COLUMN()-2-110+11) -> 5 | DR3: =OFFSET(char10!A$1, ROW()-2-0+0, COLUMN()-2-120+12) -> 5 | DS3: =OFFSET(char10!A$1, ROW()-2-0+0, COLUMN()-2-120+12) -> 5 | DT3: =OFFSET(char10!A$1, ROW()-2-0+0, COLUMN()-2-120+12) -> 5 | DU3: =OFFSET(char10!A$1, ROW()-2-0+0, COLUMN()-2-120+12) -> 5 | DV3: =OFFSET(char10!A$1, ROW()-2-0+0, COLUMN()-2-120+12) -> 5 | DW3: =OFFSET(char10!A$1, ROW()-2-0+0, COLUMN()-2-120+12) -> 5 | DX3: =OFFSET(char10!A$1, ROW()-2-0+0, COLUMN()-2-120+12) -> 5 | DY3: =OFFSET(char10!A$1, ROW()-2-0+0, COLUMN()-2-120+12) -> 5 | EB3: =OFFSET(char10!A$1, ROW()-2-0+0, COLUMN()-2-130+13) -> 5 | EC3: =OFFSET(char10!A$1, ROW()-2-0+0, COLUMN()-2-130+13) -> 5 | ED3: =OFFSET(char10!A$1, ROW()-2-0+0, COLUMN()-2-130+13) -> 5 | EE3: =OFFSET(char10!A$1, ROW()-2-0+0, COLUMN()-2-130+13) -> 5 | EF3: =OFFSET(char10!A$1, ROW()-2-0+0, COLUMN()-2-130+13) -> 5 | EG3: =OFFSET(char10!A$1, ROW()-2-0+0, COLUMN()-2-130+13) -> 5 | EH3: =OFFSET(char10!A$1, ROW()-2-0+0, COLUMN()-2-130+13) -> 5 | EI3: =OFFSET(char10!A$1, ROW()-2-0+0, COLUMN()-2-130+13) -> 5 | EL3: =OFFSET(char10!A$1, ROW()-2-0+0, COLUMN()-2-140+14) -> 5 | EM3: =OFFSET(char10!A$1, ROW()-2-0+0, COLUMN()-2-140+14) -> 5 | EN3: =OFFSET(char10!A$1, ROW()-2-0+0, COLUMN()-2-140+14) -> 5 | EO3: =OFFSET(char10!A$1, ROW()-2-0+0, COLUMN()-2-140+14) -> 5 | EP3: =OFFSET(char10!A$1, ROW()-2-0+0, COLUMN()-2-140+14) -> 5 | EQ3: =OFFSET(char10!A$1, ROW()-2-0+0, COLUMN()-2-140+14) -> 5 | ER3: =OFFSET(char10!A$1, ROW()-2-0+0, COLUMN()-2-140+14) -> 5 | ES3: =OFFSET(char10!A$1, ROW()-2-0+0, COLUMN()-2-140+14) -> 5 | EV3: =OFFSET(char10!A$1, ROW()-2-0+0, COLUMN()-2-150+15) -> 5 | EW3: =OFFSET(char10!A$1, ROW()-2-0+0, COLUMN()-2-150+15) -> 5 | EX3: =OFFSET(char10!A$1, ROW()-2-0+0, COLUMN()-2-150+15) -> 5 | EY3: =OFFSET(char10!A$1, ROW()-2-0+0, COLUMN()-2-150+15) -> 5 | EZ3: =OFFSET(char10!A$1, ROW()-2-0+0, COLUMN()-2-150+15) -> 5 | FA3: =OFFSET(char10!A$1, ROW()-2-0+0, COLUMN()-2-150+15) -> 5 | FB3: =OFFSET(char10!A$1, ROW()-2-0+0, COLUMN()-2-150+15) -> 5 | FC3: =OFFSET(char10!A$1, ROW()-2-0+0, COLUMN()-2-150+15) -> 5 | FF3: =OFFSET(char10!A$1, ROW()-2-0+0, COLUMN()-2-160+16) -> 5 | FG3: =OFFSET(char10!A$1, ROW()-2-0+0, COLUMN()-2-160+16) -> 5 | FH3: =OFFSET(char10!A$1, ROW()-2-0+0, COLUMN()-2-160+16) -> 5 | FI3: =OFFSET(char10!A$1, ROW()-2-0+0, COLUMN()-2-160+16) -> 5 | FJ3: =OFFSET(char10!A$1, ROW()-2-0+0, COLUMN()-2-160+16) -> 5 | FK3: =OFFSET(char10!A$1, ROW()-2-0+0, COLUMN()-2-160+16) -> 5 | FL3: =OFFSET(char10!A$1, ROW()-2-0+0, COLUMN()-2-160+16) -> 5 | FM3: =OFFSET(char10!A$1, ROW()-2-0+0, COLUMN()-2-160+16) -> 5 | FP3: =OFFSET(char10!A$1, ROW()-2-0+0, COLUMN()-2-170+17) -> 5 | FQ3: =OFFSET(char10!A$1, ROW()-2-0+0, COLUMN()-2-170+17) -> 5 | FR3: =OFFSET(char10!A$1, ROW()-2-0+0, COLUMN()-2-170+17) -> 5 | FS3: =OFFSET(char10!A$1, ROW()-2-0+0, COLUMN()-2-170+17) -> 5 | FT3: =OFFSET(char10!A$1, ROW()-2-0+0, COLUMN()-2-170+17) -> 5 | FU3: =OFFSET(char10!A$1, ROW()-2-0+0, COLUMN()-2-170+17) -> 5 | FV3: =OFFSET(char10!A$1, ROW()-2-0+0, COLUMN()-2-170+17) -> 5 | FW3: =OFFSET(char10!A$1, ROW()-2-0+0, COLUMN()-2-170+17) -> 5 | FZ3: =OFFSET(char10!A$1, ROW()-2-0+0, COLUMN()-2-180+18) -> 5 | GA3: =OFFSET(char10!A$1, ROW()-2-0+0, COLUMN()-2-180+18) -> 5 | GB3: =OFFSET(char10!A$1, ROW()-2-0+0, COLUMN()-2-180+18) -> 5 | GC3: =OFFSET(char10!A$1, ROW()-2-0+0, COLUMN()-2-180+18) -> 5 | GD3: =OFFSET(char10!A$1, ROW()-2-0+0, COLUMN()-2-180+18) -> 5 | GE3: =OFFSET(char10!A$1, ROW()-2-0+0, COLUMN()-2-180+18) -> 5 | GF3: =OFFSET(char10!A$1, ROW()-2-0+0, COLUMN()-2-180+18) -> 5 | GG3: =OFFSET(char10!A$1, ROW()-2-0+0, COLUMN()-2-180+18) -> 5 | GJ3: =OFFSET(char10!A$1, ROW()-2-0+0, COLUMN()-2-190+19) -> 5 | GK3: =OFFSET(char10!A$1, ROW()-2-0+0, COLUMN()-2-190+19) -> 5 | GL3: =OFFSET(char10!A$1, ROW()-2-0+0, COLUMN()-2-190+19) -> 5 | GM3: =OFFSET(char10!A$1, ROW()-2-0+0, COLUMN()-2-190+19) -> 5 | GN3: =OFFSET(char10!A$1, ROW()-2-0+0, COLUMN()-2-190+19) -> 5 | GO3: =OFFSET(char10!A$1, ROW()-2-0+0, COLUMN()-2-190+19) -> 5 | GP3: =OFFSET(char10!A$1, ROW()-2-0+0, COLUMN()-2-190+19) -> 5 | GQ3: =OFFSET(char10!A$1, ROW()-2-0+0, COLUMN()-2-190+19) -> 5 | GT3: =OFFSET(char10!A$1, ROW()-2-0+0, COLUMN()-2-200+20) -> 5 | GU3: =OFFSET(char10!A$1, ROW()-2-0+0, COLUMN()-2-200+20) -> 5 | GV3: =OFFSET(char10!A$1, ROW()-2-0+0, COLUMN()-2-200+20) -> 5 | GW3: =OFFSET(char10!A$1, ROW()-2-0+0, COLUMN()-2-200+20) -> 5 | GX3: =OFFSET(char10!A$1, ROW()-2-0+0, COLUMN()-2-200+20) -> 5 | GY3: =OFFSET(char10!A$1, ROW()-2-0+0, COLUMN()-2-200+20) -> 5 | GZ3: =OFFSET(char10!A$1, ROW()-2-0+0, COLUMN()-2-200+20) -> 5 | HA3: =OFFSET(char10!A$1, ROW()-2-0+0, COLUMN()-2-200+20) -> 5 | HD3: =OFFSET(char10!A$1, ROW()-2-0+0, COLUMN()-2-210+21) -> 5 | HE3: =OFFSET(char10!A$1, ROW()-2-0+0, COLUMN()-2-210+21) -> 5 | HF3: =OFFSET(char10!A$1, ROW()-2-0+0, COLUMN()-2-210+21) -> 5 | HG3: =OFFSET(char10!A$1, ROW()-2-0+0, COLUMN()-2-210+21) -> 5 | HH3: =OFFSET(char10!A$1, ROW()-2-0+0, COLUMN()-2-210+21) -> 5 | HI3: =OFFSET(char10!A$1, ROW()-2-0+0, COLUMN()-2-210+21) -> 5 | HJ3: =OFFSET(char10!A$1, ROW()-2-0+0, COLUMN()-2-210+21) -> 5 | HK3: =OFFSET(char10!A$1, ROW()-2-0+0, COLUMN()-2-210+21) -> 5 | HN3: =OFFSET(char10!A$1, ROW()-2-0+0, COLUMN()-2-220+22) -> 5 | HO3: =OFFSET(char10!A$1, ROW()-2-0+0, COLUMN()-2-220+22) -> 5 | HP3: =OFFSET(char10!A$1, ROW()-2-0+0, COLUMN()-2-220+22) -> 5 | HQ3: =OFFSET(char10!A$1, ROW()-2-0+0, COLUMN()-2-220+22) -> 5 | HR3: =OFFSET(char10!A$1, ROW()-2-0+0, COLUMN()-2-220+22) -> 5 | HS3: =OFFSET(char10!A$1, ROW()-2-0+0, COLUMN()-2-220+22) -> 5 | HT3: =OFFSET(char10!A$1, ROW()-2-0+0, COLUMN()-2-220+22) -> 5 | HU3: =OFFSET(char10!A$1, ROW()-2-0+0, COLUMN()-2-220+22) -> 5 | HX3: =OFFSET(char10!A$1, ROW()-2-0+0, COLUMN()-2-230+23) -> 5 | HY3: =OFFSET(char10!A$1, ROW()-2-0+0, COLUMN()-2-230+23) -> 5 | HZ3: =OFFSET(char10!A$1, ROW()-2-0+0, COLUMN()-2-230+23) -> 5 | IA3: =OFFSET(char10!A$1, ROW()-2-0+0, COLUMN()-2-230+23) -> 5 | IB3: =OFFSET(char10!A$1, ROW()-2-0+0, COLUMN()-2-230+23) -> 5 | IC3: =OFFSET(char10!A$1, ROW()-2-0+0, COLUMN()-2-230+23) -> 5 | ID3: =OFFSET(char10!A$1, ROW()-2-0+0, COLUMN()-2-230+23) -> 5 | IE3: =OFFSET(char10!A$1, ROW()-2-0+0, COLUMN()-2-230+23) -> 5 | IH3: =OFFSET(char10!A$1, ROW()-2-0+0, COLUMN()-2-240+24) -> 5 | II3: =OFFSET(char10!A$1, ROW()-2-0+0, COLUMN()-2-240+24) -> 5 | IJ3: =OFFSET(char10!A$1, ROW()-2-0+0, COLUMN()-2-240+24) -> 5 | IK3: =OFFSET(char10!A$1, ROW()-2-0+0, COLUMN()-2-240+24) -> 5 | IL3: =OFFSET(char10!A$1, ROW()-2-0+0, COLUMN()-2-240+24) -> 5 | IM3: =OFFSET(char10!A$1, ROW()-2-0+0, COLUMN()-2-240+24) -> 5 | IN3: =OFFSET(char10!A$1, ROW()-2-0+0, COLUMN()-2-240+24) -> 5 | IO3: =OFFSET(char10!A$1, ROW()-2-0+0, COLUMN()-2-240+24) -> 5 | IR3: =OFFSET(char10!A$1, ROW()-2-0+0, COLUMN()-2-250+25) -> 5 | IS3: =OFFSET(char10!A$1, ROW()-2-0+0, COLUMN()-2-250+25) -> 5 | IT3: =OFFSET(char10!A$1, ROW()-2-0+0, COLUMN()-2-250+25) -> 5 | IU3: =OFFSET(char10!A$1, ROW()-2-0+0, COLUMN()-2-250+25) -> 5 | IV3: =OFFSET(char10!A$1, ROW()-2-0+0, COLUMN()-2-250+25) -> 5 | IW3: =OFFSET(char10!A$1, ROW()-2-0+0, COLUMN()-2-250+25) -> 5 | IX3: =OFFSET(char10!A$1, ROW()-2-0+0, COLUMN()-2-250+25) -> 5 | IY3: =OFFSET(char10!A$1, ROW()-2-0+0, COLUMN()-2-250+25) -> 5 | JB3: =OFFSET(char10!A$1, ROW()-2-0+0, COLUMN()-2-260+26) -> 5 | JC3: =OFFSET(char10!A$1, ROW()-2-0+0, COLUMN()-2-260+26) -> 5 | JD3: =OFFSET(char10!A$1, ROW()-2-0+0, COLUMN()-2-260+26) -> 5 | JE3: =OFFSET(char10!A$1, ROW()-2-0+0, COLUMN()-2-260+26) -> 5 | JF3: =OFFSET(char10!A$1, ROW()-2-0+0, COLUMN()-2-260+26) -> 5 | JG3: =OFFSET(char10!A$1, ROW()-2-0+0, COLUMN()-2-260+26) -> 5 | JH3: =OFFSET(char10!A$1, ROW()-2-0+0, COLUMN()-2-260+26) -> 5 | JI3: =OFFSET(char10!A$1, ROW()-2-0+0, COLUMN()-2-260+26) -> 5 | JL3: =OFFSET(char10!A$1, ROW()-2-0+0, COLUMN()-2-270+27) -> 5 | JM3: =OFFSET(char10!A$1, ROW()-2-0+0, COLUMN()-2-270+27) -> 5 | JN3: =OFFSET(char10!A$1, ROW()-2-0+0, COLUMN()-2-270+27) -> 5 | JO3: =OFFSET(char10!A$1, ROW()-2-0+0, COLUMN()-2-270+27) -> 5 | JP3: =OFFSET(char10!A$1, ROW()-2-0+0, COLUMN()-2-270+27) -> 5 | JQ3: =OFFSET(char10!A$1, ROW()-2-0+0, COLUMN()-2-270+27) -> 5 | JR3: =OFFSET(char10!A$1, ROW()-2-0+0, COLUMN()-2-270+27) -> 5 | JS3: =OFFSET(char10!A$1, ROW()-2-0+0, COLUMN()-2-270+27) -> 5 | JV3: =OFFSET(char10!A$1, ROW()-2-0+0, COLUMN()-2-280+28) -> 5 | JW3: =OFFSET(char10!A$1, ROW()-2-0+0, COLUMN()-2-280+28) -> 5 | JX3: =OFFSET(char10!A$1, ROW()-2-0+0, COLUMN()-2-280+28) -> 5 | JY3: =OFFSET(char10!A$1, ROW()-2-0+0, COLUMN()-2-280+28) -> 5 | JZ3: =OFFSET(char10!A$1, ROW()-2-0+0, COLUMN()-2-280+28) -> 5 | KA3: =OFFSET(char10!A$1, ROW()-2-0+0, COLUMN()-2-280+28) -> 5 | KB3: =OFFSET(char10!A$1, ROW()-2-0+0, COLUMN()-2-280+28) -> 5 | KC3: =OFFSET(char10!A$1, ROW()-2-0+0, COLUMN()-2-280+28) -> 5 | KF3: =OFFSET(char10!A$1, ROW()-2-0+0, COLUMN()-2-290+29) -> 5 | KG3: =OFFSET(char10!A$1, ROW()-2-0+0, COLUMN()-2-290+29) -> 5 | KH3: =OFFSET(char10!A$1, ROW()-2-0+0, COLUMN()-2-290+29) -> 5 | KI3: =OFFSET(char10!A$1, ROW()-2-0+0, COLUMN()-2-290+29) -> 5 | KJ3: =OFFSET(char10!A$1, ROW()-2-0+0, COLUMN()-2-290+29) -> 5 | KK3: =OFFSET(char10!A$1, ROW()-2-0+0, COLUMN()-2-290+29) -> 5 | KL3: =OFFSET(char10!A$1, ROW()-2-0+0, COLUMN()-2-290+29) -> 5 | KM3: =OFFSET(char10!A$1, ROW()-2-0+0, COLUMN()-2-290+29) -> 5 | KP3: =OFFSET(char10!A$1, ROW()-2-0+0, COLUMN()-2-300+30) -> 5 | KQ3: =OFFSET(char10!A$1, ROW()-2-0+0, COLUMN()-2-300+30) -> 5 | KR3: =OFFSET(char10!A$1, ROW()-2-0+0, COLUMN()-2-300+30) -> 5 | KS3: =OFFSET(char10!A$1, ROW()-2-0+0, COLUMN()-2-300+30) -> 5 | KT3: =OFFSET(char10!A$1, ROW()-2-0+0, COLUMN()-2-300+30) -> 5 | KU3: =OFFSET(char10!A$1, ROW()-2-0+0, COLUMN()-2-300+30) -> 5 | KV3: =OFFSET(char10!A$1, ROW()-2-0+0, COLUMN()-2-300+30) -> 5 | KW3: =OFFSET(char10!A$1, ROW()-2-0+0, COLUMN()-2-300+30) -> 5 | KZ3: =OFFSET(char10!A$1, ROW()-2-0+0, COLUMN()-2-310+31) -> 5 | LA3: =OFFSET(char10!A$1, ROW()-2-0+0, COLUMN()-2-310+31) -> 5 | LB3: =OFFSET(char10!A$1, ROW()-2-0+0, COLUMN()-2-310+31) -> 5 | LC3: =OFFSET(char10!A$1, ROW()-2-0+0, COLUMN()-2-310+31) -> 5 | LD3: =OFFSET(char10!A$1, ROW()-2-0+0, COLUMN()-2-310+31) -> 5 | LE3: =OFFSET(char10!A$1, ROW()-2-0+0, COLUMN()-2-310+31) -> 5 | LF3: =OFFSET(char10!A$1, ROW()-2-0+0, COLUMN()-2-310+31) -> 5 | LG3: =OFFSET(char10!A$1, ROW()-2-0+0, COLUMN()-2-310+31) -> 5 | LJ3: =OFFSET(char10!A$1, ROW()-2-0+0, COLUMN()-2-320+32) -> 5 | LK3: =OFFSET(char10!A$1, ROW()-2-0+0, COLUMN()-2-320+32) -> 5 | LL3: =OFFSET(char10!A$1, ROW()-2-0+0, COLUMN()-2-320+32) -> 5 | LM3: =OFFSET(char10!A$1, ROW()-2-0+0, COLUMN()-2-320+32) -> 5 | LN3: =OFFSET(char10!A$1, ROW()-2-0+0, COLUMN()-2-320+32) -> 5 | LO3: =OFFSET(char10!A$1, ROW()-2-0+0, COLUMN()-2-320+32) -> 5 | LP3: =OFFSET(char10!A$1, ROW()-2-0+0, COLUMN()-2-320+32) -> 5 | LQ3: =OFFSET(char10!A$1, ROW()-2-0+0, COLUMN()-2-320+32) -> 5 | LT3: =OFFSET(char10!A$1, ROW()-2-0+0, COLUMN()-2-330+33) -> 5 | LU3: =OFFSET(char10!A$1, ROW()-2-0+0, COLUMN()-2-330+33) -> 5 | LV3: =OFFSET(char10!A$1, ROW()-2-0+0, COLUMN()-2-330+33) -> 5 | LW3: =OFFSET(char10!A$1, ROW()-2-0+0, COLUMN()-2-330+33) -> 5 | LX3: =OFFSET(char10!A$1, ROW()-2-0+0, COLUMN()-2-330+33) -> 5 | LY3: =OFFSET(char10!A$1, ROW()-2-0+0, COLUMN()-2-330+33) -> 5 | LZ3: =OFFSET(char10!A$1, ROW()-2-0+0, COLUMN()-2-330+33) -> 5 | MA3: =OFFSET(char10!A$1, ROW()-2-0+0, COLUMN()-2-330+33) -> 5 | MD3: =OFFSET(char10!A$1, ROW()-2-0+0, COLUMN()-2-340+34) -> 5 | ME3: =OFFSET(char10!A$1, ROW()-2-0+0, COLUMN()-2-340+34) -> 5 | MF3: =OFFSET(char10!A$1, ROW()-2-0+0, COLUMN()-2-340+34) -> 5 | MG3: =OFFSET(char10!A$1, ROW()-2-0+0, COLUMN()-2-340+34) -> 5 | MH3: =OFFSET(char10!A$1, ROW()-2-0+0, COLUMN()-2-340+34) -> 5 | MI3: =OFFSET(char10!A$1, ROW()-2-0+0, COLUMN()-2-340+34) -> 5 | MJ3: =OFFSET(char10!A$1, ROW()-2-0+0, COLUMN()-2-340+34) -> 5 | MK3: =OFFSET(char10!A$1, ROW()-2-0+0, COLUMN()-2-340+34) -> 5 | MN3: =OFFSET(char10!A$1, ROW()-2-0+0, COLUMN()-2-350+35) -> 5 | MO3: =OFFSET(char10!A$1, ROW()-2-0+0, COLUMN()-2-350+35) -> 5 | MP3: =OFFSET(char10!A$1, ROW()-2-0+0, COLUMN()-2-350+35) -> 5 | MQ3: =OFFSET(char10!A$1, ROW()-2-0+0, COLUMN()-2-350+35) -> 5 | MR3: =OFFSET(char10!A$1, ROW()-2-0+0, COLUMN()-2-350+35) -> 5 | MS3: =OFFSET(char10!A$1, ROW()-2-0+0, COLUMN()-2-350+35) -> 5 | MT3: =OFFSET(char10!A$1, ROW()-2-0+0, COLUMN()-2-350+35) -> 5 | MU3: =OFFSET(char10!A$1, ROW()-2-0+0, COLUMN()-2-350+35) -> 5 | MX3: =OFFSET(char10!A$1, ROW()-2-0+0, COLUMN()-2-360+36) -> 5 | MY3: =OFFSET(char10!A$1, ROW()-2-0+0, COLUMN()-2-360+36) -> 5 | MZ3: =OFFSET(char10!A$1, ROW()-2-0+0, COLUMN()-2-360+36) -> 5 | NA3: =OFFSET(char10!A$1, ROW()-2-0+0, COLUMN()-2-360+36) -> 5 | NB3: =OFFSET(char10!A$1, ROW()-2-0+0, COLUMN()-2-360+36) -> 5 | NC3: =OFFSET(char10!A$1, ROW()-2-0+0, COLUMN()-2-360+36) -> 5 | ND3: =OFFSET(char10!A$1, ROW()-2-0+0, COLUMN()-2-360+36) -> 5 | NE3: =OFFSET(char10!A$1, ROW()-2-0+0, COLUMN()-2-360+36) -> 5 | NH3: =OFFSET(char10!A$1, ROW()-2-0+0, COLUMN()-2-370+37) -> 5 | NI3: =OFFSET(char10!A$1, ROW()-2-0+0, COLUMN()-2-370+37) -> 5 | NJ3: =OFFSET(char10!A$1, ROW()-2-0+0, COLUMN()-2-370+37) -> 5 | NK3: =OFFSET(char10!A$1, ROW()-2-0+0, COLUMN()-2-370+37) -> 5 | NL3: =OFFSET(char10!A$1, ROW()-2-0+0, COLUMN()-2-370+37) -> 5 | NM3: =OFFSET(char10!A$1, ROW()-2-0+0, COLUMN()-2-370+37) -> 5 | NN3: =OFFSET(char10!A$1, ROW()-2-0+0, COLUMN()-2-370+37) -> 5 | NO3: =OFFSET(char10!A$1, ROW()-2-0+0, COLUMN()-2-370+37) -> 5 | NR3: =OFFSET(char10!A$1, ROW()-2-0+0, COLUMN()-2-380+38) -> 5 | NS3: =OFFSET(char10!A$1, ROW()-2-0+0, COLUMN()-2-380+38) -> 5 | NT3: =OFFSET(char10!A$1, ROW()-2-0+0, COLUMN()-2-380+38) -> 5 | NU3: =OFFSET(char10!A$1, ROW()-2-0+0, COLUMN()-2-380+38) -> 5 | NV3: =OFFSET(char10!A$1, ROW()-2-0+0, COLUMN()-2-380+38) -> 5 | NW3: =OFFSET(char10!A$1, ROW()-2-0+0, COLUMN()-2-380+38) -> 5 | NX3: =OFFSET(char10!A$1, ROW()-2-0+0, COLUMN()-2-380+38) -> 5 | NY3: =OFFSET(char10!A$1, ROW()-2-0+0, COLUMN()-2-380+38) -> 5 | OB3: =OFFSET(char10!A$1, ROW()-2-0+0, COLUMN()-2-390+39) -> 5 | OC3: =OFFSET(char10!A$1, ROW()-2-0+0, COLUMN()-2-390+39) -> 5 | OD3: =OFFSET(char10!A$1, ROW()-2-0+0, COLUMN()-2-390+39) -> 5 | OE3: =OFFSET(char10!A$1, ROW()-2-0+0, COLUMN()-2-390+39) -> 5 | OF3: =OFFSET(char10!A$1, ROW()-2-0+0, COLUMN()-2-390+39) -> 5 | OG3: =OFFSET(char10!A$1, ROW()-2-0+0, COLUMN()-2-390+39) -> 5 | OH3: =OFFSET(char10!A$1, ROW()-2-0+0, COLUMN()-2-390+39) -> 5 | OI3: =OFFSET(char10!A$1, ROW()-2-0+0, COLUMN()-2-390+39) -> 5
B4: =OFFSET(char10!A$1, ROW()-2-0+0, COLUMN()-2-0+0) -> 5 | C4: =OFFSET(char10!A$1, ROW()-2-0+0, COLUMN()-2-0+0) -> 5 | D4: =OFFSET(char10!A$1, ROW()-2-0+0, COLUMN()-2-0+0) -> 5 | E4: =OFFSET(char10!A$1, ROW()-2-0+0, COLUMN()-2-0+0) -> 5 | F4: =OFFSET(char10!A$1, ROW()-2-0+0, COLUMN()-2-0+0) -> 5 | G4: =OFFSET(char10!A$1, ROW()-2-0+0, COLUMN()-2-0+0) -> 5 | H4: =OFFSET(char10!A$1, ROW()-2-0+0, COLUMN()-2-0+0) -> 5 | I4: =OFFSET(char10!A$1, ROW()-2-0+0, COLUMN()-2-0+0) -> 5 | L4: =OFFSET(char10!A$1, ROW()-2-0+0, COLUMN()-2-10+1) -> 5 | M4: =OFFSET(char10!A$1, ROW()-2-0+0, COLUMN()-2-10+1) -> 5 | N4: =OFFSET(char10!A$1, ROW()-2-0+0, COLUMN()-2-10+1) -> 5 | O4: =OFFSET(char10!A$1, ROW()-2-0+0, COLUMN()-2-10+1) -> 5 | P4: =OFFSET(char10!A$1, ROW()-2-0+0, COLUMN()-2-10+1) -> 5 | Q4: =OFFSET(char10!A$1, ROW()-2-0+0, COLUMN()-2-10+1) -> 5 | R4: =OFFSET(char10!A$1, ROW()-2-0+0, COLUMN()-2-10+1) -> 5 | S4: =OFFSET(char10!A$1, ROW()-2-0+0, COLUMN()-2-10+1) -> 5 | V4: =OFFSET(char10!A$1, ROW()-2-0+0, COLUMN()-2-20+2) -> 5 | W4: =OFFSET(char10!A$1, ROW()-2-0+0, COLUMN()-2-20+2) -> 5 | X4: =OFFSET(char10!A$1, ROW()-2-0+0, COLUMN()-2-20+2) -> 5 | Y4: =OFFSET(char10!A$1, ROW()-2-0+0, COLUMN()-2-20+2) -> 5 | Z4: =OFFSET(char10!A$1, ROW()-2-0+0, COLUMN()-2-20+2) -> 5 | AA4: =OFFSET(char10!A$1, ROW()-2-0+0, COLUMN()-2-20+2) -> 5 | AB4: =OFFSET(char10!A$1, ROW()-2-0+0, COLUMN()-2-20+2) -> 5 | AC4: =OFFSET(char10!A$1, ROW()-2-0+0, COLUMN()-2-20+2) -> 5 | AF4: =OFFSET(char10!A$1, ROW()-2-0+0, COLUMN()-2-30+3) -> 5 | AG4: =OFFSET(char10!A$1, ROW()-2-0+0, COLUMN()-2-30+3) -> 5 | AH4: =OFFSET(char10!A$1, ROW()-2-0+0, COLUMN()-2-30+3) -> 5 | AI4: =OFFSET(char10!A$1, ROW()-2-0+0, COLUMN()-2-30+3) -> 5 | AJ4: =OFFSET(char10!A$1, ROW()-2-0+0, COLUMN()-2-30+3) -> 5 | AK4: =OFFSET(char10!A$1, ROW()-2-0+0, COLUMN()-2-30+3) -> 5 | AL4: =OFFSET(char10!A$1, ROW()-2-0+0, COLUMN()-2-30+3) -> 5 | AM4: =OFFSET(char10!A$1, ROW()-2-0+0, COLUMN()-2-30+3) -> 5 | AP4: =OFFSET(char10!A$1, ROW()-2-0+0, COLUMN()-2-40+4) -> 5 | AQ4: =OFFSET(char10!A$1, ROW()-2-0+0, COLUMN()-2-40+4) -> 5 | AR4: =OFFSET(char10!A$1, ROW()-2-0+0, COLUMN()-2-40+4) -> 5 | AS4: =OFFSET(char10!A$1, ROW()-2-0+0, COLUMN()-2-40+4) -> 5 | AT4: =OFFSET(char10!A$1, ROW()-2-0+0, COLUMN()-2-40+4) -> 5 | AU4: =OFFSET(char10!A$1, ROW()-2-0+0, COLUMN()-2-40+4) -> 5 | AV4: =OFFSET(char10!A$1, ROW()-2-0+0, COLUMN()-2-40+4) -> 5 | AW4: =OFFSET(char10!A$1, ROW()-2-0+0, COLUMN()-2-40+4) -> 5 | AZ4: =OFFSET(char10!A$1, ROW()-2-0+0, COLUMN()-2-50+5) -> 5 | BA4: =OFFSET(char10!A$1, ROW()-2-0+0, COLUMN()-2-50+5) -> 5 | BB4: =OFFSET(char10!A$1, ROW()-2-0+0, COLUMN()-2-50+5) -> 5 | BC4: =OFFSET(char10!A$1, ROW()-2-0+0, COLUMN()-2-50+5) -> 5 | BD4: =OFFSET(char10!A$1, ROW()-2-0+0, COLUMN()-2-50+5) -> 5 | BE4: =OFFSET(char10!A$1, ROW()-2-0+0, COLUMN()-2-50+5) -> 5 | BF4: =OFFSET(char10!A$1, ROW()-2-0+0, COLUMN()-2-50+5) -> 5 | BG4: =OFFSET(char10!A$1, ROW()-2-0+0, COLUMN()-2-50+5) -> 5 | BJ4: =OFFSET(char10!A$1, ROW()-2-0+0, COLUMN()-2-60+6) -> 5 | BK4: =OFFSET(char10!A$1, ROW()-2-0+0, COLUMN()-2-60+6) -> 5 | BL4: =OFFSET(char10!A$1, ROW()-2-0+0, COLUMN()-2-60+6) -> 5 | BM4: =OFFSET(char10!A$1, ROW()-2-0+0, COLUMN()-2-60+6) -> 5 | BN4: =OFFSET(char10!A$1, ROW()-2-0+0, COLUMN()-2-60+6) -> 5 | BO4: =OFFSET(char10!A$1, ROW()-2-0+0, COLUMN()-2-60+6) -> 5 | BP4: =OFFSET(char10!A$1, ROW()-2-0+0, COLUMN()-2-60+6) -> 5 | BQ4: =OFFSET(char10!A$1, ROW()-2-0+0, COLUMN()-2-60+6) -> 5 | BT4: =OFFSET(char10!A$1, ROW()-2-0+0, COLUMN()-2-70+7) -> 5 | BU4: =OFFSET(char10!A$1, ROW()-2-0+0, COLUMN()-2-70+7) -> 5 | BV4: =OFFSET(char10!A$1, ROW()-2-0+0, COLUMN()-2-70+7) -> 5 | BW4: =OFFSET(char10!A$1, ROW()-2-0+0, COLUMN()-2-70+7) -> 5 | BX4: =OFFSET(char10!A$1, ROW()-2-0+0, COLUMN()-2-70+7) -> 5 | BY4: =OFFSET(char10!A$1, ROW()-2-0+0, COLUMN()-2-70+7) -> 5 | BZ4: =OFFSET(char10!A$1, ROW()-2-0+0, COLUMN()-2-70+7) -> 5 | CA4: =OFFSET(char10!A$1, ROW()-2-0+0, COLUMN()-2-70+7) -> 5 | CD4: =OFFSET(char10!A$1, ROW()-2-0+0, COLUMN()-2-80+8) -> 5 | CE4: =OFFSET(char10!A$1, ROW()-2-0+0, COLUMN()-2-80+8) -> 5 | CF4: =OFFSET(char10!A$1, ROW()-2-0+0, COLUMN()-2-80+8) -> 5 | CG4: =OFFSET(char10!A$1, ROW()-2-0+0, COLUMN()-2-80+8) -> 5 | CH4: =OFFSET(char10!A$1, ROW()-2-0+0, COLUMN()-2-80+8) -> 5 | CI4: =OFFSET(char10!A$1, ROW()-2-0+0, COLUMN()-2-80+8) -> 5 | CJ4: =OFFSET(char10!A$1, ROW()-2-0+0, COLUMN()-2-80+8) -> 5 | CK4: =OFFSET(char10!A$1, ROW()-2-0+0, COLUMN()-2-80+8) -> 5 | CN4: =OFFSET(char10!A$1, ROW()-2-0+0, COLUMN()-2-90+9) -> 5 | CO4: =OFFSET(char10!A$1, ROW()-2-0+0, COLUMN()-2-90+9) -> 5 | CP4: =OFFSET(char10!A$1, ROW()-2-0+0, COLUMN()-2-90+9) -> 5 | CQ4: =OFFSET(char10!A$1, ROW()-2-0+0, COLUMN()-2-90+9) -> 5 | CR4: =OFFSET(char10!A$1, ROW()-2-0+0, COLUMN()-2-90+9) -> 5 | CS4: =OFFSET(char10!A$1, ROW()-2-0+0, COLUMN()-2-90+9) -> 5 | CT4: =OFFSET(char10!A$1, ROW()-2-0+0, COLUMN()-2-90+9) -> 5 | CU4: =OFFSET(char10!A$1, ROW()-2-0+0, COLUMN()-2-90+9) -> 5 | CX4: =OFFSET(char10!A$1, ROW()-2-0+0, COLUMN()-2-100+10) -> 5 | CY4: =OFFSET(char10!A$1, ROW()-2-0+0, COLUMN()-2-100+10) -> 5 | CZ4: =OFFSET(char10!A$1, ROW()-2-0+0, COLUMN()-2-100+10) -> 5 | DA4: =OFFSET(char10!A$1, ROW()-2-0+0, COLUMN()-2-100+10) -> 5 | DB4: =OFFSET(char10!A$1, ROW()-2-0+0, COLUMN()-2-100+10) -> 5 | DC4: =OFFSET(char10!A$1, ROW()-2-0+0, COLUMN()-2-100+10) -> 5 | DD4: =OFFSET(char10!A$1, ROW()-2-0+0, COLUMN()-2-100+10) -> 5 | DE4: =OFFSET(char10!A$1, ROW()-2-0+0, COLUMN()-2-100+10) -> 5 | DH4: =OFFSET(char10!A$1, ROW()-2-0+0, COLUMN()-2-110+11) -> 5 | DI4: =OFFSET(char10!A$1, ROW()-2-0+0, COLUMN()-2-110+11) -> 5 | DJ4: =OFFSET(char10!A$1, ROW()-2-0+0, COLUMN()-2-110+11) -> 5 | DK4: =OFFSET(char10!A$1, ROW()-2-0+0, COLUMN()-2-110+11) -> 5 | DL4: =OFFSET(char10!A$1, ROW()-2-0+0, COLUMN()-2-110+11) -> 5 | DM4: =OFFSET(char10!A$1, ROW()-2-0+0, COLUMN()-2-110+11) -> 5 | DN4: =OFFSET(char10!A$1, ROW()-2-0+0, COLUMN()-2-110+11) -> 5 | DO4: =OFFSET(char10!A$1, ROW()-2-0+0, COLUMN()-2-110+11) -> 5 | DR4: =OFFSET(char10!A$1, ROW()-2-0+0, COLUMN()-2-120+12) -> 5 | DS4: =OFFSET(char10!A$1, ROW()-2-0+0, COLUMN()-2-120+12) -> 5 | DT4: =OFFSET(char10!A$1, ROW()-2-0+0, COLUMN()-2-120+12) -> 5 | DU4: =OFFSET(char10!A$1, ROW()-2-0+0, COLUMN()-2-120+12) -> 5 | DV4: =OFFSET(char10!A$1, ROW()-2-0+0, COLUMN()-2-120+12) -> 5 | DW4: =OFFSET(char10!A$1, ROW()-2-0+0, COLUMN()-2-120+12) -> 5 | DX4: =OFFSET(char10!A$1, ROW()-2-0+0, COLUMN()-2-120+12) -> 5 | DY4: =OFFSET(char10!A$1, ROW()-2-0+0, COLUMN()-2-120+12) -> 15 | EB4: =OFFSET(char10!A$1, ROW()-2-0+0, COLUMN()-2-130+13) -> 5 | EC4: =OFFSET(char10!A$1, ROW()-2-0+0, COLUMN()-2-130+13) -> 5 | ED4: =OFFSET(char10!A$1, ROW()-2-0+0, COLUMN()-2-130+13) -> 5 | EE4: =OFFSET(char10!A$1, ROW()-2-0+0, COLUMN()-2-130+13) -> 5 | EF4: =OFFSET(char10!A$1, ROW()-2-0+0, COLUMN()-2-130+13) -> 5 | EG4: =OFFSET(char10!A$1, ROW()-2-0+0, COLUMN()-2-130+13) -> 5 | EH4: =OFFSET(char10!A$1, ROW()-2-0+0, COLUMN()-2-130+13) -> 15 | EI4: =OFFSET(char10!A$1, ROW()-2-0+0, COLUMN()-2-130+13) -> 40 | EL4: =OFFSET(char10!A$1, ROW()-2-0+0, COLUMN()-2-140+14) -> 5 | EM4: =OFFSET(char10!A$1, ROW()-2-0+0, COLUMN()-2-140+14) -> 5 | EN4: =OFFSET(char10!A$1, ROW()-2-0+0, COLUMN()-2-140+14) -> 5 | EO4: =OFFSET(char10!A$1, ROW()-2-0+0, COLUMN()-2-140+14) -> 5 | EP4: =OFFSET(char10!A$1, ROW()-2-0+0, COLUMN()-2-140+14) -> 5 | EQ4: =OFFSET(char10!A$1, ROW()-2-0+0, COLUMN()-2-140+14) -> 15 | ER4: =OFFSET(char10!A$1, ROW()-2-0+0, COLUMN()-2-140+14) -> 40 | ES4: =OFFSET(char10!A$1, ROW()-2-0+0, COLUMN()-2-140+14) -> 40 | EV4: =OFFSET(char10!A$1, ROW()-2-0+0, COLUMN()-2-150+15) -> 5 | EW4: =OFFSET(char10!A$1, ROW()-2-0+0, COLUMN()-2-150+15) -> 5 | EX4: =OFFSET(char10!A$1, ROW()-2-0+0, COLUMN()-2-150+15) -> 5 | EY4: =OFFSET(char10!A$1, ROW()-2-0+0, COLUMN()-2-150+15) -> 5 | EZ4: =OFFSET(char10!A$1, ROW()-2-0+0, COLUMN()-2-150+15) -> 15 | FA4: =OFFSET(char10!A$1, ROW()-2-0+0, COLUMN()-2-150+15) -> 40 | FB4: =OFFSET(char10!A$1, ROW()-2-0+0, COLUMN()-2-150+15) -> 40 | FC4: =OFFSET(char10!A$1, ROW()-2-0+0, COLUMN()-2-150+15) -> 40 | FF4: =OFFSET(char10!A$1, ROW()-2-0+0, COLUMN()-2-160+16) -> 5 | FG4: =OFFSET(char10!A$1, ROW()-2-0+0, COLUMN()-2-160+16) -> 5 | FH4: =OFFSET(char10!A$1, ROW()-2-0+0, COLUMN()-2-160+16) -> 5 | FI4: =OFFSET(char10!A$1, ROW()-2-0+0, COLUMN()-2-160+16) -> 15 | FJ4: =OFFSET(char10!A$1, ROW()-2-0+0, COLUMN()-2-160+16) -> 40 | FK4: =OFFSET(char10!A$1, ROW()-2-0+0, COLUMN()-2-160+16) -> 40 | FL4: =OFFSET(char10!A$1, ROW()-2-0+0, COLUMN()-2-160+16) -> 40 | FM4: =OFFSET(char10!A$1, ROW()-2-0+0, COLUMN()-2-160+16) -> 15 | FP4: =OFFSET(char10!A$1, ROW()-2-0+0, COLUMN()-2-170+17) -> 5 | FQ4: =OFFSET(char10!A$1, ROW()-2-0+0, COLUMN()-2-170+17) -> 5 | FR4: =OFFSET(char10!A$1, ROW()-2-0+0, COLUMN()-2-170+17) -> 15 | FS4: =OFFSET(char10!A$1, ROW()-2-0+0, COLUMN()-2-170+17) -> 40 | FT4: =OFFSET(char10!A$1, ROW()-2-0+0, COLUMN()-2-170+17) -> 40 | FU4: =OFFSET(char10!A$1, ROW()-2-0+0, COLUMN()-2-170+17) -> 40 | FV4: =OFFSET(char10!A$1, ROW()-2-0+0, COLUMN()-2-170+17) -> 15 | FW4: =OFFSET(char10!A$1, ROW()-2-0+0, COLUMN()-2-170+17) -> 5 | FZ4: =OFFSET(char10!A$1, ROW()-2-0+0, COLUMN()-2-180+18) -> 5 | GA4: =OFFSET(char10!A$1, ROW()-2-0+0, COLUMN()-2-180+18) -> 15 | GB4: =OFFSET(char10!A$1, ROW()-2-0+0, COLUMN()-2-180+18) -> 40 | GC4: =OFFSET(char10!A$1, ROW()-2-0+0, COLUMN()-2-180+18) -> 40 | GD4: =OFFSET(char10!A$1, ROW()-2-0+0, COLUMN()-2-180+18) -> 40 | GE4: =OFFSET(char10!A$1, ROW()-2-0+0, COLUMN()-2-180+18) -> 15 | GF4: =OFFSET(char10!A$1, ROW()-2-0+0, COLUMN()-2-180+18) -> 5 | GG4: =OFFSET(char10!A$1, ROW()-2-0+0, COLUMN()-2-180+18) -> 5 | GJ4: =OFFSET(char10!A$1, ROW()-2-0+0, COLUMN()-2-190+19) -> 15 | GK4: =OFFSET(char10!A$1, ROW()-2-0+0, COLUMN()-2-190+19) -> 40 | GL4: =OFFSET(char10!A$1, ROW()-2-0+0, COLUMN()-2-190+19) -> 40 | GM4: =OFFSET(char10!A$1, ROW()-2-0+0, COLUMN()-2-190+19) -> 40 | GN4: =OFFSET(char10!A$1, ROW()-2-0+0, COLUMN()-2-190+19) -> 15 | GO4: =OFFSET(char10!A$1, ROW()-2-0+0, COLUMN()-2-190+19) -> 5 | GP4: =OFFSET(char10!A$1, ROW()-2-0+0, COLUMN()-2-190+19) -> 5 | GQ4: =OFFSET(char10!A$1, ROW()-2-0+0, COLUMN()-2-190+19) -> 5 | GT4: =OFFSET(char10!A$1, ROW()-2-0+0, COLUMN()-2-200+20) -> 40 | GU4: =OFFSET(char10!A$1, ROW()-2-0+0, COLUMN()-2-200+20) -> 40 | GV4: =OFFSET(char10!A$1, ROW()-2-0+0, COLUMN()-2-200+20) -> 40 | GW4: =OFFSET(char10!A$1, ROW()-2-0+0, COLUMN()-2-200+20) -> 15 | GX4: =OFFSET(char10!A$1, ROW()-2-0+0, COLUMN()-2-200+20) -> 5 | GY4: =OFFSET(char10!A$1, ROW()-2-0+0, COLUMN()-2-200+20) -> 5 | GZ4: =OFFSET(char10!A$1, ROW()-2-0+0, COLUMN()-2-200+20) -> 5 | HA4: =OFFSET(char10!A$1, ROW()-2-0+0, COLUMN()-2-200+20) -> 5 | HD4: =OFFSET(char10!A$1, ROW()-2-0+0, COLUMN()-2-210+21) -> 40 | HE4: =OFFSET(char10!A$1, ROW()-2-0+0, COLUMN()-2-210+21) -> 40 | HF4: =OFFSET(char10!A$1, ROW()-2-0+0, COLUMN()-2-210+21) -> 15 | HG4: =OFFSET(char10!A$1, ROW()-2-0+0, COLUMN()-2-210+21) -> 5 | HH4: =OFFSET(char10!A$1, ROW()-2-0+0, COLUMN()-2-210+21) -> 5 | HI4: =OFFSET(char10!A$1, ROW()-2-0+0, COLUMN()-2-210+21) -> 5 | HJ4: =OFFSET(char10!A$1, ROW()-2-0+0, COLUMN()-2-210+21) -> 5 | HK4: =OFFSET(char10!A$1, ROW()-2-0+0, COLUMN()-2-210+21) -> 5 | HN4: =OFFSET(char10!A$1, ROW()-2-0+0, COLUMN()-2-220+22) -> 40 | HO4: =OFFSET(char10!A$1, ROW()-2-0+0, COLUMN()-2-220+22) -> 15 | HP4: =OFFSET(char10!A$1, ROW()-2-0+0, COLUMN()-2-220+22) -> 5 | HQ4: =OFFSET(char10!A$1, ROW()-2-0+0, COLUMN()-2-220+22) -> 5 | HR4: =OFFSET(char10!A$1, ROW()-2-0+0, COLUMN()-2-220+22) -> 5 | HS4: =OFFSET(char10!A$1, ROW()-2-0+0, COLUMN()-2-220+22) -> 5 | HT4: =OFFSET(char10!A$1, ROW()-2-0+0, COLUMN()-2-220+22) -> 5 | HU4: =OFFSET(char10!A$1, ROW()-2-0+0, COLUMN()-2-220+22) -> 5 | HX4: =OFFSET(char10!A$1, ROW()-2-0+0, COLUMN()-2-230+23) -> 15 | HY4: =OFFSET(char10!A$1, ROW()-2-0+0, COLUMN()-2-230+23) -> 5 | HZ4: =OFFSET(char10!A$1, ROW()-2-0+0, COLUMN()-2-230+23) -> 5 | IA4: =OFFSET(char10!A$1, ROW()-2-0+0, COLUMN()-2-230+23) -> 5 | IB4: =OFFSET(char10!A$1, ROW()-2-0+0, COLUMN()-2-230+23) -> 5 | IC4: =OFFSET(char10!A$1, ROW()-2-0+0, COLUMN()-2-230+23) -> 5 | ID4: =OFFSET(char10!A$1, ROW()-2-0+0, COLUMN()-2-230+23) -> 5 | IE4: =OFFSET(char10!A$1, ROW()-2-0+0, COLUMN()-2-230+23) -> 5 | IH4: =OFFSET(char10!A$1, ROW()-2-0+0, COLUMN()-2-240+24) -> 5 | II4: =OFFSET(char10!A$1, ROW()-2-0+0, COLUMN()-2-240+24) -> 5 | IJ4: =OFFSET(char10!A$1, ROW()-2-0+0, COLUMN()-2-240+24) -> 5 | IK4: =OFFSET(char10!A$1, ROW()-2-0+0, COLUMN()-2-240+24) -> 5 | IL4: =OFFSET(char10!A$1, ROW()-2-0+0, COLUMN()-2-240+24) -> 5 | IM4: =OFFSET(char10!A$1, ROW()-2-0+0, COLUMN()-2-240+24) -> 5 | IN4: =OFFSET(char10!A$1, ROW()-2-0+0, COLUMN()-2-240+24) -> 5 | IO4: =OFFSET(char10!A$1, ROW()-2-0+0, COLUMN()-2-240+24) -> 5 | IR4: =OFFSET(char10!A$1, ROW()-2-0+0, COLUMN()-2-250+25) -> 5 | IS4: =OFFSET(char10!A$1, ROW()-2-0+0, COLUMN()-2-250+25) -> 5 | IT4: =OFFSET(char10!A$1, ROW()-2-0+0, COLUMN()-2-250+25) -> 5 | IU4: =OFFSET(char10!A$1, ROW()-2-0+0, COLUMN()-2-250+25) -> 5 | IV4: =OFFSET(char10!A$1, ROW()-2-0+0, COLUMN()-2-250+25) -> 5 | IW4: =OFFSET(char10!A$1, ROW()-2-0+0, COLUMN()-2-250+25) -> 5 | IX4: =OFFSET(char10!A$1, ROW()-2-0+0, COLUMN()-2-250+25) -> 5 | IY4: =OFFSET(char10!A$1, ROW()-2-0+0, COLUMN()-2-250+25) -> 5 | JB4: =OFFSET(char10!A$1, ROW()-2-0+0, COLUMN()-2-260+26) -> 5 | JC4: =OFFSET(char10!A$1, ROW()-2-0+0, COLUMN()-2-260+26) -> 5 | JD4: =OFFSET(char10!A$1, ROW()-2-0+0, COLUMN()-2-260+26) -> 5 | JE4: =OFFSET(char10!A$1, ROW()-2-0+0, COLUMN()-2-260+26) -> 5 | JF4: =OFFSET(char10!A$1, ROW()-2-0+0, COLUMN()-2-260+26) -> 5 | JG4: =OFFSET(char10!A$1, ROW()-2-0+0, COLUMN()-2-260+26) -> 5 | JH4: =OFFSET(char10!A$1, ROW()-2-0+0, COLUMN()-2-260+26) -> 5 | JI4: =OFFSET(char10!A$1, ROW()-2-0+0, COLUMN()-2-260+26) -> 5 | JL4: =OFFSET(char10!A$1, ROW()-2-0+0, COLUMN()-2-270+27) -> 5 | JM4: =OFFSET(char10!A$1, ROW()-2-0+0, COLUMN()-2-270+27) -> 5 | JN4: =OFFSET(char10!A$1, ROW()-2-0+0, COLUMN()-2-270+27) -> 5 | JO4: =OFFSET(char10!A$1, ROW()-2-0+0, COLUMN()-2-270+27) -> 5 | JP4: =OFFSET(char10!A$1, ROW()-2-0+0, COLUMN()-2-270+27) -> 5 | JQ4: =OFFSET(char10!A$1, ROW()-2-0+0, COLUMN()-2-270+27) -> 5 | JR4: =OFFSET(char10!A$1, ROW()-2-0+0, COLUMN()-2-270+27) -> 5 | JS4: =OFFSET(char10!A$1, ROW()-2-0+0, COLUMN()-2-270+27) -> 5 | JV4: =OFFSET(char10!A$1, ROW()-2-0+0, COLUMN()-2-280+28) -> 5 | JW4: =OFFSET(char10!A$1, ROW()-2-0+0, COLUMN()-2-280+28) -> 5 | JX4: =OFFSET(char10!A$1, ROW()-2-0+0, COLUMN()-2-280+28) -> 5 | JY4: =OFFSET(char10!A$1, ROW()-2-0+0, COLUMN()-2-280+28) -> 5 | JZ4: =OFFSET(char10!A$1, ROW()-2-0+0, COLUMN()-2-280+28) -> 5 | KA4: =OFFSET(char10!A$1, ROW()-2-0+0, COLUMN()-2-280+28) -> 5 | KB4: =OFFSET(char10!A$1, ROW()-2-0+0, COLUMN()-2-280+28) -> 5 | KC4: =OFFSET(char10!A$1, ROW()-2-0+0, COLUMN()-2-280+28) -> 5 | KF4: =OFFSET(char10!A$1, ROW()-2-0+0, COLUMN()-2-290+29) -> 5 | KG4: =OFFSET(char10!A$1, ROW()-2-0+0, COLUMN()-2-290+29) -> 5 | KH4: =OFFSET(char10!A$1, ROW()-2-0+0, COLUMN()-2-290+29) -> 5 | KI4: =OFFSET(char10!A$1, ROW()-2-0+0, COLUMN()-2-290+29) -> 5 | KJ4: =OFFSET(char10!A$1, ROW()-2-0+0, COLUMN()-2-290+29) -> 5 | KK4: =OFFSET(char10!A$1, ROW()-2-0+0, COLUMN()-2-290+29) -> 5 | KL4: =OFFSET(char10!A$1, ROW()-2-0+0, COLUMN()-2-290+29) -> 5 | KM4: =OFFSET(char10!A$1, ROW()-2-0+0, COLUMN()-2-290+29) -> 5 | KP4: =OFFSET(char10!A$1, ROW()-2-0+0, COLUMN()-2-300+30) -> 5 | KQ4: =OFFSET(char10!A$1, ROW()-2-0+0, COLUMN()-2-300+30) -> 5 | KR4: =OFFSET(char10!A$1, ROW()-2-0+0, COLUMN()-2-300+30) -> 5 | KS4: =OFFSET(char10!A$1, ROW()-2-0+0, COLUMN()-2-300+30) -> 5 | KT4: =OFFSET(char10!A$1, ROW()-2-0+0, COLUMN()-2-300+30) -> 5 | KU4: =OFFSET(char10!A$1, ROW()-2-0+0, COLUMN()-2-300+30) -> 5 | KV4: =OFFSET(char10!A$1, ROW()-2-0+0, COLUMN()-2-300+30) -> 5 | KW4: =OFFSET(char10!A$1, ROW()-2-0+0, COLUMN()-2-300+30) -> 5 | KZ4: =OFFSET(char10!A$1, ROW()-2-0+0, COLUMN()-2-310+31) -> 5 | LA4: =OFFSET(char10!A$1, ROW()-2-0+0, COLUMN()-2-310+31) -> 5 | LB4: =OFFSET(char10!A$1, ROW()-2-0+0, COLUMN()-2-310+31) -> 5 | LC4: =OFFSET(char10!A$1, ROW()-2-0+0, COLUMN()-2-310+31) -> 5 | LD4: =OFFSET(char10!A$1, ROW()-2-0+0, COLUMN()-2-310+31) -> 5 | LE4: =OFFSET(char10!A$1, ROW()-2-0+0, COLUMN()-2-310+31) -> 5 | LF4: =OFFSET(char10!A$1, ROW()-2-0+0, COLUMN()-2-310+31) -> 5 | LG4: =OFFSET(char10!A$1, ROW()-2-0+0, COLUMN()-2-310+31) -> 5 | LJ4: =OFFSET(char10!A$1, ROW()-2-0+0, COLUMN()-2-320+32) -> 5 | LK4: =OFFSET(char10!A$1, ROW()-2-0+0, COLUMN()-2-320+32) -> 5 | LL4: =OFFSET(char10!A$1, ROW()-2-0+0, COLUMN()-2-320+32) -> 5 | LM4: =OFFSET(char10!A$1, ROW()-2-0+0, COLUMN()-2-320+32) -> 5 | LN4: =OFFSET(char10!A$1, ROW()-2-0+0, COLUMN()-2-320+32) -> 5 | LO4: =OFFSET(char10!A$1, ROW()-2-0+0, COLUMN()-2-320+32) -> 5 | LP4: =OFFSET(char10!A$1, ROW()-2-0+0, COLUMN()-2-320+32) -> 5 | LQ4: =OFFSET(char10!A$1, ROW()-2-0+0, COLUMN()-2-320+32) -> 5 | LT4: =OFFSET(char10!A$1, ROW()-2-0+0, COLUMN()-2-330+33) -> 5 | LU4: =OFFSET(char10!A$1, ROW()-2-0+0, COLUMN()-2-330+33) -> 5 | LV4: =OFFSET(char10!A$1, ROW()-2-0+0, COLUMN()-2-330+33) -> 5 | LW4: =OFFSET(char10!A$1, ROW()-2-0+0, COLUMN()-2-330+33) -> 5 | LX4: =OFFSET(char10!A$1, ROW()-2-0+0, COLUMN()-2-330+33) -> 5 | LY4: =OFFSET(char10!A$1, ROW()-2-0+0, COLUMN()-2-330+33) -> 5 | LZ4: =OFFSET(char10!A$1, ROW()-2-0+0, COLUMN()-2-330+33) -> 5 | MA4: =OFFSET(char10!A$1, ROW()-2-0+0, COLUMN()-2-330+33) -> 5 | MD4: =OFFSET(char10!A$1, ROW()-2-0+0, COLUMN()-2-340+34) -> 5 | ME4: =OFFSET(char10!A$1, ROW()-2-0+0, COLUMN()-2-340+34) -> 5 | MF4: =OFFSET(char10!A$1, ROW()-2-0+0, COLUMN()-2-340+34) -> 5 | MG4: =OFFSET(char10!A$1, ROW()-2-0+0, COLUMN()-2-340+34) -> 5 | MH4: =OFFSET(char10!A$1, ROW()-2-0+0, COLUMN()-2-340+34) -> 5 | MI4: =OFFSET(char10!A$1, ROW()-2-0+0, COLUMN()-2-340+34) -> 5 | MJ4: =OFFSET(char10!A$1, ROW()-2-0+0, COLUMN()-2-340+34) -> 5 | MK4: =OFFSET(char10!A$1, ROW()-2-0+0, COLUMN()-2-340+34) -> 5 | MN4: =OFFSET(char10!A$1, ROW()-2-0+0, COLUMN()-2-350+35) -> 5 | MO4: =OFFSET(char10!A$1, ROW()-2-0+0, COLUMN()-2-350+35) -> 5 | MP4: =OFFSET(char10!A$1, ROW()-2-0+0, COLUMN()-2-350+35) -> 5 | MQ4: =OFFSET(char10!A$1, ROW()-2-0+0, COLUMN()-2-350+35) -> 5 | MR4: =OFFSET(char10!A$1, ROW()-2-0+0, COLUMN()-2-350+35) -> 5 | MS4: =OFFSET(char10!A$1, ROW()-2-0+0, COLUMN()-2-350+35) -> 5 | MT4: =OFFSET(char10!A$1, ROW()-2-0+0, COLUMN()-2-350+35) -> 5 | MU4: =OFFSET(char10!A$1, ROW()-2-0+0, COLUMN()-2-350+35) -> 5 | MX4: =OFFSET(char10!A$1, ROW()-2-0+0, COLUMN()-2-360+36) -> 5 | MY4: =OFFSET(char10!A$1, ROW()-2-0+0, COLUMN()-2-360+36) -> 5 | MZ4: =OFFSET(char10!A$1, ROW()-2-0+0, COLUMN()-2-360+36) -> 5 | NA4: =OFFSET(char10!A$1, ROW()-2-0+0, COLUMN()-2-360+36) -> 5 | NB4: =OFFSET(char10!A$1, ROW()-2-0+0, COLUMN()-2-360+36) -> 5 | NC4: =OFFSET(char10!A$1, ROW()-2-0+0, COLUMN()-2-360+36) -> 5 | ND4: =OFFSET(char10!A$1, ROW()-2-0+0, COLUMN()-2-360+36) -> 5 | NE4: =OFFSET(char10!A$1, ROW()-2-0+0, COLUMN()-2-360+36) -> 5 | NH4: =OFFSET(char10!A$1, ROW()-2-0+0, COLUMN()-2-370+37) -> 5 | NI4: =OFFSET(char10!A$1, ROW()-2-0+0, COLUMN()-2-370+37) -> 5 | NJ4: =OFFSET(char10!A$1, ROW()-2-0+0, COLUMN()-2-370+37) -> 5 | NK4: =OFFSET(char10!A$1, ROW()-2-0+0, COLUMN()-2-370+37) -> 5 | NL4: =OFFSET(char10!A$1, ROW()-2-0+0, COLUMN()-2-370+37) -> 5 | NM4: =OFFSET(char10!A$1, ROW()-2-0+0, COLUMN()-2-370+37) -> 5 | NN4: =OFFSET(char10!A$1, ROW()-2-0+0, COLUMN()-2-370+37) -> 5 | NO4: =OFFSET(char10!A$1, ROW()-2-0+0, COLUMN()-2-370+37) -> 5 | NR4: =OFFSET(char10!A$1, ROW()-2-0+0, COLUMN()-2-380+38) -> 5 | NS4: =OFFSET(char10!A$1, ROW()-2-0+0, COLUMN()-2-380+38) -> 5 | NT4: =OFFSET(char10!A$1, ROW()-2-0+0, COLUMN()-2-380+38) -> 5 | NU4: =OFFSET(char10!A$1, ROW()-2-0+0, COLUMN()-2-380+38) -> 5 | NV4: =OFFSET(char10!A$1, ROW()-2-0+0, COLUMN()-2-380+38) -> 5 | NW4: =OFFSET(char10!A$1, ROW()-2-0+0, COLUMN()-2-380+38) -> 5 | NX4: =OFFSET(char10!A$1, ROW()-2-0+0, COLUMN()-2-380+38) -> 5 | NY4: =OFFSET(char10!A$1, ROW()-2-0+0, COLUMN()-2-380+38) -> 5 | OB4: =OFFSET(char10!A$1, ROW()-2-0+0, COLUMN()-2-390+39) -> 5 | OC4: =OFFSET(char10!A$1, ROW()-2-0+0, COLUMN()-2-390+39) -> 5 | OD4: =OFFSET(char10!A$1, ROW()-2-0+0, COLUMN()-2-390+39) -> 5 | OE4: =OFFSET(char10!A$1, ROW()-2-0+0, COLUMN()-2-390+39) -> 5 | OF4: =OFFSET(char10!A$1, ROW()-2-0+0, COLUMN()-2-390+39) -> 5 | OG4: =OFFSET(char10!A$1, ROW()-2-0+0, COLUMN()-2-390+39) -> 5 | OH4: =OFFSET(char10!A$1, ROW()-2-0+0, COLUMN()-2-390+39) -> 5 | OI4: =OFFSET(char10!A$1, ROW()-2-0+0, COLUMN()-2-390+39) -> 5
B5: =OFFSET(char10!A$1, ROW()-2-0+0, COLUMN()-2-0+0) -> 5 | C5: =OFFSET(char10!A$1, ROW()-2-0+0, COLUMN()-2-0+0) -> 5 | D5: =OFFSET(char10!A$1, ROW()-2-0+0, COLUMN()-2-0+0) -> 5 | E5: =OFFSET(char10!A$1, ROW()-2-0+0, COLUMN()-2-0+0) -> 5 | F5: =OFFSET(char10!A$1, ROW()-2-0+0, COLUMN()-2-0+0) -> 5 | G5: =OFFSET(char10!A$1, ROW()-2-0+0, COLUMN()-2-0+0) -> 5 | H5: =OFFSET(char10!A$1, ROW()-2-0+0, COLUMN()-2-0+0) -> 5 | I5: =OFFSET(char10!A$1, ROW()-2-0+0, COLUMN()-2-0+0) -> 5 | L5: =OFFSET(char10!A$1, ROW()-2-0+0, COLUMN()-2-10+1) -> 5 | M5: =OFFSET(char10!A$1, ROW()-2-0+0, COLUMN()-2-10+1) -> 5 | N5: =OFFSET(char10!A$1, ROW()-2-0+0, COLUMN()-2-10+1) -> 5 | O5: =OFFSET(char10!A$1, ROW()-2-0+0, COLUMN()-2-10+1) -> 5 | P5: =OFFSET(char10!A$1, ROW()-2-0+0, COLUMN()-2-10+1) -> 5 | Q5: =OFFSET(char10!A$1, ROW()-2-0+0, COLUMN()-2-10+1) -> 5 | R5: =OFFSET(char10!A$1, ROW()-2-0+0, COLUMN()-2-10+1) -> 5 | S5: =OFFSET(char10!A$1, ROW()-2-0+0, COLUMN()-2-10+1) -> 5 | V5: =OFFSET(char10!A$1, ROW()-2-0+0, COLUMN()-2-20+2) -> 5 | W5: =OFFSET(char10!A$1, ROW()-2-0+0, COLUMN()-2-20+2) -> 5 | X5: =OFFSET(char10!A$1, ROW()-2-0+0, COLUMN()-2-20+2) -> 5 | Y5: =OFFSET(char10!A$1, ROW()-2-0+0, COLUMN()-2-20+2) -> 5 | Z5: =OFFSET(char10!A$1, ROW()-2-0+0, COLUMN()-2-20+2) -> 5 | AA5: =OFFSET(char10!A$1, ROW()-2-0+0, COLUMN()-2-20+2) -> 5 | AB5: =OFFSET(char10!A$1, ROW()-2-0+0, COLUMN()-2-20+2) -> 5 | AC5: =OFFSET(char10!A$1, ROW()-2-0+0, COLUMN()-2-20+2) -> 5 | AF5: =OFFSET(char10!A$1, ROW()-2-0+0, COLUMN()-2-30+3) -> 5 | AG5: =OFFSET(char10!A$1, ROW()-2-0+0, COLUMN()-2-30+3) -> 5 | AH5: =OFFSET(char10!A$1, ROW()-2-0+0, COLUMN()-2-30+3) -> 5 | AI5: =OFFSET(char10!A$1, ROW()-2-0+0, COLUMN()-2-30+3) -> 5 | AJ5: =OFFSET(char10!A$1, ROW()-2-0+0, COLUMN()-2-30+3) -> 5 | AK5: =OFFSET(char10!A$1, ROW()-2-0+0, COLUMN()-2-30+3) -> 5 | AL5: =OFFSET(char10!A$1, ROW()-2-0+0, COLUMN()-2-30+3) -> 5 | AM5: =OFFSET(char10!A$1, ROW()-2-0+0, COLUMN()-2-30+3) -> 5 | AP5: =OFFSET(char10!A$1, ROW()-2-0+0, COLUMN()-2-40+4) -> 5 | AQ5: =OFFSET(char10!A$1, ROW()-2-0+0, COLUMN()-2-40+4) -> 5 | AR5: =OFFSET(char10!A$1, ROW()-2-0+0, COLUMN()-2-40+4) -> 5 | AS5: =OFFSET(char10!A$1, ROW()-2-0+0, COLUMN()-2-40+4) -> 5 | AT5: =OFFSET(char10!A$1, ROW()-2-0+0, COLUMN()-2-40+4) -> 5 | AU5: =OFFSET(char10!A$1, ROW()-2-0+0, COLUMN()-2-40+4) -> 5 | AV5: =OFFSET(char10!A$1, ROW()-2-0+0, COLUMN()-2-40+4) -> 5 | AW5: =OFFSET(char10!A$1, ROW()-2-0+0, COLUMN()-2-40+4) -> 5 | AZ5: =OFFSET(char10!A$1, ROW()-2-0+0, COLUMN()-2-50+5) -> 5 | BA5: =OFFSET(char10!A$1, ROW()-2-0+0, COLUMN()-2-50+5) -> 5 | BB5: =OFFSET(char10!A$1, ROW()-2-0+0, COLUMN()-2-50+5) -> 5 | BC5: =OFFSET(char10!A$1, ROW()-2-0+0, COLUMN()-2-50+5) -> 5 | BD5: =OFFSET(char10!A$1, ROW()-2-0+0, COLUMN()-2-50+5) -> 5 | BE5: =OFFSET(char10!A$1, ROW()-2-0+0, COLUMN()-2-50+5) -> 5 | BF5: =OFFSET(char10!A$1, ROW()-2-0+0, COLUMN()-2-50+5) -> 5 | BG5: =OFFSET(char10!A$1, ROW()-2-0+0, COLUMN()-2-50+5) -> 5 | BJ5: =OFFSET(char10!A$1, ROW()-2-0+0, COLUMN()-2-60+6) -> 5 | BK5: =OFFSET(char10!A$1, ROW()-2-0+0, COLUMN()-2-60+6) -> 5 | BL5: =OFFSET(char10!A$1, ROW()-2-0+0, COLUMN()-2-60+6) -> 5 | BM5: =OFFSET(char10!A$1, ROW()-2-0+0, COLUMN()-2-60+6) -> 5 | BN5: =OFFSET(char10!A$1, ROW()-2-0+0, COLUMN()-2-60+6) -> 5 | BO5: =OFFSET(char10!A$1, ROW()-2-0+0, COLUMN()-2-60+6) -> 5 | BP5: =OFFSET(char10!A$1, ROW()-2-0+0, COLUMN()-2-60+6) -> 5 | BQ5: =OFFSET(char10!A$1, ROW()-2-0+0, COLUMN()-2-60+6) -> 5 | BT5: =OFFSET(char10!A$1, ROW()-2-0+0, COLUMN()-2-70+7) -> 5 | BU5: =OFFSET(char10!A$1, ROW()-2-0+0, COLUMN()-2-70+7) -> 5 | BV5: =OFFSET(char10!A$1, ROW()-2-0+0, COLUMN()-2-70+7) -> 5 | BW5: =OFFSET(char10!A$1, ROW()-2-0+0, COLUMN()-2-70+7) -> 5 | BX5: =OFFSET(char10!A$1, ROW()-2-0+0, COLUMN()-2-70+7) -> 5 | BY5: =OFFSET(char10!A$1, ROW()-2-0+0, COLUMN()-2-70+7) -> 5 | BZ5: =OFFSET(char10!A$1, ROW()-2-0+0, COLUMN()-2-70+7) -> 5 | CA5: =OFFSET(char10!A$1, ROW()-2-0+0, COLUMN()-2-70+7) -> 5 | CD5: =OFFSET(char10!A$1, ROW()-2-0+0, COLUMN()-2-80+8) -> 5 | CE5: =OFFSET(char10!A$1, ROW()-2-0+0, COLUMN()-2-80+8) -> 5 | CF5: =OFFSET(char10!A$1, ROW()-2-0+0, COLUMN()-2-80+8) -> 5 | CG5: =OFFSET(char10!A$1, ROW()-2-0+0, COLUMN()-2-80+8) -> 5 | CH5: =OFFSET(char10!A$1, ROW()-2-0+0, COLUMN()-2-80+8) -> 5 | CI5: =OFFSET(char10!A$1, ROW()-2-0+0, COLUMN()-2-80+8) -> 5 | CJ5: =OFFSET(char10!A$1, ROW()-2-0+0, COLUMN()-2-80+8) -> 5 | CK5: =OFFSET(char10!A$1, ROW()-2-0+0, COLUMN()-2-80+8) -> 5 | CN5: =OFFSET(char10!A$1, ROW()-2-0+0, COLUMN()-2-90+9) -> 5 | CO5: =OFFSET(char10!A$1, ROW()-2-0+0, COLUMN()-2-90+9) -> 5 | CP5: =OFFSET(char10!A$1, ROW()-2-0+0, COLUMN()-2-90+9) -> 5 | CQ5: =OFFSET(char10!A$1, ROW()-2-0+0, COLUMN()-2-90+9) -> 5 | CR5: =OFFSET(char10!A$1, ROW()-2-0+0, COLUMN()-2-90+9) -> 5 | CS5: =OFFSET(char10!A$1, ROW()-2-0+0, COLUMN()-2-90+9) -> 5 | CT5: =OFFSET(char10!A$1, ROW()-2-0+0, COLUMN()-2-90+9) -> 5 | CU5: =OFFSET(char10!A$1, ROW()-2-0+0, COLUMN()-2-90+9) -> 5 | CX5: =OFFSET(char10!A$1, ROW()-2-0+0, COLUMN()-2-100+10) -> 5 | CY5: =OFFSET(char10!A$1, ROW()-2-0+0, COLUMN()-2-100+10) -> 5 | CZ5: =OFFSET(char10!A$1, ROW()-2-0+0, COLUMN()-2-100+10) -> 5 | DA5: =OFFSET(char10!A$1, ROW()-2-0+0, COLUMN()-2-100+10) -> 5 | DB5: =OFFSET(char10!A$1, ROW()-2-0+0, COLUMN()-2-100+10) -> 5 | DC5: =OFFSET(char10!A$1, ROW()-2-0+0, COLUMN()-2-100+10) -> 5 | DD5: =OFFSET(char10!A$1, ROW()-2-0+0, COLUMN()-2-100+10) -> 5 | DE5: =OFFSET(char10!A$1, ROW()-2-0+0, COLUMN()-2-100+10) -> 5 | DH5: =OFFSET(char10!A$1, ROW()-2-0+0, COLUMN()-2-110+11) -> 5 | DI5: =OFFSET(char10!A$1, ROW()-2-0+0, COLUMN()-2-110+11) -> 5 | DJ5: =OFFSET(char10!A$1, ROW()-2-0+0, COLUMN()-2-110+11) -> 5 | DK5: =OFFSET(char10!A$1, ROW()-2-0+0, COLUMN()-2-110+11) -> 5 | DL5: =OFFSET(char10!A$1, ROW()-2-0+0, COLUMN()-2-110+11) -> 5 | DM5: =OFFSET(char10!A$1, ROW()-2-0+0, COLUMN()-2-110+11) -> 5 | DN5: =OFFSET(char10!A$1, ROW()-2-0+0, COLUMN()-2-110+11) -> 5 | DO5: =OFFSET(char10!A$1, ROW()-2-0+0, COLUMN()-2-110+11) -> 15 | DR5: =OFFSET(char10!A$1, ROW()-2-0+0, COLUMN()-2-120+12) -> 5 | DS5: =OFFSET(char10!A$1, ROW()-2-0+0, COLUMN()-2-120+12) -> 5 | DT5: =OFFSET(char10!A$1, ROW()-2-0+0, COLUMN()-2-120+12) -> 5 | DU5: =OFFSET(char10!A$1, ROW()-2-0+0, COLUMN()-2-120+12) -> 5 | DV5: =OFFSET(char10!A$1, ROW()-2-0+0, COLUMN()-2-120+12) -> 5 | DW5: =OFFSET(char10!A$1, ROW()-2-0+0, COLUMN()-2-120+12) -> 5 | DX5: =OFFSET(char10!A$1, ROW()-2-0+0, COLUMN()-2-120+12) -> 15 | DY5: =OFFSET(char10!A$1, ROW()-2-0+0, COLUMN()-2-120+12) -> 40 | EB5: =OFFSET(char10!A$1, ROW()-2-0+0, COLUMN()-2-130+13) -> 5 | EC5: =OFFSET(char10!A$1, ROW()-2-0+0, COLUMN()-2-130+13) -> 5 | ED5: =OFFSET(char10!A$1, ROW()-2-0+0, COLUMN()-2-130+13) -> 5 | EE5: =OFFSET(char10!A$1, ROW()-2-0+0, COLUMN()-2-130+13) -> 5 | EF5: =OFFSET(char10!A$1, ROW()-2-0+0, COLUMN()-2-130+13) -> 5 | EG5: =OFFSET(char10!A$1, ROW()-2-0+0, COLUMN()-2-130+13) -> 15 | EH5: =OFFSET(char10!A$1, ROW()-2-0+0, COLUMN()-2-130+13) -> 40 | EI5: =OFFSET(char10!A$1, ROW()-2-0+0, COLUMN()-2-130+13) -> 20 | EL5: =OFFSET(char10!A$1, ROW()-2-0+0, COLUMN()-2-140+14) -> 5 | EM5: =OFFSET(char10!A$1, ROW()-2-0+0, COLUMN()-2-140+14) -> 5 | EN5: =OFFSET(char10!A$1, ROW()-2-0+0, COLUMN()-2-140+14) -> 5 | EO5: =OFFSET(char10!A$1, ROW()-2-0+0, COLUMN()-2-140+14) -> 5 | EP5: =OFFSET(char10!A$1, ROW()-2-0+0, COLUMN()-2-140+14) -> 15 | EQ5: =OFFSET(char10!A$1, ROW()-2-0+0, COLUMN()-2-140+14) -> 40 | ER5: =OFFSET(char10!A$1, ROW()-2-0+0, COLUMN()-2-140+14) -> 20 | ES5: =OFFSET(char10!A$1, ROW()-2-0+0, COLUMN()-2-140+14) -> 20 | EV5: =OFFSET(char10!A$1, ROW()-2-0+0, COLUMN()-2-150+15) -> 5 | EW5: =OFFSET(char10!A$1, ROW()-2-0+0, COLUMN()-2-150+15) -> 5 | EX5: =OFFSET(char10!A$1, ROW()-2-0+0, COLUMN()-2-150+15) -> 5 | EY5: =OFFSET(char10!A$1, ROW()-2-0+0, COLUMN()-2-150+15) -> 15 | EZ5: =OFFSET(char10!A$1, ROW()-2-0+0, COLUMN()-2-150+15) -> 40 | FA5: =OFFSET(char10!A$1, ROW()-2-0+0, COLUMN()-2-150+15) -> 20 | FB5: =OFFSET(char10!A$1, ROW()-2-0+0, COLUMN()-2-150+15) -> 20 | FC5: =OFFSET(char10!A$1, ROW()-2-0+0, COLUMN()-2-150+15) -> 20 | FF5: =OFFSET(char10!A$1, ROW()-2-0+0, COLUMN()-2-160+16) -> 5 | FG5: =OFFSET(char10!A$1, ROW()-2-0+0, COLUMN()-2-160+16) -> 5 | FH5: =OFFSET(char10!A$1, ROW()-2-0+0, COLUMN()-2-160+16) -> 15 | FI5: =OFFSET(char10!A$1, ROW()-2-0+0, COLUMN()-2-160+16) -> 40 | FJ5: =OFFSET(char10!A$1, ROW()-2-0+0, COLUMN()-2-160+16) -> 20 | FK5: =OFFSET(char10!A$1, ROW()-2-0+0, COLUMN()-2-160+16) -> 20 | FL5: =OFFSET(char10!A$1, ROW()-2-0+0, COLUMN()-2-160+16) -> 20 | FM5: =OFFSET(char10!A$1, ROW()-2-0+0, COLUMN()-2-160+16) -> 40 | FP5: =OFFSET(char10!A$1, ROW()-2-0+0, COLUMN()-2-170+17) -> 5 | FQ5: =OFFSET(char10!A$1, ROW()-2-0+0, COLUMN()-2-170+17) -> 15 | FR5: =OFFSET(char10!A$1, ROW()-2-0+0, COLUMN()-2-170+17) -> 40 | FS5: =OFFSET(char10!A$1, ROW()-2-0+0, COLUMN()-2-170+17) -> 20 | FT5: =OFFSET(char10!A$1, ROW()-2-0+0, COLUMN()-2-170+17) -> 20 | FU5: =OFFSET(char10!A$1, ROW()-2-0+0, COLUMN()-2-170+17) -> 20 | FV5: =OFFSET(char10!A$1, ROW()-2-0+0, COLUMN()-2-170+17) -> 40 | FW5: =OFFSET(char10!A$1, ROW()-2-0+0, COLUMN()-2-170+17) -> 15 | FZ5: =OFFSET(char10!A$1, ROW()-2-0+0, COLUMN()-2-180+18) -> 15 | GA5: =OFFSET(char10!A$1, ROW()-2-0+0, COLUMN()-2-180+18) -> 40 | GB5: =OFFSET(char10!A$1, ROW()-2-0+0, COLUMN()-2-180+18) -> 20 | GC5: =OFFSET(char10!A$1, ROW()-2-0+0, COLUMN()-2-180+18) -> 20 | GD5: =OFFSET(char10!A$1, ROW()-2-0+0, COLUMN()-2-180+18) -> 20 | GE5: =OFFSET(char10!A$1, ROW()-2-0+0, COLUMN()-2-180+18) -> 40 | GF5: =OFFSET(char10!A$1, ROW()-2-0+0, COLUMN()-2-180+18) -> 15 | GG5: =OFFSET(char10!A$1, ROW()-2-0+0, COLUMN()-2-180+18) -> 5 | GJ5: =OFFSET(char10!A$1, ROW()-2-0+0, COLUMN()-2-190+19) -> 40 | GK5: =OFFSET(char10!A$1, ROW()-2-0+0, COLUMN()-2-190+19) -> 20 | GL5: =OFFSET(char10!A$1, ROW()-2-0+0, COLUMN()-2-190+19) -> 20 | GM5: =OFFSET(char10!A$1, ROW()-2-0+0, COLUMN()-2-190+19) -> 20 | GN5: =OFFSET(char10!A$1, ROW()-2-0+0, COLUMN()-2-190+19) -> 40 | GO5: =OFFSET(char10!A$1, ROW()-2-0+0, COLUMN()-2-190+19) -> 15 | GP5: =OFFSET(char10!A$1, ROW()-2-0+0, COLUMN()-2-190+19) -> 5 | GQ5: =OFFSET(char10!A$1, ROW()-2-0+0, COLUMN()-2-190+19) -> 5 | GT5: =OFFSET(char10!A$1, ROW()-2-0+0, COLUMN()-2-200+20) -> 20 | GU5: =OFFSET(char10!A$1, ROW()-2-0+0, COLUMN()-2-200+20) -> 20 | GV5: =OFFSET(char10!A$1, ROW()-2-0+0, COLUMN()-2-200+20) -> 20 | GW5: =OFFSET(char10!A$1, ROW()-2-0+0, COLUMN()-2-200+20) -> 40 | GX5: =OFFSET(char10!A$1, ROW()-2-0+0, COLUMN()-2-200+20) -> 15 | GY5: =OFFSET(char10!A$1, ROW()-2-0+0, COLUMN()-2-200+20) -> 5 | GZ5: =OFFSET(char10!A$1, ROW()-2-0+0, COLUMN()-2-200+20) -> 5 | HA5: =OFFSET(char10!A$1, ROW()-2-0+0, COLUMN()-2-200+20) -> 5 | HD5: =OFFSET(char10!A$1, ROW()-2-0+0, COLUMN()-2-210+21) -> 20 | HE5: =OFFSET(char10!A$1, ROW()-2-0+0, COLUMN()-2-210+21) -> 20 | HF5: =OFFSET(char10!A$1, ROW()-2-0+0, COLUMN()-2-210+21) -> 40 | HG5: =OFFSET(char10!A$1, ROW()-2-0+0, COLUMN()-2-210+21) -> 15 | HH5: =OFFSET(char10!A$1, ROW()-2-0+0, COLUMN()-2-210+21) -> 5 | HI5: =OFFSET(char10!A$1, ROW()-2-0+0, COLUMN()-2-210+21) -> 5 | HJ5: =OFFSET(char10!A$1, ROW()-2-0+0, COLUMN()-2-210+21) -> 5 | HK5: =OFFSET(char10!A$1, ROW()-2-0+0, COLUMN()-2-210+21) -> 5 | HN5: =OFFSET(char10!A$1, ROW()-2-0+0, COLUMN()-2-220+22) -> 20 | HO5: =OFFSET(char10!A$1, ROW()-2-0+0, COLUMN()-2-220+22) -> 40 | HP5: =OFFSET(char10!A$1, ROW()-2-0+0, COLUMN()-2-220+22) -> 15 | HQ5: =OFFSET(char10!A$1, ROW()-2-0+0, COLUMN()-2-220+22) -> 5 | HR5: =OFFSET(char10!A$1, ROW()-2-0+0, COLUMN()-2-220+22) -> 5 | HS5: =OFFSET(char10!A$1, ROW()-2-0+0, COLUMN()-2-220+22) -> 5 | HT5: =OFFSET(char10!A$1, ROW()-2-0+0, COLUMN()-2-220+22) -> 5 | HU5: =OFFSET(char10!A$1, ROW()-2-0+0, COLUMN()-2-220+22) -> 5 | HX5: =OFFSET(char10!A$1, ROW()-2-0+0, COLUMN()-2-230+23) -> 40 | HY5: =OFFSET(char10!A$1, ROW()-2-0+0, COLUMN()-2-230+23) -> 15 | HZ5: =OFFSET(char10!A$1, ROW()-2-0+0, COLUMN()-2-230+23) -> 5 | IA5: =OFFSET(char10!A$1, ROW()-2-0+0, COLUMN()-2-230+23) -> 5 | IB5: =OFFSET(char10!A$1, ROW()-2-0+0, COLUMN()-2-230+23) -> 5 | IC5: =OFFSET(char10!A$1, ROW()-2-0+0, COLUMN()-2-230+23) -> 5 | ID5: =OFFSET(char10!A$1, ROW()-2-0+0, COLUMN()-2-230+23) -> 5 | IE5: =OFFSET(char10!A$1, ROW()-2-0+0, COLUMN()-2-230+23) -> 5 | IH5: =OFFSET(char10!A$1, ROW()-2-0+0, COLUMN()-2-240+24) -> 15 | II5: =OFFSET(char10!A$1, ROW()-2-0+0, COLUMN()-2-240+24) -> 5 | IJ5: =OFFSET(char10!A$1, ROW()-2-0+0, COLUMN()-2-240+24) -> 5 | IK5: =OFFSET(char10!A$1, ROW()-2-0+0, COLUMN()-2-240+24) -> 5 | IL5: =OFFSET(char10!A$1, ROW()-2-0+0, COLUMN()-2-240+24) -> 5 | IM5: =OFFSET(char10!A$1, ROW()-2-0+0, COLUMN()-2-240+24) -> 5 | IN5: =OFFSET(char10!A$1, ROW()-2-0+0, COLUMN()-2-240+24) -> 5 | IO5: =OFFSET(char10!A$1, ROW()-2-0+0, COLUMN()-2-240+24) -> 5 | IR5: =OFFSET(char10!A$1, ROW()-2-0+0, COLUMN()-2-250+25) -> 5 | IS5: =OFFSET(char10!A$1, ROW()-2-0+0, COLUMN()-2-250+25) -> 5 | IT5: =OFFSET(char10!A$1, ROW()-2-0+0, COLUMN()-2-250+25) -> 5 | IU5: =OFFSET(char10!A$1, ROW()-2-0+0, COLUMN()-2-250+25) -> 5 | IV5: =OFFSET(char10!A$1, ROW()-2-0+0, COLUMN()-2-250+25) -> 5 | IW5: =OFFSET(char10!A$1, ROW()-2-0+0, COLUMN()-2-250+25) -> 5 | IX5: =OFFSET(char10!A$1, ROW()-2-0+0, COLUMN()-2-250+25) -> 5 | IY5: =OFFSET(char10!A$1, ROW()-2-0+0, COLUMN()-2-250+25) -> 5 | JB5: =OFFSET(char10!A$1, ROW()-2-0+0, COLUMN()-2-260+26) -> 5 | JC5: =OFFSET(char10!A$1, ROW()-2-0+0, COLUMN()-2-260+26) -> 5 | JD5: =OFFSET(char10!A$1, ROW()-2-0+0, COLUMN()-2-260+26) -> 5 | JE5: =OFFSET(char10!A$1, ROW()-2-0+0, COLUMN()-2-260+26) -> 5 | JF5: =OFFSET(char10!A$1, ROW()-2-0+0, COLUMN()-2-260+26) -> 5 | JG5: =OFFSET(char10!A$1, ROW()-2-0+0, COLUMN()-2-260+26) -> 5 | JH5: =OFFSET(char10!A$1, ROW()-2-0+0, COLUMN()-2-260+26) -> 5 | JI5: =OFFSET(char10!A$1, ROW()-2-0+0, COLUMN()-2-260+26) -> 5 | JL5: =OFFSET(char10!A$1, ROW()-2-0+0, COLUMN()-2-270+27) -> 5 | JM5: =OFFSET(char10!A$1, ROW()-2-0+0, COLUMN()-2-270+27) -> 5 | JN5: =OFFSET(char10!A$1, ROW()-2-0+0, COLUMN()-2-270+27) -> 5 | JO5: =OFFSET(char10!A$1, ROW()-2-0+0, COLUMN()-2-270+27) -> 5 | JP5: =OFFSET(char10!A$1, ROW()-2-0+0, COLUMN()-2-270+27) -> 5 | JQ5: =OFFSET(char10!A$1, ROW()-2-0+0, COLUMN()-2-270+27) -> 5 | JR5: =OFFSET(char10!A$1, ROW()-2-0+0, COLUMN()-2-270+27) -> 5 | JS5: =OFFSET(char10!A$1, ROW()-2-0+0, COLUMN()-2-270+27) -> 5 | JV5: =OFFSET(char10!A$1, ROW()-2-0+0, COLUMN()-2-280+28) -> 5 | JW5: =OFFSET(char10!A$1, ROW()-2-0+0, COLUMN()-2-280+28) -> 5 | JX5: =OFFSET(char10!A$1, ROW()-2-0+0, COLUMN()-2-280+28) -> 5 | JY5: =OFFSET(char10!A$1, ROW()-2-0+0, COLUMN()-2-280+28) -> 5 | JZ5: =OFFSET(char10!A$1, ROW()-2-0+0, COLUMN()-2-280+28) -> 5 | KA5: =OFFSET(char10!A$1, ROW()-2-0+0, COLUMN()-2-280+28) -> 5 | KB5: =OFFSET(char10!A$1, ROW()-2-0+0, COLUMN()-2-280+28) -> 5 | KC5: =OFFSET(char10!A$1, ROW()-2-0+0, COLUMN()-2-280+28) -> 5 | KF5: =OFFSET(char10!A$1, ROW()-2-0+0, COLUMN()-2-290+29) -> 5 | KG5: =OFFSET(char10!A$1, ROW()-2-0+0, COLUMN()-2-290+29) -> 5 | KH5: =OFFSET(char10!A$1, ROW()-2-0+0, COLUMN()-2-290+29) -> 5 | KI5: =OFFSET(char10!A$1, ROW()-2-0+0, COLUMN()-2-290+29) -> 5 | KJ5: =OFFSET(char10!A$1, ROW()-2-0+0, COLUMN()-2-290+29) -> 5 | KK5: =OFFSET(char10!A$1, ROW()-2-0+0, COLUMN()-2-290+29) -> 5 | KL5: =OFFSET(char10!A$1, ROW()-2-0+0, COLUMN()-2-290+29) -> 5 | KM5: =OFFSET(char10!A$1, ROW()-2-0+0, COLUMN()-2-290+29) -> 5 | KP5: =OFFSET(char10!A$1, ROW()-2-0+0, COLUMN()-2-300+30) -> 5 | KQ5: =OFFSET(char10!A$1, ROW()-2-0+0, COLUMN()-2-300+30) -> 5 | KR5: =OFFSET(char10!A$1, ROW()-2-0+0, COLUMN()-2-300+30) -> 5 | KS5: =OFFSET(char10!A$1, ROW()-2-0+0, COLUMN()-2-300+30) -> 5 | KT5: =OFFSET(char10!A$1, ROW()-2-0+0, COLUMN()-2-300+30) -> 5 | KU5: =OFFSET(char10!A$1, ROW()-2-0+0, COLUMN()-2-300+30) -> 5 | KV5: =OFFSET(char10!A$1, ROW()-2-0+0, COLUMN()-2-300+30) -> 5 | KW5: =OFFSET(char10!A$1, ROW()-2-0+0, COLUMN()-2-300+30) -> 5 | KZ5: =OFFSET(char10!A$1, ROW()-2-0+0, COLUMN()-2-310+31) -> 5 | LA5: =OFFSET(char10!A$1, ROW()-2-0+0, COLUMN()-2-310+31) -> 5 | LB5: =OFFSET(char10!A$1, ROW()-2-0+0, COLUMN()-2-310+31) -> 5 | LC5: =OFFSET(char10!A$1, ROW()-2-0+0, COLUMN()-2-310+31) -> 5 | LD5: =OFFSET(char10!A$1, ROW()-2-0+0, COLUMN()-2-310+31) -> 5 | LE5: =OFFSET(char10!A$1, ROW()-2-0+0, COLUMN()-2-310+31) -> 5 | LF5: =OFFSET(char10!A$1, ROW()-2-0+0, COLUMN()-2-310+31) -> 5 | LG5: =OFFSET(char10!A$1, ROW()-2-0+0, COLUMN()-2-310+31) -> 5 | LJ5: =OFFSET(char10!A$1, ROW()-2-0+0, COLUMN()-2-320+32) -> 5 | LK5: =OFFSET(char10!A$1, ROW()-2-0+0, COLUMN()-2-320+32) -> 5 | LL5: =OFFSET(char10!A$1, ROW()-2-0+0, COLUMN()-2-320+32) -> 5 | LM5: =OFFSET(char10!A$1, ROW()-2-0+0, COLUMN()-2-320+32) -> 5 | LN5: =OFFSET(char10!A$1, ROW()-2-0+0, COLUMN()-2-320+32) -> 5 | LO5: =OFFSET(char10!A$1, ROW()-2-0+0, COLUMN()-2-320+32) -> 5 | LP5: =OFFSET(char10!A$1, ROW()-2-0+0, COLUMN()-2-320+32) -> 5 | LQ5: =OFFSET(char10!A$1, ROW()-2-0+0, COLUMN()-2-320+32) -> 5 | LT5: =OFFSET(char10!A$1, ROW()-2-0+0, COLUMN()-2-330+33) -> 5 | LU5: =OFFSET(char10!A$1, ROW()-2-0+0, COLUMN()-2-330+33) -> 5 | LV5: =OFFSET(char10!A$1, ROW()-2-0+0, COLUMN()-2-330+33) -> 5 | LW5: =OFFSET(char10!A$1, ROW()-2-0+0, COLUMN()-2-330+33) -> 5 | LX5: =OFFSET(char10!A$1, ROW()-2-0+0, COLUMN()-2-330+33) -> 5 | LY5: =OFFSET(char10!A$1, ROW()-2-0+0, COLUMN()-2-330+33) -> 5 | LZ5: =OFFSET(char10!A$1, ROW()-2-0+0, COLUMN()-2-330+33) -> 5 | MA5: =OFFSET(char10!A$1, ROW()-2-0+0, COLUMN()-2-330+33) -> 5 | MD5: =OFFSET(char10!A$1, ROW()-2-0+0, COLUMN()-2-340+34) -> 5 | ME5: =OFFSET(char10!A$1, ROW()-2-0+0, COLUMN()-2-340+34) -> 5 | MF5: =OFFSET(char10!A$1, ROW()-2-0+0, COLUMN()-2-340+34) -> 5 | MG5: =OFFSET(char10!A$1, ROW()-2-0+0, COLUMN()-2-340+34) -> 5 | MH5: =OFFSET(char10!A$1, ROW()-2-0+0, COLUMN()-2-340+34) -> 5 | MI5: =OFFSET(char10!A$1, ROW()-2-0+0, COLUMN()-2-340+34) -> 5 | MJ5: =OFFSET(char10!A$1, ROW()-2-0+0, COLUMN()-2-340+34) -> 5 | MK5: =OFFSET(char10!A$1, ROW()-2-0+0, COLUMN()-2-340+34) -> 5 | MN5: =OFFSET(char10!A$1, ROW()-2-0+0, COLUMN()-2-350+35) -> 5 | MO5: =OFFSET(char10!A$1, ROW()-2-0+0, COLUMN()-2-350+35) -> 5 | MP5: =OFFSET(char10!A$1, ROW()-2-0+0, COLUMN()-2-350+35) -> 5 | MQ5: =OFFSET(char10!A$1, ROW()-2-0+0, COLUMN()-2-350+35) -> 5 | MR5: =OFFSET(char10!A$1, ROW()-2-0+0, COLUMN()-2-350+35) -> 5 | MS5: =OFFSET(char10!A$1, ROW()-2-0+0, COLUMN()-2-350+35) -> 5 | MT5: =OFFSET(char10!A$1, ROW()-2-0+0, COLUMN()-2-350+35) -> 5 | MU5: =OFFSET(char10!A$1, ROW()-2-0+0, COLUMN()-2-350+35) -> 5 | MX5: =OFFSET(char10!A$1, ROW()-2-0+0, COLUMN()-2-360+36) -> 5 | MY5: =OFFSET(char10!A$1, ROW()-2-0+0, COLUMN()-2-360+36) -> 5 | MZ5: =OFFSET(char10!A$1, ROW()-2-0+0, COLUMN()-2-360+36) -> 5 | NA5: =OFFSET(char10!A$1, ROW()-2-0+0, COLUMN()-2-360+36) -> 5 | NB5: =OFFSET(char10!A$1, ROW()-2-0+0, COLUMN()-2-360+36) -> 5 | NC5: =OFFSET(char10!A$1, ROW()-2-0+0, COLUMN()-2-360+36) -> 5 | ND5: =OFFSET(char10!A$1, ROW()-2-0+0, COLUMN()-2-360+36) -> 5 | NE5: =OFFSET(char10!A$1, ROW()-2-0+0, COLUMN()-2-360+36) -> 5 | NH5: =OFFSET(char10!A$1, ROW()-2-0+0, COLUMN()-2-370+37) -> 5 | NI5: =OFFSET(char10!A$1, ROW()-2-0+0, COLUMN()-2-370+37) -> 5 | NJ5: =OFFSET(char10!A$1, ROW()-2-0+0, COLUMN()-2-370+37) -> 5 | NK5: =OFFSET(char10!A$1, ROW()-2-0+0, COLUMN()-2-370+37) -> 5 | NL5: =OFFSET(char10!A$1, ROW()-2-0+0, COLUMN()-2-370+37) -> 5 | NM5: =OFFSET(char10!A$1, ROW()-2-0+0, COLUMN()-2-370+37) -> 5 | NN5: =OFFSET(char10!A$1, ROW()-2-0+0, COLUMN()-2-370+37) -> 5 | NO5: =OFFSET(char10!A$1, ROW()-2-0+0, COLUMN()-2-370+37) -> 5 | NR5: =OFFSET(char10!A$1, ROW()-2-0+0, COLUMN()-2-380+38) -> 5 | NS5: =OFFSET(char10!A$1, ROW()-2-0+0, COLUMN()-2-380+38) -> 5 | NT5: =OFFSET(char10!A$1, ROW()-2-0+0, COLUMN()-2-380+38) -> 5 | NU5: =OFFSET(char10!A$1, ROW()-2-0+0, COLUMN()-2-380+38) -> 5 | NV5: =OFFSET(char10!A$1, ROW()-2-0+0, COLUMN()-2-380+38) -> 5 | NW5: =OFFSET(char10!A$1, ROW()-2-0+0, COLUMN()-2-380+38) -> 5 | NX5: =OFFSET(char10!A$1, ROW()-2-0+0, COLUMN()-2-380+38) -> 5 | NY5: =OFFSET(char10!A$1, ROW()-2-0+0, COLUMN()-2-380+38) -> 5 | OB5: =OFFSET(char10!A$1, ROW()-2-0+0, COLUMN()-2-390+39) -> 5 | OC5: =OFFSET(char10!A$1, ROW()-2-0+0, COLUMN()-2-390+39) -> 5 | OD5: =OFFSET(char10!A$1, ROW()-2-0+0, COLUMN()-2-390+39) -> 5 | OE5: =OFFSET(char10!A$1, ROW()-2-0+0, COLUMN()-2-390+39) -> 5 | OF5: =OFFSET(char10!A$1, ROW()-2-0+0, COLUMN()-2-390+39) -> 5 | OG5: =OFFSET(char10!A$1, ROW()-2-0+0, COLUMN()-2-390+39) -> 5 | OH5: =OFFSET(char10!A$1, ROW()-2-0+0, COLUMN()-2-390+39) -> 5 | OI5: =OFFSET(char10!A$1, ROW()-2-0+0, COLUMN()-2-390+39) -> 5
B6: =OFFSET(char10!A$1, ROW()-2-0+0, COLUMN()-2-0+0) -> 5 | C6: =OFFSET(char10!A$1, ROW()-2-0+0, COLUMN()-2-0+0) -> 5 | D6: =OFFSET(char10!A$1, ROW()-2-0+0, COLUMN()-2-0+0) -> 5 | E6: =OFFSET(char10!A$1, ROW()-2-0+0, COLUMN()-2-0+0) -> 5 | F6: =OFFSET(char10!A$1, ROW()-2-0+0, COLUMN()-2-0+0) -> 5 | G6: =OFFSET(char10!A$1, ROW()-2-0+0, COLUMN()-2-0+0) -> 5 | H6: =OFFSET(char10!A$1, ROW()-2-0+0, COLUMN()-2-0+0) -> 5 | I6: =OFFSET(char10!A$1, ROW()-2-0+0, COLUMN()-2-0+0) -> 5 | L6: =OFFSET(char10!A$1, ROW()-2-0+0, COLUMN()-2-10+1) -> 5 | M6: =OFFSET(char10!A$1, ROW()-2-0+0, COLUMN()-2-10+1) -> 5 | N6: =OFFSET(char10!A$1, ROW()-2-0+0, COLUMN()-2-10+1) -> 5 | O6: =OFFSET(char10!A$1, ROW()-2-0+0, COLUMN()-2-10+1) -> 5 | P6: =OFFSET(char10!A$1, ROW()-2-0+0, COLUMN()-2-10+1) -> 5 | Q6: =OFFSET(char10!A$1, ROW()-2-0+0, COLUMN()-2-10+1) -> 5 | R6: =OFFSET(char10!A$1, ROW()-2-0+0, COLUMN()-2-10+1) -> 5 | S6: =OFFSET(char10!A$1, ROW()-2-0+0, COLUMN()-2-10+1) -> 5 | V6: =OFFSET(char10!A$1, ROW()-2-0+0, COLUMN()-2-20+2) -> 5 | W6: =OFFSET(char10!A$1, ROW()-2-0+0, COLUMN()-2-20+2) -> 5 | X6: =OFFSET(char10!A$1, ROW()-2-0+0, COLUMN()-2-20+2) -> 5 | Y6: =OFFSET(char10!A$1, ROW()-2-0+0, COLUMN()-2-20+2) -> 5 | Z6: =OFFSET(char10!A$1, ROW()-2-0+0, COLUMN()-2-20+2) -> 5 | AA6: =OFFSET(char10!A$1, ROW()-2-0+0, COLUMN()-2-20+2) -> 5 | AB6: =OFFSET(char10!A$1, ROW()-2-0+0, COLUMN()-2-20+2) -> 5 | AC6: =OFFSET(char10!A$1, ROW()-2-0+0, COLUMN()-2-20+2) -> 5 | AF6: =OFFSET(char10!A$1, ROW()-2-0+0, COLUMN()-2-30+3) -> 5 | AG6: =OFFSET(char10!A$1, ROW()-2-0+0, COLUMN()-2-30+3) -> 5 | AH6: =OFFSET(char10!A$1, ROW()-2-0+0, COLUMN()-2-30+3) -> 5 | AI6: =OFFSET(char10!A$1, ROW()-2-0+0, COLUMN()-2-30+3) -> 5 | AJ6: =OFFSET(char10!A$1, ROW()-2-0+0, COLUMN()-2-30+3) -> 5 | AK6: =OFFSET(char10!A$1, ROW()-2-0+0, COLUMN()-2-30+3) -> 5 | AL6: =OFFSET(char10!A$1, ROW()-2-0+0, COLUMN()-2-30+3) -> 5 | AM6: =OFFSET(char10!A$1, ROW()-2-0+0, COLUMN()-2-30+3) -> 5 | AP6: =OFFSET(char10!A$1, ROW()-2-0+0, COLUMN()-2-40+4) -> 5 | AQ6: =OFFSET(char10!A$1, ROW()-2-0+0, COLUMN()-2-40+4) -> 5 | AR6: =OFFSET(char10!A$1, ROW()-2-0+0, COLUMN()-2-40+4) -> 5 | AS6: =OFFSET(char10!A$1, ROW()-2-0+0, COLUMN()-2-40+4) -> 5 | AT6: =OFFSET(char10!A$1, ROW()-2-0+0, COLUMN()-2-40+4) -> 5 | AU6: =OFFSET(char10!A$1, ROW()-2-0+0, COLUMN()-2-40+4) -> 5 | AV6: =OFFSET(char10!A$1, ROW()-2-0+0, COLUMN()-2-40+4) -> 5 | AW6: =OFFSET(char10!A$1, ROW()-2-0+0, COLUMN()-2-40+4) -> 5 | AZ6: =OFFSET(char10!A$1, ROW()-2-0+0, COLUMN()-2-50+5) -> 5 | BA6: =OFFSET(char10!A$1, ROW()-2-0+0, COLUMN()-2-50+5) -> 5 | BB6: =OFFSET(char10!A$1, ROW()-2-0+0, COLUMN()-2-50+5) -> 5 | BC6: =OFFSET(char10!A$1, ROW()-2-0+0, COLUMN()-2-50+5) -> 5 | BD6: =OFFSET(char10!A$1, ROW()-2-0+0, COLUMN()-2-50+5) -> 5 | BE6: =OFFSET(char10!A$1, ROW()-2-0+0, COLUMN()-2-50+5) -> 5 | BF6: =OFFSET(char10!A$1, ROW()-2-0+0, COLUMN()-2-50+5) -> 5 | BG6: =OFFSET(char10!A$1, ROW()-2-0+0, COLUMN()-2-50+5) -> 5 | BJ6: =OFFSET(char10!A$1, ROW()-2-0+0, COLUMN()-2-60+6) -> 5 | BK6: =OFFSET(char10!A$1, ROW()-2-0+0, COLUMN()-2-60+6) -> 5 | BL6: =OFFSET(char10!A$1, ROW()-2-0+0, COLUMN()-2-60+6) -> 5 | BM6: =OFFSET(char10!A$1, ROW()-2-0+0, COLUMN()-2-60+6) -> 5 | BN6: =OFFSET(char10!A$1, ROW()-2-0+0, COLUMN()-2-60+6) -> 5 | BO6: =OFFSET(char10!A$1, ROW()-2-0+0, COLUMN()-2-60+6) -> 5 | BP6: =OFFSET(char10!A$1, ROW()-2-0+0, COLUMN()-2-60+6) -> 5 | BQ6: =OFFSET(char10!A$1, ROW()-2-0+0, COLUMN()-2-60+6) -> 5 | BT6: =OFFSET(char10!A$1, ROW()-2-0+0, COLUMN()-2-70+7) -> 5 | BU6: =OFFSET(char10!A$1, ROW()-2-0+0, COLUMN()-2-70+7) -> 5 | BV6: =OFFSET(char10!A$1, ROW()-2-0+0, COLUMN()-2-70+7) -> 5 | BW6: =OFFSET(char10!A$1, ROW()-2-0+0, COLUMN()-2-70+7) -> 5 | BX6: =OFFSET(char10!A$1, ROW()-2-0+0, COLUMN()-2-70+7) -> 5 | BY6: =OFFSET(char10!A$1, ROW()-2-0+0, COLUMN()-2-70+7) -> 5 | BZ6: =OFFSET(char10!A$1, ROW()-2-0+0, COLUMN()-2-70+7) -> 5 | CA6: =OFFSET(char10!A$1, ROW()-2-0+0, COLUMN()-2-70+7) -> 5 | CD6: =OFFSET(char10!A$1, ROW()-2-0+0, COLUMN()-2-80+8) -> 5 | CE6: =OFFSET(char10!A$1, ROW()-2-0+0, COLUMN()-2-80+8) -> 5 | CF6: =OFFSET(char10!A$1, ROW()-2-0+0, COLUMN()-2-80+8) -> 5 | CG6: =OFFSET(char10!A$1, ROW()-2-0+0, COLUMN()-2-80+8) -> 5 | CH6: =OFFSET(char10!A$1, ROW()-2-0+0, COLUMN()-2-80+8) -> 5 | CI6: =OFFSET(char10!A$1, ROW()-2-0+0, COLUMN()-2-80+8) -> 5 | CJ6: =OFFSET(char10!A$1, ROW()-2-0+0, COLUMN()-2-80+8) -> 5 | CK6: =OFFSET(char10!A$1, ROW()-2-0+0, COLUMN()-2-80+8) -> 5 | CN6: =OFFSET(char10!A$1, ROW()-2-0+0, COLUMN()-2-90+9) -> 5 | CO6: =OFFSET(char10!A$1, ROW()-2-0+0, COLUMN()-2-90+9) -> 5 | CP6: =OFFSET(char10!A$1, ROW()-2-0+0, COLUMN()-2-90+9) -> 5 | CQ6: =OFFSET(char10!A$1, ROW()-2-0+0, COLUMN()-2-90+9) -> 5 | CR6: =OFFSET(char10!A$1, ROW()-2-0+0, COLUMN()-2-90+9) -> 5 | CS6: =OFFSET(char10!A$1, ROW()-2-0+0, COLUMN()-2-90+9) -> 5 | CT6: =OFFSET(char10!A$1, ROW()-2-0+0, COLUMN()-2-90+9) -> 5 | CU6: =OFFSET(char10!A$1, ROW()-2-0+0, COLUMN()-2-90+9) -> 5 | CX6: =OFFSET(char10!A$1, ROW()-2-0+0, COLUMN()-2-100+10) -> 5 | CY6: =OFFSET(char10!A$1, ROW()-2-0+0, COLUMN()-2-100+10) -> 5 | CZ6: =OFFSET(char10!A$1, ROW()-2-0+0, COLUMN()-2-100+10) -> 5 | DA6: =OFFSET(char10!A$1, ROW()-2-0+0, COLUMN()-2-100+10) -> 5 | DB6: =OFFSET(char10!A$1, ROW()-2-0+0, COLUMN()-2-100+10) -> 5 | DC6: =OFFSET(char10!A$1, ROW()-2-0+0, COLUMN()-2-100+10) -> 5 | DD6: =OFFSET(char10!A$1, ROW()-2-0+0, COLUMN()-2-100+10) -> 5 | DE6: =OFFSET(char10!A$1, ROW()-2-0+0, COLUMN()-2-100+10) -> 5 | DH6: =OFFSET(char10!A$1, ROW()-2-0+0, COLUMN()-2-110+11) -> 5 | DI6: =OFFSET(char10!A$1, ROW()-2-0+0, COLUMN()-2-110+11) -> 5 | DJ6: =OFFSET(char10!A$1, ROW()-2-0+0, COLUMN()-2-110+11) -> 5 | DK6: =OFFSET(char10!A$1, ROW()-2-0+0, COLUMN()-2-110+11) -> 5 | DL6: =OFFSET(char10!A$1, ROW()-2-0+0, COLUMN()-2-110+11) -> 5 | DM6: =OFFSET(char10!A$1, ROW()-2-0+0, COLUMN()-2-110+11) -> 5 | DN6: =OFFSET(char10!A$1, ROW()-2-0+0, COLUMN()-2-110+11) -> 5 | DO6: =OFFSET(char10!A$1, ROW()-2-0+0, COLUMN()-2-110+11) -> 40 | DR6: =OFFSET(char10!A$1, ROW()-2-0+0, COLUMN()-2-120+12) -> 5 | DS6: =OFFSET(char10!A$1, ROW()-2-0+0, COLUMN()-2-120+12) -> 5 | DT6: =OFFSET(char10!A$1, ROW()-2-0+0, COLUMN()-2-120+12) -> 5 | DU6: =OFFSET(char10!A$1, ROW()-2-0+0, COLUMN()-2-120+12) -> 5 | DV6: =OFFSET(char10!A$1, ROW()-2-0+0, COLUMN()-2-120+12) -> 5 | DW6: =OFFSET(char10!A$1, ROW()-2-0+0, COLUMN()-2-120+12) -> 5 | DX6: =OFFSET(char10!A$1, ROW()-2-0+0, COLUMN()-2-120+12) -> 40 | DY6: =OFFSET(char10!A$1, ROW()-2-0+0, COLUMN()-2-120+12) -> 20 | EB6: =OFFSET(char10!A$1, ROW()-2-0+0, COLUMN()-2-130+13) -> 5 | EC6: =OFFSET(char10!A$1, ROW()-2-0+0, COLUMN()-2-130+13) -> 5 | ED6: =OFFSET(char10!A$1, ROW()-2-0+0, COLUMN()-2-130+13) -> 5 | EE6: =OFFSET(char10!A$1, ROW()-2-0+0, COLUMN()-2-130+13) -> 5 | EF6: =OFFSET(char10!A$1, ROW()-2-0+0, COLUMN()-2-130+13) -> 5 | EG6: =OFFSET(char10!A$1, ROW()-2-0+0, COLUMN()-2-130+13) -> 40 | EH6: =OFFSET(char10!A$1, ROW()-2-0+0, COLUMN()-2-130+13) -> 20 | EI6: =OFFSET(char10!A$1, ROW()-2-0+0, COLUMN()-2-130+13) -> 5 | EL6: =OFFSET(char10!A$1, ROW()-2-0+0, COLUMN()-2-140+14) -> 5 | EM6: =OFFSET(char10!A$1, ROW()-2-0+0, COLUMN()-2-140+14) -> 5 | EN6: =OFFSET(char10!A$1, ROW()-2-0+0, COLUMN()-2-140+14) -> 5 | EO6: =OFFSET(char10!A$1, ROW()-2-0+0, COLUMN()-2-140+14) -> 5 | EP6: =OFFSET(char10!A$1, ROW()-2-0+0, COLUMN()-2-140+14) -> 40 | EQ6: =OFFSET(char10!A$1, ROW()-2-0+0, COLUMN()-2-140+14) -> 20 | ER6: =OFFSET(char10!A$1, ROW()-2-0+0, COLUMN()-2-140+14) -> 5 | ES6: =OFFSET(char10!A$1, ROW()-2-0+0, COLUMN()-2-140+14) -> 5 | EV6: =OFFSET(char10!A$1, ROW()-2-0+0, COLUMN()-2-150+15) -> 5 | EW6: =OFFSET(char10!A$1, ROW()-2-0+0, COLUMN()-2-150+15) -> 5 | EX6: =OFFSET(char10!A$1, ROW()-2-0+0, COLUMN()-2-150+15) -> 5 | EY6: =OFFSET(char10!A$1, ROW()-2-0+0, COLUMN()-2-150+15) -> 40 | EZ6: =OFFSET(char10!A$1, ROW()-2-0+0, COLUMN()-2-150+15) -> 20 | FA6: =OFFSET(char10!A$1, ROW()-2-0+0, COLUMN()-2-150+15) -> 5 | FB6: =OFFSET(char10!A$1, ROW()-2-0+0, COLUMN()-2-150+15) -> 5 | FC6: =OFFSET(char10!A$1, ROW()-2-0+0, COLUMN()-2-150+15) -> 5 | FF6: =OFFSET(char10!A$1, ROW()-2-0+0, COLUMN()-2-160+16) -> 5 | FG6: =OFFSET(char10!A$1, ROW()-2-0+0, COLUMN()-2-160+16) -> 5 | FH6: =OFFSET(char10!A$1, ROW()-2-0+0, COLUMN()-2-160+16) -> 40 | FI6: =OFFSET(char10!A$1, ROW()-2-0+0, COLUMN()-2-160+16) -> 20 | FJ6: =OFFSET(char10!A$1, ROW()-2-0+0, COLUMN()-2-160+16) -> 5 | FK6: =OFFSET(char10!A$1, ROW()-2-0+0, COLUMN()-2-160+16) -> 5 | FL6: =OFFSET(char10!A$1, ROW()-2-0+0, COLUMN()-2-160+16) -> 5 | FM6: =OFFSET(char10!A$1, ROW()-2-0+0, COLUMN()-2-160+16) -> 20 | FP6: =OFFSET(char10!A$1, ROW()-2-0+0, COLUMN()-2-170+17) -> 5 | FQ6: =OFFSET(char10!A$1, ROW()-2-0+0, COLUMN()-2-170+17) -> 40 | FR6: =OFFSET(char10!A$1, ROW()-2-0+0, COLUMN()-2-170+17) -> 20 | FS6: =OFFSET(char10!A$1, ROW()-2-0+0, COLUMN()-2-170+17) -> 5 | FT6: =OFFSET(char10!A$1, ROW()-2-0+0, COLUMN()-2-170+17) -> 5 | FU6: =OFFSET(char10!A$1, ROW()-2-0+0, COLUMN()-2-170+17) -> 5 | FV6: =OFFSET(char10!A$1, ROW()-2-0+0, COLUMN()-2-170+17) -> 20 | FW6: =OFFSET(char10!A$1, ROW()-2-0+0, COLUMN()-2-170+17) -> 40 | FZ6: =OFFSET(char10!A$1, ROW()-2-0+0, COLUMN()-2-180+18) -> 40 | GA6: =OFFSET(char10!A$1, ROW()-2-0+0, COLUMN()-2-180+18) -> 20 | GB6: =OFFSET(char10!A$1, ROW()-2-0+0, COLUMN()-2-180+18) -> 5 | GC6: =OFFSET(char10!A$1, ROW()-2-0+0, COLUMN()-2-180+18) -> 5 | GD6: =OFFSET(char10!A$1, ROW()-2-0+0, COLUMN()-2-180+18) -> 5 | GE6: =OFFSET(char10!A$1, ROW()-2-0+0, COLUMN()-2-180+18) -> 20 | GF6: =OFFSET(char10!A$1, ROW()-2-0+0, COLUMN()-2-180+18) -> 40 | GG6: =OFFSET(char10!A$1, ROW()-2-0+0, COLUMN()-2-180+18) -> 15 | GJ6: =OFFSET(char10!A$1, ROW()-2-0+0, COLUMN()-2-190+19) -> 20 | GK6: =OFFSET(char10!A$1, ROW()-2-0+0, COLUMN()-2-190+19) -> 5 | GL6: =OFFSET(char10!A$1, ROW()-2-0+0, COLUMN()-2-190+19) -> 5 | GM6: =OFFSET(char10!A$1, ROW()-2-0+0, COLUMN()-2-190+19) -> 5 | GN6: =OFFSET(char10!A$1, ROW()-2-0+0, COLUMN()-2-190+19) -> 20 | GO6: =OFFSET(char10!A$1, ROW()-2-0+0, COLUMN()-2-190+19) -> 40 | GP6: =OFFSET(char10!A$1, ROW()-2-0+0, COLUMN()-2-190+19) -> 15 | GQ6: =OFFSET(char10!A$1, ROW()-2-0+0, COLUMN()-2-190+19) -> 5 | GT6: =OFFSET(char10!A$1, ROW()-2-0+0, COLUMN()-2-200+20) -> 5 | GU6: =OFFSET(char10!A$1, ROW()-2-0+0, COLUMN()-2-200+20) -> 5 | GV6: =OFFSET(char10!A$1, ROW()-2-0+0, COLUMN()-2-200+20) -> 5 | GW6: =OFFSET(char10!A$1, ROW()-2-0+0, COLUMN()-2-200+20) -> 20 | GX6: =OFFSET(char10!A$1, ROW()-2-0+0, COLUMN()-2-200+20) -> 40 | GY6: =OFFSET(char10!A$1, ROW()-2-0+0, COLUMN()-2-200+20) -> 15 | GZ6: =OFFSET(char10!A$1, ROW()-2-0+0, COLUMN()-2-200+20) -> 5 | HA6: =OFFSET(char10!A$1, ROW()-2-0+0, COLUMN()-2-200+20) -> 5 | HD6: =OFFSET(char10!A$1, ROW()-2-0+0, COLUMN()-2-210+21) -> 5 | HE6: =OFFSET(char10!A$1, ROW()-2-0+0, COLUMN()-2-210+21) -> 5 | HF6: =OFFSET(char10!A$1, ROW()-2-0+0, COLUMN()-2-210+21) -> 20 | HG6: =OFFSET(char10!A$1, ROW()-2-0+0, COLUMN()-2-210+21) -> 40 | HH6: =OFFSET(char10!A$1, ROW()-2-0+0, COLUMN()-2-210+21) -> 15 | HI6: =OFFSET(char10!A$1, ROW()-2-0+0, COLUMN()-2-210+21) -> 5 | HJ6: =OFFSET(char10!A$1, ROW()-2-0+0, COLUMN()-2-210+21) -> 5 | HK6: =OFFSET(char10!A$1, ROW()-2-0+0, COLUMN()-2-210+21) -> 5 | HN6: =OFFSET(char10!A$1, ROW()-2-0+0, COLUMN()-2-220+22) -> 5 | HO6: =OFFSET(char10!A$1, ROW()-2-0+0, COLUMN()-2-220+22) -> 20 | HP6: =OFFSET(char10!A$1, ROW()-2-0+0, COLUMN()-2-220+22) -> 40 | HQ6: =OFFSET(char10!A$1, ROW()-2-0+0, COLUMN()-2-220+22) -> 15 | HR6: =OFFSET(char10!A$1, ROW()-2-0+0, COLUMN()-2-220+22) -> 5 | HS6: =OFFSET(char10!A$1, ROW()-2-0+0, COLUMN()-2-220+22) -> 5 | HT6: =OFFSET(char10!A$1, ROW()-2-0+0, COLUMN()-2-220+22) -> 5 | HU6: =OFFSET(char10!A$1, ROW()-2-0+0, COLUMN()-2-220+22) -> 5 | HX6: =OFFSET(char10!A$1, ROW()-2-0+0, COLUMN()-2-230+23) -> 20 | HY6: =OFFSET(char10!A$1, ROW()-2-0+0, COLUMN()-2-230+23) -> 40 | HZ6: =OFFSET(char10!A$1, ROW()-2-0+0, COLUMN()-2-230+23) -> 15 | IA6: =OFFSET(char10!A$1, ROW()-2-0+0, COLUMN()-2-230+23) -> 5 | IB6: =OFFSET(char10!A$1, ROW()-2-0+0, COLUMN()-2-230+23) -> 5 | IC6: =OFFSET(char10!A$1, ROW()-2-0+0, COLUMN()-2-230+23) -> 5 | ID6: =OFFSET(char10!A$1, ROW()-2-0+0, COLUMN()-2-230+23) -> 5 | IE6: =OFFSET(char10!A$1, ROW()-2-0+0, COLUMN()-2-230+23) -> 5 | IH6: =OFFSET(char10!A$1, ROW()-2-0+0, COLUMN()-2-240+24) -> 40 | II6: =OFFSET(char10!A$1, ROW()-2-0+0, COLUMN()-2-240+24) -> 15 | IJ6: =OFFSET(char10!A$1, ROW()-2-0+0, COLUMN()-2-240+24) -> 5 | IK6: =OFFSET(char10!A$1, ROW()-2-0+0, COLUMN()-2-240+24) -> 5 | IL6: =OFFSET(char10!A$1, ROW()-2-0+0, COLUMN()-2-240+24) -> 5 | IM6: =OFFSET(char10!A$1, ROW()-2-0+0, COLUMN()-2-240+24) -> 5 | IN6: =OFFSET(char10!A$1, ROW()-2-0+0, COLUMN()-2-240+24) -> 5 | IO6: =OFFSET(char10!A$1, ROW()-2-0+0, COLUMN()-2-240+24) -> 5 | IR6: =OFFSET(char10!A$1, ROW()-2-0+0, COLUMN()-2-250+25) -> 15 | IS6: =OFFSET(char10!A$1, ROW()-2-0+0, COLUMN()-2-250+25) -> 5 | IT6: =OFFSET(char10!A$1, ROW()-2-0+0, COLUMN()-2-250+25) -> 5 | IU6: =OFFSET(char10!A$1, ROW()-2-0+0, COLUMN()-2-250+25) -> 5 | IV6: =OFFSET(char10!A$1, ROW()-2-0+0, COLUMN()-2-250+25) -> 5 | IW6: =OFFSET(char10!A$1, ROW()-2-0+0, COLUMN()-2-250+25) -> 5 | IX6: =OFFSET(char10!A$1, ROW()-2-0+0, COLUMN()-2-250+25) -> 5 | IY6: =OFFSET(char10!A$1, ROW()-2-0+0, COLUMN()-2-250+25) -> 5 | JB6: =OFFSET(char10!A$1, ROW()-2-0+0, COLUMN()-2-260+26) -> 5 | JC6: =OFFSET(char10!A$1, ROW()-2-0+0, COLUMN()-2-260+26) -> 5 | JD6: =OFFSET(char10!A$1, ROW()-2-0+0, COLUMN()-2-260+26) -> 5 | JE6: =OFFSET(char10!A$1, ROW()-2-0+0, COLUMN()-2-260+26) -> 5 | JF6: =OFFSET(char10!A$1, ROW()-2-0+0, COLUMN()-2-260+26) -> 5 | JG6: =OFFSET(char10!A$1, ROW()-2-0+0, COLUMN()-2-260+26) -> 5 | JH6: =OFFSET(char10!A$1, ROW()-2-0+0, COLUMN()-2-260+26) -> 5 | JI6: =OFFSET(char10!A$1, ROW()-2-0+0, COLUMN()-2-260+26) -> 5 | JL6: =OFFSET(char10!A$1, ROW()-2-0+0, COLUMN()-2-270+27) -> 5 | JM6: =OFFSET(char10!A$1, ROW()-2-0+0, COLUMN()-2-270+27) -> 5 | JN6: =OFFSET(char10!A$1, ROW()-2-0+0, COLUMN()-2-270+27) -> 5 | JO6: =OFFSET(char10!A$1, ROW()-2-0+0, COLUMN()-2-270+27) -> 5 | JP6: =OFFSET(char10!A$1, ROW()-2-0+0, COLUMN()-2-270+27) -> 5 | JQ6: =OFFSET(char10!A$1, ROW()-2-0+0, COLUMN()-2-270+27) -> 5 | JR6: =OFFSET(char10!A$1, ROW()-2-0+0, COLUMN()-2-270+27) -> 5 | JS6: =OFFSET(char10!A$1, ROW()-2-0+0, COLUMN()-2-270+27) -> 5 | JV6: =OFFSET(char10!A$1, ROW()-2-0+0, COLUMN()-2-280+28) -> 5 | JW6: =OFFSET(char10!A$1, ROW()-2-0+0, COLUMN()-2-280+28) -> 5 | JX6: =OFFSET(char10!A$1, ROW()-2-0+0, COLUMN()-2-280+28) -> 5 | JY6: =OFFSET(char10!A$1, ROW()-2-0+0, COLUMN()-2-280+28) -> 5 | JZ6: =OFFSET(char10!A$1, ROW()-2-0+0, COLUMN()-2-280+28) -> 5 | KA6: =OFFSET(char10!A$1, ROW()-2-0+0, COLUMN()-2-280+28) -> 5 | KB6: =OFFSET(char10!A$1, ROW()-2-0+0, COLUMN()-2-280+28) -> 5 | KC6: =OFFSET(char10!A$1, ROW()-2-0+0, COLUMN()-2-280+28) -> 5 | KF6: =OFFSET(char10!A$1, ROW()-2-0+0, COLUMN()-2-290+29) -> 5 | KG6: =OFFSET(char10!A$1, ROW()-2-0+0, COLUMN()-2-290+29) -> 5 | KH6: =OFFSET(char10!A$1, ROW()-2-0+0, COLUMN()-2-290+29) -> 5 | KI6: =OFFSET(char10!A$1, ROW()-2-0+0, COLUMN()-2-290+29) -> 5 | KJ6: =OFFSET(char10!A$1, ROW()-2-0+0, COLUMN()-2-290+29) -> 5 | KK6: =OFFSET(char10!A$1, ROW()-2-0+0, COLUMN()-2-290+29) -> 5 | KL6: =OFFSET(char10!A$1, ROW()-2-0+0, COLUMN()-2-290+29) -> 5 | KM6: =OFFSET(char10!A$1, ROW()-2-0+0, COLUMN()-2-290+29) -> 5 | KP6: =OFFSET(char10!A$1, ROW()-2-0+0, COLUMN()-2-300+30) -> 5 | KQ6: =OFFSET(char10!A$1, ROW()-2-0+0, COLUMN()-2-300+30) -> 5 | KR6: =OFFSET(char10!A$1, ROW()-2-0+0, COLUMN()-2-300+30) -> 5 | KS6: =OFFSET(char10!A$1, ROW()-2-0+0, COLUMN()-2-300+30) -> 5 | KT6: =OFFSET(char10!A$1, ROW()-2-0+0, COLUMN()-2-300+30) -> 5 | KU6: =OFFSET(char10!A$1, ROW()-2-0+0, COLUMN()-2-300+30) -> 5 | KV6: =OFFSET(char10!A$1, ROW()-2-0+0, COLUMN()-2-300+30) -> 5 | KW6: =OFFSET(char10!A$1, ROW()-2-0+0, COLUMN()-2-300+30) -> 5 | KZ6: =OFFSET(char10!A$1, ROW()-2-0+0, COLUMN()-2-310+31) -> 5 | LA6: =OFFSET(char10!A$1, ROW()-2-0+0, COLUMN()-2-310+31) -> 5 | LB6: =OFFSET(char10!A$1, ROW()-2-0+0, COLUMN()-2-310+31) -> 5 | LC6: =OFFSET(char10!A$1, ROW()-2-0+0, COLUMN()-2-310+31) -> 5 | LD6: =OFFSET(char10!A$1, ROW()-2-0+0, COLUMN()-2-310+31) -> 5 | LE6: =OFFSET(char10!A$1, ROW()-2-0+0, COLUMN()-2-310+31) -> 5 | LF6: =OFFSET(char10!A$1, ROW()-2-0+0, COLUMN()-2-310+31) -> 5 | LG6: =OFFSET(char10!A$1, ROW()-2-0+0, COLUMN()-2-310+31) -> 5 | LJ6: =OFFSET(char10!A$1, ROW()-2-0+0, COLUMN()-2-320+32) -> 5 | LK6: =OFFSET(char10!A$1, ROW()-2-0+0, COLUMN()-2-320+32) -> 5 | LL6: =OFFSET(char10!A$1, ROW()-2-0+0, COLUMN()-2-320+32) -> 5 | LM6: =OFFSET(char10!A$1, ROW()-2-0+0, COLUMN()-2-320+32) -> 5 | LN6: =OFFSET(char10!A$1, ROW()-2-0+0, COLUMN()-2-320+32) -> 5 | LO6: =OFFSET(char10!A$1, ROW()-2-0+0, COLUMN()-2-320+32) -> 5 | LP6: =OFFSET(char10!A$1, ROW()-2-0+0, COLUMN()-2-320+32) -> 5 | LQ6: =OFFSET(char10!A$1, ROW()-2-0+0, COLUMN()-2-320+32) -> 5 | LT6: =OFFSET(char10!A$1, ROW()-2-0+0, COLUMN()-2-330+33) -> 5 | LU6: =OFFSET(char10!A$1, ROW()-2-0+0, COLUMN()-2-330+33) -> 5 | LV6: =OFFSET(char10!A$1, ROW()-2-0+0, COLUMN()-2-330+33) -> 5 | LW6: =OFFSET(char10!A$1, ROW()-2-0+0, COLUMN()-2-330+33) -> 5 | LX6: =OFFSET(char10!A$1, ROW()-2-0+0, COLUMN()-2-330+33) -> 5 | LY6: =OFFSET(char10!A$1, ROW()-2-0+0, COLUMN()-2-330+33) -> 5 | LZ6: =OFFSET(char10!A$1, ROW()-2-0+0, COLUMN()-2-330+33) -> 5 | MA6: =OFFSET(char10!A$1, ROW()-2-0+0, COLUMN()-2-330+33) -> 5 | MD6: =OFFSET(char10!A$1, ROW()-2-0+0, COLUMN()-2-340+34) -> 5 | ME6: =OFFSET(char10!A$1, ROW()-2-0+0, COLUMN()-2-340+34) -> 5 | MF6: =OFFSET(char10!A$1, ROW()-2-0+0, COLUMN()-2-340+34) -> 5 | MG6: =OFFSET(char10!A$1, ROW()-2-0+0, COLUMN()-2-340+34) -> 5 | MH6: =OFFSET(char10!A$1, ROW()-2-0+0, COLUMN()-2-340+34) -> 5 | MI6: =OFFSET(char10!A$1, ROW()-2-0+0, COLUMN()-2-340+34) -> 5 | MJ6: =OFFSET(char10!A$1, ROW()-2-0+0, COLUMN()-2-340+34) -> 5 | MK6: =OFFSET(char10!A$1, ROW()-2-0+0, COLUMN()-2-340+34) -> 5 | MN6: =OFFSET(char10!A$1, ROW()-2-0+0, COLUMN()-2-350+35) -> 5 | MO6: =OFFSET(char10!A$1, ROW()-2-0+0, COLUMN()-2-350+35) -> 5 | MP6: =OFFSET(char10!A$1, ROW()-2-0+0, COLUMN()-2-350+35) -> 5 | MQ6: =OFFSET(char10!A$1, ROW()-2-0+0, COLUMN()-2-350+35) -> 5 | MR6: =OFFSET(char10!A$1, ROW()-2-0+0, COLUMN()-2-350+35) -> 5 | MS6: =OFFSET(char10!A$1, ROW()-2-0+0, COLUMN()-2-350+35) -> 5 | MT6: =OFFSET(char10!A$1, ROW()-2-0+0, COLUMN()-2-350+35) -> 5 | MU6: =OFFSET(char10!A$1, ROW()-2-0+0, COLUMN()-2-350+35) -> 5 | MX6: =OFFSET(char10!A$1, ROW()-2-0+0, COLUMN()-2-360+36) -> 5 | MY6: =OFFSET(char10!A$1, ROW()-2-0+0, COLUMN()-2-360+36) -> 5 | MZ6: =OFFSET(char10!A$1, ROW()-2-0+0, COLUMN()-2-360+36) -> 5 | NA6: =OFFSET(char10!A$1, ROW()-2-0+0, COLUMN()-2-360+36) -> 5 | NB6: =OFFSET(char10!A$1, ROW()-2-0+0, COLUMN()-2-360+36) -> 5 | NC6: =OFFSET(char10!A$1, ROW()-2-0+0, COLUMN()-2-360+36) -> 5 | ND6: =OFFSET(char10!A$1, ROW()-2-0+0, COLUMN()-2-360+36) -> 5 | NE6: =OFFSET(char10!A$1, ROW()-2-0+0, COLUMN()-2-360+36) -> 5 | NH6: =OFFSET(char10!A$1, ROW()-2-0+0, COLUMN()-2-370+37) -> 5 | NI6: =OFFSET(char10!A$1, ROW()-2-0+0, COLUMN()-2-370+37) -> 5 | NJ6: =OFFSET(char10!A$1, ROW()-2-0+0, COLUMN()-2-370+37) -> 5 | NK6: =OFFSET(char10!A$1, ROW()-2-0+0, COLUMN()-2-370+37) -> 5 | NL6: =OFFSET(char10!A$1, ROW()-2-0+0, COLUMN()-2-370+37) -> 5 | NM6: =OFFSET(char10!A$1, ROW()-2-0+0, COLUMN()-2-370+37) -> 5 | NN6: =OFFSET(char10!A$1, ROW()-2-0+0, COLUMN()-2-370+37) -> 5 | NO6: =OFFSET(char10!A$1, ROW()-2-0+0, COLUMN()-2-370+37) -> 5 | NR6: =OFFSET(char10!A$1, ROW()-2-0+0, COLUMN()-2-380+38) -> 5 | NS6: =OFFSET(char10!A$1, ROW()-2-0+0, COLUMN()-2-380+38) -> 5 | NT6: =OFFSET(char10!A$1, ROW()-2-0+0, COLUMN()-2-380+38) -> 5 | NU6: =OFFSET(char10!A$1, ROW()-2-0+0, COLUMN()-2-380+38) -> 5 | NV6: =OFFSET(char10!A$1, ROW()-2-0+0, COLUMN()-2-380+38) -> 5 | NW6: =OFFSET(char10!A$1, ROW()-2-0+0, COLUMN()-2-380+38) -> 5 | NX6: =OFFSET(char10!A$1, ROW()-2-0+0, COLUMN()-2-380+38) -> 5 | NY6: =OFFSET(char10!A$1, ROW()-2-0+0, COLUMN()-2-380+38) -> 5 | OB6: =OFFSET(char10!A$1, ROW()-2-0+0, COLUMN()-2-390+39) -> 5 | OC6: =OFFSET(char10!A$1, ROW()-2-0+0, COLUMN()-2-390+39) -> 5 | OD6: =OFFSET(char10!A$1, ROW()-2-0+0, COLUMN()-2-390+39) -> 5 | OE6: =OFFSET(char10!A$1, ROW()-2-0+0, COLUMN()-2-390+39) -> 5 | OF6: =OFFSET(char10!A$1, ROW()-2-0+0, COLUMN()-2-390+39) -> 5 | OG6: =OFFSET(char10!A$1, ROW()-2-0+0, COLUMN()-2-390+39) -> 5 | OH6: =OFFSET(char10!A$1, ROW()-2-0+0, COLUMN()-2-390+39) -> 5 | OI6: =OFFSET(char10!A$1, ROW()-2-0+0, COLUMN()-2-390+39) -> 5
B7: =OFFSET(char10!A$1, ROW()-2-0+0, COLUMN()-2-0+0) -> 5 | C7: =OFFSET(char10!A$1, ROW()-2-0+0, COLUMN()-2-0+0) -> 5 | D7: =OFFSET(char10!A$1, ROW()-2-0+0, COLUMN()-2-0+0) -> 5 | E7: =OFFSET(char10!A$1, ROW()-2-0+0, COLUMN()-2-0+0) -> 15 | F7: =OFFSET(char10!A$1, ROW()-2-0+0, COLUMN()-2-0+0) -> 40 | G7: =OFFSET(char10!A$1, ROW()-2-0+0, COLUMN()-2-0+0) -> 40 | H7: =OFFSET(char10!A$1, ROW()-2-0+0, COLUMN()-2-0+0) -> 40 | I7: =OFFSET(char10!A$1, ROW()-2-0+0, COLUMN()-2-0+0) -> 40 | L7: =OFFSET(char10!A$1, ROW()-2-0+0, COLUMN()-2-10+1) -> 5 | M7: =OFFSET(char10!A$1, ROW()-2-0+0, COLUMN()-2-10+1) -> 5 | N7: =OFFSET(char10!A$1, ROW()-2-0+0, COLUMN()-2-10+1) -> 15 | O7: =OFFSET(char10!A$1, ROW()-2-0+0, COLUMN()-2-10+1) -> 40 | P7: =OFFSET(char10!A$1, ROW()-2-0+0, COLUMN()-2-10+1) -> 40 | Q7: =OFFSET(char10!A$1, ROW()-2-0+0, COLUMN()-2-10+1) -> 40 | R7: =OFFSET(char10!A$1, ROW()-2-0+0, COLUMN()-2-10+1) -> 40 | S7: =OFFSET(char10!A$1, ROW()-2-0+0, COLUMN()-2-10+1) -> 40 | V7: =OFFSET(char10!A$1, ROW()-2-0+0, COLUMN()-2-20+2) -> 5 | W7: =OFFSET(char10!A$1, ROW()-2-0+0, COLUMN()-2-20+2) -> 15 | X7: =OFFSET(char10!A$1, ROW()-2-0+0, COLUMN()-2-20+2) -> 40 | Y7: =OFFSET(char10!A$1, ROW()-2-0+0, COLUMN()-2-20+2) -> 40 | Z7: =OFFSET(char10!A$1, ROW()-2-0+0, COLUMN()-2-20+2) -> 40 | AA7: =OFFSET(char10!A$1, ROW()-2-0+0, COLUMN()-2-20+2) -> 40 | AB7: =OFFSET(char10!A$1, ROW()-2-0+0, COLUMN()-2-20+2) -> 40 | AC7: =OFFSET(char10!A$1, ROW()-2-0+0, COLUMN()-2-20+2) -> 30 | AF7: =OFFSET(char10!A$1, ROW()-2-0+0, COLUMN()-2-30+3) -> 15 | AG7: =OFFSET(char10!A$1, ROW()-2-0+0, COLUMN()-2-30+3) -> 40 | AH7: =OFFSET(char10!A$1, ROW()-2-0+0, COLUMN()-2-30+3) -> 40 | AI7: =OFFSET(char10!A$1, ROW()-2-0+0, COLUMN()-2-30+3) -> 40 | AJ7: =OFFSET(char10!A$1, ROW()-2-0+0, COLUMN()-2-30+3) -> 40 | AK7: =OFFSET(char10!A$1, ROW()-2-0+0, COLUMN()-2-30+3) -> 40 | AL7: =OFFSET(char10!A$1, ROW()-2-0+0, COLUMN()-2-30+3) -> 30 | AM7: =OFFSET(char10!A$1, ROW()-2-0+0, COLUMN()-2-30+3) -> 5 | AP7: =OFFSET(char10!A$1, ROW()-2-0+0, COLUMN()-2-40+4) -> 40 | AQ7: =OFFSET(char10!A$1, ROW()-2-0+0, COLUMN()-2-40+4) -> 40 | AR7: =OFFSET(char10!A$1, ROW()-2-0+0, COLUMN()-2-40+4) -> 40 | AS7: =OFFSET(char10!A$1, ROW()-2-0+0, COLUMN()-2-40+4) -> 40 | AT7: =OFFSET(char10!A$1, ROW()-2-0+0, COLUMN()-2-40+4) -> 40 | AU7: =OFFSET(char10!A$1, ROW()-2-0+0, COLUMN()-2-40+4) -> 30 | AV7: =OFFSET(char10!A$1, ROW()-2-0+0, COLUMN()-2-40+4) -> 5 | AW7: =OFFSET(char10!A$1, ROW()-2-0+0, COLUMN()-2-40+4) -> 5 | AZ7: =OFFSET(char10!A$1, ROW()-2-0+0, COLUMN()-2-50+5) -> 40 | BA7: =OFFSET(char10!A$1, ROW()-2-0+0, COLUMN()-2-50+5) -> 40 | BB7: =OFFSET(char10!A$1, ROW()-2-0+0, COLUMN()-2-50+5) -> 40 | BC7: =OFFSET(char10!A$1, ROW()-2-0+0, COLUMN()-2-50+5) -> 40 | BD7: =OFFSET(char10!A$1, ROW()-2-0+0, COLUMN()-2-50+5) -> 30 | BE7: =OFFSET(char10!A$1, ROW()-2-0+0, COLUMN()-2-50+5) -> 5 | BF7: =OFFSET(char10!A$1, ROW()-2-0+0, COLUMN()-2-50+5) -> 5 | BG7: =OFFSET(char10!A$1, ROW()-2-0+0, COLUMN()-2-50+5) -> 5 | BJ7: =OFFSET(char10!A$1, ROW()-2-0+0, COLUMN()-2-60+6) -> 40 | BK7: =OFFSET(char10!A$1, ROW()-2-0+0, COLUMN()-2-60+6) -> 40 | BL7: =OFFSET(char10!A$1, ROW()-2-0+0, COLUMN()-2-60+6) -> 40 | BM7: =OFFSET(char10!A$1, ROW()-2-0+0, COLUMN()-2-60+6) -> 30 | BN7: =OFFSET(char10!A$1, ROW()-2-0+0, COLUMN()-2-60+6) -> 5 | BO7: =OFFSET(char10!A$1, ROW()-2-0+0, COLUMN()-2-60+6) -> 5 | BP7: =OFFSET(char10!A$1, ROW()-2-0+0, COLUMN()-2-60+6) -> 5 | BQ7: =OFFSET(char10!A$1, ROW()-2-0+0, COLUMN()-2-60+6) -> 5 | BT7: =OFFSET(char10!A$1, ROW()-2-0+0, COLUMN()-2-70+7) -> 40 | BU7: =OFFSET(char10!A$1, ROW()-2-0+0, COLUMN()-2-70+7) -> 40 | BV7: =OFFSET(char10!A$1, ROW()-2-0+0, COLUMN()-2-70+7) -> 30 | BW7: =OFFSET(char10!A$1, ROW()-2-0+0, COLUMN()-2-70+7) -> 5 | BX7: =OFFSET(char10!A$1, ROW()-2-0+0, COLUMN()-2-70+7) -> 5 | BY7: =OFFSET(char10!A$1, ROW()-2-0+0, COLUMN()-2-70+7) -> 5 | BZ7: =OFFSET(char10!A$1, ROW()-2-0+0, COLUMN()-2-70+7) -> 5 | CA7: =OFFSET(char10!A$1, ROW()-2-0+0, COLUMN()-2-70+7) -> 5 | CD7: =OFFSET(char10!A$1, ROW()-2-0+0, COLUMN()-2-80+8) -> 40 | CE7: =OFFSET(char10!A$1, ROW()-2-0+0, COLUMN()-2-80+8) -> 30 | CF7: =OFFSET(char10!A$1, ROW()-2-0+0, COLUMN()-2-80+8) -> 5 | CG7: =OFFSET(char10!A$1, ROW()-2-0+0, COLUMN()-2-80+8) -> 5 | CH7: =OFFSET(char10!A$1, ROW()-2-0+0, COLUMN()-2-80+8) -> 5 | CI7: =OFFSET(char10!A$1, ROW()-2-0+0, COLUMN()-2-80+8) -> 5 | CJ7: =OFFSET(char10!A$1, ROW()-2-0+0, COLUMN()-2-80+8) -> 5 | CK7: =OFFSET(char10!A$1, ROW()-2-0+0, COLUMN()-2-80+8) -> 5 | CN7: =OFFSET(char10!A$1, ROW()-2-0+0, COLUMN()-2-90+9) -> 30 | CO7: =OFFSET(char10!A$1, ROW()-2-0+0, COLUMN()-2-90+9) -> 5 | CP7: =OFFSET(char10!A$1, ROW()-2-0+0, COLUMN()-2-90+9) -> 5 | CQ7: =OFFSET(char10!A$1, ROW()-2-0+0, COLUMN()-2-90+9) -> 5 | CR7: =OFFSET(char10!A$1, ROW()-2-0+0, COLUMN()-2-90+9) -> 5 | CS7: =OFFSET(char10!A$1, ROW()-2-0+0, COLUMN()-2-90+9) -> 5 | CT7: =OFFSET(char10!A$1, ROW()-2-0+0, COLUMN()-2-90+9) -> 5 | CU7: =OFFSET(char10!A$1, ROW()-2-0+0, COLUMN()-2-90+9) -> 5 | CX7: =OFFSET(char10!A$1, ROW()-2-0+0, COLUMN()-2-100+10) -> 5 | CY7: =OFFSET(char10!A$1, ROW()-2-0+0, COLUMN()-2-100+10) -> 5 | CZ7: =OFFSET(char10!A$1, ROW()-2-0+0, COLUMN()-2-100+10) -> 5 | DA7: =OFFSET(char10!A$1, ROW()-2-0+0, COLUMN()-2-100+10) -> 5 | DB7: =OFFSET(char10!A$1, ROW()-2-0+0, COLUMN()-2-100+10) -> 5 | DC7: =OFFSET(char10!A$1, ROW()-2-0+0, COLUMN()-2-100+10) -> 5 | DD7: =OFFSET(char10!A$1, ROW()-2-0+0, COLUMN()-2-100+10) -> 5 | DE7: =OFFSET(char10!A$1, ROW()-2-0+0, COLUMN()-2-100+10) -> 5 | DH7: =OFFSET(char10!A$1, ROW()-2-0+0, COLUMN()-2-110+11) -> 5 | DI7: =OFFSET(char10!A$1, ROW()-2-0+0, COLUMN()-2-110+11) -> 5 | DJ7: =OFFSET(char10!A$1, ROW()-2-0+0, COLUMN()-2-110+11) -> 5 | DK7: =OFFSET(char10!A$1, ROW()-2-0+0, COLUMN()-2-110+11) -> 5 | DL7: =OFFSET(char10!A$1, ROW()-2-0+0, COLUMN()-2-110+11) -> 5 | DM7: =OFFSET(char10!A$1, ROW()-2-0+0, COLUMN()-2-110+11) -> 5 | DN7: =OFFSET(char10!A$1, ROW()-2-0+0, COLUMN()-2-110+11) -> 5 | DO7: =OFFSET(char10!A$1, ROW()-2-0+0, COLUMN()-2-110+11) -> 40 | DR7: =OFFSET(char10!A$1, ROW()-2-0+0, COLUMN()-2-120+12) -> 5 | DS7: =OFFSET(char10!A$1, ROW()-2-0+0, COLUMN()-2-120+12) -> 5 | DT7: =OFFSET(char10!A$1, ROW()-2-0+0, COLUMN()-2-120+12) -> 5 | DU7: =OFFSET(char10!A$1, ROW()-2-0+0, COLUMN()-2-120+12) -> 5 | DV7: =OFFSET(char10!A$1, ROW()-2-0+0, COLUMN()-2-120+12) -> 5 | DW7: =OFFSET(char10!A$1, ROW()-2-0+0, COLUMN()-2-120+12) -> 5 | DX7: =OFFSET(char10!A$1, ROW()-2-0+0, COLUMN()-2-120+12) -> 40 | DY7: =OFFSET(char10!A$1, ROW()-2-0+0, COLUMN()-2-120+12) -> 20 | EB7: =OFFSET(char10!A$1, ROW()-2-0+0, COLUMN()-2-130+13) -> 5 | EC7: =OFFSET(char10!A$1, ROW()-2-0+0, COLUMN()-2-130+13) -> 5 | ED7: =OFFSET(char10!A$1, ROW()-2-0+0, COLUMN()-2-130+13) -> 5 | EE7: =OFFSET(char10!A$1, ROW()-2-0+0, COLUMN()-2-130+13) -> 5 | EF7: =OFFSET(char10!A$1, ROW()-2-0+0, COLUMN()-2-130+13) -> 5 | EG7: =OFFSET(char10!A$1, ROW()-2-0+0, COLUMN()-2-130+13) -> 40 | EH7: =OFFSET(char10!A$1, ROW()-2-0+0, COLUMN()-2-130+13) -> 20 | EI7: =OFFSET(char10!A$1, ROW()-2-0+0, COLUMN()-2-130+13) -> 5 | EL7: =OFFSET(char10!A$1, ROW()-2-0+0, COLUMN()-2-140+14) -> 5 | EM7: =OFFSET(char10!A$1, ROW()-2-0+0, COLUMN()-2-140+14) -> 5 | EN7: =OFFSET(char10!A$1, ROW()-2-0+0, COLUMN()-2-140+14) -> 5 | EO7: =OFFSET(char10!A$1, ROW()-2-0+0, COLUMN()-2-140+14) -> 5 | EP7: =OFFSET(char10!A$1, ROW()-2-0+0, COLUMN()-2-140+14) -> 40 | EQ7: =OFFSET(char10!A$1, ROW()-2-0+0, COLUMN()-2-140+14) -> 20 | ER7: =OFFSET(char10!A$1, ROW()-2-0+0, COLUMN()-2-140+14) -> 5 | ES7: =OFFSET(char10!A$1, ROW()-2-0+0, COLUMN()-2-140+14) -> 5 | EV7: =OFFSET(char10!A$1, ROW()-2-0+0, COLUMN()-2-150+15) -> 5 | EW7: =OFFSET(char10!A$1, ROW()-2-0+0, COLUMN()-2-150+15) -> 5 | EX7: =OFFSET(char10!A$1, ROW()-2-0+0, COLUMN()-2-150+15) -> 5 | EY7: =OFFSET(char10!A$1, ROW()-2-0+0, COLUMN()-2-150+15) -> 40 | EZ7: =OFFSET(char10!A$1, ROW()-2-0+0, COLUMN()-2-150+15) -> 20 | FA7: =OFFSET(char10!A$1, ROW()-2-0+0, COLUMN()-2-150+15) -> 5 | FB7: =OFFSET(char10!A$1, ROW()-2-0+0, COLUMN()-2-150+15) -> 5 | FC7: =OFFSET(char10!A$1, ROW()-2-0+0, COLUMN()-2-150+15) -> 5 | FF7: =OFFSET(char10!A$1, ROW()-2-0+0, COLUMN()-2-160+16) -> 5 | FG7: =OFFSET(char10!A$1, ROW()-2-0+0, COLUMN()-2-160+16) -> 5 | FH7: =OFFSET(char10!A$1, ROW()-2-0+0, COLUMN()-2-160+16) -> 40 | FI7: =OFFSET(char10!A$1, ROW()-2-0+0, COLUMN()-2-160+16) -> 20 | FJ7: =OFFSET(char10!A$1, ROW()-2-0+0, COLUMN()-2-160+16) -> 5 | FK7: =OFFSET(char10!A$1, ROW()-2-0+0, COLUMN()-2-160+16) -> 5 | FL7: =OFFSET(char10!A$1, ROW()-2-0+0, COLUMN()-2-160+16) -> 5 | FM7: =OFFSET(char10!A$1, ROW()-2-0+0, COLUMN()-2-160+16) -> 20 | FP7: =OFFSET(char10!A$1, ROW()-2-0+0, COLUMN()-2-170+17) -> 5 | FQ7: =OFFSET(char10!A$1, ROW()-2-0+0, COLUMN()-2-170+17) -> 40 | FR7: =OFFSET(char10!A$1, ROW()-2-0+0, COLUMN()-2-170+17) -> 20 | FS7: =OFFSET(char10!A$1, ROW()-2-0+0, COLUMN()-2-170+17) -> 5 | FT7: =OFFSET(char10!A$1, ROW()-2-0+0, COLUMN()-2-170+17) -> 5 | FU7: =OFFSET(char10!A$1, ROW()-2-0+0, COLUMN()-2-170+17) -> 5 | FV7: =OFFSET(char10!A$1, ROW()-2-0+0, COLUMN()-2-170+17) -> 20 | FW7: =OFFSET(char10!A$1, ROW()-2-0+0, COLUMN()-2-170+17) -> 40 | FZ7: =OFFSET(char10!A$1, ROW()-2-0+0, COLUMN()-2-180+18) -> 40 | GA7: =OFFSET(char10!A$1, ROW()-2-0+0, COLUMN()-2-180+18) -> 20 | GB7: =OFFSET(char10!A$1, ROW()-2-0+0, COLUMN()-2-180+18) -> 5 | GC7: =OFFSET(char10!A$1, ROW()-2-0+0, COLUMN()-2-180+18) -> 5 | GD7: =OFFSET(char10!A$1, ROW()-2-0+0, COLUMN()-2-180+18) -> 5 | GE7: =OFFSET(char10!A$1, ROW()-2-0+0, COLUMN()-2-180+18) -> 20 | GF7: =OFFSET(char10!A$1, ROW()-2-0+0, COLUMN()-2-180+18) -> 40 | GG7: =OFFSET(char10!A$1, ROW()-2-0+0, COLUMN()-2-180+18) -> 15 | GJ7: =OFFSET(char10!A$1, ROW()-2-0+0, COLUMN()-2-190+19) -> 20 | GK7: =OFFSET(char10!A$1, ROW()-2-0+0, COLUMN()-2-190+19) -> 5 | GL7: =OFFSET(char10!A$1, ROW()-2-0+0, COLUMN()-2-190+19) -> 5 | GM7: =OFFSET(char10!A$1, ROW()-2-0+0, COLUMN()-2-190+19) -> 5 | GN7: =OFFSET(char10!A$1, ROW()-2-0+0, COLUMN()-2-190+19) -> 20 | GO7: =OFFSET(char10!A$1, ROW()-2-0+0, COLUMN()-2-190+19) -> 40 | GP7: =OFFSET(char10!A$1, ROW()-2-0+0, COLUMN()-2-190+19) -> 15 | GQ7: =OFFSET(char10!A$1, ROW()-2-0+0, COLUMN()-2-190+19) -> 5 | GT7: =OFFSET(char10!A$1, ROW()-2-0+0, COLUMN()-2-200+20) -> 5 | GU7: =OFFSET(char10!A$1, ROW()-2-0+0, COLUMN()-2-200+20) -> 5 | GV7: =OFFSET(char10!A$1, ROW()-2-0+0, COLUMN()-2-200+20) -> 5 | GW7: =OFFSET(char10!A$1, ROW()-2-0+0, COLUMN()-2-200+20) -> 20 | GX7: =OFFSET(char10!A$1, ROW()-2-0+0, COLUMN()-2-200+20) -> 40 | GY7: =OFFSET(char10!A$1, ROW()-2-0+0, COLUMN()-2-200+20) -> 15 | GZ7: =OFFSET(char10!A$1, ROW()-2-0+0, COLUMN()-2-200+20) -> 5 | HA7: =OFFSET(char10!A$1, ROW()-2-0+0, COLUMN()-2-200+20) -> 5 | HD7: =OFFSET(char10!A$1, ROW()-2-0+0, COLUMN()-2-210+21) -> 5 | HE7: =OFFSET(char10!A$1, ROW()-2-0+0, COLUMN()-2-210+21) -> 5 | HF7: =OFFSET(char10!A$1, ROW()-2-0+0, COLUMN()-2-210+21) -> 20 | HG7: =OFFSET(char10!A$1, ROW()-2-0+0, COLUMN()-2-210+21) -> 40 | HH7: =OFFSET(char10!A$1, ROW()-2-0+0, COLUMN()-2-210+21) -> 15 | HI7: =OFFSET(char10!A$1, ROW()-2-0+0, COLUMN()-2-210+21) -> 5 | HJ7: =OFFSET(char10!A$1, ROW()-2-0+0, COLUMN()-2-210+21) -> 5 | HK7: =OFFSET(char10!A$1, ROW()-2-0+0, COLUMN()-2-210+21) -> 5 | HN7: =OFFSET(char10!A$1, ROW()-2-0+0, COLUMN()-2-220+22) -> 5 | HO7: =OFFSET(char10!A$1, ROW()-2-0+0, COLUMN()-2-220+22) -> 20 | HP7: =OFFSET(char10!A$1, ROW()-2-0+0, COLUMN()-2-220+22) -> 40 | HQ7: =OFFSET(char10!A$1, ROW()-2-0+0, COLUMN()-2-220+22) -> 15 | HR7: =OFFSET(char10!A$1, ROW()-2-0+0, COLUMN()-2-220+22) -> 5 | HS7: =OFFSET(char10!A$1, ROW()-2-0+0, COLUMN()-2-220+22) -> 5 | HT7: =OFFSET(char10!A$1, ROW()-2-0+0, COLUMN()-2-220+22) -> 5 | HU7: =OFFSET(char10!A$1, ROW()-2-0+0, COLUMN()-2-220+22) -> 5 | HX7: =OFFSET(char10!A$1, ROW()-2-0+0, COLUMN()-2-230+23) -> 20 | HY7: =OFFSET(char10!A$1, ROW()-2-0+0, COLUMN()-2-230+23) -> 40 | HZ7: =OFFSET(char10!A$1, ROW()-2-0+0, COLUMN()-2-230+23) -> 15 | IA7: =OFFSET(char10!A$1, ROW()-2-0+0, COLUMN()-2-230+23) -> 5 | IB7: =OFFSET(char10!A$1, ROW()-2-0+0, COLUMN()-2-230+23) -> 5 | IC7: =OFFSET(char10!A$1, ROW()-2-0+0, COLUMN()-2-230+23) -> 5 | ID7: =OFFSET(char10!A$1, ROW()-2-0+0, COLUMN()-2-230+23) -> 5 | IE7: =OFFSET(char10!A$1, ROW()-2-0+0, COLUMN()-2-230+23) -> 5 | IH7: =OFFSET(char10!A$1, ROW()-2-0+0, COLUMN()-2-240+24) -> 40 | II7: =OFFSET(char10!A$1, ROW()-2-0+0, COLUMN()-2-240+24) -> 15 | IJ7: =OFFSET(char10!A$1, ROW()-2-0+0, COLUMN()-2-240+24) -> 5 | IK7: =OFFSET(char10!A$1, ROW()-2-0+0, COLUMN()-2-240+24) -> 5 | IL7: =OFFSET(char10!A$1, ROW()-2-0+0, COLUMN()-2-240+24) -> 5 | IM7: =OFFSET(char10!A$1, ROW()-2-0+0, COLUMN()-2-240+24) -> 5 | IN7: =OFFSET(char10!A$1, ROW()-2-0+0, COLUMN()-2-240+24) -> 5 | IO7: =OFFSET(char10!A$1, ROW()-2-0+0, COLUMN()-2-240+24) -> 5 | IR7: =OFFSET(char10!A$1, ROW()-2-0+0, COLUMN()-2-250+25) -> 15 | IS7: =OFFSET(char10!A$1, ROW()-2-0+0, COLUMN()-2-250+25) -> 5 | IT7: =OFFSET(char10!A$1, ROW()-2-0+0, COLUMN()-2-250+25) -> 5 | IU7: =OFFSET(char10!A$1, ROW()-2-0+0, COLUMN()-2-250+25) -> 5 | IV7: =OFFSET(char10!A$1, ROW()-2-0+0, COLUMN()-2-250+25) -> 5 | IW7: =OFFSET(char10!A$1, ROW()-2-0+0, COLUMN()-2-250+25) -> 5 | IX7: =OFFSET(char10!A$1, ROW()-2-0+0, COLUMN()-2-250+25) -> 5 | IY7: =OFFSET(char10!A$1, ROW()-2-0+0, COLUMN()-2-250+25) -> 30 | JB7: =OFFSET(char10!A$1, ROW()-2-0+0, COLUMN()-2-260+26) -> 5 | JC7: =OFFSET(char10!A$1, ROW()-2-0+0, COLUMN()-2-260+26) -> 5 | JD7: =OFFSET(char10!A$1, ROW()-2-0+0, COLUMN()-2-260+26) -> 5 | JE7: =OFFSET(char10!A$1, ROW()-2-0+0, COLUMN()-2-260+26) -> 5 | JF7: =OFFSET(char10!A$1, ROW()-2-0+0, COLUMN()-2-260+26) -> 5 | JG7: =OFFSET(char10!A$1, ROW()-2-0+0, COLUMN()-2-260+26) -> 5 | JH7: =OFFSET(char10!A$1, ROW()-2-0+0, COLUMN()-2-260+26) -> 30 | JI7: =OFFSET(char10!A$1, ROW()-2-0+0, COLUMN()-2-260+26) -> 40 | JL7: =OFFSET(char10!A$1, ROW()-2-0+0, COLUMN()-2-270+27) -> 5 | JM7: =OFFSET(char10!A$1, ROW()-2-0+0, COLUMN()-2-270+27) -> 5 | JN7: =OFFSET(char10!A$1, ROW()-2-0+0, COLUMN()-2-270+27) -> 5 | JO7: =OFFSET(char10!A$1, ROW()-2-0+0, COLUMN()-2-270+27) -> 5 | JP7: =OFFSET(char10!A$1, ROW()-2-0+0, COLUMN()-2-270+27) -> 5 | JQ7: =OFFSET(char10!A$1, ROW()-2-0+0, COLUMN()-2-270+27) -> 30 | JR7: =OFFSET(char10!A$1, ROW()-2-0+0, COLUMN()-2-270+27) -> 40 | JS7: =OFFSET(char10!A$1, ROW()-2-0+0, COLUMN()-2-270+27) -> 30 | JV7: =OFFSET(char10!A$1, ROW()-2-0+0, COLUMN()-2-280+28) -> 5 | JW7: =OFFSET(char10!A$1, ROW()-2-0+0, COLUMN()-2-280+28) -> 5 | JX7: =OFFSET(char10!A$1, ROW()-2-0+0, COLUMN()-2-280+28) -> 5 | JY7: =OFFSET(char10!A$1, ROW()-2-0+0, COLUMN()-2-280+28) -> 5 | JZ7: =OFFSET(char10!A$1, ROW()-2-0+0, COLUMN()-2-280+28) -> 30 | KA7: =OFFSET(char10!A$1, ROW()-2-0+0, COLUMN()-2-280+28) -> 40 | KB7: =OFFSET(char10!A$1, ROW()-2-0+0, COLUMN()-2-280+28) -> 30 | KC7: =OFFSET(char10!A$1, ROW()-2-0+0, COLUMN()-2-280+28) -> 5 | KF7: =OFFSET(char10!A$1, ROW()-2-0+0, COLUMN()-2-290+29) -> 5 | KG7: =OFFSET(char10!A$1, ROW()-2-0+0, COLUMN()-2-290+29) -> 5 | KH7: =OFFSET(char10!A$1, ROW()-2-0+0, COLUMN()-2-290+29) -> 5 | KI7: =OFFSET(char10!A$1, ROW()-2-0+0, COLUMN()-2-290+29) -> 30 | KJ7: =OFFSET(char10!A$1, ROW()-2-0+0, COLUMN()-2-290+29) -> 40 | KK7: =OFFSET(char10!A$1, ROW()-2-0+0, COLUMN()-2-290+29) -> 30 | KL7: =OFFSET(char10!A$1, ROW()-2-0+0, COLUMN()-2-290+29) -> 5 | KM7: =OFFSET(char10!A$1, ROW()-2-0+0, COLUMN()-2-290+29) -> 5 | KP7: =OFFSET(char10!A$1, ROW()-2-0+0, COLUMN()-2-300+30) -> 5 | KQ7: =OFFSET(char10!A$1, ROW()-2-0+0, COLUMN()-2-300+30) -> 5 | KR7: =OFFSET(char10!A$1, ROW()-2-0+0, COLUMN()-2-300+30) -> 30 | KS7: =OFFSET(char10!A$1, ROW()-2-0+0, COLUMN()-2-300+30) -> 40 | KT7: =OFFSET(char10!A$1, ROW()-2-0+0, COLUMN()-2-300+30) -> 30 | KU7: =OFFSET(char10!A$1, ROW()-2-0+0, COLUMN()-2-300+30) -> 5 | KV7: =OFFSET(char10!A$1, ROW()-2-0+0, COLUMN()-2-300+30) -> 5 | KW7: =OFFSET(char10!A$1, ROW()-2-0+0, COLUMN()-2-300+30) -> 5 | KZ7: =OFFSET(char10!A$1, ROW()-2-0+0, COLUMN()-2-310+31) -> 5 | LA7: =OFFSET(char10!A$1, ROW()-2-0+0, COLUMN()-2-310+31) -> 30 | LB7: =OFFSET(char10!A$1, ROW()-2-0+0, COLUMN()-2-310+31) -> 40 | LC7: =OFFSET(char10!A$1, ROW()-2-0+0, COLUMN()-2-310+31) -> 30 | LD7: =OFFSET(char10!A$1, ROW()-2-0+0, COLUMN()-2-310+31) -> 5 | LE7: =OFFSET(char10!A$1, ROW()-2-0+0, COLUMN()-2-310+31) -> 5 | LF7: =OFFSET(char10!A$1, ROW()-2-0+0, COLUMN()-2-310+31) -> 5 | LG7: =OFFSET(char10!A$1, ROW()-2-0+0, COLUMN()-2-310+31) -> 5 | LJ7: =OFFSET(char10!A$1, ROW()-2-0+0, COLUMN()-2-320+32) -> 30 | LK7: =OFFSET(char10!A$1, ROW()-2-0+0, COLUMN()-2-320+32) -> 40 | LL7: =OFFSET(char10!A$1, ROW()-2-0+0, COLUMN()-2-320+32) -> 30 | LM7: =OFFSET(char10!A$1, ROW()-2-0+0, COLUMN()-2-320+32) -> 5 | LN7: =OFFSET(char10!A$1, ROW()-2-0+0, COLUMN()-2-320+32) -> 5 | LO7: =OFFSET(char10!A$1, ROW()-2-0+0, COLUMN()-2-320+32) -> 5 | LP7: =OFFSET(char10!A$1, ROW()-2-0+0, COLUMN()-2-320+32) -> 5 | LQ7: =OFFSET(char10!A$1, ROW()-2-0+0, COLUMN()-2-320+32) -> 5 | LT7: =OFFSET(char10!A$1, ROW()-2-0+0, COLUMN()-2-330+33) -> 40 | LU7: =OFFSET(char10!A$1, ROW()-2-0+0, COLUMN()-2-330+33) -> 30 | LV7: =OFFSET(char10!A$1, ROW()-2-0+0, COLUMN()-2-330+33) -> 5 | LW7: =OFFSET(char10!A$1, ROW()-2-0+0, COLUMN()-2-330+33) -> 5 | LX7: =OFFSET(char10!A$1, ROW()-2-0+0, COLUMN()-2-330+33) -> 5 | LY7: =OFFSET(char10!A$1, ROW()-2-0+0, COLUMN()-2-330+33) -> 5 | LZ7: =OFFSET(char10!A$1, ROW()-2-0+0, COLUMN()-2-330+33) -> 5 | MA7: =OFFSET(char10!A$1, ROW()-2-0+0, COLUMN()-2-330+33) -> 5 | MD7: =OFFSET(char10!A$1, ROW()-2-0+0, COLUMN()-2-340+34) -> 30 | ME7: =OFFSET(char10!A$1, ROW()-2-0+0, COLUMN()-2-340+34) -> 5 | MF7: =OFFSET(char10!A$1, ROW()-2-0+0, COLUMN()-2-340+34) -> 5 | MG7: =OFFSET(char10!A$1, ROW()-2-0+0, COLUMN()-2-340+34) -> 5 | MH7: =OFFSET(char10!A$1, ROW()-2-0+0, COLUMN()-2-340+34) -> 5 | MI7: =OFFSET(char10!A$1, ROW()-2-0+0, COLUMN()-2-340+34) -> 5 | MJ7: =OFFSET(char10!A$1, ROW()-2-0+0, COLUMN()-2-340+34) -> 5 | MK7: =OFFSET(char10!A$1, ROW()-2-0+0, COLUMN()-2-340+34) -> 5 | MN7: =OFFSET(char10!A$1, ROW()-2-0+0, COLUMN()-2-350+35) -> 5 | MO7: =OFFSET(char10!A$1, ROW()-2-0+0, COLUMN()-2-350+35) -> 5 | MP7: =OFFSET(char10!A$1, ROW()-2-0+0, COLUMN()-2-350+35) -> 5 | MQ7: =OFFSET(char10!A$1, ROW()-2-0+0, COLUMN()-2-350+35) -> 5 | MR7: =OFFSET(char10!A$1, ROW()-2-0+0, COLUMN()-2-350+35) -> 5 | MS7: =OFFSET(char10!A$1, ROW()-2-0+0, COLUMN()-2-350+35) -> 5 | MT7: =OFFSET(char10!A$1, ROW()-2-0+0, COLUMN()-2-350+35) -> 5 | MU7: =OFFSET(char10!A$1, ROW()-2-0+0, COLUMN()-2-350+35) -> 5 | MX7: =OFFSET(char10!A$1, ROW()-2-0+0, COLUMN()-2-360+36) -> 5 | MY7: =OFFSET(char10!A$1, ROW()-2-0+0, COLUMN()-2-360+36) -> 5 | MZ7: =OFFSET(char10!A$1, ROW()-2-0+0, COLUMN()-2-360+36) -> 5 | NA7: =OFFSET(char10!A$1, ROW()-2-0+0, COLUMN()-2-360+36) -> 5 | NB7: =OFFSET(char10!A$1, ROW()-2-0+0, COLUMN()-2-360+36) -> 5 | NC7: =OFFSET(char10!A$1, ROW()-2-0+0, COLUMN()-2-360+36) -> 5 | ND7: =OFFSET(char10!A$1, ROW()-2-0+0, COLUMN()-2-360+36) -> 5 | NE7: =OFFSET(char10!A$1, ROW()-2-0+0, COLUMN()-2-360+36) -> 5 | NH7: =OFFSET(char10!A$1, ROW()-2-0+0, COLUMN()-2-370+37) -> 5 | NI7: =OFFSET(char10!A$1, ROW()-2-0+0, COLUMN()-2-370+37) -> 5 | NJ7: =OFFSET(char10!A$1, ROW()-2-0+0, COLUMN()-2-370+37) -> 5 | NK7: =OFFSET(char10!A$1, ROW()-2-0+0, COLUMN()-2-370+37) -> 5 | NL7: =OFFSET(char10!A$1, ROW()-2-0+0, COLUMN()-2-370+37) -> 5 | NM7: =OFFSET(char10!A$1, ROW()-2-0+0, COLUMN()-2-370+37) -> 5 | NN7: =OFFSET(char10!A$1, ROW()-2-0+0, COLUMN()-2-370+37) -> 5 | NO7: =OFFSET(char10!A$1, ROW()-2-0+0, COLUMN()-2-370+37) -> 5 | NR7: =OFFSET(char10!A$1, ROW()-2-0+0, COLUMN()-2-380+38) -> 5 | NS7: =OFFSET(char10!A$1, ROW()-2-0+0, COLUMN()-2-380+38) -> 5 | NT7: =OFFSET(char10!A$1, ROW()-2-0+0, COLUMN()-2-380+38) -> 5 | NU7: =OFFSET(char10!A$1, ROW()-2-0+0, COLUMN()-2-380+38) -> 5 | NV7: =OFFSET(char10!A$1, ROW()-2-0+0, COLUMN()-2-380+38) -> 5 | NW7: =OFFSET(char10!A$1, ROW()-2-0+0, COLUMN()-2-380+38) -> 5 | NX7: =OFFSET(char10!A$1, ROW()-2-0+0, COLUMN()-2-380+38) -> 5 | NY7: =OFFSET(char10!A$1, ROW()-2-0+0, COLUMN()-2-380+38) -> 5 | OB7: =OFFSET(char10!A$1, ROW()-2-0+0, COLUMN()-2-390+39) -> 5 | OC7: =OFFSET(char10!A$1, ROW()-2-0+0, COLUMN()-2-390+39) -> 5 | OD7: =OFFSET(char10!A$1, ROW()-2-0+0, COLUMN()-2-390+39) -> 5 | OE7: =OFFSET(char10!A$1, ROW()-2-0+0, COLUMN()-2-390+39) -> 5 | OF7: =OFFSET(char10!A$1, ROW()-2-0+0, COLUMN()-2-390+39) -> 5 | OG7: =OFFSET(char10!A$1, ROW()-2-0+0, COLUMN()-2-390+39) -> 5 | OH7: =OFFSET(char10!A$1, ROW()-2-0+0, COLUMN()-2-390+39) -> 5 | OI7: =OFFSET(char10!A$1, ROW()-2-0+0, COLUMN()-2-390+39) -> 5
B8: =OFFSET(char10!A$1, ROW()-2-0+0, COLUMN()-2-0+0) -> 5 | C8: =OFFSET(char10!A$1, ROW()-2-0+0, COLUMN()-2-0+0) -> 5 | D8: =OFFSET(char10!A$1, ROW()-2-0+0, COLUMN()-2-0+0) -> 5 | E8: =OFFSET(char10!A$1, ROW()-2-0+0, COLUMN()-2-0+0) -> 15 | F8: =OFFSET(char10!A$1, ROW()-2-0+0, COLUMN()-2-0+0) -> 40 | G8: =OFFSET(char10!A$1, ROW()-2-0+0, COLUMN()-2-0+0) -> 20 | H8: =OFFSET(char10!A$1, ROW()-2-0+0, COLUMN()-2-0+0) -> 20 | I8: =OFFSET(char10!A$1, ROW()-2-0+0, COLUMN()-2-0+0) -> 20 | L8: =OFFSET(char10!A$1, ROW()-2-0+0, COLUMN()-2-10+1) -> 5 | M8: =OFFSET(char10!A$1, ROW()-2-0+0, COLUMN()-2-10+1) -> 5 | N8: =OFFSET(char10!A$1, ROW()-2-0+0, COLUMN()-2-10+1) -> 15 | O8: =OFFSET(char10!A$1, ROW()-2-0+0, COLUMN()-2-10+1) -> 40 | P8: =OFFSET(char10!A$1, ROW()-2-0+0, COLUMN()-2-10+1) -> 20 | Q8: =OFFSET(char10!A$1, ROW()-2-0+0, COLUMN()-2-10+1) -> 20 | R8: =OFFSET(char10!A$1, ROW()-2-0+0, COLUMN()-2-10+1) -> 20 | S8: =OFFSET(char10!A$1, ROW()-2-0+0, COLUMN()-2-10+1) -> 20 | V8: =OFFSET(char10!A$1, ROW()-2-0+0, COLUMN()-2-20+2) -> 5 | W8: =OFFSET(char10!A$1, ROW()-2-0+0, COLUMN()-2-20+2) -> 15 | X8: =OFFSET(char10!A$1, ROW()-2-0+0, COLUMN()-2-20+2) -> 40 | Y8: =OFFSET(char10!A$1, ROW()-2-0+0, COLUMN()-2-20+2) -> 20 | Z8: =OFFSET(char10!A$1, ROW()-2-0+0, COLUMN()-2-20+2) -> 20 | AA8: =OFFSET(char10!A$1, ROW()-2-0+0, COLUMN()-2-20+2) -> 20 | AB8: =OFFSET(char10!A$1, ROW()-2-0+0, COLUMN()-2-20+2) -> 20 | AC8: =OFFSET(char10!A$1, ROW()-2-0+0, COLUMN()-2-20+2) -> 15 | AF8: =OFFSET(char10!A$1, ROW()-2-0+0, COLUMN()-2-30+3) -> 15 | AG8: =OFFSET(char10!A$1, ROW()-2-0+0, COLUMN()-2-30+3) -> 40 | AH8: =OFFSET(char10!A$1, ROW()-2-0+0, COLUMN()-2-30+3) -> 20 | AI8: =OFFSET(char10!A$1, ROW()-2-0+0, COLUMN()-2-30+3) -> 20 | AJ8: =OFFSET(char10!A$1, ROW()-2-0+0, COLUMN()-2-30+3) -> 20 | AK8: =OFFSET(char10!A$1, ROW()-2-0+0, COLUMN()-2-30+3) -> 20 | AL8: =OFFSET(char10!A$1, ROW()-2-0+0, COLUMN()-2-30+3) -> 15 | AM8: =OFFSET(char10!A$1, ROW()-2-0+0, COLUMN()-2-30+3) -> 5 | AP8: =OFFSET(char10!A$1, ROW()-2-0+0, COLUMN()-2-40+4) -> 40 | AQ8: =OFFSET(char10!A$1, ROW()-2-0+0, COLUMN()-2-40+4) -> 20 | AR8: =OFFSET(char10!A$1, ROW()-2-0+0, COLUMN()-2-40+4) -> 20 | AS8: =OFFSET(char10!A$1, ROW()-2-0+0, COLUMN()-2-40+4) -> 20 | AT8: =OFFSET(char10!A$1, ROW()-2-0+0, COLUMN()-2-40+4) -> 20 | AU8: =OFFSET(char10!A$1, ROW()-2-0+0, COLUMN()-2-40+4) -> 15 | AV8: =OFFSET(char10!A$1, ROW()-2-0+0, COLUMN()-2-40+4) -> 5 | AW8: =OFFSET(char10!A$1, ROW()-2-0+0, COLUMN()-2-40+4) -> 5 | AZ8: =OFFSET(char10!A$1, ROW()-2-0+0, COLUMN()-2-50+5) -> 20 | BA8: =OFFSET(char10!A$1, ROW()-2-0+0, COLUMN()-2-50+5) -> 20 | BB8: =OFFSET(char10!A$1, ROW()-2-0+0, COLUMN()-2-50+5) -> 20 | BC8: =OFFSET(char10!A$1, ROW()-2-0+0, COLUMN()-2-50+5) -> 20 | BD8: =OFFSET(char10!A$1, ROW()-2-0+0, COLUMN()-2-50+5) -> 15 | BE8: =OFFSET(char10!A$1, ROW()-2-0+0, COLUMN()-2-50+5) -> 5 | BF8: =OFFSET(char10!A$1, ROW()-2-0+0, COLUMN()-2-50+5) -> 5 | BG8: =OFFSET(char10!A$1, ROW()-2-0+0, COLUMN()-2-50+5) -> 5 | BJ8: =OFFSET(char10!A$1, ROW()-2-0+0, COLUMN()-2-60+6) -> 20 | BK8: =OFFSET(char10!A$1, ROW()-2-0+0, COLUMN()-2-60+6) -> 20 | BL8: =OFFSET(char10!A$1, ROW()-2-0+0, COLUMN()-2-60+6) -> 20 | BM8: =OFFSET(char10!A$1, ROW()-2-0+0, COLUMN()-2-60+6) -> 15 | BN8: =OFFSET(char10!A$1, ROW()-2-0+0, COLUMN()-2-60+6) -> 5 | BO8: =OFFSET(char10!A$1, ROW()-2-0+0, COLUMN()-2-60+6) -> 5 | BP8: =OFFSET(char10!A$1, ROW()-2-0+0, COLUMN()-2-60+6) -> 5 | BQ8: =OFFSET(char10!A$1, ROW()-2-0+0, COLUMN()-2-60+6) -> 5 | BT8: =OFFSET(char10!A$1, ROW()-2-0+0, COLUMN()-2-70+7) -> 20 | BU8: =OFFSET(char10!A$1, ROW()-2-0+0, COLUMN()-2-70+7) -> 20 | BV8: =OFFSET(char10!A$1, ROW()-2-0+0, COLUMN()-2-70+7) -> 15 | BW8: =OFFSET(char10!A$1, ROW()-2-0+0, COLUMN()-2-70+7) -> 5 | BX8: =OFFSET(char10!A$1, ROW()-2-0+0, COLUMN()-2-70+7) -> 5 | BY8: =OFFSET(char10!A$1, ROW()-2-0+0, COLUMN()-2-70+7) -> 5 | BZ8: =OFFSET(char10!A$1, ROW()-2-0+0, COLUMN()-2-70+7) -> 5 | CA8: =OFFSET(char10!A$1, ROW()-2-0+0, COLUMN()-2-70+7) -> 5 | CD8: =OFFSET(char10!A$1, ROW()-2-0+0, COLUMN()-2-80+8) -> 20 | CE8: =OFFSET(char10!A$1, ROW()-2-0+0, COLUMN()-2-80+8) -> 15 | CF8: =OFFSET(char10!A$1, ROW()-2-0+0, COLUMN()-2-80+8) -> 5 | CG8: =OFFSET(char10!A$1, ROW()-2-0+0, COLUMN()-2-80+8) -> 5 | CH8: =OFFSET(char10!A$1, ROW()-2-0+0, COLUMN()-2-80+8) -> 5 | CI8: =OFFSET(char10!A$1, ROW()-2-0+0, COLUMN()-2-80+8) -> 5 | CJ8: =OFFSET(char10!A$1, ROW()-2-0+0, COLUMN()-2-80+8) -> 5 | CK8: =OFFSET(char10!A$1, ROW()-2-0+0, COLUMN()-2-80+8) -> 5 | CN8: =OFFSET(char10!A$1, ROW()-2-0+0, COLUMN()-2-90+9) -> 15 | CO8: =OFFSET(char10!A$1, ROW()-2-0+0, COLUMN()-2-90+9) -> 5 | CP8: =OFFSET(char10!A$1, ROW()-2-0+0, COLUMN()-2-90+9) -> 5 | CQ8: =OFFSET(char10!A$1, ROW()-2-0+0, COLUMN()-2-90+9) -> 5 | CR8: =OFFSET(char10!A$1, ROW()-2-0+0, COLUMN()-2-90+9) -> 5 | CS8: =OFFSET(char10!A$1, ROW()-2-0+0, COLUMN()-2-90+9) -> 5 | CT8: =OFFSET(char10!A$1, ROW()-2-0+0, COLUMN()-2-90+9) -> 5 | CU8: =OFFSET(char10!A$1, ROW()-2-0+0, COLUMN()-2-90+9) -> 5 | CX8: =OFFSET(char10!A$1, ROW()-2-0+0, COLUMN()-2-100+10) -> 5 | CY8: =OFFSET(char10!A$1, ROW()-2-0+0, COLUMN()-2-100+10) -> 5 | CZ8: =OFFSET(char10!A$1, ROW()-2-0+0, COLUMN()-2-100+10) -> 5 | DA8: =OFFSET(char10!A$1, ROW()-2-0+0, COLUMN()-2-100+10) -> 5 | DB8: =OFFSET(char10!A$1, ROW()-2-0+0, COLUMN()-2-100+10) -> 5 | DC8: =OFFSET(char10!A$1, ROW()-2-0+0, COLUMN()-2-100+10) -> 5 | DD8: =OFFSET(char10!A$1, ROW()-2-0+0, COLUMN()-2-100+10) -> 5 | DE8: =OFFSET(char10!A$1, ROW()-2-0+0, COLUMN()-2-100+10) -> 5 | DH8: =OFFSET(char10!A$1, ROW()-2-0+0, COLUMN()-2-110+11) -> 5 | DI8: =OFFSET(char10!A$1, ROW()-2-0+0, COLUMN()-2-110+11) -> 5 | DJ8: =OFFSET(char10!A$1, ROW()-2-0+0, COLUMN()-2-110+11) -> 5 | DK8: =OFFSET(char10!A$1, ROW()-2-0+0, COLUMN()-2-110+11) -> 5 | DL8: =OFFSET(char10!A$1, ROW()-2-0+0, COLUMN()-2-110+11) -> 5 | DM8: =OFFSET(char10!A$1, ROW()-2-0+0, COLUMN()-2-110+11) -> 5 | DN8: =OFFSET(char10!A$1, ROW()-2-0+0, COLUMN()-2-110+11) -> 5 | DO8: =OFFSET(char10!A$1, ROW()-2-0+0, COLUMN()-2-110+11) -> 40 | DR8: =OFFSET(char10!A$1, ROW()-2-0+0, COLUMN()-2-120+12) -> 5 | DS8: =OFFSET(char10!A$1, ROW()-2-0+0, COLUMN()-2-120+12) -> 5 | DT8: =OFFSET(char10!A$1, ROW()-2-0+0, COLUMN()-2-120+12) -> 5 | DU8: =OFFSET(char10!A$1, ROW()-2-0+0, COLUMN()-2-120+12) -> 5 | DV8: =OFFSET(char10!A$1, ROW()-2-0+0, COLUMN()-2-120+12) -> 5 | DW8: =OFFSET(char10!A$1, ROW()-2-0+0, COLUMN()-2-120+12) -> 5 | DX8: =OFFSET(char10!A$1, ROW()-2-0+0, COLUMN()-2-120+12) -> 40 | DY8: =OFFSET(char10!A$1, ROW()-2-0+0, COLUMN()-2-120+12) -> 20 | EB8: =OFFSET(char10!A$1, ROW()-2-0+0, COLUMN()-2-130+13) -> 5 | EC8: =OFFSET(char10!A$1, ROW()-2-0+0, COLUMN()-2-130+13) -> 5 | ED8: =OFFSET(char10!A$1, ROW()-2-0+0, COLUMN()-2-130+13) -> 5 | EE8: =OFFSET(char10!A$1, ROW()-2-0+0, COLUMN()-2-130+13) -> 5 | EF8: =OFFSET(char10!A$1, ROW()-2-0+0, COLUMN()-2-130+13) -> 5 | EG8: =OFFSET(char10!A$1, ROW()-2-0+0, COLUMN()-2-130+13) -> 40 | EH8: =OFFSET(char10!A$1, ROW()-2-0+0, COLUMN()-2-130+13) -> 20 | EI8: =OFFSET(char10!A$1, ROW()-2-0+0, COLUMN()-2-130+13) -> 5 | EL8: =OFFSET(char10!A$1, ROW()-2-0+0, COLUMN()-2-140+14) -> 5 | EM8: =OFFSET(char10!A$1, ROW()-2-0+0, COLUMN()-2-140+14) -> 5 | EN8: =OFFSET(char10!A$1, ROW()-2-0+0, COLUMN()-2-140+14) -> 5 | EO8: =OFFSET(char10!A$1, ROW()-2-0+0, COLUMN()-2-140+14) -> 5 | EP8: =OFFSET(char10!A$1, ROW()-2-0+0, COLUMN()-2-140+14) -> 40 | EQ8: =OFFSET(char10!A$1, ROW()-2-0+0, COLUMN()-2-140+14) -> 20 | ER8: =OFFSET(char10!A$1, ROW()-2-0+0, COLUMN()-2-140+14) -> 5 | ES8: =OFFSET(char10!A$1, ROW()-2-0+0, COLUMN()-2-140+14) -> 5 | EV8: =OFFSET(char10!A$1, ROW()-2-0+0, COLUMN()-2-150+15) -> 5 | EW8: =OFFSET(char10!A$1, ROW()-2-0+0, COLUMN()-2-150+15) -> 5 | EX8: =OFFSET(char10!A$1, ROW()-2-0+0, COLUMN()-2-150+15) -> 5 | EY8: =OFFSET(char10!A$1, ROW()-2-0+0, COLUMN()-2-150+15) -> 40 | EZ8: =OFFSET(char10!A$1, ROW()-2-0+0, COLUMN()-2-150+15) -> 20 | FA8: =OFFSET(char10!A$1, ROW()-2-0+0, COLUMN()-2-150+15) -> 5 | FB8: =OFFSET(char10!A$1, ROW()-2-0+0, COLUMN()-2-150+15) -> 5 | FC8: =OFFSET(char10!A$1, ROW()-2-0+0, COLUMN()-2-150+15) -> 5 | FF8: =OFFSET(char10!A$1, ROW()-2-0+0, COLUMN()-2-160+16) -> 5 | FG8: =OFFSET(char10!A$1, ROW()-2-0+0, COLUMN()-2-160+16) -> 5 | FH8: =OFFSET(char10!A$1, ROW()-2-0+0, COLUMN()-2-160+16) -> 40 | FI8: =OFFSET(char10!A$1, ROW()-2-0+0, COLUMN()-2-160+16) -> 20 | FJ8: =OFFSET(char10!A$1, ROW()-2-0+0, COLUMN()-2-160+16) -> 5 | FK8: =OFFSET(char10!A$1, ROW()-2-0+0, COLUMN()-2-160+16) -> 5 | FL8: =OFFSET(char10!A$1, ROW()-2-0+0, COLUMN()-2-160+16) -> 5 | FM8: =OFFSET(char10!A$1, ROW()-2-0+0, COLUMN()-2-160+16) -> 20 | FP8: =OFFSET(char10!A$1, ROW()-2-0+0, COLUMN()-2-170+17) -> 5 | FQ8: =OFFSET(char10!A$1, ROW()-2-0+0, COLUMN()-2-170+17) -> 40 | FR8: =OFFSET(char10!A$1, ROW()-2-0+0, COLUMN()-2-170+17) -> 20 | FS8: =OFFSET(char10!A$1, ROW()-2-0+0, COLUMN()-2-170+17) -> 5 | FT8: =OFFSET(char10!A$1, ROW()-2-0+0, COLUMN()-2-170+17) -> 5 | FU8: =OFFSET(char10!A$1, ROW()-2-0+0, COLUMN()-2-170+17) -> 5 | FV8: =OFFSET(char10!A$1, ROW()-2-0+0, COLUMN()-2-170+17) -> 20 | FW8: =OFFSET(char10!A$1, ROW()-2-0+0, COLUMN()-2-170+17) -> 40 | FZ8: =OFFSET(char10!A$1, ROW()-2-0+0, COLUMN()-2-180+18) -> 40 | GA8: =OFFSET(char10!A$1, ROW()-2-0+0, COLUMN()-2-180+18) -> 20 | GB8: =OFFSET(char10!A$1, ROW()-2-0+0, COLUMN()-2-180+18) -> 5 | GC8: =OFFSET(char10!A$1, ROW()-2-0+0, COLUMN()-2-180+18) -> 5 | GD8: =OFFSET(char10!A$1, ROW()-2-0+0, COLUMN()-2-180+18) -> 5 | GE8: =OFFSET(char10!A$1, ROW()-2-0+0, COLUMN()-2-180+18) -> 20 | GF8: =OFFSET(char10!A$1, ROW()-2-0+0, COLUMN()-2-180+18) -> 40 | GG8: =OFFSET(char10!A$1, ROW()-2-0+0, COLUMN()-2-180+18) -> 15 | GJ8: =OFFSET(char10!A$1, ROW()-2-0+0, COLUMN()-2-190+19) -> 20 | GK8: =OFFSET(char10!A$1, ROW()-2-0+0, COLUMN()-2-190+19) -> 5 | GL8: =OFFSET(char10!A$1, ROW()-2-0+0, COLUMN()-2-190+19) -> 5 | GM8: =OFFSET(char10!A$1, ROW()-2-0+0, COLUMN()-2-190+19) -> 5 | GN8: =OFFSET(char10!A$1, ROW()-2-0+0, COLUMN()-2-190+19) -> 20 | GO8: =OFFSET(char10!A$1, ROW()-2-0+0, COLUMN()-2-190+19) -> 40 | GP8: =OFFSET(char10!A$1, ROW()-2-0+0, COLUMN()-2-190+19) -> 15 | GQ8: =OFFSET(char10!A$1, ROW()-2-0+0, COLUMN()-2-190+19) -> 5 | GT8: =OFFSET(char10!A$1, ROW()-2-0+0, COLUMN()-2-200+20) -> 5 | GU8: =OFFSET(char10!A$1, ROW()-2-0+0, COLUMN()-2-200+20) -> 5 | GV8: =OFFSET(char10!A$1, ROW()-2-0+0, COLUMN()-2-200+20) -> 5 | GW8: =OFFSET(char10!A$1, ROW()-2-0+0, COLUMN()-2-200+20) -> 20 | GX8: =OFFSET(char10!A$1, ROW()-2-0+0, COLUMN()-2-200+20) -> 40 | GY8: =OFFSET(char10!A$1, ROW()-2-0+0, COLUMN()-2-200+20) -> 15 | GZ8: =OFFSET(char10!A$1, ROW()-2-0+0, COLUMN()-2-200+20) -> 5 | HA8: =OFFSET(char10!A$1, ROW()-2-0+0, COLUMN()-2-200+20) -> 5 | HD8: =OFFSET(char10!A$1, ROW()-2-0+0, COLUMN()-2-210+21) -> 5 | HE8: =OFFSET(char10!A$1, ROW()-2-0+0, COLUMN()-2-210+21) -> 5 | HF8: =OFFSET(char10!A$1, ROW()-2-0+0, COLUMN()-2-210+21) -> 20 | HG8: =OFFSET(char10!A$1, ROW()-2-0+0, COLUMN()-2-210+21) -> 40 | HH8: =OFFSET(char10!A$1, ROW()-2-0+0, COLUMN()-2-210+21) -> 15 | HI8: =OFFSET(char10!A$1, ROW()-2-0+0, COLUMN()-2-210+21) -> 5 | HJ8: =OFFSET(char10!A$1, ROW()-2-0+0, COLUMN()-2-210+21) -> 5 | HK8: =OFFSET(char10!A$1, ROW()-2-0+0, COLUMN()-2-210+21) -> 5 | HN8: =OFFSET(char10!A$1, ROW()-2-0+0, COLUMN()-2-220+22) -> 5 | HO8: =OFFSET(char10!A$1, ROW()-2-0+0, COLUMN()-2-220+22) -> 20 | HP8: =OFFSET(char10!A$1, ROW()-2-0+0, COLUMN()-2-220+22) -> 40 | HQ8: =OFFSET(char10!A$1, ROW()-2-0+0, COLUMN()-2-220+22) -> 15 | HR8: =OFFSET(char10!A$1, ROW()-2-0+0, COLUMN()-2-220+22) -> 5 | HS8: =OFFSET(char10!A$1, ROW()-2-0+0, COLUMN()-2-220+22) -> 5 | HT8: =OFFSET(char10!A$1, ROW()-2-0+0, COLUMN()-2-220+22) -> 5 | HU8: =OFFSET(char10!A$1, ROW()-2-0+0, COLUMN()-2-220+22) -> 5 | HX8: =OFFSET(char10!A$1, ROW()-2-0+0, COLUMN()-2-230+23) -> 20 | HY8: =OFFSET(char10!A$1, ROW()-2-0+0, COLUMN()-2-230+23) -> 40 | HZ8: =OFFSET(char10!A$1, ROW()-2-0+0, COLUMN()-2-230+23) -> 15 | IA8: =OFFSET(char10!A$1, ROW()-2-0+0, COLUMN()-2-230+23) -> 5 | IB8: =OFFSET(char10!A$1, ROW()-2-0+0, COLUMN()-2-230+23) -> 5 | IC8: =OFFSET(char10!A$1, ROW()-2-0+0, COLUMN()-2-230+23) -> 5 | ID8: =OFFSET(char10!A$1, ROW()-2-0+0, COLUMN()-2-230+23) -> 5 | IE8: =OFFSET(char10!A$1, ROW()-2-0+0, COLUMN()-2-230+23) -> 5 | IH8: =OFFSET(char10!A$1, ROW()-2-0+0, COLUMN()-2-240+24) -> 40 | II8: =OFFSET(char10!A$1, ROW()-2-0+0, COLUMN()-2-240+24) -> 15 | IJ8: =OFFSET(char10!A$1, ROW()-2-0+0, COLUMN()-2-240+24) -> 5 | IK8: =OFFSET(char10!A$1, ROW()-2-0+0, COLUMN()-2-240+24) -> 5 | IL8: =OFFSET(char10!A$1, ROW()-2-0+0, COLUMN()-2-240+24) -> 5 | IM8: =OFFSET(char10!A$1, ROW()-2-0+0, COLUMN()-2-240+24) -> 5 | IN8: =OFFSET(char10!A$1, ROW()-2-0+0, COLUMN()-2-240+24) -> 5 | IO8: =OFFSET(char10!A$1, ROW()-2-0+0, COLUMN()-2-240+24) -> 5 | IR8: =OFFSET(char10!A$1, ROW()-2-0+0, COLUMN()-2-250+25) -> 15 | IS8: =OFFSET(char10!A$1, ROW()-2-0+0, COLUMN()-2-250+25) -> 5 | IT8: =OFFSET(char10!A$1, ROW()-2-0+0, COLUMN()-2-250+25) -> 5 | IU8: =OFFSET(char10!A$1, ROW()-2-0+0, COLUMN()-2-250+25) -> 5 | IV8: =OFFSET(char10!A$1, ROW()-2-0+0, COLUMN()-2-250+25) -> 5 | IW8: =OFFSET(char10!A$1, ROW()-2-0+0, COLUMN()-2-250+25) -> 5 | IX8: =OFFSET(char10!A$1, ROW()-2-0+0, COLUMN()-2-250+25) -> 5 | IY8: =OFFSET(char10!A$1, ROW()-2-0+0, COLUMN()-2-250+25) -> 15 | JB8: =OFFSET(char10!A$1, ROW()-2-0+0, COLUMN()-2-260+26) -> 5 | JC8: =OFFSET(char10!A$1, ROW()-2-0+0, COLUMN()-2-260+26) -> 5 | JD8: =OFFSET(char10!A$1, ROW()-2-0+0, COLUMN()-2-260+26) -> 5 | JE8: =OFFSET(char10!A$1, ROW()-2-0+0, COLUMN()-2-260+26) -> 5 | JF8: =OFFSET(char10!A$1, ROW()-2-0+0, COLUMN()-2-260+26) -> 5 | JG8: =OFFSET(char10!A$1, ROW()-2-0+0, COLUMN()-2-260+26) -> 5 | JH8: =OFFSET(char10!A$1, ROW()-2-0+0, COLUMN()-2-260+26) -> 15 | JI8: =OFFSET(char10!A$1, ROW()-2-0+0, COLUMN()-2-260+26) -> 40 | JL8: =OFFSET(char10!A$1, ROW()-2-0+0, COLUMN()-2-270+27) -> 5 | JM8: =OFFSET(char10!A$1, ROW()-2-0+0, COLUMN()-2-270+27) -> 5 | JN8: =OFFSET(char10!A$1, ROW()-2-0+0, COLUMN()-2-270+27) -> 5 | JO8: =OFFSET(char10!A$1, ROW()-2-0+0, COLUMN()-2-270+27) -> 5 | JP8: =OFFSET(char10!A$1, ROW()-2-0+0, COLUMN()-2-270+27) -> 5 | JQ8: =OFFSET(char10!A$1, ROW()-2-0+0, COLUMN()-2-270+27) -> 15 | JR8: =OFFSET(char10!A$1, ROW()-2-0+0, COLUMN()-2-270+27) -> 40 | JS8: =OFFSET(char10!A$1, ROW()-2-0+0, COLUMN()-2-270+27) -> 15 | JV8: =OFFSET(char10!A$1, ROW()-2-0+0, COLUMN()-2-280+28) -> 5 | JW8: =OFFSET(char10!A$1, ROW()-2-0+0, COLUMN()-2-280+28) -> 5 | JX8: =OFFSET(char10!A$1, ROW()-2-0+0, COLUMN()-2-280+28) -> 5 | JY8: =OFFSET(char10!A$1, ROW()-2-0+0, COLUMN()-2-280+28) -> 5 | JZ8: =OFFSET(char10!A$1, ROW()-2-0+0, COLUMN()-2-280+28) -> 15 | KA8: =OFFSET(char10!A$1, ROW()-2-0+0, COLUMN()-2-280+28) -> 40 | KB8: =OFFSET(char10!A$1, ROW()-2-0+0, COLUMN()-2-280+28) -> 15 | KC8: =OFFSET(char10!A$1, ROW()-2-0+0, COLUMN()-2-280+28) -> 5 | KF8: =OFFSET(char10!A$1, ROW()-2-0+0, COLUMN()-2-290+29) -> 5 | KG8: =OFFSET(char10!A$1, ROW()-2-0+0, COLUMN()-2-290+29) -> 5 | KH8: =OFFSET(char10!A$1, ROW()-2-0+0, COLUMN()-2-290+29) -> 5 | KI8: =OFFSET(char10!A$1, ROW()-2-0+0, COLUMN()-2-290+29) -> 15 | KJ8: =OFFSET(char10!A$1, ROW()-2-0+0, COLUMN()-2-290+29) -> 40 | KK8: =OFFSET(char10!A$1, ROW()-2-0+0, COLUMN()-2-290+29) -> 15 | KL8: =OFFSET(char10!A$1, ROW()-2-0+0, COLUMN()-2-290+29) -> 5 | KM8: =OFFSET(char10!A$1, ROW()-2-0+0, COLUMN()-2-290+29) -> 5 | KP8: =OFFSET(char10!A$1, ROW()-2-0+0, COLUMN()-2-300+30) -> 5 | KQ8: =OFFSET(char10!A$1, ROW()-2-0+0, COLUMN()-2-300+30) -> 5 | KR8: =OFFSET(char10!A$1, ROW()-2-0+0, COLUMN()-2-300+30) -> 15 | KS8: =OFFSET(char10!A$1, ROW()-2-0+0, COLUMN()-2-300+30) -> 40 | KT8: =OFFSET(char10!A$1, ROW()-2-0+0, COLUMN()-2-300+30) -> 15 | KU8: =OFFSET(char10!A$1, ROW()-2-0+0, COLUMN()-2-300+30) -> 5 | KV8: =OFFSET(char10!A$1, ROW()-2-0+0, COLUMN()-2-300+30) -> 5 | KW8: =OFFSET(char10!A$1, ROW()-2-0+0, COLUMN()-2-300+30) -> 5 | KZ8: =OFFSET(char10!A$1, ROW()-2-0+0, COLUMN()-2-310+31) -> 5 | LA8: =OFFSET(char10!A$1, ROW()-2-0+0, COLUMN()-2-310+31) -> 15 | LB8: =OFFSET(char10!A$1, ROW()-2-0+0, COLUMN()-2-310+31) -> 40 | LC8: =OFFSET(char10!A$1, ROW()-2-0+0, COLUMN()-2-310+31) -> 15 | LD8: =OFFSET(char10!A$1, ROW()-2-0+0, COLUMN()-2-310+31) -> 5 | LE8: =OFFSET(char10!A$1, ROW()-2-0+0, COLUMN()-2-310+31) -> 5 | LF8: =OFFSET(char10!A$1, ROW()-2-0+0, COLUMN()-2-310+31) -> 5 | LG8: =OFFSET(char10!A$1, ROW()-2-0+0, COLUMN()-2-310+31) -> 5 | LJ8: =OFFSET(char10!A$1, ROW()-2-0+0, COLUMN()-2-320+32) -> 15 | LK8: =OFFSET(char10!A$1, ROW()-2-0+0, COLUMN()-2-320+32) -> 40 | LL8: =OFFSET(char10!A$1, ROW()-2-0+0, COLUMN()-2-320+32) -> 15 | LM8: =OFFSET(char10!A$1, ROW()-2-0+0, COLUMN()-2-320+32) -> 5 | LN8: =OFFSET(char10!A$1, ROW()-2-0+0, COLUMN()-2-320+32) -> 5 | LO8: =OFFSET(char10!A$1, ROW()-2-0+0, COLUMN()-2-320+32) -> 5 | LP8: =OFFSET(char10!A$1, ROW()-2-0+0, COLUMN()-2-320+32) -> 5 | LQ8: =OFFSET(char10!A$1, ROW()-2-0+0, COLUMN()-2-320+32) -> 5 | LT8: =OFFSET(char10!A$1, ROW()-2-0+0, COLUMN()-2-330+33) -> 40 | LU8: =OFFSET(char10!A$1, ROW()-2-0+0, COLUMN()-2-330+33) -> 15 | LV8: =OFFSET(char10!A$1, ROW()-2-0+0, COLUMN()-2-330+33) -> 5 | LW8: =OFFSET(char10!A$1, ROW()-2-0+0, COLUMN()-2-330+33) -> 5 | LX8: =OFFSET(char10!A$1, ROW()-2-0+0, COLUMN()-2-330+33) -> 5 | LY8: =OFFSET(char10!A$1, ROW()-2-0+0, COLUMN()-2-330+33) -> 5 | LZ8: =OFFSET(char10!A$1, ROW()-2-0+0, COLUMN()-2-330+33) -> 5 | MA8: =OFFSET(char10!A$1, ROW()-2-0+0, COLUMN()-2-330+33) -> 5 | MD8: =OFFSET(char10!A$1, ROW()-2-0+0, COLUMN()-2-340+34) -> 15 | ME8: =OFFSET(char10!A$1, ROW()-2-0+0, COLUMN()-2-340+34) -> 5 | MF8: =OFFSET(char10!A$1, ROW()-2-0+0, COLUMN()-2-340+34) -> 5 | MG8: =OFFSET(char10!A$1, ROW()-2-0+0, COLUMN()-2-340+34) -> 5 | MH8: =OFFSET(char10!A$1, ROW()-2-0+0, COLUMN()-2-340+34) -> 5 | MI8: =OFFSET(char10!A$1, ROW()-2-0+0, COLUMN()-2-340+34) -> 5 | MJ8: =OFFSET(char10!A$1, ROW()-2-0+0, COLUMN()-2-340+34) -> 5 | MK8: =OFFSET(char10!A$1, ROW()-2-0+0, COLUMN()-2-340+34) -> 5 | MN8: =OFFSET(char10!A$1, ROW()-2-0+0, COLUMN()-2-350+35) -> 5 | MO8: =OFFSET(char10!A$1, ROW()-2-0+0, COLUMN()-2-350+35) -> 5 | MP8: =OFFSET(char10!A$1, ROW()-2-0+0, COLUMN()-2-350+35) -> 5 | MQ8: =OFFSET(char10!A$1, ROW()-2-0+0, COLUMN()-2-350+35) -> 5 | MR8: =OFFSET(char10!A$1, ROW()-2-0+0, COLUMN()-2-350+35) -> 5 | MS8: =OFFSET(char10!A$1, ROW()-2-0+0, COLUMN()-2-350+35) -> 5 | MT8: =OFFSET(char10!A$1, ROW()-2-0+0, COLUMN()-2-350+35) -> 5 | MU8: =OFFSET(char10!A$1, ROW()-2-0+0, COLUMN()-2-350+35) -> 5 | MX8: =OFFSET(char10!A$1, ROW()-2-0+0, COLUMN()-2-360+36) -> 5 | MY8: =OFFSET(char10!A$1, ROW()-2-0+0, COLUMN()-2-360+36) -> 5 | MZ8: =OFFSET(char10!A$1, ROW()-2-0+0, COLUMN()-2-360+36) -> 5 | NA8: =OFFSET(char10!A$1, ROW()-2-0+0, COLUMN()-2-360+36) -> 5 | NB8: =OFFSET(char10!A$1, ROW()-2-0+0, COLUMN()-2-360+36) -> 5 | NC8: =OFFSET(char10!A$1, ROW()-2-0+0, COLUMN()-2-360+36) -> 5 | ND8: =OFFSET(char10!A$1, ROW()-2-0+0, COLUMN()-2-360+36) -> 5 | NE8: =OFFSET(char10!A$1, ROW()-2-0+0, COLUMN()-2-360+36) -> 5 | NH8: =OFFSET(char10!A$1, ROW()-2-0+0, COLUMN()-2-370+37) -> 5 | NI8: =OFFSET(char10!A$1, ROW()-2-0+0, COLUMN()-2-370+37) -> 5 | NJ8: =OFFSET(char10!A$1, ROW()-2-0+0, COLUMN()-2-370+37) -> 5 | NK8: =OFFSET(char10!A$1, ROW()-2-0+0, COLUMN()-2-370+37) -> 5 | NL8: =OFFSET(char10!A$1, ROW()-2-0+0, COLUMN()-2-370+37) -> 5 | NM8: =OFFSET(char10!A$1, ROW()-2-0+0, COLUMN()-2-370+37) -> 5 | NN8: =OFFSET(char10!A$1, ROW()-2-0+0, COLUMN()-2-370+37) -> 5 | NO8: =OFFSET(char10!A$1, ROW()-2-0+0, COLUMN()-2-370+37) -> 5 | NR8: =OFFSET(char10!A$1, ROW()-2-0+0, COLUMN()-2-380+38) -> 5 | NS8: =OFFSET(char10!A$1, ROW()-2-0+0, COLUMN()-2-380+38) -> 5 | NT8: =OFFSET(char10!A$1, ROW()-2-0+0, COLUMN()-2-380+38) -> 5 | NU8: =OFFSET(char10!A$1, ROW()-2-0+0, COLUMN()-2-380+38) -> 5 | NV8: =OFFSET(char10!A$1, ROW()-2-0+0, COLUMN()-2-380+38) -> 5 | NW8: =OFFSET(char10!A$1, ROW()-2-0+0, COLUMN()-2-380+38) -> 5 | NX8: =OFFSET(char10!A$1, ROW()-2-0+0, COLUMN()-2-380+38) -> 5 | NY8: =OFFSET(char10!A$1, ROW()-2-0+0, COLUMN()-2-380+38) -> 5 | OB8: =OFFSET(char10!A$1, ROW()-2-0+0, COLUMN()-2-390+39) -> 5 | OC8: =OFFSET(char10!A$1, ROW()-2-0+0, COLUMN()-2-390+39) -> 5 | OD8: =OFFSET(char10!A$1, ROW()-2-0+0, COLUMN()-2-390+39) -> 5 | OE8: =OFFSET(char10!A$1, ROW()-2-0+0, COLUMN()-2-390+39) -> 5 | OF8: =OFFSET(char10!A$1, ROW()-2-0+0, COLUMN()-2-390+39) -> 5 | OG8: =OFFSET(char10!A$1, ROW()-2-0+0, COLUMN()-2-390+39) -> 5 | OH8: =OFFSET(char10!A$1, ROW()-2-0+0, COLUMN()-2-390+39) -> 5 | OI8: =OFFSET(char10!A$1, ROW()-2-0+0, COLUMN()-2-390+39) -> 5
B9: =OFFSET(char10!A$1, ROW()-2-0+0, COLUMN()-2-0+0) -> 5 | C9: =OFFSET(char10!A$1, ROW()-2-0+0, COLUMN()-2-0+0) -> 5 | D9: =OFFSET(char10!A$1, ROW()-2-0+0, COLUMN()-2-0+0) -> 5 | E9: =OFFSET(char10!A$1, ROW()-2-0+0, COLUMN()-2-0+0) -> 15 | F9: =OFFSET(char10!A$1, ROW()-2-0+0, COLUMN()-2-0+0) -> 40 | G9: =OFFSET(char10!A$1, ROW()-2-0+0, COLUMN()-2-0+0) -> 15 | H9: =OFFSET(char10!A$1, ROW()-2-0+0, COLUMN()-2-0+0) -> 5 | I9: =OFFSET(char10!A$1, ROW()-2-0+0, COLUMN()-2-0+0) -> 5 | L9: =OFFSET(char10!A$1, ROW()-2-0+0, COLUMN()-2-10+1) -> 5 | M9: =OFFSET(char10!A$1, ROW()-2-0+0, COLUMN()-2-10+1) -> 5 | N9: =OFFSET(char10!A$1, ROW()-2-0+0, COLUMN()-2-10+1) -> 15 | O9: =OFFSET(char10!A$1, ROW()-2-0+0, COLUMN()-2-10+1) -> 40 | P9: =OFFSET(char10!A$1, ROW()-2-0+0, COLUMN()-2-10+1) -> 15 | Q9: =OFFSET(char10!A$1, ROW()-2-0+0, COLUMN()-2-10+1) -> 5 | R9: =OFFSET(char10!A$1, ROW()-2-0+0, COLUMN()-2-10+1) -> 5 | S9: =OFFSET(char10!A$1, ROW()-2-0+0, COLUMN()-2-10+1) -> 5 | V9: =OFFSET(char10!A$1, ROW()-2-0+0, COLUMN()-2-20+2) -> 5 | W9: =OFFSET(char10!A$1, ROW()-2-0+0, COLUMN()-2-20+2) -> 15 | X9: =OFFSET(char10!A$1, ROW()-2-0+0, COLUMN()-2-20+2) -> 40 | Y9: =OFFSET(char10!A$1, ROW()-2-0+0, COLUMN()-2-20+2) -> 15 | Z9: =OFFSET(char10!A$1, ROW()-2-0+0, COLUMN()-2-20+2) -> 5 | AA9: =OFFSET(char10!A$1, ROW()-2-0+0, COLUMN()-2-20+2) -> 5 | AB9: =OFFSET(char10!A$1, ROW()-2-0+0, COLUMN()-2-20+2) -> 5 | AC9: =OFFSET(char10!A$1, ROW()-2-0+0, COLUMN()-2-20+2) -> 5 | AF9: =OFFSET(char10!A$1, ROW()-2-0+0, COLUMN()-2-30+3) -> 15 | AG9: =OFFSET(char10!A$1, ROW()-2-0+0, COLUMN()-2-30+3) -> 40 | AH9: =OFFSET(char10!A$1, ROW()-2-0+0, COLUMN()-2-30+3) -> 15 | AI9: =OFFSET(char10!A$1, ROW()-2-0+0, COLUMN()-2-30+3) -> 5 | AJ9: =OFFSET(char10!A$1, ROW()-2-0+0, COLUMN()-2-30+3) -> 5 | AK9: =OFFSET(char10!A$1, ROW()-2-0+0, COLUMN()-2-30+3) -> 5 | AL9: =OFFSET(char10!A$1, ROW()-2-0+0, COLUMN()-2-30+3) -> 5 | AM9: =OFFSET(char10!A$1, ROW()-2-0+0, COLUMN()-2-30+3) -> 5 | AP9: =OFFSET(char10!A$1, ROW()-2-0+0, COLUMN()-2-40+4) -> 40 | AQ9: =OFFSET(char10!A$1, ROW()-2-0+0, COLUMN()-2-40+4) -> 15 | AR9: =OFFSET(char10!A$1, ROW()-2-0+0, COLUMN()-2-40+4) -> 5 | AS9: =OFFSET(char10!A$1, ROW()-2-0+0, COLUMN()-2-40+4) -> 5 | AT9: =OFFSET(char10!A$1, ROW()-2-0+0, COLUMN()-2-40+4) -> 5 | AU9: =OFFSET(char10!A$1, ROW()-2-0+0, COLUMN()-2-40+4) -> 5 | AV9: =OFFSET(char10!A$1, ROW()-2-0+0, COLUMN()-2-40+4) -> 5 | AW9: =OFFSET(char10!A$1, ROW()-2-0+0, COLUMN()-2-40+4) -> 5 | AZ9: =OFFSET(char10!A$1, ROW()-2-0+0, COLUMN()-2-50+5) -> 15 | BA9: =OFFSET(char10!A$1, ROW()-2-0+0, COLUMN()-2-50+5) -> 5 | BB9: =OFFSET(char10!A$1, ROW()-2-0+0, COLUMN()-2-50+5) -> 5 | BC9: =OFFSET(char10!A$1, ROW()-2-0+0, COLUMN()-2-50+5) -> 5 | BD9: =OFFSET(char10!A$1, ROW()-2-0+0, COLUMN()-2-50+5) -> 5 | BE9: =OFFSET(char10!A$1, ROW()-2-0+0, COLUMN()-2-50+5) -> 5 | BF9: =OFFSET(char10!A$1, ROW()-2-0+0, COLUMN()-2-50+5) -> 5 | BG9: =OFFSET(char10!A$1, ROW()-2-0+0, COLUMN()-2-50+5) -> 5 | BJ9: =OFFSET(char10!A$1, ROW()-2-0+0, COLUMN()-2-60+6) -> 5 | BK9: =OFFSET(char10!A$1, ROW()-2-0+0, COLUMN()-2-60+6) -> 5 | BL9: =OFFSET(char10!A$1, ROW()-2-0+0, COLUMN()-2-60+6) -> 5 | BM9: =OFFSET(char10!A$1, ROW()-2-0+0, COLUMN()-2-60+6) -> 5 | BN9: =OFFSET(char10!A$1, ROW()-2-0+0, COLUMN()-2-60+6) -> 5 | BO9: =OFFSET(char10!A$1, ROW()-2-0+0, COLUMN()-2-60+6) -> 5 | BP9: =OFFSET(char10!A$1, ROW()-2-0+0, COLUMN()-2-60+6) -> 5 | BQ9: =OFFSET(char10!A$1, ROW()-2-0+0, COLUMN()-2-60+6) -> 5 | BT9: =OFFSET(char10!A$1, ROW()-2-0+0, COLUMN()-2-70+7) -> 5 | BU9: =OFFSET(char10!A$1, ROW()-2-0+0, COLUMN()-2-70+7) -> 5 | BV9: =OFFSET(char10!A$1, ROW()-2-0+0, COLUMN()-2-70+7) -> 5 | BW9: =OFFSET(char10!A$1, ROW()-2-0+0, COLUMN()-2-70+7) -> 5 | BX9: =OFFSET(char10!A$1, ROW()-2-0+0, COLUMN()-2-70+7) -> 5 | BY9: =OFFSET(char10!A$1, ROW()-2-0+0, COLUMN()-2-70+7) -> 5 | BZ9: =OFFSET(char10!A$1, ROW()-2-0+0, COLUMN()-2-70+7) -> 5 | CA9: =OFFSET(char10!A$1, ROW()-2-0+0, COLUMN()-2-70+7) -> 5 | CD9: =OFFSET(char10!A$1, ROW()-2-0+0, COLUMN()-2-80+8) -> 5 | CE9: =OFFSET(char10!A$1, ROW()-2-0+0, COLUMN()-2-80+8) -> 5 | CF9: =OFFSET(char10!A$1, ROW()-2-0+0, COLUMN()-2-80+8) -> 5 | CG9: =OFFSET(char10!A$1, ROW()-2-0+0, COLUMN()-2-80+8) -> 5 | CH9: =OFFSET(char10!A$1, ROW()-2-0+0, COLUMN()-2-80+8) -> 5 | CI9: =OFFSET(char10!A$1, ROW()-2-0+0, COLUMN()-2-80+8) -> 5 | CJ9: =OFFSET(char10!A$1, ROW()-2-0+0, COLUMN()-2-80+8) -> 5 | CK9: =OFFSET(char10!A$1, ROW()-2-0+0, COLUMN()-2-80+8) -> 5 | CN9: =OFFSET(char10!A$1, ROW()-2-0+0, COLUMN()-2-90+9) -> 5 | CO9: =OFFSET(char10!A$1, ROW()-2-0+0, COLUMN()-2-90+9) -> 5 | CP9: =OFFSET(char10!A$1, ROW()-2-0+0, COLUMN()-2-90+9) -> 5 | CQ9: =OFFSET(char10!A$1, ROW()-2-0+0, COLUMN()-2-90+9) -> 5 | CR9: =OFFSET(char10!A$1, ROW()-2-0+0, COLUMN()-2-90+9) -> 5 | CS9: =OFFSET(char10!A$1, ROW()-2-0+0, COLUMN()-2-90+9) -> 5 | CT9: =OFFSET(char10!A$1, ROW()-2-0+0, COLUMN()-2-90+9) -> 5 | CU9: =OFFSET(char10!A$1, ROW()-2-0+0, COLUMN()-2-90+9) -> 5 | CX9: =OFFSET(char10!A$1, ROW()-2-0+0, COLUMN()-2-100+10) -> 5 | CY9: =OFFSET(char10!A$1, ROW()-2-0+0, COLUMN()-2-100+10) -> 5 | CZ9: =OFFSET(char10!A$1, ROW()-2-0+0, COLUMN()-2-100+10) -> 5 | DA9: =OFFSET(char10!A$1, ROW()-2-0+0, COLUMN()-2-100+10) -> 5 | DB9: =OFFSET(char10!A$1, ROW()-2-0+0, COLUMN()-2-100+10) -> 5 | DC9: =OFFSET(char10!A$1, ROW()-2-0+0, COLUMN()-2-100+10) -> 5 | DD9: =OFFSET(char10!A$1, ROW()-2-0+0, COLUMN()-2-100+10) -> 5 | DE9: =OFFSET(char10!A$1, ROW()-2-0+0, COLUMN()-2-100+10) -> 5 | DH9: =OFFSET(char10!A$1, ROW()-2-0+0, COLUMN()-2-110+11) -> 5 | DI9: =OFFSET(char10!A$1, ROW()-2-0+0, COLUMN()-2-110+11) -> 5 | DJ9: =OFFSET(char10!A$1, ROW()-2-0+0, COLUMN()-2-110+11) -> 5 | DK9: =OFFSET(char10!A$1, ROW()-2-0+0, COLUMN()-2-110+11) -> 5 | DL9: =OFFSET(char10!A$1, ROW()-2-0+0, COLUMN()-2-110+11) -> 5 | DM9: =OFFSET(char10!A$1, ROW()-2-0+0, COLUMN()-2-110+11) -> 5 | DN9: =OFFSET(char10!A$1, ROW()-2-0+0, COLUMN()-2-110+11) -> 5 | DO9: =OFFSET(char10!A$1, ROW()-2-0+0, COLUMN()-2-110+11) -> 40 | DR9: =OFFSET(char10!A$1, ROW()-2-0+0, COLUMN()-2-120+12) -> 5 | DS9: =OFFSET(char10!A$1, ROW()-2-0+0, COLUMN()-2-120+12) -> 5 | DT9: =OFFSET(char10!A$1, ROW()-2-0+0, COLUMN()-2-120+12) -> 5 | DU9: =OFFSET(char10!A$1, ROW()-2-0+0, COLUMN()-2-120+12) -> 5 | DV9: =OFFSET(char10!A$1, ROW()-2-0+0, COLUMN()-2-120+12) -> 5 | DW9: =OFFSET(char10!A$1, ROW()-2-0+0, COLUMN()-2-120+12) -> 5 | DX9: =OFFSET(char10!A$1, ROW()-2-0+0, COLUMN()-2-120+12) -> 40 | DY9: =OFFSET(char10!A$1, ROW()-2-0+0, COLUMN()-2-120+12) -> 20 | EB9: =OFFSET(char10!A$1, ROW()-2-0+0, COLUMN()-2-130+13) -> 5 | EC9: =OFFSET(char10!A$1, ROW()-2-0+0, COLUMN()-2-130+13) -> 5 | ED9: =OFFSET(char10!A$1, ROW()-2-0+0, COLUMN()-2-130+13) -> 5 | EE9: =OFFSET(char10!A$1, ROW()-2-0+0, COLUMN()-2-130+13) -> 5 | EF9: =OFFSET(char10!A$1, ROW()-2-0+0, COLUMN()-2-130+13) -> 5 | EG9: =OFFSET(char10!A$1, ROW()-2-0+0, COLUMN()-2-130+13) -> 40 | EH9: =OFFSET(char10!A$1, ROW()-2-0+0, COLUMN()-2-130+13) -> 20 | EI9: =OFFSET(char10!A$1, ROW()-2-0+0, COLUMN()-2-130+13) -> 5 | EL9: =OFFSET(char10!A$1, ROW()-2-0+0, COLUMN()-2-140+14) -> 5 | EM9: =OFFSET(char10!A$1, ROW()-2-0+0, COLUMN()-2-140+14) -> 5 | EN9: =OFFSET(char10!A$1, ROW()-2-0+0, COLUMN()-2-140+14) -> 5 | EO9: =OFFSET(char10!A$1, ROW()-2-0+0, COLUMN()-2-140+14) -> 5 | EP9: =OFFSET(char10!A$1, ROW()-2-0+0, COLUMN()-2-140+14) -> 40 | EQ9: =OFFSET(char10!A$1, ROW()-2-0+0, COLUMN()-2-140+14) -> 20 | ER9: =OFFSET(char10!A$1, ROW()-2-0+0, COLUMN()-2-140+14) -> 5 | ES9: =OFFSET(char10!A$1, ROW()-2-0+0, COLUMN()-2-140+14) -> 5 | EV9: =OFFSET(char10!A$1, ROW()-2-0+0, COLUMN()-2-150+15) -> 5 | EW9: =OFFSET(char10!A$1, ROW()-2-0+0, COLUMN()-2-150+15) -> 5 | EX9: =OFFSET(char10!A$1, ROW()-2-0+0, COLUMN()-2-150+15) -> 5 | EY9: =OFFSET(char10!A$1, ROW()-2-0+0, COLUMN()-2-150+15) -> 40 | EZ9: =OFFSET(char10!A$1, ROW()-2-0+0, COLUMN()-2-150+15) -> 20 | FA9: =OFFSET(char10!A$1, ROW()-2-0+0, COLUMN()-2-150+15) -> 5 | FB9: =OFFSET(char10!A$1, ROW()-2-0+0, COLUMN()-2-150+15) -> 5 | FC9: =OFFSET(char10!A$1, ROW()-2-0+0, COLUMN()-2-150+15) -> 5 | FF9: =OFFSET(char10!A$1, ROW()-2-0+0, COLUMN()-2-160+16) -> 5 | FG9: =OFFSET(char10!A$1, ROW()-2-0+0, COLUMN()-2-160+16) -> 5 | FH9: =OFFSET(char10!A$1, ROW()-2-0+0, COLUMN()-2-160+16) -> 40 | FI9: =OFFSET(char10!A$1, ROW()-2-0+0, COLUMN()-2-160+16) -> 20 | FJ9: =OFFSET(char10!A$1, ROW()-2-0+0, COLUMN()-2-160+16) -> 5 | FK9: =OFFSET(char10!A$1, ROW()-2-0+0, COLUMN()-2-160+16) -> 5 | FL9: =OFFSET(char10!A$1, ROW()-2-0+0, COLUMN()-2-160+16) -> 5 | FM9: =OFFSET(char10!A$1, ROW()-2-0+0, COLUMN()-2-160+16) -> 20 | FP9: =OFFSET(char10!A$1, ROW()-2-0+0, COLUMN()-2-170+17) -> 5 | FQ9: =OFFSET(char10!A$1, ROW()-2-0+0, COLUMN()-2-170+17) -> 40 | FR9: =OFFSET(char10!A$1, ROW()-2-0+0, COLUMN()-2-170+17) -> 20 | FS9: =OFFSET(char10!A$1, ROW()-2-0+0, COLUMN()-2-170+17) -> 5 | FT9: =OFFSET(char10!A$1, ROW()-2-0+0, COLUMN()-2-170+17) -> 5 | FU9: =OFFSET(char10!A$1, ROW()-2-0+0, COLUMN()-2-170+17) -> 5 | FV9: =OFFSET(char10!A$1, ROW()-2-0+0, COLUMN()-2-170+17) -> 20 | FW9: =OFFSET(char10!A$1, ROW()-2-0+0, COLUMN()-2-170+17) -> 40 | FZ9: =OFFSET(char10!A$1, ROW()-2-0+0, COLUMN()-2-180+18) -> 40 | GA9: =OFFSET(char10!A$1, ROW()-2-0+0, COLUMN()-2-180+18) -> 20 | GB9: =OFFSET(char10!A$1, ROW()-2-0+0, COLUMN()-2-180+18) -> 5 | GC9: =OFFSET(char10!A$1, ROW()-2-0+0, COLUMN()-2-180+18) -> 5 | GD9: =OFFSET(char10!A$1, ROW()-2-0+0, COLUMN()-2-180+18) -> 5 | GE9: =OFFSET(char10!A$1, ROW()-2-0+0, COLUMN()-2-180+18) -> 20 | GF9: =OFFSET(char10!A$1, ROW()-2-0+0, COLUMN()-2-180+18) -> 40 | GG9: =OFFSET(char10!A$1, ROW()-2-0+0, COLUMN()-2-180+18) -> 15 | GJ9: =OFFSET(char10!A$1, ROW()-2-0+0, COLUMN()-2-190+19) -> 20 | GK9: =OFFSET(char10!A$1, ROW()-2-0+0, COLUMN()-2-190+19) -> 5 | GL9: =OFFSET(char10!A$1, ROW()-2-0+0, COLUMN()-2-190+19) -> 5 | GM9: =OFFSET(char10!A$1, ROW()-2-0+0, COLUMN()-2-190+19) -> 5 | GN9: =OFFSET(char10!A$1, ROW()-2-0+0, COLUMN()-2-190+19) -> 20 | GO9: =OFFSET(char10!A$1, ROW()-2-0+0, COLUMN()-2-190+19) -> 40 | GP9: =OFFSET(char10!A$1, ROW()-2-0+0, COLUMN()-2-190+19) -> 15 | GQ9: =OFFSET(char10!A$1, ROW()-2-0+0, COLUMN()-2-190+19) -> 5 | GT9: =OFFSET(char10!A$1, ROW()-2-0+0, COLUMN()-2-200+20) -> 5 | GU9: =OFFSET(char10!A$1, ROW()-2-0+0, COLUMN()-2-200+20) -> 5 | GV9: =OFFSET(char10!A$1, ROW()-2-0+0, COLUMN()-2-200+20) -> 5 | GW9: =OFFSET(char10!A$1, ROW()-2-0+0, COLUMN()-2-200+20) -> 20 | GX9: =OFFSET(char10!A$1, ROW()-2-0+0, COLUMN()-2-200+20) -> 40 | GY9: =OFFSET(char10!A$1, ROW()-2-0+0, COLUMN()-2-200+20) -> 15 | GZ9: =OFFSET(char10!A$1, ROW()-2-0+0, COLUMN()-2-200+20) -> 5 | HA9: =OFFSET(char10!A$1, ROW()-2-0+0, COLUMN()-2-200+20) -> 5 | HD9: =OFFSET(char10!A$1, ROW()-2-0+0, COLUMN()-2-210+21) -> 5 | HE9: =OFFSET(char10!A$1, ROW()-2-0+0, COLUMN()-2-210+21) -> 5 | HF9: =OFFSET(char10!A$1, ROW()-2-0+0, COLUMN()-2-210+21) -> 20 | HG9: =OFFSET(char10!A$1, ROW()-2-0+0, COLUMN()-2-210+21) -> 40 | HH9: =OFFSET(char10!A$1, ROW()-2-0+0, COLUMN()-2-210+21) -> 15 | HI9: =OFFSET(char10!A$1, ROW()-2-0+0, COLUMN()-2-210+21) -> 5 | HJ9: =OFFSET(char10!A$1, ROW()-2-0+0, COLUMN()-2-210+21) -> 5 | HK9: =OFFSET(char10!A$1, ROW()-2-0+0, COLUMN()-2-210+21) -> 5 | HN9: =OFFSET(char10!A$1, ROW()-2-0+0, COLUMN()-2-220+22) -> 5 | HO9: =OFFSET(char10!A$1, ROW()-2-0+0, COLUMN()-2-220+22) -> 20 | HP9: =OFFSET(char10!A$1, ROW()-2-0+0, COLUMN()-2-220+22) -> 40 | HQ9: =OFFSET(char10!A$1, ROW()-2-0+0, COLUMN()-2-220+22) -> 15 | HR9: =OFFSET(char10!A$1, ROW()-2-0+0, COLUMN()-2-220+22) -> 5 | HS9: =OFFSET(char10!A$1, ROW()-2-0+0, COLUMN()-2-220+22) -> 5 | HT9: =OFFSET(char10!A$1, ROW()-2-0+0, COLUMN()-2-220+22) -> 5 | HU9: =OFFSET(char10!A$1, ROW()-2-0+0, COLUMN()-2-220+22) -> 5 | HX9: =OFFSET(char10!A$1, ROW()-2-0+0, COLUMN()-2-230+23) -> 20 | HY9: =OFFSET(char10!A$1, ROW()-2-0+0, COLUMN()-2-230+23) -> 40 | HZ9: =OFFSET(char10!A$1, ROW()-2-0+0, COLUMN()-2-230+23) -> 15 | IA9: =OFFSET(char10!A$1, ROW()-2-0+0, COLUMN()-2-230+23) -> 5 | IB9: =OFFSET(char10!A$1, ROW()-2-0+0, COLUMN()-2-230+23) -> 5 | IC9: =OFFSET(char10!A$1, ROW()-2-0+0, COLUMN()-2-230+23) -> 5 | ID9: =OFFSET(char10!A$1, ROW()-2-0+0, COLUMN()-2-230+23) -> 5 | IE9: =OFFSET(char10!A$1, ROW()-2-0+0, COLUMN()-2-230+23) -> 5 | IH9: =OFFSET(char10!A$1, ROW()-2-0+0, COLUMN()-2-240+24) -> 40 | II9: =OFFSET(char10!A$1, ROW()-2-0+0, COLUMN()-2-240+24) -> 15 | IJ9: =OFFSET(char10!A$1, ROW()-2-0+0, COLUMN()-2-240+24) -> 5 | IK9: =OFFSET(char10!A$1, ROW()-2-0+0, COLUMN()-2-240+24) -> 5 | IL9: =OFFSET(char10!A$1, ROW()-2-0+0, COLUMN()-2-240+24) -> 5 | IM9: =OFFSET(char10!A$1, ROW()-2-0+0, COLUMN()-2-240+24) -> 5 | IN9: =OFFSET(char10!A$1, ROW()-2-0+0, COLUMN()-2-240+24) -> 5 | IO9: =OFFSET(char10!A$1, ROW()-2-0+0, COLUMN()-2-240+24) -> 5 | IR9: =OFFSET(char10!A$1, ROW()-2-0+0, COLUMN()-2-250+25) -> 15 | IS9: =OFFSET(char10!A$1, ROW()-2-0+0, COLUMN()-2-250+25) -> 5 | IT9: =OFFSET(char10!A$1, ROW()-2-0+0, COLUMN()-2-250+25) -> 5 | IU9: =OFFSET(char10!A$1, ROW()-2-0+0, COLUMN()-2-250+25) -> 5 | IV9: =OFFSET(char10!A$1, ROW()-2-0+0, COLUMN()-2-250+25) -> 5 | IW9: =OFFSET(char10!A$1, ROW()-2-0+0, COLUMN()-2-250+25) -> 5 | IX9: =OFFSET(char10!A$1, ROW()-2-0+0, COLUMN()-2-250+25) -> 5 | IY9: =OFFSET(char10!A$1, ROW()-2-0+0, COLUMN()-2-250+25) -> 15 | JB9: =OFFSET(char10!A$1, ROW()-2-0+0, COLUMN()-2-260+26) -> 5 | JC9: =OFFSET(char10!A$1, ROW()-2-0+0, COLUMN()-2-260+26) -> 5 | JD9: =OFFSET(char10!A$1, ROW()-2-0+0, COLUMN()-2-260+26) -> 5 | JE9: =OFFSET(char10!A$1, ROW()-2-0+0, COLUMN()-2-260+26) -> 5 | JF9: =OFFSET(char10!A$1, ROW()-2-0+0, COLUMN()-2-260+26) -> 5 | JG9: =OFFSET(char10!A$1, ROW()-2-0+0, COLUMN()-2-260+26) -> 5 | JH9: =OFFSET(char10!A$1, ROW()-2-0+0, COLUMN()-2-260+26) -> 15 | JI9: =OFFSET(char10!A$1, ROW()-2-0+0, COLUMN()-2-260+26) -> 40 | JL9: =OFFSET(char10!A$1, ROW()-2-0+0, COLUMN()-2-270+27) -> 5 | JM9: =OFFSET(char10!A$1, ROW()-2-0+0, COLUMN()-2-270+27) -> 5 | JN9: =OFFSET(char10!A$1, ROW()-2-0+0, COLUMN()-2-270+27) -> 5 | JO9: =OFFSET(char10!A$1, ROW()-2-0+0, COLUMN()-2-270+27) -> 5 | JP9: =OFFSET(char10!A$1, ROW()-2-0+0, COLUMN()-2-270+27) -> 5 | JQ9: =OFFSET(char10!A$1, ROW()-2-0+0, COLUMN()-2-270+27) -> 15 | JR9: =OFFSET(char10!A$1, ROW()-2-0+0, COLUMN()-2-270+27) -> 40 | JS9: =OFFSET(char10!A$1, ROW()-2-0+0, COLUMN()-2-270+27) -> 15 | JV9: =OFFSET(char10!A$1, ROW()-2-0+0, COLUMN()-2-280+28) -> 5 | JW9: =OFFSET(char10!A$1, ROW()-2-0+0, COLUMN()-2-280+28) -> 5 | JX9: =OFFSET(char10!A$1, ROW()-2-0+0, COLUMN()-2-280+28) -> 5 | JY9: =OFFSET(char10!A$1, ROW()-2-0+0, COLUMN()-2-280+28) -> 5 | JZ9: =OFFSET(char10!A$1, ROW()-2-0+0, COLUMN()-2-280+28) -> 15 | KA9: =OFFSET(char10!A$1, ROW()-2-0+0, COLUMN()-2-280+28) -> 40 | KB9: =OFFSET(char10!A$1, ROW()-2-0+0, COLUMN()-2-280+28) -> 15 | KC9: =OFFSET(char10!A$1, ROW()-2-0+0, COLUMN()-2-280+28) -> 5 | KF9: =OFFSET(char10!A$1, ROW()-2-0+0, COLUMN()-2-290+29) -> 5 | KG9: =OFFSET(char10!A$1, ROW()-2-0+0, COLUMN()-2-290+29) -> 5 | KH9: =OFFSET(char10!A$1, ROW()-2-0+0, COLUMN()-2-290+29) -> 5 | KI9: =OFFSET(char10!A$1, ROW()-2-0+0, COLUMN()-2-290+29) -> 15 | KJ9: =OFFSET(char10!A$1, ROW()-2-0+0, COLUMN()-2-290+29) -> 40 | KK9: =OFFSET(char10!A$1, ROW()-2-0+0, COLUMN()-2-290+29) -> 15 | KL9: =OFFSET(char10!A$1, ROW()-2-0+0, COLUMN()-2-290+29) -> 5 | KM9: =OFFSET(char10!A$1, ROW()-2-0+0, COLUMN()-2-290+29) -> 5 | KP9: =OFFSET(char10!A$1, ROW()-2-0+0, COLUMN()-2-300+30) -> 5 | KQ9: =OFFSET(char10!A$1, ROW()-2-0+0, COLUMN()-2-300+30) -> 5 | KR9: =OFFSET(char10!A$1, ROW()-2-0+0, COLUMN()-2-300+30) -> 15 | KS9: =OFFSET(char10!A$1, ROW()-2-0+0, COLUMN()-2-300+30) -> 40 | KT9: =OFFSET(char10!A$1, ROW()-2-0+0, COLUMN()-2-300+30) -> 15 | KU9: =OFFSET(char10!A$1, ROW()-2-0+0, COLUMN()-2-300+30) -> 5 | KV9: =OFFSET(char10!A$1, ROW()-2-0+0, COLUMN()-2-300+30) -> 5 | KW9: =OFFSET(char10!A$1, ROW()-2-0+0, COLUMN()-2-300+30) -> 5 | KZ9: =OFFSET(char10!A$1, ROW()-2-0+0, COLUMN()-2-310+31) -> 5 | LA9: =OFFSET(char10!A$1, ROW()-2-0+0, COLUMN()-2-310+31) -> 15 | LB9: =OFFSET(char10!A$1, ROW()-2-0+0, COLUMN()-2-310+31) -> 40 | LC9: =OFFSET(char10!A$1, ROW()-2-0+0, COLUMN()-2-310+31) -> 15 | LD9: =OFFSET(char10!A$1, ROW()-2-0+0, COLUMN()-2-310+31) -> 5 | LE9: =OFFSET(char10!A$1, ROW()-2-0+0, COLUMN()-2-310+31) -> 5 | LF9: =OFFSET(char10!A$1, ROW()-2-0+0, COLUMN()-2-310+31) -> 5 | LG9: =OFFSET(char10!A$1, ROW()-2-0+0, COLUMN()-2-310+31) -> 5 | LJ9: =OFFSET(char10!A$1, ROW()-2-0+0, COLUMN()-2-320+32) -> 15 | LK9: =OFFSET(char10!A$1, ROW()-2-0+0, COLUMN()-2-320+32) -> 40 | LL9: =OFFSET(char10!A$1, ROW()-2-0+0, COLUMN()-2-320+32) -> 15 | LM9: =OFFSET(char10!A$1, ROW()-2-0+0, COLUMN()-2-320+32) -> 5 | LN9: =OFFSET(char10!A$1, ROW()-2-0+0, COLUMN()-2-320+32) -> 5 | LO9: =OFFSET(char10!A$1, ROW()-2-0+0, COLUMN()-2-320+32) -> 5 | LP9: =OFFSET(char10!A$1, ROW()-2-0+0, COLUMN()-2-320+32) -> 5 | LQ9: =OFFSET(char10!A$1, ROW()-2-0+0, COLUMN()-2-320+32) -> 5 | LT9: =OFFSET(char10!A$1, ROW()-2-0+0, COLUMN()-2-330+33) -> 40 | LU9: =OFFSET(char10!A$1, ROW()-2-0+0, COLUMN()-2-330+33) -> 15 | LV9: =OFFSET(char10!A$1, ROW()-2-0+0, COLUMN()-2-330+33) -> 5 | LW9: =OFFSET(char10!A$1, ROW()-2-0+0, COLUMN()-2-330+33) -> 5 | LX9: =OFFSET(char10!A$1, ROW()-2-0+0, COLUMN()-2-330+33) -> 5 | LY9: =OFFSET(char10!A$1, ROW()-2-0+0, COLUMN()-2-330+33) -> 5 | LZ9: =OFFSET(char10!A$1, ROW()-2-0+0, COLUMN()-2-330+33) -> 5 | MA9: =OFFSET(char10!A$1, ROW()-2-0+0, COLUMN()-2-330+33) -> 5 | MD9: =OFFSET(char10!A$1, ROW()-2-0+0, COLUMN()-2-340+34) -> 15 | ME9: =OFFSET(char10!A$1, ROW()-2-0+0, COLUMN()-2-340+34) -> 5 | MF9: =OFFSET(char10!A$1, ROW()-2-0+0, COLUMN()-2-340+34) -> 5 | MG9: =OFFSET(char10!A$1, ROW()-2-0+0, COLUMN()-2-340+34) -> 5 | MH9: =OFFSET(char10!A$1, ROW()-2-0+0, COLUMN()-2-340+34) -> 5 | MI9: =OFFSET(char10!A$1, ROW()-2-0+0, COLUMN()-2-340+34) -> 5 | MJ9: =OFFSET(char10!A$1, ROW()-2-0+0, COLUMN()-2-340+34) -> 5 | MK9: =OFFSET(char10!A$1, ROW()-2-0+0, COLUMN()-2-340+34) -> 5 | MN9: =OFFSET(char10!A$1, ROW()-2-0+0, COLUMN()-2-350+35) -> 5 | MO9: =OFFSET(char10!A$1, ROW()-2-0+0, COLUMN()-2-350+35) -> 5 | MP9: =OFFSET(char10!A$1, ROW()-2-0+0, COLUMN()-2-350+35) -> 5 | MQ9: =OFFSET(char10!A$1, ROW()-2-0+0, COLUMN()-2-350+35) -> 5 | MR9: =OFFSET(char10!A$1, ROW()-2-0+0, COLUMN()-2-350+35) -> 5 | MS9: =OFFSET(char10!A$1, ROW()-2-0+0, COLUMN()-2-350+35) -> 5 | MT9: =OFFSET(char10!A$1, ROW()-2-0+0, COLUMN()-2-350+35) -> 5 | MU9: =OFFSET(char10!A$1, ROW()-2-0+0, COLUMN()-2-350+35) -> 5 | MX9: =OFFSET(char10!A$1, ROW()-2-0+0, COLUMN()-2-360+36) -> 5 | MY9: =OFFSET(char10!A$1, ROW()-2-0+0, COLUMN()-2-360+36) -> 5 | MZ9: =OFFSET(char10!A$1, ROW()-2-0+0, COLUMN()-2-360+36) -> 5 | NA9: =OFFSET(char10!A$1, ROW()-2-0+0, COLUMN()-2-360+36) -> 5 | NB9: =OFFSET(char10!A$1, ROW()-2-0+0, COLUMN()-2-360+36) -> 5 | NC9: =OFFSET(char10!A$1, ROW()-2-0+0, COLUMN()-2-360+36) -> 5 | ND9: =OFFSET(char10!A$1, ROW()-2-0+0, COLUMN()-2-360+36) -> 5 | NE9: =OFFSET(char10!A$1, ROW()-2-0+0, COLUMN()-2-360+36) -> 5 | NH9: =OFFSET(char10!A$1, ROW()-2-0+0, COLUMN()-2-370+37) -> 5 | NI9: =OFFSET(char10!A$1, ROW()-2-0+0, COLUMN()-2-370+37) -> 5 | NJ9: =OFFSET(char10!A$1, ROW()-2-0+0, COLUMN()-2-370+37) -> 5 | NK9: =OFFSET(char10!A$1, ROW()-2-0+0, COLUMN()-2-370+37) -> 5 | NL9: =OFFSET(char10!A$1, ROW()-2-0+0, COLUMN()-2-370+37) -> 5 | NM9: =OFFSET(char10!A$1, ROW()-2-0+0, COLUMN()-2-370+37) -> 5 | NN9: =OFFSET(char10!A$1, ROW()-2-0+0, COLUMN()-2-370+37) -> 5 | NO9: =OFFSET(char10!A$1, ROW()-2-0+0, COLUMN()-2-370+37) -> 5 | NR9: =OFFSET(char10!A$1, ROW()-2-0+0, COLUMN()-2-380+38) -> 5 | NS9: =OFFSET(char10!A$1, ROW()-2-0+0, COLUMN()-2-380+38) -> 5 | NT9: =OFFSET(char10!A$1, ROW()-2-0+0, COLUMN()-2-380+38) -> 5 | NU9: =OFFSET(char10!A$1, ROW()-2-0+0, COLUMN()-2-380+38) -> 5 | NV9: =OFFSET(char10!A$1, ROW()-2-0+0, COLUMN()-2-380+38) -> 5 | NW9: =OFFSET(char10!A$1, ROW()-2-0+0, COLUMN()-2-380+38) -> 5 | NX9: =OFFSET(char10!A$1, ROW()-2-0+0, COLUMN()-2-380+38) -> 5 | NY9: =OFFSET(char10!A$1, ROW()-2-0+0, COLUMN()-2-380+38) -> 5 | OB9: =OFFSET(char10!A$1, ROW()-2-0+0, COLUMN()-2-390+39) -> 5 | OC9: =OFFSET(char10!A$1, ROW()-2-0+0, COLUMN()-2-390+39) -> 5 | OD9: =OFFSET(char10!A$1, ROW()-2-0+0, COLUMN()-2-390+39) -> 5 | OE9: =OFFSET(char10!A$1, ROW()-2-0+0, COLUMN()-2-390+39) -> 5 | OF9: =OFFSET(char10!A$1, ROW()-2-0+0, COLUMN()-2-390+39) -> 5 | OG9: =OFFSET(char10!A$1, ROW()-2-0+0, COLUMN()-2-390+39) -> 5 | OH9: =OFFSET(char10!A$1, ROW()-2-0+0, COLUMN()-2-390+39) -> 5 | OI9: =OFFSET(char10!A$1, ROW()-2-0+0, COLUMN()-2-390+39) -> 5
